Workbook

Sheet INSTRUCTIONS
A1: EVENT POINT ENTRY STEPS FOR NVRHA
B2: PROCESS:
A3: NOTE: | B3: It is Best to staff your office with at least two score tabulators and one runner to bring information from the arena floor.
A4: NOTE: | B4: Steps 1 through 5 can be accomplished as you receive information prior to the show. You then will need to add 'drive in' registrations the day of the show. This can be a big time saver during the morning of the show.
A5: Step 1 | B5: Select "Save as" and save document with new name; event name/location and year- ie Spring Works 2012. This will preserve your Template and create a new document for your current show.
A6: Step 2 | B6: Populate Entry Information with the Event Name, Date, Judge Information.
A7: Step 3 | B7: Populate the "Back Number" column, "Contestants Name (Last & First)" column and "Horses Name" column on the Entry Information page being sure to put in the correct Division.
A8: Step 4 | B8: Populate the remaining fields (ie. Address & Contact Info, Member, Clinic, Competition, Stalls, etc.)
A9: Step 5 | B9: SAVE AND SAVE OFTEN
A10: NOTE: | B10: To aid in score sheet entry, blank lines on the Entry Information page can be hidden. To hide rows - First Unprotect the page using the password "NVRHA' then, Highlight blank rows on the Entry Information page, and either right click and select HIDE or select FORMAT, then ROW, then HIDE. Once all empty lines are hidden PROTECT the page using the passowrd "NVRHA"
A11: NOTE: | B11: YOU ARE NOW READY TO START ENTERING THE JUDGES SCORE SHEETS: I like to sort the Judges score sheets by "Division" and then by Back Number as they come in. This does a couple of things for me. 1.) I have a neat pile for each division. 2.) All of my contestants sheets are together. (I usually paper clip the contestants sheets together.)
A12: Step 6 | B12: Go to Entry Information page, click the "Back Number" corresponding with the score sheet in hand. You will be taken to that entrants score sheet page, CHECK TO BE SURE YOU ARE ON THE CORRECT PAGE.
A13: Step 7 | B13: Check the red box with an "X" for the class you are scoring to activate the score sheet. This will allow the scoresheet to total the score and carry it to the proper results page.
A14: Step 8 | B14: Enter "Judges Score" and Penalty Points in the correct class area (ie - Ranch Riding). Some penalties will have to be listed in the approximate space as not all score sheets/entry areas match exactly. Score sheet will do all further calculations and will automatically propagate the "Results" pages. Check the final score on computer entry page against the score shet to be sure they match, if not check both the paper score sheet for calculation errors and the computer for entry errors.
A15: Step 9 | B15: Be sure to "SAVE" upon completion of entering every score sheet.
A16: Step 10 | B16: Click on "BACK NUMBER" at top or the "Return to Entry Page" under each score sheet to return to Entry Information page.
A17: NOTE: | B17: REPEAT STEPS 6 - 9 FOR EACH ENTRANT AT THE EVENT
A18: Step 11 | B18: When all scores for a class are in, review Results page for each division (ie. Novice, Limited, etc). The spreadsheet is formatted to automatically rank the class and assign placement points. NOTE: Tied scores will provide a like "Ranking" and be highlighted in RED. Review score sheets to break ties, place a "1" next to the entrant that wins a tie (for multiple ties place a 2 or 3 with the winner getting the highest value), computer will automatically adjust placement points.
A19: Step 12 | B19: Print "AWARDS" page for the presentor to use at the awards ceremony.
A20: Step 13 | B20: Review Spread Sheet for completeness. Make certain that all class information has been entered or can be accounted for. (a rider may have scratched a class)
A21: Step 14 | B21: Review and Record "OVERALL" placing for Show Management. They usually want to know the "Overall" and "Reserve Overall" for each division. Work with Show Management and know what awards are being given and how they want to break down the criteria. There may be special awards such as a saddle that will require you to look at the scores of all divisions.
A22: Step 15 | B22: SAVE AND SAVE OFTEN
A23: Step 16 | B23: Provide a copy of your results to Show Management and/or send a copy to the NVRHA office.
A24: Step 17 | B24: CONGRATULATIONS!! A cold adult beverage may now be in order!

Sheet Entry Information
A2: Entrant / Show Information
A4: Event Name: | H4: The Horse First Farm, Brooklyn, WI | J4: Judge Name: | K4: Dave Currin | N4: Classes Judged: | O4: CN, RR, RT
A5: Event Date: | H5: June 28-29,2014 | J5: Judge Name: | K5: Jeff Barnes | N5: Classes Judged: | O5: WR, RC
G7: Ranch Riding Pattern: | H7: 1
G8: Working Ranch Pattern: | H8: 1
A10: Entry | B10: Back No. | C10: RR | D10: WRH | E10: CT | F10: RT | G10: CN | H10: Last Name | I10: First Name | J10: Registered Horse Name | K10: NVRHA Horse ID # | L10: NVRHA Member # | M10: Division | N10: Address | O10: City | P10: State | Q10: Zip | R10: Phone # | S10: Email Address
A11: 1 | B11: 83 | C11: =B11 -> 83 | D11: =B11 -> 83 | E11: =B11 -> 83 | F11: =B11 -> 83 | G11: =B11 -> 83 | H11: Christianson | I11: Codi | J11: Miss Makin Shine | M11: NOVICE
A12: 2 | B12: 82 | C12: =B12 -> 82 | D12: =B12 -> 82 | E12: =B12 -> 82 | F12: =B12 -> 82 | G12: =B12 -> 82 | H12: Grove | I12: Dale | J12: Woody B Stylin | M12: NOVICE
A13: 3 | B13: 75 | C13: =B13 -> 75 | D13: =B13 -> 75 | E13: =B13 -> 75 | F13: =B13 -> 75 | G13: =B13 -> 75 | H13: Burton | I13: Roxanne | J13: Miss Smart Gun RG | M13: NOVICE
A14: 4 | B14: 87 | C14: 87 | D14: 87 | E14: 87 | F14: 87 | G14: 87 | H14: Messera | I14: Kelly | J14: Magic Dance Man | M14: NOVICE
A15: 5 | B15: 72 | C15: 72 | D15: 72 | E15: 72 | F15: 72 | G15: 72 | H15: Eisenman | I15: Sue | J15: DLB Smart Blue Bars | M15: NOVICE
A16: 6 | B16: 0 | C16: =B16 -> 0 | D16: =B16 -> 0 | E16: =B16 -> 0 | F16: =B16 -> 0 | G16: =B16 -> 0 | M16: NOVICE
A17: 7 | B17: 44 | C17: 44 | D17: 44 | E17: 44 | F17: 44 | G17: =B17 -> 44 | H17: Knapp | I17: Roger | J17: Easy Rocket Doc | M17: NOVICE
A18: 8 | B18: 47 | C18: 47 | D18: 47 | E18: 47 | F18: 47 | G18: 47 | H18: Heinz | I18: Matthew | J18: Sun Dee Fox | M18: NOVICE
A19: 9 | B19: 49 | C19: 49 | D19: 49 | E19: 49 | F19: 49 | G19: 49 | H19: Hoppe | I19: Sandra | J19: B Cruzin Along | M19: NOVICE
A20: 10 | B20: 51 | C20: 51 | D20: 51 | E20: 51 | F20: 51 | G20: 51 | H20: Gilbert | I20: Tracy | J20: Bud's Diablo Star | M20: NOVICE
A21: 11 | B21: 0 | C21: 0 | D21: 0 | E21: =B21 -> 0 | F21: 0 | G21: 0 | M21: NOVICE
A22: 12 | B22: 0 | C22: 0 | D22: 0 | E22: 0 | F22: 0 | G22: 0 | M22: NOVICE
A23: 13 | B23: 0 | C23: 0 | D23: 0 | E23: 0 | F23: 0 | G23: 0 | M23: NOVICE
A24: 14 | B24: 0 | C24: 0 | D24: 0 | E24: 0 | F24: 0 | G24: 0 | M24: NOVICE
A25: 15 | B25: 0 | C25: 0 | D25: 0 | E25: 0 | F25: 0 | G25: 0 | M25: NOVICE
A26: 16 | B26: 0 | C26: 0 | D26: 0 | E26: 0 | F26: 0 | G26: 0 | M26: NOVICE
A27: 17 | B27: 0 | C27: 0 | D27: 0 | E27: 0 | F27: 0 | G27: 0 | M27: NOVICE
A28: 18 | B28: 0 | C28: 0 | D28: 0 | E28: 0 | F28: 0 | G28: 0 | M28: NOVICE
A29: 19 | B29: 0 | C29: 0 | D29: 0 | E29: 0 | F29: 0 | G29: 0 | M29: NOVICE
A30: 20 | B30: 0 | C30: 0 | D30: 0 | E30: 0 | F30: 0 | G30: 0 | M30: NOVICE
A31: 21 | B31: 0 | C31: 0 | D31: 0 | E31: 0 | F31: 0 | G31: 0 | M31: NOVICE
A32: 22 | B32: 0 | C32: 0 | D32: 0 | E32: 0 | F32: 0 | G32: 0 | M32: NOVICE
A33: 23 | B33: 0 | C33: 0 | D33: 0 | E33: 0 | F33: 0 | G33: 0 | M33: NOVICE
A34: 24 | B34: 0 | C34: 0 | D34: 0 | E34: 0 | F34: 0 | G34: 0 | M34: NOVICE
A35: 25 | B35: 0 | C35: 0 | D35: =B35 -> 0 | E35: =B35 -> 0 | F35: =B35 -> 0 | G35: =B35 -> 0 | M35: NOVICE
A36: 26 | B36: 0 | C36: 0 | D36: 0 | E36: 0 | F36: 0 | G36: 0 | M36: NOVICE
A37: 27 | B37: 0 | C37: 0 | D37: 0 | E37: 0 | F37: 0 | G37: 0 | M37: NOVICE
A38: 28 | B38: 0 | C38: 0 | D38: 0 | E38: 0 | F38: 0 | G38: 0 | M38: NOVICE
A39: 29 | B39: 0 | C39: 0 | D39: 0 | E39: 0 | F39: 0 | G39: 0 | M39: NOVICE
A40: 30 | B40: 0 | C40: 0 | D40: 0 | E40: 0 | F40: 0 | G40: 0 | M40: NOVICE
A41: 1 | B41: 22 | C41: =B41 -> 22 | D41: =B41 -> 22 | E41: =B41 -> 22 | F41: =B41 -> 22 | G41: =B41 -> 22 | H41: Janetka | I41: Gena | J41: Froghorn Leghorn | M41: LIMITED
A42: 2 | B42: 40 | C42: =B42 -> 40 | D42: =B42 -> 40 | E42: =B42 -> 40 | F42: =B42 -> 40 | G42: =B42 -> 40 | H42: Siitari | I42: Steph | J42: SLJ Ruby Slippers | M42: LIMITED
A43: 3 | B43: 0 | C43: 0 | D43: 0 | E43: 0 | F43: 0 | G43: 0 | M43: LIMITED
A44: 4 | B44: 0 | C44: 0 | D44: 0 | E44: 0 | F44: 0 | G44: 0 | M44: LIMITED
A45: 5 | B45: 0 | C45: 0 | D45: 0 | E45: 0 | F45: 0 | G45: 0 | M45: LIMITED
A46: 6 | B46: 0 | C46: 0 | D46: 0 | E46: 0 | F46: 0 | G46: 0 | M46: LIMITED
A47: 7 | B47: 0 | C47: 0 | D47: 0 | E47: 0 | F47: 0 | G47: 0 | M47: LIMITED
A48: 8 | B48: 0 | C48: 0 | D48: 0 | E48: 0 | F48: 0 | G48: 0 | M48: LIMITED
A49: 9 | B49: 0 | C49: 0 | D49: 0 | E49: 0 | F49: 0 | G49: 0 | M49: LIMITED
A50: 10 | B50: 0 | C50: 0 | D50: 0 | E50: 0 | F50: 0 | G50: 0 | M50: LIMITED
A51: 11 | B51: 0 | C51: 0 | D51: 0 | E51: 0 | F51: 0 | G51: 0 | M51: LIMITED
A52: 12 | B52: 0 | C52: 0 | D52: 0 | E52: 0 | F52: 0 | G52: 0 | M52: LIMITED
A53: 13 | B53: 0 | C53: 0 | D53: 0 | E53: 0 | F53: 0 | G53: 0 | M53: LIMITED
A54: 14 | B54: 0 | C54: 0 | D54: 0 | E54: 0 | F54: 0 | G54: 0 | M54: LIMITED
A55: 15 | B55: 0 | C55: 0 | D55: 0 | E55: 0 | F55: 0 | G55: 0 | M55: LIMITED
A56: 1 | B56: 11 | C56: =B56 -> 11 | D56: =B56 -> 11 | E56: =B56 -> 11 | F56: =B56 -> 11 | G56: =B56 -> 11 | H56: Osorio | I56: Carlos | J56: AR Especial | M56: INTERMEDIATE
A57: 2 | B57: 0 | C57: =B57 -> 0 | D57: =B57 -> 0 | E57: =B57 -> 0 | F57: =B57 -> 0 | G57: =B57 -> 0 | M57: INTERMEDIATE
A58: 3 | B58: 0 | C58: 0 | D58: 0 | E58: 0 | F58: 0 | G58: 0 | M58: INTERMEDIATE
A59: 4 | B59: 0 | C59: 0 | D59: 0 | E59: 0 | F59: 0 | G59: 0 | M59: INTERMEDIATE
A60: 5 | B60: 0 | C60: 0 | D60: 0 | E60: 0 | F60: 0 | G60: 0 | M60: INTERMEDIATE
A61: 6 | B61: 0 | C61: 0 | D61: 0 | E61: 0 | F61: 0 | G61: 0 | M61: INTERMEDIATE
A62: 7 | B62: 0 | C62: 0 | D62: 0 | E62: 0 | F62: 0 | G62: 0 | M62: INTERMEDIATE
A63: 8 | B63: 0 | C63: 0 | D63: 0 | E63: 0 | F63: 0 | G63: 0 | M63: INTERMEDIATE
A64: 9 | B64: 0 | C64: 0 | D64: 0 | E64: 0 | F64: 0 | G64: 0 | M64: INTERMEDIATE
A65: 10 | B65: 0 | C65: 0 | D65: 0 | E65: 0 | F65: 0 | G65: 0 | M65: INTERMEDIATE
A66: 11 | B66: 0 | C66: 0 | D66: 0 | E66: 0 | F66: 0 | G66: 0 | M66: INTERMEDIATE
A67: 12 | B67: 0 | C67: 0 | D67: 0 | E67: 0 | F67: 0 | G67: 0 | M67: INTERMEDIATE
A68: 13 | B68: 0 | C68: 0 | D68: 0 | E68: 0 | F68: 0 | G68: 0 | M68: INTERMEDIATE
A69: 14 | B69: 0 | C69: 0 | D69: 0 | E69: 0 | F69: 0 | G69: 0 | M69: INTERMEDIATE
A70: 15 | B70: 0 | C70: 0 | D70: 0 | E70: 0 | F70: 0 | G70: 0 | M70: INTERMEDIATE
A71: 1 | B71: 5 | C71: =B71 -> 5 | D71: =B71 -> 5 | E71: =B71 -> 5 | F71: =B71 -> 5 | G71: =B71 -> 5 | H71: Henderson | I71: Vicky | J71: Tatanka | M71: ADVANCED
A72: 2 | B72: 3 | C72: =B72 -> 3 | D72: =B72 -> 3 | E72: =B72 -> 3 | F72: =B72 -> 3 | G72: =B72 -> 3 | H72: Johnsen | I72: Shelley | J72: Unbranded | M72: ADVANCED
A73: 3 | B73: 0 | C73: 0 | D73: 0 | E73: 0 | F73: 0 | G73: 0 | M73: ADVANCED
A74: 4 | B74: 0 | C74: 0 | D74: 0 | E74: 0 | F74: 0 | G74: 0 | M74: ADVANCED
A75: 5 | B75: 0 | C75: 0 | D75: 0 | E75: 0 | F75: 0 | G75: 0 | M75: ADVANCED
A76: 6 | B76: 0 | C76: 0 | D76: 0 | E76: 0 | F76: 0 | G76: 0 | M76: ADVANCED
A77: 7 | B77: 0 | C77: 0 | D77: 0 | E77: 0 | F77: 0 | G77: 0 | M77: ADVANCED
A78: 8 | B78: 0 | C78: 0 | D78: 0 | E78: 0 | F78: 0 | G78: 0 | M78: ADVANCED
A79: 9 | B79: 0 | C79: 0 | D79: 0 | E79: 0 | F79: 0 | G79: 0 | M79: ADVANCED
A80: 10 | B80: 0 | C80: 0 | D80: 0 | E80: 0 | F80: 0 | G80: 0 | M80: ADVANCED
A81: 11 | B81: 0 | C81: 0 | D81: 0 | E81: 0 | F81: 0 | G81: 0 | M81: ADVANCED
A82: 12 | B82: 0 | C82: 0 | D82: 0 | E82: 0 | F82: 0 | G82: 0 | M82: ADVANCED
A83: 13 | B83: 0 | C83: 0 | D83: 0 | E83: 0 | F83: 0 | G83: 0 | M83: ADVANCED
A84: 14 | B84: 0 | C84: 0 | D84: 0 | E84: 0 | F84: 0 | G84: 0 | M84: ADVANCED
A85: 15 | B85: 0 | C85: 0 | D85: 0 | E85: 0 | F85: 0 | G85: 0 | M85: ADVANCED
A86: 1 | B86: 45 | C86: =B86 -> 45 | D86: =B86 -> 45 | E86: =B86 -> 45 | F86: =B86 -> 45 | G86: =B86 -> 45 | H86: Dunn | I86: Maureen | J86: AR Sannabella Check | M86: OPEN
A87: 2 | B87: 50 | C87: =B87 -> 50 | D87: =B87 -> 50 | E87: =B87 -> 50 | F87: =B87 -> 50 | G87: =B87 -> 50 | H87: Goodland | I87: Rob | J87: Royale Smooth Sailin | M87: OPEN
A88: 3 | B88: 43 | C88: 0 | D88: 0 | E88: 0 | F88: 0 | G88: 0 | H88: Sween | I88: Carolyn | J88: AR Powderfully | M88: OPEN
A89: 4 | C89: 0 | D89: 0 | E89: 0 | F89: 0 | G89: 0 | M89: OPEN
A90: 5 | B90: 0 | C90: 0 | D90: 0 | E90: 0 | F90: 0 | G90: 0 | M90: OPEN
A91: 6 | B91: 0 | C91: 0 | D91: 0 | E91: 0 | F91: 0 | G91: 0 | M91: OPEN
A92: 7 | B92: 0 | C92: 0 | D92: 0 | E92: 0 | F92: 0 | G92: 0 | M92: OPEN
A93: 8 | B93: 0 | C93: 0 | D93: 0 | E93: 0 | F93: 0 | G93: 0 | M93: OPEN
A94: 9 | B94: 0 | C94: 0 | D94: 0 | E94: 0 | F94: 0 | G94: 0 | M94: OPEN
A95: 10 | B95: 0 | C95: 0 | D95: 0 | E95: 0 | F95: 0 | G95: 0 | M95: OPEN
A96: 11 | B96: 0 | C96: 0 | D96: 0 | E96: 0 | F96: 0 | G96: 0 | M96: OPEN
A97: 12 | B97: 0 | C97: 0 | D97: 0 | E97: 0 | F97: 0 | G97: 0 | M97: OPEN
A98: 13 | B98: 0 | C98: 0 | D98: 0 | E98: 0 | F98: 0 | G98: 0 | M98: OPEN
A99: 14 | B99: 0 | C99: 0 | D99: 0 | E99: 0 | F99: 0 | G99: 0 | M99: OPEN
A100: 15 | B100: 0 | C100: 0 | D100: 0 | E100: 0 | F100: 0 | G100: 0 | M100: OPEN
A101: 16 | B101: 0 | C101: 0 | D101: 0 | E101: 0 | F101: 0 | G101: 0 | M101: OPEN
A102: 17 | B102: 0 | C102: 0 | D102: 0 | E102: 0 | F102: 0 | G102: 0 | M102: OPEN
A103: 18 | B103: 0 | C103: 0 | D103: 0 | E103: 0 | F103: 0 | G103: 0 | M103: OPEN
A104: 19 | B104: 0 | C104: 0 | D104: 0 | E104: 0 | F104: 0 | G104: 0 | M104: OPEN
A105: 20 | B105: 0 | C105: 0 | D105: 0 | E105: 0 | F105: 0 | G105: 0 | M105: OPEN
A106: 21 | B106: 0 | C106: 0 | D106: 0 | E106: 0 | F106: 0 | G106: 0 | M106: OPEN
A107: 22 | B107: 0 | C107: 0 | D107: 0 | E107: 0 | F107: 0 | G107: 0 | M107: OPEN
A108: 23 | B108: 0 | C108: 0 | D108: 0 | E108: 0 | F108: 0 | G108: 0 | M108: OPEN
A109: 24 | B109: 0 | C109: 0 | D109: 0 | E109: 0 | F109: 0 | G109: 0 | M109: OPEN
A110: 1 | B110: 0 | C110: =B110 -> 0 | D110: =B110 -> 0 | E110: =B110 -> 0 | F110: =B110 -> 0 | G110: =B110 -> 0 | M110: YOUTH
A111: 2 | B111: 0 | C111: =B111 -> 0 | D111: =B111 -> 0 | E111: =B111 -> 0 | F111: =B111 -> 0 | G111: =B111 -> 0 | M111: YOUTH
A112: 3 | B112: 0 | C112: 0 | D112: 0 | E112: 0 | F112: 0 | G112: 0 | M112: YOUTH
A113: 4 | B113: 0 | C113: 0 | D113: 0 | E113: 0 | F113: 0 | G113: 0 | M113: YOUTH
A114: 5 | B114: 0 | C114: 0 | D114: 0 | E114: 0 | F114: 0 | G114: 0 | M114: YOUTH
A115: 6 | B115: 0 | C115: 0 | D115: 0 | E115: 0 | F115: 0 | G115: 0 | M115: YOUTH
A116: 7 | B116: 0 | C116: 0 | D116: 0 | E116: 0 | F116: 0 | G116: 0 | M116: YOUTH
A117: 8 | B117: 0 | C117: 0 | D117: 0 | E117: 0 | F117: 0 | G117: 0 | M117: YOUTH
A118: 9 | B118: 0 | C118: 0 | D118: 0 | E118: 0 | F118: 0 | G118: 0 | M118: YOUTH
A119: 10 | B119: 0 | C119: 0 | D119: 0 | E119: 0 | F119: 0 | G119: 0 | M119: YOUTH
A120: 11 | B120: 0 | C120: 0 | D120: 0 | E120: 0 | F120: 0 | G120: 0 | M120: YOUTH
A121: 12 | B121: 0 | C121: 0 | D121: 0 | E121: 0 | F121: 0 | G121: 0 | M121: YOUTH
A122: 13 | B122: 0 | C122: 0 | D122: 0 | E122: 0 | F122: 0 | G122: 0 | M122: YOUTH
A123: 14 | B123: 0 | C123: 0 | D123: 0 | E123: 0 | F123: 0 | G123: 0 | M123: YOUTH
A124: 15 | B124: 0 | C124: 0 | D124: 0 | E124: 0 | F124: 0 | G124: 0 | M124: YOUTH
B125: 0
B126: 0

Sheet _SUMMARY DATA (hidden)
A1: horses_____ Max of______ CH Points | E1: ='Entry Information'!H4 -> The Horse First Farm, Brooklyn, WI
E2: ='Entry Information'!H5 -> June 28-29,2014
C3: ='Entry Information'!G7 -> Ranch Riding Pattern: | D3: ='Entry Information'!H7 -> 1
C4: ='Entry Information'!G8 -> Working Ranch Pattern: | D4: ='Entry Information'!H8 -> 1
A6: Count | B6: Div | C6: Last Name | D6: First Name | E6: Horses Name | F6: Total plc pts | G6: Total Score | H6: Assign Score | I6: RR Score | J6: RR Tie break | K6: RR CH_PTS | L6: WR Score | M6: WR Tie break | N6: WR CH_PTS | O6: CT Score | P6: CT Tie break | Q6: CT CH_PTS | R6: RT Score | S6: RT Tie break | T6: RT CH_PTS | U6: CN Score | V6: CN Tie break | W6: CN CH_PTS
A7: 1 | B7: ='NOVICE RESULTS (2)'!E11 -> NOV | C7: ='NOVICE RESULTS (2)'!B11 -> Christianson | D7: ='NOVICE RESULTS (2)'!C11 -> Codi | E7: ='NOVICE RESULTS (2)'!D11 -> Miss Makin Shine | F7: ='NOVICE RESULTS (2)'!AG11 -> 2 | G7: =SUM(I7,L7,O7,R7,U7) -> 264.53 | H7: =SUM(I7,L7,O7,R7) -> 205.9 | I7: ='NOVICE RESULTS (2)'!F11 -> 61.4 | L7: ='NOVICE RESULTS (2)'!K11 -> 22.5 | O7: ='NOVICE RESULTS (2)'!P11 -> 53 | R7: ='NOVICE RESULTS (2)'!U11 -> 69 | U7: ='NOVICE RESULTS (2)'!AB11 -> 58.63
A8: 2 | B8: ='NOVICE RESULTS (2)'!E12 -> NOV | C8: ='NOVICE RESULTS (2)'!B12 -> Grove | D8: ='NOVICE RESULTS (2)'!C12 -> Dale | E8: ='NOVICE RESULTS (2)'!D12 -> Woody B Stylin | F8: ='NOVICE RESULTS (2)'!AG12 -> 14 | G8: 315.35 | H8: 247.6 | I8: ='NOVICE RESULTS (2)'!F12 -> 62.6 | L8: ='NOVICE RESULTS (2)'!K12 -> 26.5 | O8: ='NOVICE RESULTS (2)'!P12 -> 83 | R8: ='NOVICE RESULTS (2)'!U12 -> 75.5 | U8: ='NOVICE RESULTS (2)'!AB12 -> 67.75
A9: 3 | B9: ='NOVICE RESULTS (2)'!E13 -> NOV | C9: ='NOVICE RESULTS (2)'!B13 -> Burton | D9: ='NOVICE RESULTS (2)'!C13 -> Roxanne | E9: ='NOVICE RESULTS (2)'!D13 -> Miss Smart Gun RG | F9: ='NOVICE RESULTS (2)'!AG13 -> 17 | G9: 307.54 | H9: 239 | I9: ='NOVICE RESULTS (2)'!F13 -> 76 | L9: ='NOVICE RESULTS (2)'!K13 -> 28 | O9: ='NOVICE RESULTS (2)'!P13 -> 55 | R9: ='NOVICE RESULTS (2)'!U13 -> 80 | U9: ='NOVICE RESULTS (2)'!AB13 -> 68.54
A10: 4 | B10: ='NOVICE RESULTS (2)'!E14 -> NOV | C10: ='NOVICE RESULTS (2)'!B14 -> Messera | D10: ='NOVICE RESULTS (2)'!C14 -> Kelly | E10: ='NOVICE RESULTS (2)'!D14 -> Magic Dance Man | F10: ='NOVICE RESULTS (2)'!AG14 -> 22 | G10: 334.05 | H10: 262.2 | I10: ='NOVICE RESULTS (2)'!F14 -> 77.7 | L10: ='NOVICE RESULTS (2)'!K14 -> 29.5 | O10: ='NOVICE RESULTS (2)'!P14 -> 70 | R10: ='NOVICE RESULTS (2)'!U14 -> 85 | U10: ='NOVICE RESULTS (2)'!AB14 -> 71.85
A11: 5 | B11: ='NOVICE RESULTS (2)'!E15 -> NOV | C11: ='NOVICE RESULTS (2)'!B15 -> Eisenman | D11: ='NOVICE RESULTS (2)'!C15 -> Sue | E11: ='NOVICE RESULTS (2)'!D15 -> DLB Smart Blue Bars | F11: ='NOVICE RESULTS (2)'!AG15 -> 8 | G11: 257.27 | H11: 193.9 | I11: ='NOVICE RESULTS (2)'!F15 -> 78.4 | L11: ='NOVICE RESULTS (2)'!K15 -> 25.5 | O11: ='NOVICE RESULTS (2)'!P15 -> 18 | R11: ='NOVICE RESULTS (2)'!U15 -> 72 | U11: ='NOVICE RESULTS (2)'!AB15 -> 63.37
A12: 6 | B12: ='NOVICE RESULTS (2)'!E16 -> NOV | C12: ='NOVICE RESULTS (2)'!B16 -> 0 | D12: ='NOVICE RESULTS (2)'!C16 -> 0 | E12: ='NOVICE RESULTS (2)'!D16 -> 0 | F12: ='NOVICE RESULTS (2)'!AG16 ->  | G12: 0 | H12: 0 | I12: ='NOVICE RESULTS (2)'!F16 ->  | L12: ='NOVICE RESULTS (2)'!K16 ->  | O12: ='NOVICE RESULTS (2)'!P16 ->  | R12: ='NOVICE RESULTS (2)'!U16 ->  | U12: ='NOVICE RESULTS (2)'!AB16 -> 
A13: 7 | B13: ='NOVICE RESULTS (2)'!E17 -> NOV | C13: ='NOVICE RESULTS (2)'!B17 -> Knapp | D13: ='NOVICE RESULTS (2)'!C17 -> Roger | E13: ='NOVICE RESULTS (2)'!D17 -> Easy Rocket Doc | F13: ='NOVICE RESULTS (2)'!AG17 -> 9 | G13: 268.82 | H13: 203.8 | I13: ='NOVICE RESULTS (2)'!F17 -> 56.3 | L13: ='NOVICE RESULTS (2)'!K17 -> 37 | O13: ='NOVICE RESULTS (2)'!P17 -> 36 | R13: ='NOVICE RESULTS (2)'!U17 -> 74.5 | U13: ='NOVICE RESULTS (2)'!AB17 -> 65.02
A14: 8 | B14: ='NOVICE RESULTS (2)'!E18 -> NOV | C14: ='NOVICE RESULTS (2)'!B18 -> Heinz | D14: ='NOVICE RESULTS (2)'!C18 -> Matthew | E14: ='NOVICE RESULTS (2)'!D18 -> Sun Dee Fox | F14: ='NOVICE RESULTS (2)'!AG18 -> 2 | G14: 267.06 | H14: 207.9 | I14: ='NOVICE RESULTS (2)'!F18 -> 68.4 | L14: ='NOVICE RESULTS (2)'!K18 -> 22 | O14: ='NOVICE RESULTS (2)'!P18 -> 48 | R14: ='NOVICE RESULTS (2)'!U18 -> 69.5 | U14: ='NOVICE RESULTS (2)'!AB18 -> 59.16
A15: 9 | B15: ='NOVICE RESULTS (2)'!E19 -> NOV | C15: ='NOVICE RESULTS (2)'!B19 -> Hoppe | D15: ='NOVICE RESULTS (2)'!C19 -> Sandra | E15: ='NOVICE RESULTS (2)'!D19 -> B Cruzin Along | F15: ='NOVICE RESULTS (2)'!AG19 -> 1 | G15: 246.6 | H15: 191.7 | I15: ='NOVICE RESULTS (2)'!F19 -> 58.7 | L15: ='NOVICE RESULTS (2)'!K19 -> 23 | O15: ='NOVICE RESULTS (2)'!P19 -> 52 | R15: ='NOVICE RESULTS (2)'!U19 -> 58 | U15: ='NOVICE RESULTS (2)'!AB19 -> 54.9
A16: 10 | B16: ='NOVICE RESULTS (2)'!E20 -> NOV | C16: ='NOVICE RESULTS (2)'!B20 -> Gilbert | D16: ='NOVICE RESULTS (2)'!C20 -> Tracy | E16: ='NOVICE RESULTS (2)'!D20 -> Bud's Diablo Star | F16: ='NOVICE RESULTS (2)'!AG20 -> 0 | G16: 243.85 | H16: 181.1 | I16: ='NOVICE RESULTS (2)'!F20 -> 59.1 | L16: ='NOVICE RESULTS (2)'!K20 -> 21 | O16: ='NOVICE RESULTS (2)'!P20 -> 46 | R16: ='NOVICE RESULTS (2)'!U20 -> 55 | U16: ='NOVICE RESULTS (2)'!AB20 -> 62.75
A17: 11 | B17: ='NOVICE RESULTS (2)'!E21 -> NOV | C17: ='NOVICE RESULTS (2)'!B21 -> 0 | D17: ='NOVICE RESULTS (2)'!C21 -> 0 | E17: ='NOVICE RESULTS (2)'!D21 -> 0 | F17: ='NOVICE RESULTS (2)'!AG21 ->  | G17: 0 | H17: 0 | I17: ='NOVICE RESULTS (2)'!F21 ->  | L17: ='NOVICE RESULTS (2)'!K21 ->  | O17: ='NOVICE RESULTS (2)'!P21 ->  | R17: ='NOVICE RESULTS (2)'!U21 ->  | U17: ='NOVICE RESULTS (2)'!AB21 -> 
A18: 12 | B18: ='NOVICE RESULTS (2)'!E22 -> NOV | C18: ='NOVICE RESULTS (2)'!B22 -> 0 | D18: ='NOVICE RESULTS (2)'!C22 -> 0 | E18: ='NOVICE RESULTS (2)'!D22 -> 0 | F18: ='NOVICE RESULTS (2)'!AG22 ->  | G18: 0 | H18: 0 | I18: ='NOVICE RESULTS (2)'!F22 ->  | L18: ='NOVICE RESULTS (2)'!K22 ->  | O18: ='NOVICE RESULTS (2)'!P22 ->  | R18: ='NOVICE RESULTS (2)'!U22 ->  | U18: ='NOVICE RESULTS (2)'!AB22 -> 
A19: 13 | B19: ='NOVICE RESULTS (2)'!E23 -> NOV | C19: ='NOVICE RESULTS (2)'!B23 -> 0 | D19: ='NOVICE RESULTS (2)'!C23 -> 0 | E19: ='NOVICE RESULTS (2)'!D23 -> 0 | F19: ='NOVICE RESULTS (2)'!AG23 ->  | G19: 0 | H19: 0 | I19: ='NOVICE RESULTS (2)'!F23 ->  | L19: ='NOVICE RESULTS (2)'!K23 ->  | O19: ='NOVICE RESULTS (2)'!P23 ->  | R19: ='NOVICE RESULTS (2)'!U23 ->  | U19: ='NOVICE RESULTS (2)'!AB23 -> 
A20: 14 | B20: ='NOVICE RESULTS (2)'!E24 -> NOV | C20: ='NOVICE RESULTS (2)'!B24 -> 0 | D20: ='NOVICE RESULTS (2)'!C24 -> 0 | E20: ='NOVICE RESULTS (2)'!D24 -> 0 | F20: ='NOVICE RESULTS (2)'!AG24 ->  | G20: 0 | H20: 0 | I20: ='NOVICE RESULTS (2)'!F24 ->  | L20: ='NOVICE RESULTS (2)'!K24 ->  | O20: ='NOVICE RESULTS (2)'!P24 ->  | R20: ='NOVICE RESULTS (2)'!U24 ->  | U20: ='NOVICE RESULTS (2)'!AB24 -> 
A21: 15 | B21: ='NOVICE RESULTS (2)'!E25 -> NOV | C21: ='NOVICE RESULTS (2)'!B25 -> 0 | D21: ='NOVICE RESULTS (2)'!C25 -> 0 | E21: ='NOVICE RESULTS (2)'!D25 -> 0 | F21: ='NOVICE RESULTS (2)'!AG25 ->  | G21: 0 | H21: 0 | I21: ='NOVICE RESULTS (2)'!F25 ->  | L21: ='NOVICE RESULTS (2)'!K25 ->  | O21: ='NOVICE RESULTS (2)'!P25 ->  | R21: ='NOVICE RESULTS (2)'!U25 ->  | U21: ='NOVICE RESULTS (2)'!AB25 -> 
A22: 16 | B22: ='NOVICE RESULTS (2)'!E26 -> NOV | C22: ='NOVICE RESULTS (2)'!B26 -> 0 | D22: ='NOVICE RESULTS (2)'!C26 -> 0 | E22: ='NOVICE RESULTS (2)'!D26 -> 0 | F22: ='NOVICE RESULTS (2)'!AG26 ->  | G22: 0 | H22: 0 | I22: ='NOVICE RESULTS (2)'!F26 ->  | L22: ='NOVICE RESULTS (2)'!K26 ->  | O22: ='NOVICE RESULTS (2)'!P26 ->  | R22: ='NOVICE RESULTS (2)'!U26 ->  | U22: ='NOVICE RESULTS (2)'!AB26 -> 
A23: 17 | B23: ='NOVICE RESULTS (2)'!E27 -> NOV | C23: ='NOVICE RESULTS (2)'!B27 -> 0 | D23: ='NOVICE RESULTS (2)'!C27 -> 0 | E23: ='NOVICE RESULTS (2)'!D27 -> 0 | F23: ='NOVICE RESULTS (2)'!AG27 ->  | G23: 0 | H23: 0 | I23: ='NOVICE RESULTS (2)'!F27 ->  | L23: ='NOVICE RESULTS (2)'!K27 ->  | O23: ='NOVICE RESULTS (2)'!P27 ->  | R23: ='NOVICE RESULTS (2)'!U27 ->  | U23: ='NOVICE RESULTS (2)'!AB27 -> 
A24: 18 | B24: ='NOVICE RESULTS (2)'!E28 -> NOV | C24: ='NOVICE RESULTS (2)'!B28 -> 0 | D24: ='NOVICE RESULTS (2)'!C28 -> 0 | E24: ='NOVICE RESULTS (2)'!D28 -> 0 | F24: ='NOVICE RESULTS (2)'!AG28 ->  | G24: 0 | H24: 0 | I24: ='NOVICE RESULTS (2)'!F28 ->  | L24: ='NOVICE RESULTS (2)'!K28 ->  | O24: ='NOVICE RESULTS (2)'!P28 ->  | R24: ='NOVICE RESULTS (2)'!U28 ->  | U24: ='NOVICE RESULTS (2)'!AB28 -> 
A25: 19 | B25: ='NOVICE RESULTS (2)'!E29 -> NOV | C25: ='NOVICE RESULTS (2)'!B29 -> 0 | D25: ='NOVICE RESULTS (2)'!C29 -> 0 | E25: ='NOVICE RESULTS (2)'!D29 -> 0 | F25: ='NOVICE RESULTS (2)'!AG29 ->  | G25: 0 | H25: 0 | I25: ='NOVICE RESULTS (2)'!F29 ->  | L25: ='NOVICE RESULTS (2)'!K29 ->  | O25: ='NOVICE RESULTS (2)'!P29 ->  | R25: ='NOVICE RESULTS (2)'!U29 ->  | U25: ='NOVICE RESULTS (2)'!AB29 -> 
A26: 20 | B26: ='NOVICE RESULTS (2)'!E30 -> NOV | C26: ='NOVICE RESULTS (2)'!B30 -> 0 | D26: ='NOVICE RESULTS (2)'!C30 -> 0 | E26: ='NOVICE RESULTS (2)'!D30 -> 0 | F26: ='NOVICE RESULTS (2)'!AG30 ->  | G26: 0 | H26: 0 | I26: ='NOVICE RESULTS (2)'!F30 ->  | L26: ='NOVICE RESULTS (2)'!K30 ->  | O26: ='NOVICE RESULTS (2)'!P30 ->  | R26: ='NOVICE RESULTS (2)'!U30 ->  | U26: ='NOVICE RESULTS (2)'!AB30 -> 
A27: 21 | B27: ='NOVICE RESULTS (2)'!E31 -> NOV | C27: ='NOVICE RESULTS (2)'!B31 -> 0 | D27: ='NOVICE RESULTS (2)'!C31 -> 0 | E27: ='NOVICE RESULTS (2)'!D31 -> 0 | F27: ='NOVICE RESULTS (2)'!AG31 ->  | G27: 0 | H27: 0 | I27: ='NOVICE RESULTS (2)'!F31 ->  | L27: ='NOVICE RESULTS (2)'!K31 ->  | O27: ='NOVICE RESULTS (2)'!P31 ->  | R27: ='NOVICE RESULTS (2)'!U31 ->  | U27: ='NOVICE RESULTS (2)'!AB31 -> 
A28: 22 | B28: ='NOVICE RESULTS (2)'!E32 -> NOV | C28: ='NOVICE RESULTS (2)'!B32 -> 0 | D28: ='NOVICE RESULTS (2)'!C32 -> 0 | E28: ='NOVICE RESULTS (2)'!D32 -> 0 | F28: ='NOVICE RESULTS (2)'!AG32 ->  | G28: 0 | H28: 0 | I28: ='NOVICE RESULTS (2)'!F32 ->  | L28: ='NOVICE RESULTS (2)'!K32 ->  | O28: ='NOVICE RESULTS (2)'!P32 ->  | R28: ='NOVICE RESULTS (2)'!U32 ->  | U28: ='NOVICE RESULTS (2)'!AB32 -> 
A29: 23 | B29: ='NOVICE RESULTS (2)'!E33 -> NOV | C29: ='NOVICE RESULTS (2)'!B33 -> 0 | D29: ='NOVICE RESULTS (2)'!C33 -> 0 | E29: ='NOVICE RESULTS (2)'!D33 -> 0 | F29: ='NOVICE RESULTS (2)'!AG33 ->  | G29: 0 | H29: 0 | I29: ='NOVICE RESULTS (2)'!F33 ->  | L29: ='NOVICE RESULTS (2)'!K33 ->  | O29: ='NOVICE RESULTS (2)'!P33 ->  | R29: ='NOVICE RESULTS (2)'!U33 ->  | U29: ='NOVICE RESULTS (2)'!AB33 -> 
A30: 24 | B30: ='NOVICE RESULTS (2)'!E34 -> NOV | C30: ='NOVICE RESULTS (2)'!B34 -> 0 | D30: ='NOVICE RESULTS (2)'!C34 -> 0 | E30: ='NOVICE RESULTS (2)'!D34 -> 0 | F30: ='NOVICE RESULTS (2)'!AG34 ->  | G30: 0 | H30: 0 | I30: ='NOVICE RESULTS (2)'!F34 ->  | L30: ='NOVICE RESULTS (2)'!K34 ->  | O30: ='NOVICE RESULTS (2)'!P34 ->  | R30: ='NOVICE RESULTS (2)'!U34 ->  | U30: ='NOVICE RESULTS (2)'!AB34 -> 
A31: 25 | B31: ='NOVICE RESULTS (2)'!E35 -> NOV | C31: ='NOVICE RESULTS (2)'!B35 -> 0 | D31: ='NOVICE RESULTS (2)'!C35 -> 0 | E31: ='NOVICE RESULTS (2)'!D35 -> 0 | F31: ='NOVICE RESULTS (2)'!AG35 ->  | G31: 0 | H31: 0 | I31: ='NOVICE RESULTS (2)'!F35 ->  | L31: ='NOVICE RESULTS (2)'!K35 ->  | O31: ='NOVICE RESULTS (2)'!P35 ->  | R31: ='NOVICE RESULTS (2)'!U35 ->  | U31: ='NOVICE RESULTS (2)'!AB35 -> 
A32: 26 | B32: ='NOVICE RESULTS (2)'!E36 -> NOV | C32: ='NOVICE RESULTS (2)'!B36 -> 0 | D32: ='NOVICE RESULTS (2)'!C36 -> 0 | E32: ='NOVICE RESULTS (2)'!D36 -> 0 | F32: ='NOVICE RESULTS (2)'!AG36 ->  | G32: 0 | H32: 0 | I32: ='NOVICE RESULTS (2)'!F36 ->  | L32: ='NOVICE RESULTS (2)'!K36 ->  | O32: ='NOVICE RESULTS (2)'!P36 ->  | R32: ='NOVICE RESULTS (2)'!U36 ->  | U32: ='NOVICE RESULTS (2)'!AB36 -> 
A33: 27 | B33: ='NOVICE RESULTS (2)'!E37 -> NOV | C33: ='NOVICE RESULTS (2)'!B37 -> 0 | D33: ='NOVICE RESULTS (2)'!C37 -> 0 | E33: ='NOVICE RESULTS (2)'!D37 -> 0 | F33: ='NOVICE RESULTS (2)'!AG37 ->  | G33: 0 | H33: 0 | I33: ='NOVICE RESULTS (2)'!F37 ->  | L33: ='NOVICE RESULTS (2)'!K37 ->  | O33: ='NOVICE RESULTS (2)'!P37 ->  | R33: ='NOVICE RESULTS (2)'!U37 ->  | U33: ='NOVICE RESULTS (2)'!AB37 -> 
A34: 28 | B34: ='NOVICE RESULTS (2)'!E38 -> NOV | C34: ='NOVICE RESULTS (2)'!B38 -> 0 | D34: ='NOVICE RESULTS (2)'!C38 -> 0 | E34: ='NOVICE RESULTS (2)'!D38 -> 0 | F34: ='NOVICE RESULTS (2)'!AG38 ->  | G34: 0 | H34: 0 | I34: ='NOVICE RESULTS (2)'!F38 ->  | L34: ='NOVICE RESULTS (2)'!K38 ->  | O34: ='NOVICE RESULTS (2)'!P38 ->  | R34: ='NOVICE RESULTS (2)'!U38 ->  | U34: ='NOVICE RESULTS (2)'!AB38 -> 
A35: 29 | B35: ='NOVICE RESULTS (2)'!E39 -> NOV | C35: ='NOVICE RESULTS (2)'!B39 -> 0 | D35: ='NOVICE RESULTS (2)'!C39 -> 0 | E35: ='NOVICE RESULTS (2)'!D39 -> 0 | F35: ='NOVICE RESULTS (2)'!AG39 ->  | G35: 0 | H35: 0 | I35: ='NOVICE RESULTS (2)'!F39 ->  | L35: ='NOVICE RESULTS (2)'!K39 ->  | O35: ='NOVICE RESULTS (2)'!P39 ->  | R35: ='NOVICE RESULTS (2)'!U39 ->  | U35: ='NOVICE RESULTS (2)'!AB39 -> 
A36: 30 | B36: ='NOVICE RESULTS (2)'!E40 -> NOV | C36: ='NOVICE RESULTS (2)'!B40 -> 0 | D36: ='NOVICE RESULTS (2)'!C40 -> 0 | E36: ='NOVICE RESULTS (2)'!D40 -> 0 | F36: ='NOVICE RESULTS (2)'!AG40 ->  | G36: 0 | H36: 0 | I36: ='NOVICE RESULTS (2)'!F40 ->  | L36: ='NOVICE RESULTS (2)'!K40 ->  | O36: ='NOVICE RESULTS (2)'!P40 ->  | R36: ='NOVICE RESULTS (2)'!U40 ->  | U36: ='NOVICE RESULTS (2)'!AB40 -> 
A37: 31 | B37: ='YOUTH RESULTS (2)'!E11 -> YOUTH | C37: ='YOUTH RESULTS (2)'!B11 -> 0 | D37: ='YOUTH RESULTS (2)'!C11 -> 0 | E37: ='YOUTH RESULTS (2)'!D11 -> 0 | F37: ='YOUTH RESULTS (2)'!AG11 ->  | G37: =SUM(I37,L37,O37,R37,U37) -> 0 | H37: =SUM(I37,L37,O37,R37) -> 0 | I37: ='YOUTH RESULTS (2)'!F11 ->  | L37: ='YOUTH RESULTS (2)'!K11 ->  | O37: ='YOUTH RESULTS (2)'!P11 ->  | R37: ='YOUTH RESULTS (2)'!U11 ->  | U37: ='YOUTH RESULTS (2)'!AB11 -> 
A38: 32 | B38: ='YOUTH RESULTS (2)'!E12 -> YOUTH | C38: ='YOUTH RESULTS (2)'!B12 -> 0 | D38: ='YOUTH RESULTS (2)'!C12 -> 0 | E38: ='YOUTH RESULTS (2)'!D12 -> 0 | F38: ='YOUTH RESULTS (2)'!AG12 ->  | G38: 0 | H38: 0 | I38: ='YOUTH RESULTS (2)'!F12 ->  | L38: ='YOUTH RESULTS (2)'!K12 ->  | O38: ='YOUTH RESULTS (2)'!P12 ->  | R38: ='YOUTH RESULTS (2)'!U12 ->  | U38: ='YOUTH RESULTS (2)'!AB12 -> 
A39: 33 | B39: ='YOUTH RESULTS (2)'!E13 -> YOUTH | C39: ='YOUTH RESULTS (2)'!B13 -> 0 | D39: ='YOUTH RESULTS (2)'!C13 -> 0 | E39: ='YOUTH RESULTS (2)'!D13 -> 0 | F39: ='YOUTH RESULTS (2)'!AG13 ->  | G39: 0 | H39: 0 | I39: ='YOUTH RESULTS (2)'!F13 ->  | L39: ='YOUTH RESULTS (2)'!K13 ->  | O39: ='YOUTH RESULTS (2)'!P13 ->  | R39: ='YOUTH RESULTS (2)'!U13 ->  | U39: ='YOUTH RESULTS (2)'!AB13 -> 
A40: 34 | B40: ='YOUTH RESULTS (2)'!E14 -> YOUTH | C40: ='YOUTH RESULTS (2)'!B14 -> 0 | D40: ='YOUTH RESULTS (2)'!C14 -> 0 | E40: ='YOUTH RESULTS (2)'!D14 -> 0 | F40: ='YOUTH RESULTS (2)'!AG14 ->  | G40: 0 | H40: 0 | I40: ='YOUTH RESULTS (2)'!F14 ->  | L40: ='YOUTH RESULTS (2)'!K14 ->  | O40: ='YOUTH RESULTS (2)'!P14 ->  | R40: ='YOUTH RESULTS (2)'!U14 ->  | U40: ='YOUTH RESULTS (2)'!AB14 -> 
A41: 35 | B41: ='YOUTH RESULTS (2)'!E15 -> YOUTH | C41: ='YOUTH RESULTS (2)'!B15 -> 0 | D41: ='YOUTH RESULTS (2)'!C15 -> 0 | E41: ='YOUTH RESULTS (2)'!D15 -> 0 | F41: ='YOUTH RESULTS (2)'!AG15 ->  | G41: 0 | H41: 0 | I41: ='YOUTH RESULTS (2)'!F15 ->  | L41: ='YOUTH RESULTS (2)'!K15 ->  | O41: ='YOUTH RESULTS (2)'!P15 ->  | R41: ='YOUTH RESULTS (2)'!U15 ->  | U41: ='YOUTH RESULTS (2)'!AB15 -> 
A42: 36 | B42: ='YOUTH RESULTS (2)'!E16 -> YOUTH | C42: ='YOUTH RESULTS (2)'!B16 -> 0 | D42: ='YOUTH RESULTS (2)'!C16 -> 0 | E42: ='YOUTH RESULTS (2)'!D16 -> 0 | F42: ='YOUTH RESULTS (2)'!AG16 ->  | G42: 0 | H42: 0 | I42: ='YOUTH RESULTS (2)'!F16 ->  | L42: ='YOUTH RESULTS (2)'!K16 ->  | O42: ='YOUTH RESULTS (2)'!P16 ->  | R42: ='YOUTH RESULTS (2)'!U16 ->  | U42: ='YOUTH RESULTS (2)'!AB16 -> 
A43: 37 | B43: ='YOUTH RESULTS (2)'!E17 -> YOUTH | C43: ='YOUTH RESULTS (2)'!B17 -> 0 | D43: ='YOUTH RESULTS (2)'!C17 -> 0 | E43: ='YOUTH RESULTS (2)'!D17 -> 0 | F43: ='YOUTH RESULTS (2)'!AG17 ->  | G43: 0 | H43: 0 | I43: ='YOUTH RESULTS (2)'!F17 ->  | L43: ='YOUTH RESULTS (2)'!K17 ->  | O43: ='YOUTH RESULTS (2)'!P17 ->  | R43: ='YOUTH RESULTS (2)'!U17 ->  | U43: ='YOUTH RESULTS (2)'!AB17 -> 
A44: 38 | B44: ='YOUTH RESULTS (2)'!E18 -> YOUTH | C44: ='YOUTH RESULTS (2)'!B18 -> 0 | D44: ='YOUTH RESULTS (2)'!C18 -> 0 | E44: ='YOUTH RESULTS (2)'!D18 -> 0 | F44: ='YOUTH RESULTS (2)'!AG18 ->  | G44: 0 | H44: 0 | I44: ='YOUTH RESULTS (2)'!F18 ->  | L44: ='YOUTH RESULTS (2)'!K18 ->  | O44: ='YOUTH RESULTS (2)'!P18 ->  | R44: ='YOUTH RESULTS (2)'!U18 ->  | U44: ='YOUTH RESULTS (2)'!AB18 -> 
A45: 39 | B45: ='YOUTH RESULTS (2)'!E19 -> YOUTH | C45: ='YOUTH RESULTS (2)'!B19 -> 0 | D45: ='YOUTH RESULTS (2)'!C19 -> 0 | E45: ='YOUTH RESULTS (2)'!D19 -> 0 | F45: ='YOUTH RESULTS (2)'!AG19 ->  | G45: 0 | H45: 0 | I45: ='YOUTH RESULTS (2)'!F19 ->  | L45: ='YOUTH RESULTS (2)'!K19 ->  | O45: ='YOUTH RESULTS (2)'!P19 ->  | R45: ='YOUTH RESULTS (2)'!U19 ->  | U45: ='YOUTH RESULTS (2)'!AB19 -> 
A46: 40 | B46: ='YOUTH RESULTS (2)'!E20 -> YOUTH | C46: ='YOUTH RESULTS (2)'!B20 -> 0 | D46: ='YOUTH RESULTS (2)'!C20 -> 0 | E46: ='YOUTH RESULTS (2)'!D20 -> 0 | F46: ='YOUTH RESULTS (2)'!AG20 ->  | G46: 0 | H46: 0 | I46: ='YOUTH RESULTS (2)'!F20 ->  | L46: ='YOUTH RESULTS (2)'!K20 ->  | O46: ='YOUTH RESULTS (2)'!P20 ->  | R46: ='YOUTH RESULTS (2)'!U20 ->  | U46: ='YOUTH RESULTS (2)'!AB20 -> 
A47: 41 | B47: ='YOUTH RESULTS (2)'!E21 -> YOUTH | C47: ='YOUTH RESULTS (2)'!B21 -> 0 | D47: ='YOUTH RESULTS (2)'!C21 -> 0 | E47: ='YOUTH RESULTS (2)'!D21 -> 0 | F47: ='YOUTH RESULTS (2)'!AG21 ->  | G47: 0 | H47: 0 | I47: ='YOUTH RESULTS (2)'!F21 ->  | L47: ='YOUTH RESULTS (2)'!K21 ->  | O47: ='YOUTH RESULTS (2)'!P21 ->  | R47: ='YOUTH RESULTS (2)'!U21 ->  | U47: ='YOUTH RESULTS (2)'!AB21 -> 
A48: 42 | B48: ='YOUTH RESULTS (2)'!E22 -> YOUTH | C48: ='YOUTH RESULTS (2)'!B22 -> 0 | D48: ='YOUTH RESULTS (2)'!C22 -> 0 | E48: ='YOUTH RESULTS (2)'!D22 -> 0 | F48: ='YOUTH RESULTS (2)'!AG22 ->  | G48: 0 | H48: 0 | I48: ='YOUTH RESULTS (2)'!F22 ->  | L48: ='YOUTH RESULTS (2)'!K22 ->  | O48: ='YOUTH RESULTS (2)'!P22 ->  | R48: ='YOUTH RESULTS (2)'!U22 ->  | U48: ='YOUTH RESULTS (2)'!AB22 -> 
A49: 43 | B49: ='YOUTH RESULTS (2)'!E23 -> YOUTH | C49: ='YOUTH RESULTS (2)'!B23 -> 0 | D49: ='YOUTH RESULTS (2)'!C23 -> 0 | E49: ='YOUTH RESULTS (2)'!D23 -> 0 | F49: ='YOUTH RESULTS (2)'!AG23 ->  | G49: 0 | H49: 0 | I49: ='YOUTH RESULTS (2)'!F23 ->  | L49: ='YOUTH RESULTS (2)'!K23 ->  | O49: ='YOUTH RESULTS (2)'!P23 ->  | R49: ='YOUTH RESULTS (2)'!U23 ->  | U49: ='YOUTH RESULTS (2)'!AB23 -> 
A50: 44 | B50: ='YOUTH RESULTS (2)'!E24 -> YOUTH | C50: ='YOUTH RESULTS (2)'!B24 -> 0 | D50: ='YOUTH RESULTS (2)'!C24 -> 0 | E50: ='YOUTH RESULTS (2)'!D24 -> 0 | F50: ='YOUTH RESULTS (2)'!AG24 ->  | G50: 0 | H50: 0 | I50: ='YOUTH RESULTS (2)'!F24 ->  | L50: ='YOUTH RESULTS (2)'!K24 ->  | O50: ='YOUTH RESULTS (2)'!P24 ->  | R50: ='YOUTH RESULTS (2)'!U24 ->  | U50: ='YOUTH RESULTS (2)'!AB24 -> 
A51: 45 | B51: ='YOUTH RESULTS (2)'!E25 -> YOUTH | C51: ='YOUTH RESULTS (2)'!B25 -> 0 | D51: ='YOUTH RESULTS (2)'!C25 -> 0 | E51: ='YOUTH RESULTS (2)'!D25 -> 0 | F51: ='YOUTH RESULTS (2)'!AG25 ->  | G51: 0 | H51: 0 | I51: ='YOUTH RESULTS (2)'!F25 ->  | L51: ='YOUTH RESULTS (2)'!K25 ->  | O51: ='YOUTH RESULTS (2)'!P25 ->  | R51: ='YOUTH RESULTS (2)'!U25 ->  | U51: ='YOUTH RESULTS (2)'!AB25 -> 
A52: 46 | B52: ='LIMITED RESULTS (2)'!E11 -> LTD | C52: ='LIMITED RESULTS (2)'!B11 -> Janetka | D52: ='LIMITED RESULTS (2)'!C11 -> Gena | E52: ='LIMITED RESULTS (2)'!D11 -> Froghorn Leghorn | F52: ='LIMITED RESULTS (2)'!AG11 -> 2 | G52: 318.76 | H52: 249.8 | I52: ='LIMITED RESULTS (2)'!F11 -> 75.3 | L52: ='LIMITED RESULTS (2)'!K11 -> 44.5 | O52: ='LIMITED RESULTS (2)'!P11 -> 68 | R52: ='LIMITED RESULTS (2)'!U11 -> 62 | U52: ='LIMITED RESULTS (2)'!AB11 -> 68.96
A53: 47 | B53: ='LIMITED RESULTS (2)'!E12 -> LTD | C53: ='LIMITED RESULTS (2)'!B12 -> Siitari | D53: ='LIMITED RESULTS (2)'!C12 -> Steph | E53: ='LIMITED RESULTS (2)'!D12 -> SLJ Ruby Slippers | F53: ='LIMITED RESULTS (2)'!AG12 -> 3 | G53: 352.64 | H53: 286.3 | I53: ='LIMITED RESULTS (2)'!F12 -> 82.3 | L53: ='LIMITED RESULTS (2)'!K12 -> 38.5 | O53: ='LIMITED RESULTS (2)'!P12 -> 74 | R53: ='LIMITED RESULTS (2)'!U12 -> 91.5 | U53: ='LIMITED RESULTS (2)'!AB12 -> 66.34
A54: 48 | B54: ='LIMITED RESULTS (2)'!E13 -> LTD | C54: ='LIMITED RESULTS (2)'!B13 -> 0 | D54: ='LIMITED RESULTS (2)'!C13 -> 0 | E54: ='LIMITED RESULTS (2)'!D13 -> 0 | F54: ='LIMITED RESULTS (2)'!AG13 ->  | G54: 0 | H54: 0 | I54: ='LIMITED RESULTS (2)'!F13 ->  | L54: ='LIMITED RESULTS (2)'!K13 ->  | O54: ='LIMITED RESULTS (2)'!P13 ->  | R54: ='LIMITED RESULTS (2)'!U13 ->  | U54: ='LIMITED RESULTS (2)'!AB13 -> 
A55: 49 | B55: ='LIMITED RESULTS (2)'!E14 -> LTD | C55: ='LIMITED RESULTS (2)'!B14 -> 0 | D55: ='LIMITED RESULTS (2)'!C14 -> 0 | E55: ='LIMITED RESULTS (2)'!D14 -> 0 | F55: ='LIMITED RESULTS (2)'!AG14 ->  | G55: 0 | H55: 0 | I55: ='LIMITED RESULTS (2)'!F14 ->  | L55: ='LIMITED RESULTS (2)'!K14 ->  | O55: ='LIMITED RESULTS (2)'!P14 ->  | R55: ='LIMITED RESULTS (2)'!U14 ->  | U55: ='LIMITED RESULTS (2)'!AB14 -> 
A56: 50 | B56: ='LIMITED RESULTS (2)'!E15 -> LTD | C56: ='LIMITED RESULTS (2)'!B15 -> 0 | D56: ='LIMITED RESULTS (2)'!C15 -> 0 | E56: ='LIMITED RESULTS (2)'!D15 -> 0 | F56: ='LIMITED RESULTS (2)'!AG15 ->  | G56: 0 | H56: 0 | I56: ='LIMITED RESULTS (2)'!F15 ->  | L56: ='LIMITED RESULTS (2)'!K15 ->  | O56: ='LIMITED RESULTS (2)'!P15 ->  | R56: ='LIMITED RESULTS (2)'!U15 ->  | U56: ='LIMITED RESULTS (2)'!AB15 -> 
A57: 51 | B57: ='LIMITED RESULTS (2)'!E16 -> LTD | C57: ='LIMITED RESULTS (2)'!B16 -> 0 | D57: ='LIMITED RESULTS (2)'!C16 -> 0 | E57: ='LIMITED RESULTS (2)'!D16 -> 0 | F57: ='LIMITED RESULTS (2)'!AG16 ->  | G57: 0 | H57: 0 | I57: ='LIMITED RESULTS (2)'!F16 ->  | L57: ='LIMITED RESULTS (2)'!K16 ->  | O57: ='LIMITED RESULTS (2)'!P16 ->  | R57: ='LIMITED RESULTS (2)'!U16 ->  | U57: ='LIMITED RESULTS (2)'!AB16 -> 
A58: 52 | B58: ='LIMITED RESULTS (2)'!E17 -> LTD | C58: ='LIMITED RESULTS (2)'!B17 -> 0 | D58: ='LIMITED RESULTS (2)'!C17 -> 0 | E58: ='LIMITED RESULTS (2)'!D17 -> 0 | F58: ='LIMITED RESULTS (2)'!AG17 ->  | G58: 0 | H58: 0 | I58: ='LIMITED RESULTS (2)'!F17 ->  | L58: ='LIMITED RESULTS (2)'!K17 ->  | O58: ='LIMITED RESULTS (2)'!P17 ->  | R58: ='LIMITED RESULTS (2)'!U17 ->  | U58: ='LIMITED RESULTS (2)'!AB17 -> 
A59: 53 | B59: ='LIMITED RESULTS (2)'!E18 -> LTD | C59: ='LIMITED RESULTS (2)'!B18 -> 0 | D59: ='LIMITED RESULTS (2)'!C18 -> 0 | E59: ='LIMITED RESULTS (2)'!D18 -> 0 | F59: ='LIMITED RESULTS (2)'!AG18 ->  | G59: 0 | H59: 0 | I59: ='LIMITED RESULTS (2)'!F18 ->  | L59: ='LIMITED RESULTS (2)'!K18 ->  | O59: ='LIMITED RESULTS (2)'!P18 ->  | R59: ='LIMITED RESULTS (2)'!U18 ->  | U59: ='LIMITED RESULTS (2)'!AB18 -> 
A60: 54 | B60: ='LIMITED RESULTS (2)'!E19 -> LTD | C60: ='LIMITED RESULTS (2)'!B19 -> 0 | D60: ='LIMITED RESULTS (2)'!C19 -> 0 | E60: ='LIMITED RESULTS (2)'!D19 -> 0 | F60: ='LIMITED RESULTS (2)'!AG19 ->  | G60: 0 | H60: 0 | I60: ='LIMITED RESULTS (2)'!F19 ->  | L60: ='LIMITED RESULTS (2)'!K19 ->  | O60: ='LIMITED RESULTS (2)'!P19 ->  | R60: ='LIMITED RESULTS (2)'!U19 ->  | U60: ='LIMITED RESULTS (2)'!AB19 -> 
A61: 55 | B61: ='LIMITED RESULTS (2)'!E20 -> LTD | C61: ='LIMITED RESULTS (2)'!B20 -> 0 | D61: ='LIMITED RESULTS (2)'!C20 -> 0 | E61: ='LIMITED RESULTS (2)'!D20 -> 0 | F61: ='LIMITED RESULTS (2)'!AG20 ->  | G61: 0 | H61: 0 | I61: ='LIMITED RESULTS (2)'!F20 ->  | L61: ='LIMITED RESULTS (2)'!K20 ->  | O61: ='LIMITED RESULTS (2)'!P20 ->  | R61: ='LIMITED RESULTS (2)'!U20 ->  | U61: ='LIMITED RESULTS (2)'!AB20 -> 
A62: 56 | B62: ='LIMITED RESULTS (2)'!E21 -> LTD | C62: ='LIMITED RESULTS (2)'!B21 -> 0 | D62: ='LIMITED RESULTS (2)'!C21 -> 0 | E62: ='LIMITED RESULTS (2)'!D21 -> 0 | F62: ='LIMITED RESULTS (2)'!AG21 ->  | G62: 0 | H62: 0 | I62: ='LIMITED RESULTS (2)'!F21 ->  | L62: ='LIMITED RESULTS (2)'!K21 ->  | O62: ='LIMITED RESULTS (2)'!P21 ->  | R62: ='LIMITED RESULTS (2)'!U21 ->  | U62: ='LIMITED RESULTS (2)'!AB21 -> 
A63: 57 | B63: ='LIMITED RESULTS (2)'!E22 -> LTD | C63: ='LIMITED RESULTS (2)'!B22 -> 0 | D63: ='LIMITED RESULTS (2)'!C22 -> 0 | E63: ='LIMITED RESULTS (2)'!D22 -> 0 | F63: ='LIMITED RESULTS (2)'!AG22 ->  | G63: 0 | H63: 0 | I63: ='LIMITED RESULTS (2)'!F22 ->  | L63: ='LIMITED RESULTS (2)'!K22 ->  | O63: ='LIMITED RESULTS (2)'!P22 ->  | R63: ='LIMITED RESULTS (2)'!U22 ->  | U63: ='LIMITED RESULTS (2)'!AB22 -> 
A64: 58 | B64: ='LIMITED RESULTS (2)'!E23 -> LTD | C64: ='LIMITED RESULTS (2)'!B23 -> 0 | D64: ='LIMITED RESULTS (2)'!C23 -> 0 | E64: ='LIMITED RESULTS (2)'!D23 -> 0 | F64: ='LIMITED RESULTS (2)'!AG23 ->  | G64: 0 | H64: 0 | I64: ='LIMITED RESULTS (2)'!F23 ->  | L64: ='LIMITED RESULTS (2)'!K23 ->  | O64: ='LIMITED RESULTS (2)'!P23 ->  | R64: ='LIMITED RESULTS (2)'!U23 ->  | U64: ='LIMITED RESULTS (2)'!AB23 -> 
A65: 59 | B65: ='LIMITED RESULTS (2)'!E24 -> LTD | C65: ='LIMITED RESULTS (2)'!B24 -> 0 | D65: ='LIMITED RESULTS (2)'!C24 -> 0 | E65: ='LIMITED RESULTS (2)'!D24 -> 0 | F65: ='LIMITED RESULTS (2)'!AG24 ->  | G65: 0 | H65: 0 | I65: ='LIMITED RESULTS (2)'!F24 ->  | L65: ='LIMITED RESULTS (2)'!K24 ->  | O65: ='LIMITED RESULTS (2)'!P24 ->  | R65: ='LIMITED RESULTS (2)'!U24 ->  | U65: ='LIMITED RESULTS (2)'!AB24 -> 
A66: 60 | B66: ='LIMITED RESULTS (2)'!E25 -> LTD | C66: ='LIMITED RESULTS (2)'!B25 -> 0 | D66: ='LIMITED RESULTS (2)'!C25 -> 0 | E66: ='LIMITED RESULTS (2)'!D25 -> 0 | F66: ='LIMITED RESULTS (2)'!AG25 ->  | G66: 0 | H66: 0 | I66: ='LIMITED RESULTS (2)'!F25 ->  | L66: ='LIMITED RESULTS (2)'!K25 ->  | O66: ='LIMITED RESULTS (2)'!P25 ->  | R66: ='LIMITED RESULTS (2)'!U25 ->  | U66: ='LIMITED RESULTS (2)'!AB25 -> 
A67: 61 | B67: ='INTERMEDIATE RESULTS (2)'!E11 -> INT | C67: ='INTERMEDIATE RESULTS (2)'!B11 -> Osorio | D67: ='INTERMEDIATE RESULTS (2)'!C11 -> Carlos | E67: ='INTERMEDIATE RESULTS (2)'!D11 -> AR Especial | F67: ='INTERMEDIATE RESULTS (2)'!AG11 -> 5 | G67: 344.94 | H67: 275.1 | I67: ='INTERMEDIATE RESULTS (2)'!F11 -> 70.8 | L67: ='INTERMEDIATE RESULTS (2)'!K11 -> 49.8 | O67: ='INTERMEDIATE RESULTS (2)'!P11 -> 78 | R67: ='INTERMEDIATE RESULTS (2)'!U11 -> 76.5 | U67: ='INTERMEDIATE RESULTS (2)'!AB11 -> 69.84
A68: 62 | B68: ='INTERMEDIATE RESULTS (2)'!E12 -> INT | C68: ='INTERMEDIATE RESULTS (2)'!B12 -> 0 | D68: ='INTERMEDIATE RESULTS (2)'!C12 -> 0 | E68: ='INTERMEDIATE RESULTS (2)'!D12 -> 0 | F68: ='INTERMEDIATE RESULTS (2)'!AG12 ->  | G68: 0 | H68: 0 | I68: ='INTERMEDIATE RESULTS (2)'!F12 ->  | L68: ='INTERMEDIATE RESULTS (2)'!K12 ->  | O68: ='INTERMEDIATE RESULTS (2)'!P12 ->  | R68: ='INTERMEDIATE RESULTS (2)'!U12 ->  | U68: ='INTERMEDIATE RESULTS (2)'!AB12 -> 
A69: 63 | B69: ='INTERMEDIATE RESULTS (2)'!E13 -> INT | C69: ='INTERMEDIATE RESULTS (2)'!B13 -> 0 | D69: ='INTERMEDIATE RESULTS (2)'!C13 -> 0 | E69: ='INTERMEDIATE RESULTS (2)'!D13 -> 0 | F69: ='INTERMEDIATE RESULTS (2)'!AG13 ->  | G69: =SUM(I69,L69,O69,R69,U69) -> 0 | H69: =SUM(I69,L69,O69,R69) -> 0 | I69: ='INTERMEDIATE RESULTS (2)'!F13 ->  | L69: ='INTERMEDIATE RESULTS (2)'!K13 ->  | O69: ='INTERMEDIATE RESULTS (2)'!P13 ->  | R69: ='INTERMEDIATE RESULTS (2)'!U13 ->  | U69: ='INTERMEDIATE RESULTS (2)'!AB13 -> 
A70: 64 | B70: ='INTERMEDIATE RESULTS (2)'!E14 -> INT | C70: ='INTERMEDIATE RESULTS (2)'!B14 -> 0 | D70: ='INTERMEDIATE RESULTS (2)'!C14 -> 0 | E70: ='INTERMEDIATE RESULTS (2)'!D14 -> 0 | F70: ='INTERMEDIATE RESULTS (2)'!AG14 ->  | G70: 0 | H70: 0 | I70: ='INTERMEDIATE RESULTS (2)'!F14 ->  | L70: ='INTERMEDIATE RESULTS (2)'!K14 ->  | O70: ='INTERMEDIATE RESULTS (2)'!P14 ->  | R70: ='INTERMEDIATE RESULTS (2)'!U14 ->  | U70: ='INTERMEDIATE RESULTS (2)'!AB14 -> 
A71: 65 | B71: ='INTERMEDIATE RESULTS (2)'!E15 -> INT | C71: ='INTERMEDIATE RESULTS (2)'!B15 -> 0 | D71: ='INTERMEDIATE RESULTS (2)'!C15 -> 0 | E71: ='INTERMEDIATE RESULTS (2)'!D15 -> 0 | F71: ='INTERMEDIATE RESULTS (2)'!AG15 ->  | G71: 0 | H71: 0 | I71: ='INTERMEDIATE RESULTS (2)'!F15 ->  | L71: ='INTERMEDIATE RESULTS (2)'!K15 ->  | O71: ='INTERMEDIATE RESULTS (2)'!P15 ->  | R71: ='INTERMEDIATE RESULTS (2)'!U15 ->  | U71: ='INTERMEDIATE RESULTS (2)'!AB15 -> 
A72: 66 | B72: ='INTERMEDIATE RESULTS (2)'!E16 -> INT | C72: ='INTERMEDIATE RESULTS (2)'!B16 -> 0 | D72: ='INTERMEDIATE RESULTS (2)'!C16 -> 0 | E72: ='INTERMEDIATE RESULTS (2)'!D16 -> 0 | F72: ='INTERMEDIATE RESULTS (2)'!AG16 ->  | G72: 0 | H72: 0 | I72: ='INTERMEDIATE RESULTS (2)'!F16 ->  | L72: ='INTERMEDIATE RESULTS (2)'!K16 ->  | O72: ='INTERMEDIATE RESULTS (2)'!P16 ->  | R72: ='INTERMEDIATE RESULTS (2)'!U16 ->  | U72: ='INTERMEDIATE RESULTS (2)'!AB16 -> 
A73: 67 | B73: ='INTERMEDIATE RESULTS (2)'!E17 -> INT | C73: ='INTERMEDIATE RESULTS (2)'!B17 -> 0 | D73: ='INTERMEDIATE RESULTS (2)'!C17 -> 0 | E73: ='INTERMEDIATE RESULTS (2)'!D17 -> 0 | F73: ='INTERMEDIATE RESULTS (2)'!AG17 ->  | G73: 0 | H73: 0 | I73: ='INTERMEDIATE RESULTS (2)'!F17 ->  | L73: ='INTERMEDIATE RESULTS (2)'!K17 ->  | O73: ='INTERMEDIATE RESULTS (2)'!P17 ->  | R73: ='INTERMEDIATE RESULTS (2)'!U17 ->  | U73: ='INTERMEDIATE RESULTS (2)'!AB17 -> 
A74: 68 | B74: ='INTERMEDIATE RESULTS (2)'!E18 -> INT | C74: ='INTERMEDIATE RESULTS (2)'!B18 -> 0 | D74: ='INTERMEDIATE RESULTS (2)'!C18 -> 0 | E74: ='INTERMEDIATE RESULTS (2)'!D18 -> 0 | F74: ='INTERMEDIATE RESULTS (2)'!AG18 ->  | G74: 0 | H74: 0 | I74: ='INTERMEDIATE RESULTS (2)'!F18 ->  | L74: ='INTERMEDIATE RESULTS (2)'!K18 ->  | O74: ='INTERMEDIATE RESULTS (2)'!P18 ->  | R74: ='INTERMEDIATE RESULTS (2)'!U18 ->  | U74: ='INTERMEDIATE RESULTS (2)'!AB18 -> 
A75: 69 | B75: ='INTERMEDIATE RESULTS (2)'!E19 -> INT | C75: ='INTERMEDIATE RESULTS (2)'!B19 -> 0 | D75: ='INTERMEDIATE RESULTS (2)'!C19 -> 0 | E75: ='INTERMEDIATE RESULTS (2)'!D19 -> 0 | F75: ='INTERMEDIATE RESULTS (2)'!AG19 ->  | G75: 0 | H75: 0 | I75: ='INTERMEDIATE RESULTS (2)'!F19 ->  | L75: ='INTERMEDIATE RESULTS (2)'!K19 ->  | O75: ='INTERMEDIATE RESULTS (2)'!P19 ->  | R75: ='INTERMEDIATE RESULTS (2)'!U19 ->  | U75: ='INTERMEDIATE RESULTS (2)'!AB19 -> 
A76: 70 | B76: ='INTERMEDIATE RESULTS (2)'!E20 -> INT | C76: ='INTERMEDIATE RESULTS (2)'!B20 -> 0 | D76: ='INTERMEDIATE RESULTS (2)'!C20 -> 0 | E76: ='INTERMEDIATE RESULTS (2)'!D20 -> 0 | F76: ='INTERMEDIATE RESULTS (2)'!AG20 ->  | G76: 0 | H76: 0 | I76: ='INTERMEDIATE RESULTS (2)'!F20 ->  | L76: ='INTERMEDIATE RESULTS (2)'!K20 ->  | O76: ='INTERMEDIATE RESULTS (2)'!P20 ->  | R76: ='INTERMEDIATE RESULTS (2)'!U20 ->  | U76: ='INTERMEDIATE RESULTS (2)'!AB20 -> 
A77: 71 | B77: ='INTERMEDIATE RESULTS (2)'!E21 -> INT | C77: ='INTERMEDIATE RESULTS (2)'!B21 -> 0 | D77: ='INTERMEDIATE RESULTS (2)'!C21 -> 0 | E77: ='INTERMEDIATE RESULTS (2)'!D21 -> 0 | F77: ='INTERMEDIATE RESULTS (2)'!AG21 ->  | G77: 0 | H77: 0 | I77: ='INTERMEDIATE RESULTS (2)'!F21 ->  | L77: ='INTERMEDIATE RESULTS (2)'!K21 ->  | O77: ='INTERMEDIATE RESULTS (2)'!P21 ->  | R77: ='INTERMEDIATE RESULTS (2)'!U21 ->  | U77: ='INTERMEDIATE RESULTS (2)'!AB21 -> 
A78: 72 | B78: ='INTERMEDIATE RESULTS (2)'!E22 -> INT | C78: ='INTERMEDIATE RESULTS (2)'!B22 -> 0 | D78: ='INTERMEDIATE RESULTS (2)'!C22 -> 0 | E78: ='INTERMEDIATE RESULTS (2)'!D22 -> 0 | F78: ='INTERMEDIATE RESULTS (2)'!AG22 ->  | G78: 0 | H78: 0 | I78: ='INTERMEDIATE RESULTS (2)'!F22 ->  | L78: ='INTERMEDIATE RESULTS (2)'!K22 ->  | O78: ='INTERMEDIATE RESULTS (2)'!P22 ->  | R78: ='INTERMEDIATE RESULTS (2)'!U22 ->  | U78: ='INTERMEDIATE RESULTS (2)'!AB22 -> 
A79: 73 | B79: ='INTERMEDIATE RESULTS (2)'!E23 -> INT | C79: ='INTERMEDIATE RESULTS (2)'!B23 -> 0 | D79: ='INTERMEDIATE RESULTS (2)'!C23 -> 0 | E79: ='INTERMEDIATE RESULTS (2)'!D23 -> 0 | F79: ='INTERMEDIATE RESULTS (2)'!AG23 ->  | G79: 0 | H79: 0 | I79: ='INTERMEDIATE RESULTS (2)'!F23 ->  | L79: ='INTERMEDIATE RESULTS (2)'!K23 ->  | O79: ='INTERMEDIATE RESULTS (2)'!P23 ->  | R79: ='INTERMEDIATE RESULTS (2)'!U23 ->  | U79: ='INTERMEDIATE RESULTS (2)'!AB23 -> 
A80: 74 | B80: ='INTERMEDIATE RESULTS (2)'!E24 -> INT | C80: ='INTERMEDIATE RESULTS (2)'!B24 -> 0 | D80: ='INTERMEDIATE RESULTS (2)'!C24 -> 0 | E80: ='INTERMEDIATE RESULTS (2)'!D24 -> 0 | F80: ='INTERMEDIATE RESULTS (2)'!AG24 ->  | G80: 0 | H80: 0 | I80: ='INTERMEDIATE RESULTS (2)'!F24 ->  | L80: ='INTERMEDIATE RESULTS (2)'!K24 ->  | O80: ='INTERMEDIATE RESULTS (2)'!P24 ->  | R80: ='INTERMEDIATE RESULTS (2)'!U24 ->  | U80: ='INTERMEDIATE RESULTS (2)'!AB24 -> 
A81: 75 | B81: ='INTERMEDIATE RESULTS (2)'!E25 -> INT | C81: ='INTERMEDIATE RESULTS (2)'!B25 -> 0 | D81: ='INTERMEDIATE RESULTS (2)'!C25 -> 0 | E81: ='INTERMEDIATE RESULTS (2)'!D25 -> 0 | F81: ='INTERMEDIATE RESULTS (2)'!AG25 ->  | G81: 0 | H81: 0 | I81: ='INTERMEDIATE RESULTS (2)'!F25 ->  | L81: ='INTERMEDIATE RESULTS (2)'!K25 ->  | O81: ='INTERMEDIATE RESULTS (2)'!P25 ->  | R81: ='INTERMEDIATE RESULTS (2)'!U25 ->  | U81: ='INTERMEDIATE RESULTS (2)'!AB25 -> 
A82: 76 | B82: ='ADVANCED RESULTS (2)'!E11 -> ADV | C82: ='ADVANCED RESULTS (2)'!B11 -> Henderson | D82: ='ADVANCED RESULTS (2)'!C11 -> Vicky | E82: ='ADVANCED RESULTS (2)'!D11 -> Tatanka | F82: ='ADVANCED RESULTS (2)'!AG11 -> 1 | G82: 361.66 | H82: 293 | I82: ='ADVANCED RESULTS (2)'!F11 -> 80.2 | L82: ='ADVANCED RESULTS (2)'!K11 -> 60.8 | O82: ='ADVANCED RESULTS (2)'!P11 -> 63 | R82: ='ADVANCED RESULTS (2)'!U11 -> 89 | U82: ='ADVANCED RESULTS (2)'!AB11 -> 68.66
A83: 77 | B83: ='ADVANCED RESULTS (2)'!E12 -> ADV | C83: ='ADVANCED RESULTS (2)'!B12 -> Johnsen | D83: ='ADVANCED RESULTS (2)'!C12 -> Shelley | E83: ='ADVANCED RESULTS (2)'!D12 -> Unbranded | F83: ='ADVANCED RESULTS (2)'!AG12 -> 4 | G83: 376.62 | H83: 294.9 | I83: ='ADVANCED RESULTS (2)'!F12 -> 80.5 | L83: ='ADVANCED RESULTS (2)'!K12 -> 48.9 | O83: ='ADVANCED RESULTS (2)'!P12 -> 75 | R83: ='ADVANCED RESULTS (2)'!U12 -> 90.5 | U83: ='ADVANCED RESULTS (2)'!AB12 -> 81.72
A84: 78 | B84: ='ADVANCED RESULTS (2)'!E13 -> ADV | C84: ='ADVANCED RESULTS (2)'!B13 -> 0 | D84: ='ADVANCED RESULTS (2)'!C13 -> 0 | E84: ='ADVANCED RESULTS (2)'!D13 -> 0 | F84: ='ADVANCED RESULTS (2)'!AG13 ->  | G84: 0 | H84: 0 | I84: ='ADVANCED RESULTS (2)'!F13 ->  | L84: ='ADVANCED RESULTS (2)'!K13 ->  | O84: ='ADVANCED RESULTS (2)'!P13 ->  | R84: ='ADVANCED RESULTS (2)'!U13 ->  | U84: ='ADVANCED RESULTS (2)'!AB13 -> 
A85: 79 | B85: ='ADVANCED RESULTS (2)'!E14 -> ADV | C85: ='ADVANCED RESULTS (2)'!B14 -> 0 | D85: ='ADVANCED RESULTS (2)'!C14 -> 0 | E85: ='ADVANCED RESULTS (2)'!D14 -> 0 | F85: ='ADVANCED RESULTS (2)'!AG14 ->  | G85: 0 | H85: 0 | I85: ='ADVANCED RESULTS (2)'!F14 ->  | L85: ='ADVANCED RESULTS (2)'!K14 ->  | O85: ='ADVANCED RESULTS (2)'!P14 ->  | R85: ='ADVANCED RESULTS (2)'!U14 ->  | U85: ='ADVANCED RESULTS (2)'!AB14 -> 
A86: 80 | B86: ='ADVANCED RESULTS (2)'!E15 -> ADV | C86: ='ADVANCED RESULTS (2)'!B15 -> 0 | D86: ='ADVANCED RESULTS (2)'!C15 -> 0 | E86: ='ADVANCED RESULTS (2)'!D15 -> 0 | F86: ='ADVANCED RESULTS (2)'!AG15 ->  | G86: 0 | H86: 0 | I86: ='ADVANCED RESULTS (2)'!F15 ->  | L86: ='ADVANCED RESULTS (2)'!K15 ->  | O86: ='ADVANCED RESULTS (2)'!P15 ->  | R86: ='ADVANCED RESULTS (2)'!U15 ->  | U86: ='ADVANCED RESULTS (2)'!AB15 -> 
A87: 81 | B87: ='ADVANCED RESULTS (2)'!E16 -> ADV | C87: ='ADVANCED RESULTS (2)'!B16 -> 0 | D87: ='ADVANCED RESULTS (2)'!C16 -> 0 | E87: ='ADVANCED RESULTS (2)'!D16 -> 0 | F87: ='ADVANCED RESULTS (2)'!AG16 ->  | G87: 0 | H87: 0 | I87: ='ADVANCED RESULTS (2)'!F16 ->  | L87: ='ADVANCED RESULTS (2)'!K16 ->  | O87: ='ADVANCED RESULTS (2)'!P16 ->  | R87: ='ADVANCED RESULTS (2)'!U16 ->  | U87: ='ADVANCED RESULTS (2)'!AB16 -> 
A88: 82 | B88: ='ADVANCED RESULTS (2)'!E17 -> ADV | C88: ='ADVANCED RESULTS (2)'!B17 -> 0 | D88: ='ADVANCED RESULTS (2)'!C17 -> 0 | E88: ='ADVANCED RESULTS (2)'!D17 -> 0 | F88: ='ADVANCED RESULTS (2)'!AG17 ->  | G88: 0 | H88: 0 | I88: ='ADVANCED RESULTS (2)'!F17 ->  | L88: ='ADVANCED RESULTS (2)'!K17 ->  | O88: ='ADVANCED RESULTS (2)'!P17 ->  | R88: ='ADVANCED RESULTS (2)'!U17 ->  | U88: ='ADVANCED RESULTS (2)'!AB17 -> 
A89: 83 | B89: ='ADVANCED RESULTS (2)'!E18 -> ADV | C89: ='ADVANCED RESULTS (2)'!B18 -> 0 | D89: ='ADVANCED RESULTS (2)'!C18 -> 0 | E89: ='ADVANCED RESULTS (2)'!D18 -> 0 | F89: ='ADVANCED RESULTS (2)'!AG18 ->  | G89: 0 | H89: 0 | I89: ='ADVANCED RESULTS (2)'!F18 ->  | L89: ='ADVANCED RESULTS (2)'!K18 ->  | O89: ='ADVANCED RESULTS (2)'!P18 ->  | R89: ='ADVANCED RESULTS (2)'!U18 ->  | U89: ='ADVANCED RESULTS (2)'!AB18 -> 
A90: 84 | B90: ='ADVANCED RESULTS (2)'!E19 -> ADV | C90: ='ADVANCED RESULTS (2)'!B19 -> 0 | D90: ='ADVANCED RESULTS (2)'!C19 -> 0 | E90: ='ADVANCED RESULTS (2)'!D19 -> 0 | F90: ='ADVANCED RESULTS (2)'!AG19 ->  | G90: 0 | H90: 0 | I90: ='ADVANCED RESULTS (2)'!F19 ->  | L90: ='ADVANCED RESULTS (2)'!K19 ->  | O90: ='ADVANCED RESULTS (2)'!P19 ->  | R90: ='ADVANCED RESULTS (2)'!U19 ->  | U90: ='ADVANCED RESULTS (2)'!AB19 -> 
A91: 85 | B91: ='ADVANCED RESULTS (2)'!E20 -> ADV | C91: ='ADVANCED RESULTS (2)'!B20 -> 0 | D91: ='ADVANCED RESULTS (2)'!C20 -> 0 | E91: ='ADVANCED RESULTS (2)'!D20 -> 0 | F91: ='ADVANCED RESULTS (2)'!AG20 ->  | G91: 0 | H91: 0 | I91: ='ADVANCED RESULTS (2)'!F20 ->  | L91: ='ADVANCED RESULTS (2)'!K20 ->  | O91: ='ADVANCED RESULTS (2)'!P20 ->  | R91: ='ADVANCED RESULTS (2)'!U20 ->  | U91: ='ADVANCED RESULTS (2)'!AB20 -> 
A92: 86 | B92: ='ADVANCED RESULTS (2)'!E21 -> ADV | C92: ='ADVANCED RESULTS (2)'!B21 -> 0 | D92: ='ADVANCED RESULTS (2)'!C21 -> 0 | E92: ='ADVANCED RESULTS (2)'!D21 -> 0 | F92: ='ADVANCED RESULTS (2)'!AG21 ->  | G92: 0 | H92: 0 | I92: ='ADVANCED RESULTS (2)'!F21 ->  | L92: ='ADVANCED RESULTS (2)'!K21 ->  | O92: ='ADVANCED RESULTS (2)'!P21 ->  | R92: ='ADVANCED RESULTS (2)'!U21 ->  | U92: ='ADVANCED RESULTS (2)'!AB21 -> 
A93: 87 | B93: ='ADVANCED RESULTS (2)'!E22 -> ADV | C93: ='ADVANCED RESULTS (2)'!B22 -> 0 | D93: ='ADVANCED RESULTS (2)'!C22 -> 0 | E93: ='ADVANCED RESULTS (2)'!D22 -> 0 | F93: ='ADVANCED RESULTS (2)'!AG22 ->  | G93: 0 | H93: 0 | I93: ='ADVANCED RESULTS (2)'!F22 ->  | L93: ='ADVANCED RESULTS (2)'!K22 ->  | O93: ='ADVANCED RESULTS (2)'!P22 ->  | R93: ='ADVANCED RESULTS (2)'!U22 ->  | U93: ='ADVANCED RESULTS (2)'!AB22 -> 
A94: 88 | B94: ='ADVANCED RESULTS (2)'!E23 -> ADV | C94: ='ADVANCED RESULTS (2)'!B23 -> 0 | D94: ='ADVANCED RESULTS (2)'!C23 -> 0 | E94: ='ADVANCED RESULTS (2)'!D23 -> 0 | F94: ='ADVANCED RESULTS (2)'!AG23 ->  | G94: 0 | H94: 0 | I94: ='ADVANCED RESULTS (2)'!F23 ->  | L94: ='ADVANCED RESULTS (2)'!K23 ->  | O94: ='ADVANCED RESULTS (2)'!P23 ->  | R94: ='ADVANCED RESULTS (2)'!U23 ->  | U94: ='ADVANCED RESULTS (2)'!AB23 -> 
A95: 89 | B95: ='ADVANCED RESULTS (2)'!E24 -> ADV | C95: ='ADVANCED RESULTS (2)'!B24 -> 0 | D95: ='ADVANCED RESULTS (2)'!C24 -> 0 | E95: ='ADVANCED RESULTS (2)'!D24 -> 0 | F95: ='ADVANCED RESULTS (2)'!AG24 ->  | G95: 0 | H95: 0 | I95: ='ADVANCED RESULTS (2)'!F24 ->  | L95: ='ADVANCED RESULTS (2)'!K24 ->  | O95: ='ADVANCED RESULTS (2)'!P24 ->  | R95: ='ADVANCED RESULTS (2)'!U24 ->  | U95: ='ADVANCED RESULTS (2)'!AB24 -> 
A96: 90 | B96: ='ADVANCED RESULTS (2)'!E25 -> ADV | C96: ='ADVANCED RESULTS (2)'!B25 -> 0 | D96: ='ADVANCED RESULTS (2)'!C25 -> 0 | E96: ='ADVANCED RESULTS (2)'!D25 -> 0 | F96: ='ADVANCED RESULTS (2)'!AG25 ->  | G96: 0 | H96: 0 | I96: ='ADVANCED RESULTS (2)'!F25 ->  | L96: ='ADVANCED RESULTS (2)'!K25 ->  | O96: ='ADVANCED RESULTS (2)'!P25 ->  | R96: ='ADVANCED RESULTS (2)'!U25 ->  | U96: ='ADVANCED RESULTS (2)'!AB25 -> 
B97: ='OPEN RESULTS (2)'!E11 -> OPEN | C97: ='OPEN RESULTS (2)'!B11 -> Dunn | D97: ='OPEN RESULTS (2)'!C11 -> Maureen | E97: ='OPEN RESULTS (2)'!D11 -> AR Sannabella Check | F97: ='OPEN RESULTS (2)'!AG11 -> 3 | G97: ='OPEN RESULTS (2)'!AK11 -> 205.79
B98: ='OPEN RESULTS (2)'!E12 -> OPEN | C98: ='OPEN RESULTS (2)'!B12 -> Goodland | D98: ='OPEN RESULTS (2)'!C12 -> Rob | E98: ='OPEN RESULTS (2)'!D12 -> Royale Smooth Sailin | F98: ='OPEN RESULTS (2)'!AG12 -> 5 | G98: ='OPEN RESULTS (2)'!AK12 -> 233.62
B99: ='OPEN RESULTS (2)'!E13 -> OPEN | C99: ='OPEN RESULTS (2)'!B13 -> Sween | D99: ='OPEN RESULTS (2)'!C13 -> Carolyn | E99: ='OPEN RESULTS (2)'!D13 -> AR Powderfully | F99: ='OPEN RESULTS (2)'!AG13 -> 7 | G99: ='OPEN RESULTS (2)'!AK13 -> 271.68
B100: ='OPEN RESULTS (2)'!E14 -> OPEN | C100: ='OPEN RESULTS (2)'!B14 -> 0 | D100: ='OPEN RESULTS (2)'!C14 -> 0 | E100: ='OPEN RESULTS (2)'!D14 -> 0 | F100: ='OPEN RESULTS (2)'!AG14 ->  | G100: ='OPEN RESULTS (2)'!AK14 -> 
B101: ='OPEN RESULTS (2)'!E15 -> OPEN | C101: ='OPEN RESULTS (2)'!B15 -> 0 | D101: ='OPEN RESULTS (2)'!C15 -> 0 | E101: ='OPEN RESULTS (2)'!D15 -> 0 | F101: ='OPEN RESULTS (2)'!AG15 ->  | G101: ='OPEN RESULTS (2)'!AK15 -> 
B102: ='OPEN RESULTS (2)'!E16 -> OPEN | C102: ='OPEN RESULTS (2)'!B16 -> 0 | D102: ='OPEN RESULTS (2)'!C16 -> 0 | E102: ='OPEN RESULTS (2)'!D16 -> 0 | F102: ='OPEN RESULTS (2)'!AG16 ->  | G102: ='OPEN RESULTS (2)'!AK16 -> 
B103: ='OPEN RESULTS (2)'!E17 -> OPEN | C103: ='OPEN RESULTS (2)'!B17 -> 0 | D103: ='OPEN RESULTS (2)'!C17 -> 0 | E103: ='OPEN RESULTS (2)'!D17 -> 0 | F103: ='OPEN RESULTS (2)'!AG17 ->  | G103: ='OPEN RESULTS (2)'!AK17 -> 
B104: ='OPEN RESULTS (2)'!E18 -> OPEN | C104: ='OPEN RESULTS (2)'!B18 -> 0 | D104: ='OPEN RESULTS (2)'!C18 -> 0 | E104: ='OPEN RESULTS (2)'!D18 -> 0 | F104: ='OPEN RESULTS (2)'!AG18 ->  | G104: ='OPEN RESULTS (2)'!AK18 -> 
B105: ='OPEN RESULTS (2)'!E19 -> OPEN | C105: ='OPEN RESULTS (2)'!B19 -> 0 | D105: ='OPEN RESULTS (2)'!C19 -> 0 | E105: ='OPEN RESULTS (2)'!D19 -> 0 | F105: ='OPEN RESULTS (2)'!AG19 ->  | G105: ='OPEN RESULTS (2)'!AK19 -> 
B106: ='OPEN RESULTS (2)'!E20 -> OPEN | C106: ='OPEN RESULTS (2)'!B20 -> 0 | D106: ='OPEN RESULTS (2)'!C20 -> 0 | E106: ='OPEN RESULTS (2)'!D20 -> 0 | F106: ='OPEN RESULTS (2)'!AG20 ->  | G106: ='OPEN RESULTS (2)'!AK20 -> 
B107: ='OPEN RESULTS (2)'!E21 -> OPEN | C107: ='OPEN RESULTS (2)'!B21 -> 0 | D107: ='OPEN RESULTS (2)'!C21 -> 0 | E107: ='OPEN RESULTS (2)'!D21 -> 0 | F107: ='OPEN RESULTS (2)'!AG21 ->  | G107: ='OPEN RESULTS (2)'!AK21 -> 
B108: ='OPEN RESULTS (2)'!E22 -> OPEN | C108: ='OPEN RESULTS (2)'!B22 -> 0 | D108: ='OPEN RESULTS (2)'!C22 -> 0 | E108: ='OPEN RESULTS (2)'!D22 -> 0 | F108: ='OPEN RESULTS (2)'!AG22 ->  | G108: ='OPEN RESULTS (2)'!AK22 -> 
B109: ='OPEN RESULTS (2)'!E23 -> OPEN | C109: ='OPEN RESULTS (2)'!B23 -> 0 | D109: ='OPEN RESULTS (2)'!C23 -> 0 | E109: ='OPEN RESULTS (2)'!D23 -> 0 | F109: ='OPEN RESULTS (2)'!AG23 ->  | G109: ='OPEN RESULTS (2)'!AK23 -> 
B110: ='OPEN RESULTS (2)'!E24 -> OPEN | C110: ='OPEN RESULTS (2)'!B24 -> 0 | D110: ='OPEN RESULTS (2)'!C24 -> 0 | E110: ='OPEN RESULTS (2)'!D24 -> 0 | F110: ='OPEN RESULTS (2)'!AG24 ->  | G110: ='OPEN RESULTS (2)'!AK24 -> 
B111: ='OPEN RESULTS (2)'!E25 -> OPEN | C111: ='OPEN RESULTS (2)'!B25 -> 0 | D111: ='OPEN RESULTS (2)'!C25 -> 0 | E111: ='OPEN RESULTS (2)'!D25 -> 0 | F111: ='OPEN RESULTS (2)'!AG25 ->  | G111: ='OPEN RESULTS (2)'!AK25 -> 
I113: 1 - Extended Trot | L113: 1 - Stop Cow | O113: 1 - Penning | R113: 1 - Drag log | U113: 1 - Working Ranch Score
I114: 2 - Transition down lope/walk/stop | L114: 2 - Box Cow | O114: 2 - Driving to Pen between marker & fence | R114: 2- Dismount, drop bridle, ground tie, pick up all 4 feet, remount | U114: 2 - Ranch Riding Score
I115: 3 - Transition to lope/lope | L115: 3 - Stop Back or Stop Rollback | O115: 3 - Set up for cutting | R115: 3 - Open, walk through, close gate | U115: 3 - Cutting Score
I116: 4 - Lope Departure and Lope | L116: 4 - First Lead Change or First Lope Circle and Lead Change | O116: 4 - Courage & Cow Sense | R116: 4 - Lope | U116: 4 - Overall Balance Score
I117: 5 - Trot Reverse | L117: 5 - First Turn | O117: 5 - Eye Appeal | R117: 5 - Trot | U117: 5 - Ranch Trail Score
I118: 6 - Stop and Back | L118: 6 - Rope Handling | O118: 6 - Working center of arena | R118: 6 - Walk | U118: 6 - Fitness & Condition

Sheet NOVICE RESULTS (2)
E2: Event Name: | I2: ='Entry Information'!H4 -> The Horse First Farm, Brooklyn, WI | S2: Judges Name: | U2: ='Entry Information'!K4 -> Dave Currin | AB2: Classes Judged? | AF2: ='Entry Information'!O4 -> CN, RR, RT
A3: Division: | B3: NOVICE | E3: Event Date: | I3: ='Entry Information'!H5 -> June 28-29,2014 | S3: Judges Name: | U3: ='Entry Information'!K5 -> Jeff Barnes | AB3: Classes Judged? | AF3: ='Entry Information'!O5 -> WR, RC
A5: 1 | B5: 2 | C5: 3 | D5: 4 | E5: 5 | F5: 6 | I5: 7 | J5: 8 | K5: 9 | L5: 10 | N5: 11 | O5: 12 | P5: 13 | Q5: 14 | S5: 15 | T5: 16 | U5: 17 | V5: 18 | X5: 19 | Y5: 20 | Z5: 21 | AA5: 22 | AB5: 23 | AC5: 24 | AE5: 25 | AF5: 26 | AG5: 27 | AH5: 28 | AJ5: 29 | AK5: 30
F6: Ranch | K6: Working | P6: Ranch | U6: Ranch | AA6: Ranch | AG6: Total | AI6: Adjusted | AJ6: Event | AK6: Event
F7: Riding | K7: Ranch | P7: Cutting | U7: Trail | AA7: Conformation | AG7: Placement | AH7: Tie | AI7: Placement | AJ7: All | AK7: Total
F8: Score | G8: Tie | H8: Adjusted | I8: Place | J8: Place- | K8: Score | L8: Tie | M8: Adjusted | N8: Place | O8: Place- | P8: Score | Q8: Tie | R8: Adjusted | S8: Place | T8: Place- | U8: Score | V8: Tie | W8: Adjusted | X8: Place | Y8: Place- | Z8: Judges | AA8: Function | AB8: TOTAL | AC8: Tie | AD8: Adjusted | AE8: Place | AF8: Place- | AG8: Points | AH8: Breaker | AI8: Points | AJ8: Around | AK8: Score
G9: Breaker | H9: Score | J9: ment | L9: Breaker | M9: Score | O9: ment | Q9: Breaker | R9: Score | T9: ment | V9: Breaker | W9: Score | Y9: ment | Z9: Score | AA9: Score | AB9: SCORE | AC9: Breaker | AD9: Score | AF9: ment
A10: Back No. | B10: Last Name | C10: First Name | D10: Registered Horse Name | E10: Division | J10: Points | O10: Points | T10: Points | Y10: Points | AF10: Points
A11: ='Entry Information'!B11 -> 83 | B11: ='Entry Information'!H11 -> Christianson | C11: ='Entry Information'!I11 -> Codi | D11: ='Entry Information'!J11 -> Miss Makin Shine | E11: NOV | F11: =('Novice 1'!$D$31) -> 61.4 | H11: =IF(G11="",F11,(F11+(G11*0.001))) -> 61.4 | I11: =IF(H11="","",(RANK(H11,$H$11:$H$40,0))) -> 6 | J11: =IF($F11="","",(VLOOKUP($I$42,Worksheet!$A$11:$AE$41,I11+1,FALSE))) -> 0 | K11: =('Novice 1'!$J$31) -> 22.5 | M11: =IF(L11="",K11,(K11+(L11*0.001))) -> 22.5 | N11: =IF(M11="","",(RANK(M11,$M$11:$M$40,0))) -> 7 | O11: =IF($K11="","",(VLOOKUP($N$42,Worksheet!$A$11:$AE$41,N11+1,FALSE))) -> 0 | P11: =('Novice 1'!$P$31) -> 53 | R11: =IF(Q11="",P11,(P11+(Q11*0.001))) -> 53 | S11: =IF(R11="","",(RANK(R11,$R$11:$R$40,0))) -> 4 | T11: =IF($P11="","",(VLOOKUP($S$42,Worksheet!$A$11:$AE$41,S11+1,FALSE))) -> 2 | U11: =IF(A11=0,"",'Novice 1'!$V$31) -> 69 | W11: =IF(V11="",U11,(U11+(V11*0.001))) -> 69 | X11: =IF(W11="","",(RANK(W11,$W$11:$W$40,0))) -> 7 | Y11: =IF($U11="","",(VLOOKUP($X$42,Worksheet!$A$11:$AE$41,X11+1,FALSE))) -> 0 | Z11: =IF(A11=0,"",'Novice 1'!$AB$28) -> 38.04 | AA11: =IF(A11=0,"",'Novice 1'!$AB$31) -> 20.59 | AB11: =IF(A11=0,"",'Novice 1'!$AB$32) -> 58.63 | AD11: =IF(AC11="",AB11,(AB11+(AC11*0.001))) -> 58.63 | AE11: =IF(AD11="","",(RANK(AD11,$AD$11:$AD$40,0))) -> 8 | AF11: =IF($AB11="","",(VLOOKUP($AE$42,Worksheet!$A$11:$AE$41,AE11+1,FALSE))) -> 0 | AG11: =IF(A11=0,"",(SUM($J11,$O11,$T11,$Y11,$AF11))) -> 2 | AI11: =IF(AH11="",AG11,(AG11+(AH11*0.001))) -> 2 | AJ11: =IF(AI11="","",(RANK(AI11,$AI$11:$AI$40,0))) -> 6 | AK11: =IF(A11=0,"",(SUM(F11,K11,P11,U11,AB11))) -> 264.53
A12: ='Entry Information'!B12 -> 82 | B12: ='Entry Information'!H12 -> Grove | C12: ='Entry Information'!I12 -> Dale | D12: ='Entry Information'!J12 -> Woody B Stylin | E12: NOV | F12: =('Novice 2'!$D$31) -> 62.6 | H12: =IF(G12="",F12,(F12+(G12*0.001))) -> 62.6 | I12: =IF(H12="","",(RANK(H12,$H$11:$H$40,0))) -> 5 | J12: =IF($F12="","",(VLOOKUP($I$42,Worksheet!$A$11:$AE$41,I12+1,FALSE))) -> 1 | K12: =('Novice 2'!$J$31) -> 26.5 | M12: =IF(L12="",K12,(K12+(L12*0.001))) -> 26.5 | N12: =IF(M12="","",(RANK(M12,$M$11:$M$40,0))) -> 4 | O12: =IF($K12="","",(VLOOKUP($N$42,Worksheet!$A$11:$AE$41,N12+1,FALSE))) -> 2 | P12: ='Novice 2'!$P$31 -> 83 | R12: =IF(Q12="",P12,(P12+(Q12*0.001))) -> 83 | S12: =IF(R12="","",(RANK(R12,$R$11:$R$40,0))) -> 1 | T12: =IF($P12="","",(VLOOKUP($S$42,Worksheet!$A$11:$AE$41,S12+1,FALSE))) -> 5 | U12: =IF(A12=0,"",'Novice 2'!$V$31) -> 75.5 | W12: =IF(V12="",U12,(U12+(V12*0.001))) -> 75.5 | X12: =IF(W12="","",(RANK(W12,$W$11:$W$40,0))) -> 3 | Y12: =IF($U12="","",(VLOOKUP($X$42,Worksheet!$A$11:$AE$41,X12+1,FALSE))) -> 3 | Z12: =IF(A12=0,"",'Novice 2'!$AB$28) -> 42.99 | AA12: =IF(A12=0,"",'Novice 2'!$AB$31) -> 24.76 | AB12: =IF(A12=0,"",'Novice 2'!$AB$32) -> 67.75 | AD12: 67.75 | AE12: =IF(AD12="","",(RANK(AD12,$AD$11:$AD$40,0))) -> 3 | AF12: =IF($AB12="","",(VLOOKUP($AE$42,Worksheet!$A$11:$AE$41,AE12+1,FALSE))) -> 3 | AG12: 14 | AI12: =IF(AH12="",AG12,(AG12+(AH12*0.001))) -> 14 | AJ12: =IF(AI12="","",(RANK(AI12,$AI$11:$AI$40,0))) -> 3 | AK12: 315.35
A13: ='Entry Information'!B13 -> 75 | B13: ='Entry Information'!H13 -> Burton | C13: ='Entry Information'!I13 -> Roxanne | D13: ='Entry Information'!J13 -> Miss Smart Gun RG | E13: NOV | F13: =('Novice 3'!$D$31) -> 76 | H13: 76 | I13: 3 | J13: =IF($F13="","",(VLOOKUP($I$42,Worksheet!$A$11:$AE$41,I13+1,FALSE))) -> 3 | K13: =('Novice 3'!$J$31) -> 28 | M13: 28 | N13: 3 | O13: =IF($K13="","",(VLOOKUP($N$42,Worksheet!$A$11:$AE$41,N13+1,FALSE))) -> 3 | P13: ='Novice 3'!$P$31 -> 55 | R13: 55 | S13: 3 | T13: =IF($P13="","",(VLOOKUP($S$42,Worksheet!$A$11:$AE$41,S13+1,FALSE))) -> 3 | U13: =IF(A13=0,"",'Novice 3'!$V$31) -> 80 | W13: 80 | X13: 2 | Y13: =IF($U13="","",(VLOOKUP($X$42,Worksheet!$A$11:$AE$41,X13+1,FALSE))) -> 4 | Z13: =IF(A13=0,"",'Novice 3'!$AB$28) -> 44.64 | AA13: =IF(A13=0,"",'Novice 3'!$AB$31) -> 23.9 | AB13: =IF(A13=0,"",'Novice 3'!$AB$32) -> 68.54 | AD13: 68.54 | AE13: 2 | AF13: =IF($AB13="","",(VLOOKUP($AE$42,Worksheet!$A$11:$AE$41,AE13+1,FALSE))) -> 4 | AG13: 17 | AI13: 17 | AJ13: 2 | AK13: 307.54
A14: ='Entry Information'!B14 -> 87 | B14: ='Entry Information'!H14 -> Messera | C14: ='Entry Information'!I14 -> Kelly | D14: ='Entry Information'!J14 -> Magic Dance Man | E14: NOV | F14: =('Novice 4'!$D$31) -> 77.7 | H14: 77.7 | I14: 2 | J14: =IF($F14="","",(VLOOKUP($I$42,Worksheet!$A$11:$AE$41,I14+1,FALSE))) -> 4 | K14: =('Novice 4'!$J$31) -> 29.5 | M14: 29.5 | N14: 2 | O14: =IF($K14="","",(VLOOKUP($N$42,Worksheet!$A$11:$AE$41,N14+1,FALSE))) -> 4 | P14: ='Novice 4'!$P$31 -> 70 | R14: 70 | S14: 2 | T14: =IF($P14="","",(VLOOKUP($S$42,Worksheet!$A$11:$AE$41,S14+1,FALSE))) -> 4 | U14: =IF(A14=0,"",'Novice 4'!$V$31) -> 85 | W14: 85 | X14: 1 | Y14: =IF($U14="","",(VLOOKUP($X$42,Worksheet!$A$11:$AE$41,X14+1,FALSE))) -> 5 | Z14: =IF(A14=0,"",'Novice 4'!$AB$28) -> 45.63 | AA14: =IF(A14=0,"",'Novice 4'!$AB$31) -> 26.22 | AB14: =IF(A14=0,"",'Novice 4'!$AB$32) -> 71.85 | AD14: 71.85 | AE14: 1 | AF14: =IF($AB14="","",(VLOOKUP($AE$42,Worksheet!$A$11:$AE$41,AE14+1,FALSE))) -> 5 | AG14: 22 | AI14: 22 | AJ14: 1 | AK14: 334.05
A15: ='Entry Information'!B15 -> 72 | B15: ='Entry Information'!H15 -> Eisenman | C15: ='Entry Information'!I15 -> Sue | D15: ='Entry Information'!J15 -> DLB Smart Blue Bars | E15: NOV | F15: =('Novice 5'!$D$31) -> 78.4 | H15: 78.4 | I15: 1 | J15: =IF($F15="","",(VLOOKUP($I$42,Worksheet!$A$11:$AE$41,I15+1,FALSE))) -> 5 | K15: =('Novice 5'!$J$31) -> 25.5 | M15: 25.5 | N15: 5 | O15: =IF($K15="","",(VLOOKUP($N$42,Worksheet!$A$11:$AE$41,N15+1,FALSE))) -> 1 | P15: ='Novice 5'!$P$31 -> 18 | R15: 18 | S15: 9 | T15: =IF($P15="","",(VLOOKUP($S$42,Worksheet!$A$11:$AE$41,S15+1,FALSE))) -> 0 | U15: =IF(A15=0,"",'Novice 5'!$V$31) -> 72 | W15: 72 | X15: 5 | Y15: =IF($U15="","",(VLOOKUP($X$42,Worksheet!$A$11:$AE$41,X15+1,FALSE))) -> 1 | Z15: =IF(A15=0,"",'Novice 5'!$AB$28) -> 43.98 | AA15: =IF(A15=0,"",'Novice 5'!$AB$31) -> 19.39 | AB15: =IF(A15=0,"",'Novice 5'!$AB$32) -> 63.37 | AD15: 63.37 | AE15: 5 | AF15: =IF($AB15="","",(VLOOKUP($AE$42,Worksheet!$A$11:$AE$41,AE15+1,FALSE))) -> 1 | AG15: 8 | AI15: 8 | AJ15: 5 | AK15: 257.27
A16: ='Entry Information'!B16 -> 0 | B16: ='Entry Information'!H16 -> 0 | C16: ='Entry Information'!I16 -> 0 | D16: ='Entry Information'!J16 -> 0 | E16: NOV | F16: =('Novice 6'!$D$31) ->  | J16: =IF($F16="","",(VLOOKUP($I$42,Worksheet!$A$11:$AE$41,I16+1,FALSE))) ->  | K16: =('Novice 6'!$J$31) ->  | O16: =IF($K16="","",(VLOOKUP($N$42,Worksheet!$A$11:$AE$41,N16+1,FALSE))) ->  | P16: ='Novice 6'!$P$31 ->  | T16: =IF($P16="","",(VLOOKUP($S$42,Worksheet!$A$11:$AE$41,S16+1,FALSE))) ->  | U16: =IF(A16=0,"",'Novice 6'!$V$31) ->  | Y16: =IF($U16="","",(VLOOKUP($X$42,Worksheet!$A$11:$AE$41,X16+1,FALSE))) ->  | Z16: =IF(A16=0,"",'Novice 6'!$AB$28) ->  | AA16: =IF(A16=0,"",'Novice 6'!$AB$31) ->  | AB16: =IF(A16=0,"",'Novice 6'!$AB$32) ->  | AF16: =IF($AB16="","",(VLOOKUP($AE$42,Worksheet!$A$11:$AE$41,AE16+1,FALSE))) -> 
A17: ='Entry Information'!B17 -> 44 | B17: ='Entry Information'!H17 -> Knapp | C17: ='Entry Information'!I17 -> Roger | D17: ='Entry Information'!J17 -> Easy Rocket Doc | E17: NOV | F17: =('Novice 7'!$D$31) -> 56.3 | H17: 56.3 | I17: 9 | J17: =IF($F17="","",(VLOOKUP($I$42,Worksheet!$A$11:$AE$41,I17+1,FALSE))) -> 0 | K17: =('Novice 7'!$J$31) -> 37 | M17: 37 | N17: 1 | O17: =IF($K17="","",(VLOOKUP($N$42,Worksheet!$A$11:$AE$41,N17+1,FALSE))) -> 5 | P17: ='Novice 7'!$P$31 -> 36 | R17: 36 | S17: 8 | T17: =IF($P17="","",(VLOOKUP($S$42,Worksheet!$A$11:$AE$41,S17+1,FALSE))) -> 0 | U17: =IF(A17=0,"",'Novice 7'!$V$31) -> 74.5 | W17: 74.5 | X17: 4 | Y17: =IF($U17="","",(VLOOKUP($X$42,Worksheet!$A$11:$AE$41,X17+1,FALSE))) -> 2 | Z17: =IF(A17=0,"",'Novice 7'!$AB$28) -> 44.64 | AA17: =IF(A17=0,"",'Novice 7'!$AB$31) -> 20.38 | AB17: =IF(A17=0,"",'Novice 7'!$AB$32) -> 65.02 | AD17: 65.02 | AE17: 4 | AF17: =IF($AB17="","",(VLOOKUP($AE$42,Worksheet!$A$11:$AE$41,AE17+1,FALSE))) -> 2 | AG17: 9 | AI17: 9 | AJ17: 4 | AK17: 268.82
A18: ='Entry Information'!B18 -> 47 | B18: ='Entry Information'!H18 -> Heinz | C18: ='Entry Information'!I18 -> Matthew | D18: ='Entry Information'!J18 -> Sun Dee Fox | E18: NOV | F18: =('Novice 8'!$D$31) -> 68.4 | H18: 68.4 | I18: 4 | J18: =IF($F18="","",(VLOOKUP($I$42,Worksheet!$A$11:$AE$41,I18+1,FALSE))) -> 2 | K18: =('Novice 8'!$J$31) -> 22 | M18: 22 | N18: 8 | O18: =IF($K18="","",(VLOOKUP($N$42,Worksheet!$A$11:$AE$41,N18+1,FALSE))) -> 0 | P18: ='Novice 8'!$P$31 -> 48 | R18: 48 | S18: 6 | T18: =IF($P18="","",(VLOOKUP($S$42,Worksheet!$A$11:$AE$41,S18+1,FALSE))) -> 0 | U18: =IF(A18=0,"",'Novice 8'!$V$31) -> 69.5 | W18: 69.5 | X18: 6 | Y18: =IF($U18="","",(VLOOKUP($X$42,Worksheet!$A$11:$AE$41,X18+1,FALSE))) -> 0 | Z18: =IF(A18=0,"",'Novice 8'!$AB$28) -> 38.37 | AA18: =IF(A18=0,"",'Novice 8'!$AB$31) -> 20.79 | AB18: =IF(A18=0,"",'Novice 8'!$AB$32) -> 59.16 | AD18: 59.16 | AE18: 7 | AF18: =IF($AB18="","",(VLOOKUP($AE$42,Worksheet!$A$11:$AE$41,AE18+1,FALSE))) -> 0 | AG18: 2 | AI18: 2 | AJ18: 6 | AK18: 267.06
A19: ='Entry Information'!B19 -> 49 | B19: ='Entry Information'!H19 -> Hoppe | C19: ='Entry Information'!I19 -> Sandra | D19: ='Entry Information'!J19 -> B Cruzin Along | E19: NOV | F19: =('Novice 9'!$D$31) -> 58.7 | H19: 58.7 | I19: 8 | J19: =IF($F19="","",(VLOOKUP($I$42,Worksheet!$A$11:$AE$41,I19+1,FALSE))) -> 0 | K19: =('Novice 9'!$J$31) -> 23 | M19: 23 | N19: 6 | O19: =IF($K19="","",(VLOOKUP($N$42,Worksheet!$A$11:$AE$41,N19+1,FALSE))) -> 0 | P19: ='Novice 9'!$P$31 -> 52 | R19: 52 | S19: 5 | T19: =IF($P19="","",(VLOOKUP($S$42,Worksheet!$A$11:$AE$41,S19+1,FALSE))) -> 1 | U19: =IF(A19=0,"",'Novice 9'!$V$31) -> 58 | W19: 58 | X19: 8 | Y19: =IF($U19="","",(VLOOKUP($X$42,Worksheet!$A$11:$AE$41,X19+1,FALSE))) -> 0 | Z19: =IF(A19=0,"",'Novice 9'!$AB$28) -> 35.73 | AA19: =IF(A19=0,"",'Novice 9'!$AB$31) -> 19.17 | AB19: =IF(A19=0,"",'Novice 9'!$AB$32) -> 54.9 | AD19: 54.9 | AE19: 9 | AF19: =IF($AB19="","",(VLOOKUP($AE$42,Worksheet!$A$11:$AE$41,AE19+1,FALSE))) -> 0 | AG19: 1 | AI19: 1 | AJ19: 8 | AK19: 246.6
A20: ='Entry Information'!B20 -> 51 | B20: ='Entry Information'!H20 -> Gilbert | C20: ='Entry Information'!I20 -> Tracy | D20: ='Entry Information'!J20 -> Bud's Diablo Star | E20: NOV | F20: =('Novice 10'!$D$31) -> 59.1 | H20: 59.1 | I20: 7 | J20: =IF($F20="","",(VLOOKUP($I$42,Worksheet!$A$11:$AE$41,I20+1,FALSE))) -> 0 | K20: =('Novice 10'!$J$31) -> 21 | M20: 21 | N20: 9 | O20: =IF($K20="","",(VLOOKUP($N$42,Worksheet!$A$11:$AE$41,N20+1,FALSE))) -> 0 | P20: ='Novice 10'!$P$31 -> 46 | R20: 46 | S20: 7 | T20: =IF($P20="","",(VLOOKUP($S$42,Worksheet!$A$11:$AE$41,S20+1,FALSE))) -> 0 | U20: =IF(A20=0,"",'Novice 10'!$V$31) -> 55 | W20: 55 | X20: 9 | Y20: =IF($U20="","",(VLOOKUP($X$42,Worksheet!$A$11:$AE$41,X20+1,FALSE))) -> 0 | Z20: =IF(A20=0,"",'Novice 10'!$AB$28) -> 44.64 | AA20: =IF(A20=0,"",'Novice 10'!$AB$31) -> 18.11 | AB20: =IF(A20=0,"",'Novice 10'!$AB$32) -> 62.75 | AD20: 62.75 | AE20: 6 | AF20: =IF($AB20="","",(VLOOKUP($AE$42,Worksheet!$A$11:$AE$41,AE20+1,FALSE))) -> 0 | AG20: 0 | AI20: 0 | AJ20: 9 | AK20: 243.85
A21: ='Entry Information'!B21 -> 0 | B21: ='Entry Information'!H21 -> 0 | C21: ='Entry Information'!I21 -> 0 | D21: ='Entry Information'!J21 -> 0 | E21: NOV | F21: =('Novice 11'!$D$31) ->  | J21: =IF($F21="","",(VLOOKUP($I$42,Worksheet!$A$11:$AE$41,I21+1,FALSE))) ->  | K21: =('Novice 11'!$J$31) ->  | O21: =IF($K21="","",(VLOOKUP($N$42,Worksheet!$A$11:$AE$41,N21+1,FALSE))) ->  | P21: ='Novice 11'!$P$31 ->  | T21: =IF($P21="","",(VLOOKUP($S$42,Worksheet!$A$11:$AE$41,S21+1,FALSE))) ->  | U21: =IF(A21=0,"",'Novice 11'!$V$31) ->  | Y21: =IF($U21="","",(VLOOKUP($X$42,Worksheet!$A$11:$AE$41,X21+1,FALSE))) ->  | Z21: =IF(A21=0,"",'Novice 11'!$AB$28) ->  | AA21: =IF(A21=0,"",'Novice 11'!$AB$31) ->  | AB21: =IF(A21=0,"",'Novice 11'!$AB$32) ->  | AF21: =IF($AB21="","",(VLOOKUP($AE$42,Worksheet!$A$11:$AE$41,AE21+1,FALSE))) -> 
A22: ='Entry Information'!B22 -> 0 | B22: ='Entry Information'!H22 -> 0 | C22: ='Entry Information'!I22 -> 0 | D22: ='Entry Information'!J22 -> 0 | E22: NOV | F22: =('Novice 12'!$D$31) ->  | J22: =IF($F22="","",(VLOOKUP($I$42,Worksheet!$A$11:$AE$41,I22+1,FALSE))) ->  | K22: =('Novice 12'!$J$31) ->  | O22: =IF($K22="","",(VLOOKUP($N$42,Worksheet!$A$11:$AE$41,N22+1,FALSE))) ->  | P22: ='Novice 12'!$P$31 ->  | T22: =IF($P22="","",(VLOOKUP($S$42,Worksheet!$A$11:$AE$41,S22+1,FALSE))) ->  | U22: =IF($A22=0,"",'Novice 12'!$V$31) ->  | Y22: =IF($U22="","",(VLOOKUP($X$42,Worksheet!$A$11:$AE$41,X22+1,FALSE))) ->  | Z22: =IF(A22=0,"",'Novice 12'!$AB$28) ->  | AA22: =IF(A22=0,"",'Novice 12'!$AB$31) ->  | AB22: =IF(A22=0,"",'Novice 12'!$AB$32) ->  | AF22: =IF($AB22="","",(VLOOKUP($AE$42,Worksheet!$A$11:$AE$41,AE22+1,FALSE))) -> 
A23: ='Entry Information'!B23 -> 0 | B23: ='Entry Information'!H23 -> 0 | C23: ='Entry Information'!I23 -> 0 | D23: ='Entry Information'!J23 -> 0 | E23: NOV | F23: =('Novice 13'!$D$31) ->  | J23: =IF($F23="","",(VLOOKUP($I$42,Worksheet!$A$11:$AE$41,I23+1,FALSE))) ->  | K23: =('Novice 13'!$J$31) ->  | O23: =IF($K23="","",(VLOOKUP($N$42,Worksheet!$A$11:$AE$41,N23+1,FALSE))) ->  | P23: ='Novice 13'!$P$31 ->  | T23: =IF($P23="","",(VLOOKUP($S$42,Worksheet!$A$11:$AE$41,S23+1,FALSE))) ->  | U23: =IF(A23=0,"",'Novice 13'!$V$31) ->  | Y23: =IF($U23="","",(VLOOKUP($X$42,Worksheet!$A$11:$AE$41,X23+1,FALSE))) ->  | Z23: =IF(A23=0,"",'Novice 13'!$AB$28) ->  | AA23: =IF(A23=0,"",'Novice 13'!$AB$31) ->  | AB23: =IF(A23=0,"",'Novice 13'!$AB$32) ->  | AF23: =IF($AB23="","",(VLOOKUP($AE$42,Worksheet!$A$11:$AE$41,AE23+1,FALSE))) -> 
A24: ='Entry Information'!B24 -> 0 | B24: ='Entry Information'!H24 -> 0 | C24: ='Entry Information'!I24 -> 0 | D24: ='Entry Information'!J24 -> 0 | E24: NOV | F24: =('Novice 14'!$D$31) ->  | J24: =IF($F24="","",(VLOOKUP($I$42,Worksheet!$A$11:$AE$41,I24+1,FALSE))) ->  | K24: =('Novice 14'!$J$31) ->  | O24: =IF($K24="","",(VLOOKUP($N$42,Worksheet!$A$11:$AE$41,N24+1,FALSE))) ->  | P24: ='Novice 14'!$P$31 ->  | T24: =IF($P24="","",(VLOOKUP($S$42,Worksheet!$A$11:$AE$41,S24+1,FALSE))) ->  | U24: =IF(A24=0,"",'Novice 14'!$V$31) ->  | Y24: =IF($U24="","",(VLOOKUP($X$42,Worksheet!$A$11:$AE$41,X24+1,FALSE))) ->  | Z24: =IF(A24=0,"",'Novice 14'!$AB$28) ->  | AA24: =IF(A24=0,"",'Novice 14'!$AB$31) ->  | AB24: =IF(A24=0,"",'Novice 14'!$AB$32) ->  | AF24: =IF($AB24="","",(VLOOKUP($AE$42,Worksheet!$A$11:$AE$41,AE24+1,FALSE))) -> 
A25: ='Entry Information'!B25 -> 0 | B25: ='Entry Information'!H25 -> 0 | C25: ='Entry Information'!I25 -> 0 | D25: ='Entry Information'!J25 -> 0 | E25: NOV | F25: =('Novice 15'!$D$31) ->  | J25: =IF($F25="","",(VLOOKUP($I$42,Worksheet!$A$11:$AE$41,I25+1,FALSE))) ->  | K25: =('Novice 15'!$J$31) ->  | O25: =IF($K25="","",(VLOOKUP($N$42,Worksheet!$A$11:$AE$41,N25+1,FALSE))) ->  | P25: ='Novice 15'!$P$31 ->  | T25: =IF($P25="","",(VLOOKUP($S$42,Worksheet!$A$11:$AE$41,S25+1,FALSE))) ->  | U25: =IF(A25=0,"",'Novice 15'!$V$31) ->  | Y25: =IF($U25="","",(VLOOKUP($X$42,Worksheet!$A$11:$AE$41,X25+1,FALSE))) ->  | Z25: =IF(A25=0,"",'Novice 15'!$AB$28) ->  | AA25: =IF(A25=0,"",'Novice 15'!$AB$31) ->  | AB25: =IF(A25=0,"",'Novice 15'!$AB$32) ->  | AF25: =IF($AB25="","",(VLOOKUP($AE$42,Worksheet!$A$11:$AE$41,AE25+1,FALSE))) -> 
A26: ='Entry Information'!B26 -> 0 | B26: ='Entry Information'!H26 -> 0 | C26: ='Entry Information'!I26 -> 0 | D26: ='Entry Information'!J26 -> 0 | E26: NOV | F26: =('Novice 16'!$D$31) ->  | J26: =IF($F26="","",(VLOOKUP($I$42,Worksheet!$A$11:$AE$41,I26+1,FALSE))) ->  | K26: =('Novice 16'!$J$31) ->  | O26: =IF($K26="","",(VLOOKUP($N$42,Worksheet!$A$11:$AE$41,N26+1,FALSE))) ->  | P26: ='Novice 16'!$P$31 ->  | T26: =IF($P26="","",(VLOOKUP($S$42,Worksheet!$A$11:$AE$41,S26+1,FALSE))) ->  | U26: =IF(A26=0,"",'Novice 16'!$V$31) ->  | Y26: =IF($U26="","",(VLOOKUP($X$42,Worksheet!$A$11:$AE$41,X26+1,FALSE))) ->  | Z26: =IF(A26=0,"",'Novice 16'!$AB$28) ->  | AA26: =IF(A26=0,"",'Novice 16'!$AB$31) ->  | AB26: =IF(A26=0,"",'Novice 16'!$AB$32) ->  | AF26: =IF($AB26="","",(VLOOKUP($AE$42,Worksheet!$A$11:$AE$41,AE26+1,FALSE))) -> 
A27: ='Entry Information'!B27 -> 0 | B27: ='Entry Information'!H27 -> 0 | C27: ='Entry Information'!I27 -> 0 | D27: ='Entry Information'!J27 -> 0 | E27: NOV | F27: =('Novice 17'!$D$31) ->  | J27: =IF($F27="","",(VLOOKUP($I$42,Worksheet!$A$11:$AE$41,I27+1,FALSE))) ->  | K27: =('Novice 17'!$J$31) ->  | O27: =IF($K27="","",(VLOOKUP($N$42,Worksheet!$A$11:$AE$41,N27+1,FALSE))) ->  | P27: ='Novice 17'!$P$31 ->  | T27: =IF($P27="","",(VLOOKUP($S$42,Worksheet!$A$11:$AE$41,S27+1,FALSE))) ->  | U27: =IF(A27=0,"",'Novice 17'!$V$31) ->  | Y27: =IF($U27="","",(VLOOKUP($X$42,Worksheet!$A$11:$AE$41,X27+1,FALSE))) ->  | Z27: =IF(A27=0,"",'Novice 17'!$AB$28) ->  | AA27: =IF(A27=0,"",'Novice 17'!$AB$31) ->  | AB27: =IF(A27=0,"",'Novice 17'!$AB$32) ->  | AF27: =IF($AB27="","",(VLOOKUP($AE$42,Worksheet!$A$11:$AE$41,AE27+1,FALSE))) -> 
A28: ='Entry Information'!B28 -> 0 | B28: ='Entry Information'!H28 -> 0 | C28: ='Entry Information'!I28 -> 0 | D28: ='Entry Information'!J28 -> 0 | E28: NOV | F28: =('Novice 18'!$D$31) ->  | J28: =IF($F28="","",(VLOOKUP($I$42,Worksheet!$A$11:$AE$41,I28+1,FALSE))) ->  | K28: =('Novice 18'!$J$31) ->  | O28: =IF($K28="","",(VLOOKUP($N$42,Worksheet!$A$11:$AE$41,N28+1,FALSE))) ->  | P28: ='Novice 18'!$P$31 ->  | T28: =IF($P28="","",(VLOOKUP($S$42,Worksheet!$A$11:$AE$41,S28+1,FALSE))) ->  | U28: =IF(A28=0,"",'Novice 18'!$V$31) ->  | Y28: =IF($U28="","",(VLOOKUP($X$42,Worksheet!$A$11:$AE$41,X28+1,FALSE))) ->  | Z28: =IF(A28=0,"",'Novice 18'!$AB$28) ->  | AA28: =IF(A28=0,"",'Novice 18'!$AB$31) ->  | AB28: =IF(A28=0,"",'Novice 18'!$AB$32) ->  | AF28: =IF($AB28="","",(VLOOKUP($AE$42,Worksheet!$A$11:$AE$41,AE28+1,FALSE))) -> 
A29: ='Entry Information'!B29 -> 0 | B29: ='Entry Information'!H29 -> 0 | C29: ='Entry Information'!I29 -> 0 | D29: ='Entry Information'!J29 -> 0 | E29: NOV | F29: =('Novice 19'!$D$31) ->  | J29: =IF($F29="","",(VLOOKUP($I$42,Worksheet!$A$11:$AE$41,I29+1,FALSE))) ->  | K29: =('Novice 19'!$J$31) ->  | O29: =IF($K29="","",(VLOOKUP($N$42,Worksheet!$A$11:$AE$41,N29+1,FALSE))) ->  | P29: ='Novice 19'!$P$31 ->  | T29: =IF($P29="","",(VLOOKUP($S$42,Worksheet!$A$11:$AE$41,S29+1,FALSE))) ->  | U29: =IF(A29=0,"",'Novice 19'!$V$31) ->  | Y29: =IF($U29="","",(VLOOKUP($X$42,Worksheet!$A$11:$AE$41,X29+1,FALSE))) ->  | Z29: =IF(A29=0,"",'Novice 19'!$AB$28) ->  | AA29: =IF(A29=0,"",'Novice 19'!$AB$31) ->  | AB29: =IF(A29=0,"",'Novice 19'!$AB$32) ->  | AD29: =IF(AC29="",AB29,(AB29+(AC29*0.001))) ->  | AF29: =IF($AB29="","",(VLOOKUP($AE$42,Worksheet!$A$11:$AE$41,AE29+1,FALSE))) -> 
A30: ='Entry Information'!B30 -> 0 | B30: ='Entry Information'!H30 -> 0 | C30: ='Entry Information'!I30 -> 0 | D30: ='Entry Information'!J30 -> 0 | E30: NOV | F30: =('Novice 20'!$D$31) ->  | J30: =IF($F30="","",(VLOOKUP($I$42,Worksheet!$A$11:$AE$41,I30+1,FALSE))) ->  | K30: =('Novice 20'!$J31) ->  | O30: =IF($K30="","",(VLOOKUP($N$42,Worksheet!$A$11:$AE$41,N30+1,FALSE))) ->  | P30: ='Novice 20'!$P$31 ->  | T30: =IF($P30="","",(VLOOKUP($S$42,Worksheet!$A$11:$AE$41,S30+1,FALSE))) ->  | U30: =IF(A30=0,"",'Novice 20'!$V$31) ->  | Y30: =IF($U30="","",(VLOOKUP($X$42,Worksheet!$A$11:$AE$41,X30+1,FALSE))) ->  | Z30: =IF(A30=0,"",'Novice 20'!$AB$28) ->  | AA30: =IF(A30=0,"",'Novice 20'!$AB$31) ->  | AB30: =IF(A30=0,"",'Novice 20'!$AB$32) ->  | AF30: =IF($AB30="","",(VLOOKUP($AE$42,Worksheet!$A$11:$AE$41,AE30+1,FALSE))) -> 
A31: ='Entry Information'!B31 -> 0 | B31: ='Entry Information'!H31 -> 0 | C31: ='Entry Information'!I31 -> 0 | D31: ='Entry Information'!J31 -> 0 | E31: NOV | F31: =('Novice 21'!$D$31) ->  | J31: =IF($F31="","",(VLOOKUP($I$42,Worksheet!$A$11:$AE$41,I31+1,FALSE))) ->  | K31: =('Novice 21'!$J$31) ->  | O31: =IF($K31="","",(VLOOKUP($N$42,Worksheet!$A$11:$AE$41,N31+1,FALSE))) ->  | P31: ='Novice 21'!$P$31 ->  | T31: =IF($P31="","",(VLOOKUP($S$42,Worksheet!$A$11:$AE$41,S31+1,FALSE))) ->  | U31: =IF(A31=0,"",'Novice 21'!$V$31) ->  | Y31: =IF($U31="","",(VLOOKUP($X$42,Worksheet!$A$11:$AE$41,X31+1,FALSE))) ->  | Z31: =IF(A31=0,"",'Novice 21'!$AB$28) ->  | AA31: =IF(A31=0,"",'Novice 21'!$AB$31) ->  | AB31: =IF(A31=0,"",'Novice 21'!$AB$32) ->  | AF31: =IF($AB31="","",(VLOOKUP($AE$42,Worksheet!$A$11:$AE$41,AE31+1,FALSE))) -> 
A32: ='Entry Information'!B32 -> 0 | B32: ='Entry Information'!H32 -> 0 | C32: ='Entry Information'!I32 -> 0 | D32: ='Entry Information'!J32 -> 0 | E32: NOV | F32: =('Novice 22'!$D$31) ->  | J32: =IF($F32="","",(VLOOKUP($I$42,Worksheet!$A$11:$AE$41,I32+1,FALSE))) ->  | K32: =('Novice 22'!$J$31) ->  | O32: =IF($K32="","",(VLOOKUP($N$42,Worksheet!$A$11:$AE$41,N32+1,FALSE))) ->  | P32: ='Novice 22'!$P$31 ->  | T32: =IF($P32="","",(VLOOKUP($S$42,Worksheet!$A$11:$AE$41,S32+1,FALSE))) ->  | U32: =IF(A32=0,"",'Novice 22'!$V$31) ->  | Y32: =IF($U32="","",(VLOOKUP($X$42,Worksheet!$A$11:$AE$41,X32+1,FALSE))) ->  | Z32: =IF(A32=0,"",'Novice 22'!$AB$28) ->  | AA32: =IF(A32=0,"",'Novice 22'!$AB$31) ->  | AB32: =IF(A32=0,"",'Novice 22'!$AB$32) ->  | AF32: =IF($AB32="","",(VLOOKUP($AE$42,Worksheet!$A$11:$AE$41,AE32+1,FALSE))) -> 
A33: ='Entry Information'!B33 -> 0 | B33: ='Entry Information'!H33 -> 0 | C33: ='Entry Information'!I33 -> 0 | D33: ='Entry Information'!J33 -> 0 | E33: NOV | F33: =('Novice 23'!$D$31) ->  | J33: =IF($F33="","",(VLOOKUP($I$42,Worksheet!$A$11:$AE$41,I33+1,FALSE))) ->  | K33: =('Novice 23'!$J$31) ->  | O33: =IF($K33="","",(VLOOKUP($N$42,Worksheet!$A$11:$AE$41,N33+1,FALSE))) ->  | P33: ='Novice 23'!$P$31 ->  | T33: =IF($P33="","",(VLOOKUP($S$42,Worksheet!$A$11:$AE$41,S33+1,FALSE))) ->  | U33: =IF(A33=0,"",'Novice 23'!$V$31) ->  | Y33: =IF($U33="","",(VLOOKUP($X$42,Worksheet!$A$11:$AE$41,X33+1,FALSE))) ->  | Z33: =IF(A33=0,"",'Novice 23'!$AB$28) ->  | AA33: =IF(A33=0,"",'Novice 23'!$AB$31) ->  | AB33: =IF(A33=0,"",'Novice 23'!$AB$32) ->  | AF33: =IF($AB33="","",(VLOOKUP($AE$42,Worksheet!$A$11:$AE$41,AE33+1,FALSE))) -> 
A34: ='Entry Information'!B34 -> 0 | B34: ='Entry Information'!H34 -> 0 | C34: ='Entry Information'!I34 -> 0 | D34: ='Entry Information'!J34 -> 0 | E34: NOV | F34: =('Novice 24'!$D$31) ->  | J34: =IF($F34="","",(VLOOKUP($I$42,Worksheet!$A$11:$AE$41,I34+1,FALSE))) ->  | K34: =('Novice 24'!$J$31) ->  | O34: =IF($K34="","",(VLOOKUP($N$42,Worksheet!$A$11:$AE$41,N34+1,FALSE))) ->  | P34: ='Novice 24'!$P$31 ->  | T34: =IF($P34="","",(VLOOKUP($S$42,Worksheet!$A$11:$AE$41,S34+1,FALSE))) ->  | U34: =IF(A34=0,"",'Novice 24'!$V$31) ->  | Y34: =IF($U34="","",(VLOOKUP($X$42,Worksheet!$A$11:$AE$41,X34+1,FALSE))) ->  | Z34: =IF(A34=0,"",'Novice 24'!$AB$28) ->  | AA34: =IF(A34=0,"",'Novice 24'!$AB$31) ->  | AB34: =IF(A34=0,"",'Novice 24'!$AB$32) ->  | AF34: =IF($AB34="","",(VLOOKUP($AE$42,Worksheet!$A$11:$AE$41,AE34+1,FALSE))) -> 
A35: ='Entry Information'!B35 -> 0 | B35: ='Entry Information'!H35 -> 0 | C35: ='Entry Information'!I35 -> 0 | D35: ='Entry Information'!J35 -> 0 | E35: NOV | F35: =('Novice 25'!$D$31) ->  | J35: =IF($F35="","",(VLOOKUP($I$42,Worksheet!$A$11:$AE$41,I35+1,FALSE))) ->  | K35: =('Novice 25'!$J$31) ->  | O35: =IF($K35="","",(VLOOKUP($N$42,Worksheet!$A$11:$AE$41,N35+1,FALSE))) ->  | P35: ='Novice 25'!$P$31 ->  | T35: =IF($P35="","",(VLOOKUP($S$42,Worksheet!$A$11:$AE$41,S35+1,FALSE))) ->  | U35: =IF(A35=0,"",'Novice 25'!$V$31) ->  | Y35: =IF($U35="","",(VLOOKUP($X$42,Worksheet!$A$11:$AE$41,X35+1,FALSE))) ->  | Z35: =IF(A35=0,"",'Novice 25'!$AB$28) ->  | AA35: =IF(A35=0,"",'Novice 25'!$AB$31) ->  | AB35: =IF(A35=0,"",'Novice 25'!$AB$32) ->  | AF35: =IF($AB35="","",(VLOOKUP($AE$42,Worksheet!$A$11:$AE$41,AE35+1,FALSE))) -> 
A36: ='Entry Information'!B36 -> 0 | B36: ='Entry Information'!H36 -> 0 | C36: ='Entry Information'!I36 -> 0 | D36: ='Entry Information'!J36 -> 0 | E36: NOV | F36: =('Novice 26'!$D$31) ->  | J36: =IF($F36="","",(VLOOKUP($I$42,Worksheet!$A$11:$AE$41,I36+1,FALSE))) ->  | K36: =('Novice 26'!$J$31) ->  | O36: =IF($K36="","",(VLOOKUP($N$42,Worksheet!$A$11:$AE$41,N36+1,FALSE))) ->  | P36: ='Novice 26'!$P$31 ->  | T36: =IF($P36="","",(VLOOKUP($S$42,Worksheet!$A$11:$AE$41,S36+1,FALSE))) ->  | U36: =IF(A36=0,"",'Novice 26'!$V$31) ->  | Y36: =IF($U36="","",(VLOOKUP($X$42,Worksheet!$A$11:$AE$41,X36+1,FALSE))) ->  | Z36: =IF(A36=0,"",'Novice 26'!$AB$28) ->  | AA36: =IF(A36=0,"",'Novice 26'!$AB$31) ->  | AB36: =IF(A36=0,"",'Novice 26'!$AB$32) ->  | AF36: =IF($AB36="","",(VLOOKUP($AE$42,Worksheet!$A$11:$AE$41,AE36+1,FALSE))) -> 
A37: ='Entry Information'!B37 -> 0 | B37: ='Entry Information'!H37 -> 0 | C37: ='Entry Information'!I37 -> 0 | D37: ='Entry Information'!J37 -> 0 | E37: NOV | F37: =('Novice 27'!$D$31) ->  | J37: =IF($F37="","",(VLOOKUP($I$42,Worksheet!$A$11:$AE$41,I37+1,FALSE))) ->  | K37: =('Novice 27'!$J$31) ->  | O37: =IF($K37="","",(VLOOKUP($N$42,Worksheet!$A$11:$AE$41,N37+1,FALSE))) ->  | P37: ='Novice 27'!$P$31 ->  | T37: =IF($P37="","",(VLOOKUP($S$42,Worksheet!$A$11:$AE$41,S37+1,FALSE))) ->  | U37: =IF(A37=0,"",'Novice 27'!$V$31) ->  | Y37: =IF($U37="","",(VLOOKUP($X$42,Worksheet!$A$11:$AE$41,X37+1,FALSE))) ->  | Z37: =IF(A37=0,"",'Novice 27'!$AB$28) ->  | AA37: =IF(A37=0,"",'Novice 27'!$AB$31) ->  | AB37: =IF(A37=0,"",'Novice 27'!$AB$32) ->  | AF37: =IF($AB37="","",(VLOOKUP($AE$42,Worksheet!$A$11:$AE$41,AE37+1,FALSE))) -> 
A38: ='Entry Information'!B38 -> 0 | B38: ='Entry Information'!H38 -> 0 | C38: ='Entry Information'!I38 -> 0 | D38: ='Entry Information'!J38 -> 0 | E38: NOV | F38: =('Novice 28'!$D$31) ->  | J38: =IF($F38="","",(VLOOKUP($I$42,Worksheet!$A$11:$AE$41,I38+1,FALSE))) ->  | K38: =('Novice 28'!$J$31) ->  | O38: =IF($K38="","",(VLOOKUP($N$42,Worksheet!$A$11:$AE$41,N38+1,FALSE))) ->  | P38: ='Novice 28'!$P$31 ->  | T38: =IF($P38="","",(VLOOKUP($S$42,Worksheet!$A$11:$AE$41,S38+1,FALSE))) ->  | U38: =IF(A38=0,"",'Novice 28'!$V$31) ->  | Y38: =IF($U38="","",(VLOOKUP($X$42,Worksheet!$A$11:$AE$41,X38+1,FALSE))) ->  | Z38: =IF(A38=0,"",'Novice 28'!$AB$28) ->  | AA38: =IF(A38=0,"",'Novice 28'!$AB$31) ->  | AB38: =IF(A38=0,"",'Novice 28'!$AB$32) ->  | AF38: =IF($AB38="","",(VLOOKUP($AE$42,Worksheet!$A$11:$AE$41,AE38+1,FALSE))) -> 
A39: ='Entry Information'!B39 -> 0 | B39: ='Entry Information'!H39 -> 0 | C39: ='Entry Information'!I39 -> 0 | D39: ='Entry Information'!J39 -> 0 | E39: NOV | F39: =('Novice 29'!$D$31) ->  | J39: =IF($F39="","",(VLOOKUP($I$42,Worksheet!$A$11:$AE$41,I39+1,FALSE))) ->  | K39: =('Novice 29'!$J$31) ->  | O39: =IF($K39="","",(VLOOKUP($N$42,Worksheet!$A$11:$AE$41,N39+1,FALSE))) ->  | P39: ='Novice 29'!$P$31 ->  | T39: =IF($P39="","",(VLOOKUP($S$42,Worksheet!$A$11:$AE$41,S39+1,FALSE))) ->  | U39: =IF(A39=0,"",'Novice 29'!$V$31) ->  | Y39: =IF($U39="","",(VLOOKUP($X$42,Worksheet!$A$11:$AE$41,X39+1,FALSE))) ->  | Z39: =IF(A39=0,"",'Novice 29'!$AB$28) ->  | AA39: =IF(A39=0,"",'Novice 29'!$AB$31) ->  | AB39: =IF(A39=0,"",'Novice 29'!$AB$32) ->  | AF39: =IF($AB39="","",(VLOOKUP($AE$42,Worksheet!$A$11:$AE$41,AE39+1,FALSE))) -> 
A40: ='Entry Information'!B40 -> 0 | B40: ='Entry Information'!H40 -> 0 | C40: ='Entry Information'!I40 -> 0 | D40: ='Entry Information'!J40 -> 0 | E40: NOV | F40: =('Novice 30'!$D$31) ->  | J40: =IF($F40="","",(VLOOKUP($I$42,Worksheet!$A$11:$AE$41,I40+1,FALSE))) ->  | K40: =('Novice 30'!$J$31) ->  | O40: =IF($K40="","",(VLOOKUP($N$42,Worksheet!$A$11:$AE$41,N40+1,FALSE))) ->  | P40: ='Novice 30'!$P$31 ->  | T40: =IF($P40="","",(VLOOKUP($S$42,Worksheet!$A$11:$AE$41,S40+1,FALSE))) ->  | U40: =IF(A40=0,"",'Novice 30'!$V$31) ->  | Y40: =IF($U40="","",(VLOOKUP($X$42,Worksheet!$A$11:$AE$41,X40+1,FALSE))) ->  | Z40: =IF(A40=0,"",'Novice 30'!$AB$28) ->  | AA40: =IF(A40=0,"",'Novice 30'!$AB$31) ->  | AB40: =IF(A40=0,"",'Novice 30'!$AB$32) ->  | AD40: =IF(AC40="",AB40,(AB40+(AC40*0.001))) ->  | AF40: =IF($AB40="","",(VLOOKUP($AE$42,Worksheet!$A$11:$AE$41,AE40+1,FALSE))) -> 
I42: =COUNTIF(I11:I40,">=0") -> 9 | N42: =COUNTIF(N11:N40,">=0") -> 9 | S42: =COUNTIF(S11:S40,">=0") -> 9 | X42: =COUNTIF(X11:X40,">=0") -> 9 | AE42: =COUNTIF(AE11:AE40,">=0") -> 9
D43: Tie Breakers = | F43: 1 - Extended Trot | K43: 1 - Box Cow | P43: 1 - Penning | U43: 1 - Drag log | Z43: 1- Structural Correctness | AG43: Working Ranch Score
F44: 2 - Transition down lope/walk/stop | K44: 2 -First Lead Change | P44: 2 - Working Center of arena | U44: 2 - Ground tie/bridle/pick-up legs | Z44: 2 - Balance | AG44: and then use WR Tie-Breakers
F45: 3 - Transition to lope/lope | K45: 3 -Spin | P45: 3 -Cut from Herd | U45: 3 - Gate | Z45: 3 - Ranch Cutting

Sheet LIMITED RESULTS (2)
E2: Event Name: | I2: ='Entry Information'!H4 -> The Horse First Farm, Brooklyn, WI | S2: Judges Name: | U2: ='Entry Information'!K4 -> Dave Currin | AB2: Classes Judged? | AF2: ='Entry Information'!O4 -> CN, RR, RT
A3: Division: | B3: LIMITED | E3: Event Date: | I3: ='Entry Information'!H5 -> June 28-29,2014 | S3: Judges Name: | U3: ='Entry Information'!K5 -> Jeff Barnes | AB3: Classes Judged? | AF3: ='Entry Information'!O5 -> WR, RC
A5: 1 | B5: 2 | C5: 3 | D5: 4 | E5: 5 | F5: 6 | G5: 7 | I5: 8 | J5: 9 | K5: 10 | L5: 11 | N5: 12 | O5: 13 | P5: 14 | Q5: 15 | S5: 16 | T5: 17 | U5: 18 | V5: 19 | X5: 20 | Y5: 21 | Z5: 22 | AA5: 23 | AB5: 24 | AC5: 25 | AE5: 26 | AF5: 27 | AG5: 28 | AH5: 29 | AJ5: 30 | AK5: 31
F6: Ranch | K6: Working | P6: Ranch | U6: Ranch | AA6: Ranch | AG6: Total | AI6: Adjusted | AJ6: Event | AK6: Event
F7: Riding | K7: Ranch | P7: Cutting | U7: Trail | AA7: Conformation | AG7: Placement | AH7: Tie | AI7: Placement | AJ7: All | AK7: Total
F8: Score | G8: Tie | H8: Adjusted | I8: Place | J8: Place- | K8: Score | L8: Tie | M8: Adjusted | N8: Place | O8: Place- | P8: Score | Q8: Tie | R8: Adjusted | S8: Place | T8: Place- | U8: Score | V8: Tie | W8: Adjusted | X8: Place | Y8: Place- | Z8: Judges | AA8: Function | AB8: TOTAL | AC8: Tie | AD8: Adjusted | AE8: Place | AF8: Place- | AG8: Points | AH8: Breaker | AI8: Points | AJ8: Around | AK8: Score
G9: Breaker | H9: Score | J9: ment | L9: Breaker | M9: Score | O9: ment | Q9: Breaker | R9: Score | T9: ment | V9: Breaker | W9: Score | Y9: ment | Z9: Score | AA9: Score | AB9: SCORE | AC9: Breaker | AD9: Score | AF9: ment
A10: Back No. | B10: Last Name | C10: First Name | D10: Registered Horse Name | E10: Division | J10: Points | O10: Points | T10: Points | Y10: Points | AF10: Points
A11: ='Entry Information'!B41 -> 22 | B11: ='Entry Information'!H41 -> Janetka | C11: ='Entry Information'!I41 -> Gena | D11: ='Entry Information'!J41 -> Froghorn Leghorn | E11: LTD | F11: =('Limited 1'!$D$31) -> 75.3 | H11: =IF(G11="",F11,(F11+(G11*0.001))) -> 75.3 | I11: =IF(H11="","",(RANK(H11,$H$11:$H$25,0))) -> 2 | J11: =IF($F11="","",(VLOOKUP($I$27,Worksheet!$A$11:$AE$41,I11+1,FALSE))) -> 0 | K11: =('Limited 1'!$J$31) -> 44.5 | M11: =IF(L11="",K11,(K11+(L11*0.001))) -> 44.5 | N11: =IF(M11="","",(RANK(M11,$M$11:$M$25,0))) -> 1 | O11: =IF($K11="","",(VLOOKUP($N$27,Worksheet!$A$11:$AE$41,N11+1,FALSE))) -> 1 | P11: =('Limited 1'!$P$31) -> 68 | R11: =IF(Q11="",P11,(P11+(Q11*0.001))) -> 68 | S11: =IF(R11="","",(RANK(R11,$R$11:$R$25,0))) -> 2 | T11: =IF($P11="","",(VLOOKUP($S$27,Worksheet!$A$11:$AE$41,S11+1,FALSE))) -> 0 | U11: =IF(A11=0,"",'Limited 1'!$V$31) -> 62 | W11: =IF(V11="",U11,(U11+(V11*0.001))) -> 62 | X11: =IF(W11="","",(RANK(W11,$W$11:$W$25,0))) -> 2 | Y11: =IF($U11="","",(VLOOKUP($X$27,Worksheet!$A$11:$AE$41,X11+1,FALSE))) -> 0 | Z11: =IF(AB11="","",'Limited 1'!$AB$28) -> 43.98 | AA11: =IF(AB11="","",'Limited 1'!$AB$31) -> 24.98 | AB11: =IF(A11=0,"",'Limited 1'!$AB$32) -> 68.96 | AD11: =IF(AC11="",AB11,(AB11+(AC11*0.001))) -> 68.96 | AE11: =IF(AD11="","",(RANK(AD11,$AD$11:$AD$25,0))) -> 1 | AF11: =IF($AB11="","",(VLOOKUP($AE$27,Worksheet!$A$11:$AE$41,AE11+1,FALSE))) -> 1 | AG11: =IF(A11=0,"",(SUM($J11,$O11,$T11,$Y11,$AF11))) -> 2 | AI11: =IF(AH11="",AG11,(AG11+(AH11*0.001))) -> 2 | AJ11: =IF(AI11="","",(RANK(AI11,$AI$11:$AI$25,0))) -> 2 | AK11: =IF(A11=0,"",(SUM(F11,K11,P11,U11,AB11))) -> 318.76
A12: ='Entry Information'!B42 -> 40 | B12: ='Entry Information'!H42 -> Siitari | C12: ='Entry Information'!I42 -> Steph | D12: ='Entry Information'!J42 -> SLJ Ruby Slippers | E12: LTD | F12: =('Limited 2'!$D$31) -> 82.3 | H12: =IF(G12="",F12,(F12+(G12*0.001))) -> 82.3 | I12: 1 | J12: =IF($F12="","",(VLOOKUP($I$27,Worksheet!$A$11:$AE$41,I12+1,FALSE))) -> 1 | K12: =('Limited 2'!$J$31) -> 38.5 | M12: =IF(L12="",K12,(K12+(L12*0.001))) -> 38.5 | N12: 2 | O12: =IF($K12="","",(VLOOKUP($N$27,Worksheet!$A$11:$AE$41,N12+1,FALSE))) -> 0 | P12: ='Limited 2'!$P$31 -> 74 | R12: =IF(Q12="",P12,(P12+(Q12*0.001))) -> 74 | S12: 1 | T12: =IF($P12="","",(VLOOKUP($S$27,Worksheet!$A$11:$AE$41,S12+1,FALSE))) -> 1 | U12: =IF(A12=0,"",'Limited 2'!$V$31) -> 91.5 | W12: =IF(V12="",U12,(U12+(V12*0.001))) -> 91.5 | X12: 1 | Y12: =IF($U12="","",(VLOOKUP($X$27,Worksheet!$A$11:$AE$41,X12+1,FALSE))) -> 1 | Z12: =IF(AB12="","",'Limited 2'!$AB$28) -> 37.71 | AA12: =IF(AB12="","",'Limited 2'!$AB$31) -> 28.63 | AB12: =IF(A12=0,"",'Limited 2'!$AB$32) -> 66.34 | AD12: 66.34 | AE12: 2 | AF12: =IF($AB12="","",(VLOOKUP($AE$27,Worksheet!$A$11:$AE$41,AE12+1,FALSE))) -> 0 | AG12: 3 | AI12: =IF(AH12="",AG12,(AG12+(AH12*0.001))) -> 3 | AJ12: 1 | AK12: 352.64
A13: ='Entry Information'!B43 -> 0 | B13: ='Entry Information'!H43 -> 0 | C13: ='Entry Information'!I43 -> 0 | D13: ='Entry Information'!J43 -> 0 | E13: LTD | F13: =('Limited 3'!$D$31) ->  | J13: =IF($F13="","",(VLOOKUP($I$27,Worksheet!$A$11:$AE$41,I13+1,FALSE))) ->  | K13: =('Limited 3'!$J$31) ->  | O13: =IF($K13="","",(VLOOKUP($N$27,Worksheet!$A$11:$AE$41,N13+1,FALSE))) ->  | P13: ='Limited 3'!$P$31 ->  | T13: =IF($P13="","",(VLOOKUP($S$27,Worksheet!$A$11:$AE$41,S13+1,FALSE))) ->  | U13: =IF(A13=0,"",'Limited 3'!$V$31) ->  | Y13: =IF($U13="","",(VLOOKUP($X$27,Worksheet!$A$11:$AE$41,X13+1,FALSE))) ->  | Z13: =IF(AB13="","",'Limited 3'!$AB$28) ->  | AA13: =IF(AB13="","",'Limited 3'!$AB$31) ->  | AB13: =IF(A13=0,"",'Limited 3'!$AB$32) ->  | AF13: =IF($AB13="","",(VLOOKUP($AE$27,Worksheet!$A$11:$AE$41,AE13+1,FALSE))) -> 
A14: ='Entry Information'!B44 -> 0 | B14: ='Entry Information'!H44 -> 0 | C14: ='Entry Information'!I44 -> 0 | D14: ='Entry Information'!J44 -> 0 | E14: LTD | F14: =('Limited 4'!$D$31) ->  | J14: =IF($F14="","",(VLOOKUP($I$27,Worksheet!$A$11:$AE$41,I14+1,FALSE))) ->  | K14: =('Limited 4'!$J$31) ->  | O14: =IF($K14="","",(VLOOKUP($N$27,Worksheet!$A$11:$AE$41,N14+1,FALSE))) ->  | P14: ='Limited 4'!$P$31 ->  | T14: =IF($P14="","",(VLOOKUP($S$27,Worksheet!$A$11:$AE$41,S14+1,FALSE))) ->  | U14: =IF(A14=0,"",'Limited 4'!$V$31) ->  | Y14: =IF($U14="","",(VLOOKUP($X$27,Worksheet!$A$11:$AE$41,X14+1,FALSE))) ->  | Z14: =IF(AB14="","",'Limited 4'!$AB$28) ->  | AA14: =IF(AB14="","",'Limited 4'!$AB$31) ->  | AB14: =IF(A14=0,"",'Limited 4'!$AB$32) ->  | AF14: =IF($AB14="","",(VLOOKUP($AE$27,Worksheet!$A$11:$AE$41,AE14+1,FALSE))) -> 
A15: ='Entry Information'!B45 -> 0 | B15: ='Entry Information'!H45 -> 0 | C15: ='Entry Information'!I45 -> 0 | D15: ='Entry Information'!J45 -> 0 | E15: LTD | F15: =('Limited 5'!$D$31) ->  | J15: =IF($F15="","",(VLOOKUP($I$27,Worksheet!$A$11:$AE$41,I15+1,FALSE))) ->  | K15: =('Limited 5'!$J$31) ->  | O15: =IF($K15="","",(VLOOKUP($N$27,Worksheet!$A$11:$AE$41,N15+1,FALSE))) ->  | P15: ='Limited 5'!$P$31 ->  | T15: =IF($P15="","",(VLOOKUP($S$27,Worksheet!$A$11:$AE$41,S15+1,FALSE))) ->  | U15: =IF(A15=0,"",'Limited 5'!$V$31) ->  | Y15: =IF($U15="","",(VLOOKUP($X$27,Worksheet!$A$11:$AE$41,X15+1,FALSE))) ->  | Z15: =IF(AB15="","",'Limited 5'!$AB$28) ->  | AA15: =IF(AB15="","",'Limited 5'!$AB$31) ->  | AB15: =IF(A15=0,"",'Limited 5'!$AB$32) ->  | AF15: =IF($AB15="","",(VLOOKUP($AE$27,Worksheet!$A$11:$AE$41,AE15+1,FALSE))) -> 
A16: ='Entry Information'!B46 -> 0 | B16: ='Entry Information'!H46 -> 0 | C16: ='Entry Information'!I46 -> 0 | D16: ='Entry Information'!J46 -> 0 | E16: LTD | F16: =('Limited 6'!$D$31) ->  | J16: =IF($F16="","",(VLOOKUP($I$27,Worksheet!$A$11:$AE$41,I16+1,FALSE))) ->  | K16: =('Limited 6'!$J$31) ->  | O16: =IF($K16="","",(VLOOKUP($N$27,Worksheet!$A$11:$AE$41,N16+1,FALSE))) ->  | P16: ='Limited 6'!$P$31 ->  | T16: =IF($P16="","",(VLOOKUP($S$27,Worksheet!$A$11:$AE$41,S16+1,FALSE))) ->  | U16: =IF(A16=0,"",'Limited 6'!$V$31) ->  | Y16: =IF($U16="","",(VLOOKUP($X$27,Worksheet!$A$11:$AE$41,X16+1,FALSE))) ->  | Z16: =IF(AB16="","",'Limited 6'!$AB$28) ->  | AA16: =IF(AB16="","",'Limited 6'!$AB$31) ->  | AB16: =IF(A16=0,"",'Limited 6'!$AB$32) ->  | AF16: =IF($AB16="","",(VLOOKUP($AE$27,Worksheet!$A$11:$AE$41,AE16+1,FALSE))) -> 
A17: ='Entry Information'!B47 -> 0 | B17: ='Entry Information'!H47 -> 0 | C17: ='Entry Information'!I47 -> 0 | D17: ='Entry Information'!J47 -> 0 | E17: LTD | F17: =('Limited 7'!$D$31) ->  | J17: =IF($F17="","",(VLOOKUP($I$27,Worksheet!$A$11:$AE$41,I17+1,FALSE))) ->  | K17: =('Limited 7'!$J$31) ->  | O17: =IF($K17="","",(VLOOKUP($N$27,Worksheet!$A$11:$AE$41,N17+1,FALSE))) ->  | P17: ='Limited 7'!$P$31 ->  | T17: =IF($P17="","",(VLOOKUP($S$27,Worksheet!$A$11:$AE$41,S17+1,FALSE))) ->  | U17: =IF(A17=0,"",'Limited 7'!$V$31) ->  | Y17: =IF($U17="","",(VLOOKUP($X$27,Worksheet!$A$11:$AE$41,X17+1,FALSE))) ->  | Z17: =IF(AB17="","",'Limited 7'!$AB$28) ->  | AA17: =IF(AB17="","",'Limited 7'!$AB$31) ->  | AB17: =IF(A17=0,"",'Limited 7'!$AB$32) ->  | AF17: =IF($AB17="","",(VLOOKUP($AE$27,Worksheet!$A$11:$AE$41,AE17+1,FALSE))) -> 
A18: ='Entry Information'!B48 -> 0 | B18: ='Entry Information'!H48 -> 0 | C18: ='Entry Information'!I48 -> 0 | D18: ='Entry Information'!J48 -> 0 | E18: LTD | F18: =('Limited 8'!$D$31) ->  | J18: =IF($F18="","",(VLOOKUP($I$27,Worksheet!$A$11:$AE$41,I18+1,FALSE))) ->  | K18: =('Limited 8'!$J$31) ->  | O18: =IF($K18="","",(VLOOKUP($N$27,Worksheet!$A$11:$AE$41,N18+1,FALSE))) ->  | P18: ='Limited 8'!$P$31 ->  | T18: =IF($P18="","",(VLOOKUP($S$27,Worksheet!$A$11:$AE$41,S18+1,FALSE))) ->  | U18: =IF(A18=0,"",'Limited 8'!$V$31) ->  | Y18: =IF($U18="","",(VLOOKUP($X$27,Worksheet!$A$11:$AE$41,X18+1,FALSE))) ->  | Z18: =IF(AB18="","",'Limited 8'!$AB$28) ->  | AA18: =IF(AB18="","",'Limited 8'!$AB$31) ->  | AB18: =IF(A18=0,"",'Limited 8'!$AB$32) ->  | AF18: =IF($AB18="","",(VLOOKUP($AE$27,Worksheet!$A$11:$AE$41,AE18+1,FALSE))) -> 
A19: ='Entry Information'!B49 -> 0 | B19: ='Entry Information'!H49 -> 0 | C19: ='Entry Information'!I49 -> 0 | D19: ='Entry Information'!J49 -> 0 | E19: LTD | F19: =('Limited 9'!$D$31) ->  | J19: =IF($F19="","",(VLOOKUP($I$27,Worksheet!$A$11:$AE$41,I19+1,FALSE))) ->  | K19: =('Limited 9'!$J$31) ->  | O19: =IF($K19="","",(VLOOKUP($N$27,Worksheet!$A$11:$AE$41,N19+1,FALSE))) ->  | P19: ='Limited 9'!$P$31 ->  | T19: =IF($P19="","",(VLOOKUP($S$27,Worksheet!$A$11:$AE$41,S19+1,FALSE))) ->  | U19: =IF(A19=0,"",'Limited 9'!$V$31) ->  | Y19: =IF($U19="","",(VLOOKUP($X$27,Worksheet!$A$11:$AE$41,X19+1,FALSE))) ->  | Z19: =IF(AB19="","",'Limited 9'!$AB$28) ->  | AA19: =IF(AB19="","",'Limited 9'!$AB$31) ->  | AB19: =IF(A19=0,"",'Limited 9'!$AB$32) ->  | AF19: =IF($AB19="","",(VLOOKUP($AE$27,Worksheet!$A$11:$AE$41,AE19+1,FALSE))) -> 
A20: ='Entry Information'!B50 -> 0 | B20: ='Entry Information'!H50 -> 0 | C20: ='Entry Information'!I50 -> 0 | D20: ='Entry Information'!J50 -> 0 | E20: LTD | F20: =('Limited 10'!$D$31) ->  | J20: =IF($F20="","",(VLOOKUP($I$27,Worksheet!$A$11:$AE$41,I20+1,FALSE))) ->  | K20: =('Limited 10'!$J$31) ->  | O20: =IF($K20="","",(VLOOKUP($N$27,Worksheet!$A$11:$AE$41,N20+1,FALSE))) ->  | P20: ='Limited 10'!$P$31 ->  | T20: =IF($P20="","",(VLOOKUP($S$27,Worksheet!$A$11:$AE$41,S20+1,FALSE))) ->  | U20: =IF(A20=0,"",'Limited 10'!$V$31) ->  | Y20: =IF($U20="","",(VLOOKUP($X$27,Worksheet!$A$11:$AE$41,X20+1,FALSE))) ->  | Z20: =IF(AB20="","",'Limited 10'!$AB$28) ->  | AA20: =IF(AB20="","",'Limited 10'!$AB$31) ->  | AB20: =IF(A20=0,"",'Limited 10'!$AB$32) ->  | AF20: =IF($AB20="","",(VLOOKUP($AE$27,Worksheet!$A$11:$AE$41,AE20+1,FALSE))) -> 
A21: ='Entry Information'!B51 -> 0 | B21: ='Entry Information'!H51 -> 0 | C21: ='Entry Information'!I51 -> 0 | D21: ='Entry Information'!J51 -> 0 | E21: LTD | F21: =('Limited 11'!$D$31) ->  | J21: =IF($F21="","",(VLOOKUP($I$27,Worksheet!$A$11:$AE$41,I21+1,FALSE))) ->  | K21: =('Limited 11'!$J$31) ->  | O21: =IF($K21="","",(VLOOKUP($N$27,Worksheet!$A$11:$AE$41,N21+1,FALSE))) ->  | P21: ='Limited 11'!$P$31 ->  | T21: =IF($P21="","",(VLOOKUP($S$27,Worksheet!$A$11:$AE$41,S21+1,FALSE))) ->  | U21: =IF(A21=0,"",'Limited 11'!$V$31) ->  | Y21: =IF($U21="","",(VLOOKUP($X$27,Worksheet!$A$11:$AE$41,X21+1,FALSE))) ->  | Z21: =IF(AB21="","",'Limited 11'!$AB$28) ->  | AA21: =IF(AB21="","",'Limited 11'!$AB$31) ->  | AB21: =IF(A21=0,"",'Limited 11'!$AB$32) ->  | AF21: =IF($AB21="","",(VLOOKUP($AE$27,Worksheet!$A$11:$AE$41,AE21+1,FALSE))) -> 
A22: ='Entry Information'!B52 -> 0 | B22: ='Entry Information'!H52 -> 0 | C22: ='Entry Information'!I52 -> 0 | D22: ='Entry Information'!J52 -> 0 | E22: LTD | F22: =('Limited 12'!$D$31) ->  | J22: =IF($F22="","",(VLOOKUP($I$27,Worksheet!$A$11:$AE$41,I22+1,FALSE))) ->  | K22: =('Limited 12'!$J$31) ->  | O22: =IF($K22="","",(VLOOKUP($N$27,Worksheet!$A$11:$AE$41,N22+1,FALSE))) ->  | P22: ='Limited 12'!$P$31 ->  | T22: =IF($P22="","",(VLOOKUP($S$27,Worksheet!$A$11:$AE$41,S22+1,FALSE))) ->  | U22: =IF($A22=0,"",'Limited 12'!$V$31) ->  | Y22: =IF($U22="","",(VLOOKUP($X$27,Worksheet!$A$11:$AE$41,X22+1,FALSE))) ->  | Z22: =IF(AB22="","",'Limited 12'!$AB$28) ->  | AA22: =IF(AB22="","",'Limited 12'!$AB$31) ->  | AB22: =IF(A22=0,"",'Limited 12'!$AB$32) ->  | AF22: =IF($AB22="","",(VLOOKUP($AE$27,Worksheet!$A$11:$AE$41,AE22+1,FALSE))) -> 
A23: ='Entry Information'!B53 -> 0 | B23: ='Entry Information'!H53 -> 0 | C23: ='Entry Information'!I53 -> 0 | D23: ='Entry Information'!J53 -> 0 | E23: LTD | F23: =('Limited 13'!$D$31) ->  | J23: =IF($F23="","",(VLOOKUP($I$27,Worksheet!$A$11:$AE$41,I23+1,FALSE))) ->  | K23: =('Limited 13'!$J$31) ->  | O23: =IF($K23="","",(VLOOKUP($N$27,Worksheet!$A$11:$AE$41,N23+1,FALSE))) ->  | P23: ='Limited 13'!$P$31 ->  | T23: =IF($P23="","",(VLOOKUP($S$27,Worksheet!$A$11:$AE$41,S23+1,FALSE))) ->  | U23: =IF(A23=0,"",'Limited 13'!$V$31) ->  | Y23: =IF($U23="","",(VLOOKUP($X$27,Worksheet!$A$11:$AE$41,X23+1,FALSE))) ->  | Z23: =IF(AB23="","",'Limited 13'!$AB$28) ->  | AA23: =IF(AB23="","",'Limited 13'!$AB$31) ->  | AB23: =IF(A23=0,"",'Limited 13'!$AB$32) ->  | AF23: =IF($AB23="","",(VLOOKUP($AE$27,Worksheet!$A$11:$AE$41,AE23+1,FALSE))) -> 
A24: ='Entry Information'!B54 -> 0 | B24: ='Entry Information'!H54 -> 0 | C24: ='Entry Information'!I54 -> 0 | D24: ='Entry Information'!J54 -> 0 | E24: LTD | F24: =('Limited 14'!$D$31) ->  | J24: =IF($F24="","",(VLOOKUP($I$27,Worksheet!$A$11:$AE$41,I24+1,FALSE))) ->  | K24: =('Limited 14'!$J$31) ->  | O24: =IF($K24="","",(VLOOKUP($N$27,Worksheet!$A$11:$AE$41,N24+1,FALSE))) ->  | P24: ='Limited 14'!$P$31 ->  | T24: =IF($P24="","",(VLOOKUP($S$27,Worksheet!$A$11:$AE$41,S24+1,FALSE))) ->  | U24: =IF(A24=0,"",'Limited 14'!$V$31) ->  | Y24: =IF($U24="","",(VLOOKUP($X$27,Worksheet!$A$11:$AE$41,X24+1,FALSE))) ->  | Z24: =IF(AB24="","",'Limited 14'!$AB$28) ->  | AA24: =IF(AB24="","",'Limited 14'!$AB$31) ->  | AB24: =IF(A24=0,"",'Limited 14'!$AB$32) ->  | AF24: =IF($AB24="","",(VLOOKUP($AE$27,Worksheet!$A$11:$AE$41,AE24+1,FALSE))) -> 
A25: ='Entry Information'!B55 -> 0 | B25: ='Entry Information'!H55 -> 0 | C25: ='Entry Information'!I55 -> 0 | D25: ='Entry Information'!J55 -> 0 | E25: LTD | F25: =('Limited 15'!$D$31) ->  | J25: =IF($F25="","",(VLOOKUP($I$27,Worksheet!$A$11:$AE$41,I25+1,FALSE))) ->  | K25: =('Limited 15'!$J$31) ->  | O25: =IF($K25="","",(VLOOKUP($N$27,Worksheet!$A$11:$AE$41,N25+1,FALSE))) ->  | P25: ='Limited 15'!$P$31 ->  | T25: =IF($P25="","",(VLOOKUP($S$27,Worksheet!$A$11:$AE$41,S25+1,FALSE))) ->  | U25: =IF(A25=0,"",'Limited 15'!$V$31) ->  | Y25: =IF($U25="","",(VLOOKUP($X$27,Worksheet!$A$11:$AE$41,X25+1,FALSE))) ->  | Z25: =IF(AB25="","",'Limited 15'!$AB$28) ->  | AA25: =IF(AB25="","",'Limited 15'!$AB$31) ->  | AB25: =IF(A25=0,"",'Limited 15'!$AB$32) ->  | AF25: =IF($AB25="","",(VLOOKUP($AE$27,Worksheet!$A$11:$AE$41,AE25+1,FALSE))) -> 
I27: =COUNTIF(I11:I25,">=0") -> 2 | N27: =COUNTIF(N11:N25,">=0") -> 2 | S27: =COUNTIF(S11:S25,">=0") -> 2 | X27: =COUNTIF(X11:X25,">=0") -> 2 | AD27: =IF(AC27="",AB27,(AB27+(AC27*0.001))) -> 0 | AE27: =COUNTIF(AE11:AE25,">=0") -> 2
D28: Tie Breakers = | F28: 1 - Extended Trot | H28: =IF(G28="",F28,(F28+(G28*0.001))) -> 1 - Extended Trot | K28: 1 - Box Cow & Drive Opp. End | P28: 1 - Penning | U28: 1 - Drag log | Z28: 1- Structural Correctness | AG28: Working Ranch Score
F29: 2 - Transition down lope/walk/stop | H29: 2 - Transition down lope/walk/stop | K29: 2 - First Lead Change | P29: 2 - Working Center of arena | U29: 2 - Ground tie/bridle/pick-up legs | Z29: 2 - Balance | AG29: and then use WR Tie-Breakers
F30: 3 - Transition to lope/lope | H30: 3 - Transition to lope/lope | K30: 3 - Spin | P30: 3 -Cut from Herd | U30: 3 - Gate | Z30: 3 - Ranch Cutting

Sheet INTERMEDIATE RESULTS (2)
E2: Event Name: | I2: ='Entry Information'!H4 -> The Horse First Farm, Brooklyn, WI | S2: Judges Name: | U2: ='Entry Information'!K4 -> Dave Currin | AB2: Classes Judged? | AF2: ='Entry Information'!O4 -> CN, RR, RT
A3: Division: | B3: INTERMEDIATE | E3: Event Date: | I3: ='Entry Information'!H5 -> June 28-29,2014 | S3: Judges Name: | U3: ='Entry Information'!K5 -> Jeff Barnes | AB3: Classes Judged? | AF3: ='Entry Information'!O5 -> WR, RC
A5: 1 | B5: 2 | C5: 3 | D5: 4 | E5: 5 | F5: 6 | G5: 7 | I5: 8 | J5: 9 | K5: 10 | L5: 11 | N5: 12 | O5: 13 | P5: 14 | Q5: 15 | S5: 16 | T5: 17 | U5: 18 | V5: 19 | X5: 20 | Y5: 21 | Z5: 22 | AA5: 23 | AB5: 24 | AC5: 25 | AE5: 26 | AF5: 27 | AG5: 28 | AH5: 29 | AJ5: 30 | AK5: 31
F6: Ranch | K6: Working | P6: Ranch | U6: Ranch | AA6: Ranch | AG6: Total | AI6: Adjusted | AJ6: Event | AK6: Event
F7: Riding | K7: Ranch | P7: Cutting | U7: Trail | AA7: Conformation | AG7: Placement | AH7: Tie | AI7: Placement | AJ7: All | AK7: Total
F8: Score | G8: Tie | H8: Adjusted | I8: Place | J8: Place- | K8: Score | L8: Tie | M8: Adjusted | N8: Place | O8: Place- | P8: Score | Q8: Tie | R8: Adjusted | S8: Place | T8: Place- | U8: Score | V8: Tie | W8: Adjusted | X8: Place | Y8: Place- | Z8: Judges | AA8: Function | AB8: TOTAL | AC8: Tie | AD8: Adjusted | AE8: Place | AF8: Place- | AG8: Points | AH8: Breaker | AI8: Points | AJ8: Around | AK8: Score
G9: Breaker | H9: Score | J9: ment | L9: Breaker | M9: Score | O9: ment | Q9: Breaker | R9: Score | T9: ment | V9: Breaker | W9: Score | Y9: ment | Z9: Score | AA9: Score | AB9: SCORE | AC9: Breaker | AD9: Score | AF9: ment
A10: Back No. | B10: Last Name | C10: First Name | D10: Registered Horse Name | E10: Division | J10: Points | O10: Points | T10: Points | Y10: Points | AF10: Points
A11: ='Entry Information'!B56 -> 11 | B11: ='Entry Information'!H56 -> Osorio | C11: ='Entry Information'!I56 -> Carlos | D11: ='Entry Information'!J56 -> AR Especial | E11: INT | F11: =IF($A11=0,"",'Intermediate 1'!$D$31) -> 70.8 | H11: =IF(G11="",F11,(F11+(G11*0.001))) -> 70.8 | I11: =IF(H11="","",(RANK(H11,$H$11:$H$25,0))) -> 1 | J11: =IF($F11="","",(VLOOKUP($I$27,Worksheet!$A$11:$AE$41,I11+1,FALSE))) -> 1 | K11: =IF(C11=0,"",'Intermediate 1'!$J$36) -> 49.8 | M11: =IF(L11="",K11,(K11+(L11*0.001))) -> 49.8 | N11: =IF(M11="","",(RANK(M11,$M$11:$M$25,0))) -> 1 | O11: =IF($K11="","",(VLOOKUP($N$27,Worksheet!$A$11:$AE$41,N11+1,FALSE))) -> 1 | P11: =IF(E11=0,"",'Intermediate 1'!$P$31) -> 78 | R11: =IF(Q11="",P11,(P11+(Q11*0.001))) -> 78 | S11: =IF(R11="","",(RANK(R11,$R$11:$R$25,0))) -> 1 | T11: =IF($P11="","",(VLOOKUP($S$27,Worksheet!$A$11:$AE$41,S11+1,FALSE))) -> 1 | U11: =IF(A11=0,"",'Intermediate 1'!$V$31) -> 76.5 | W11: =IF(V11="",U11,(U11+(V11*0.001))) -> 76.5 | X11: =IF(W11="","",(RANK(W11,$W$11:$W$25,0))) -> 1 | Y11: =IF($U11="","",(VLOOKUP($X$27,Worksheet!$A$11:$AE$41,X11+1,FALSE))) -> 1 | Z11: =IF(AB11="","",'Intermediate 1'!$AB$28) -> 42.33 | AA11: =IF(AB11="","",'Intermediate 1'!$AB$31) -> 27.51 | AB11: =IF(A11=0,"",'Intermediate 1'!$AB$32) -> 69.84 | AD11: =IF(AC11="",AB11,(AB11+(AC11*0.001))) -> 69.84 | AE11: =IF(AD11="","",(RANK(AD11,$AD$11:$AD$25,0))) -> 1 | AF11: =IF($AB11="","",(VLOOKUP($AE$27,Worksheet!$A$11:$AE$41,AE11+1,FALSE))) -> 1 | AG11: =IF(A11=0,"",(SUM($J11,$O11,$T11,$Y11,$AF11))) -> 5 | AI11: =IF(AH11="",AG11,(AG11+(AH11*0.001))) -> 5 | AJ11: =IF(AI11="","",(RANK(AI11,$AI$11:$AI$25,0))) -> 1 | AK11: =IF(A11=0,"",(SUM(F11,K11,P11,U11,AB11))) -> 344.94
A12: ='Entry Information'!B57 -> 0 | B12: ='Entry Information'!H57 -> 0 | C12: ='Entry Information'!I57 -> 0 | D12: ='Entry Information'!J57 -> 0 | E12: INT | F12: =IF($A12=0,"",'Intermediate 2'!$D$31) ->  | H12: =IF(G12="",F12,(F12+(G12*0.001))) ->  | J12: =IF($F12="","",(VLOOKUP($I$27,Worksheet!$A$11:$AE$41,I12+1,FALSE))) ->  | K12: =IF(C12=0,"",'Intermediate 2'!$J$36) ->  | M12: =IF(L12="",K12,(K12+(L12*0.001))) ->  | O12: =IF($K12="","",(VLOOKUP($N$27,Worksheet!$A$11:$AE$41,N12+1,FALSE))) ->  | P12: =IF(E12=0,"",'Intermediate 2'!$P$31) ->  | R12: =IF(Q12="",P12,(P12+(Q12*0.001))) ->  | T12: =IF($P12="","",(VLOOKUP($S$27,Worksheet!$A$11:$AE$41,S12+1,FALSE))) ->  | U12: =IF(A12=0,"",'Intermediate 2'!$V$31) ->  | W12: =IF(V12="",U12,(U12+(V12*0.001))) ->  | Y12: =IF($U12="","",(VLOOKUP($X$27,Worksheet!$A$11:$AE$41,X12+1,FALSE))) ->  | Z12: =IF(AB12="","",'Intermediate 2'!$AB$28) ->  | AA12: =IF(AB12="","",'Intermediate 2'!$AB$31) ->  | AB12: =IF(A12=0,"",'Intermediate 2'!$AB$32) ->  | AF12: =IF($AB12="","",(VLOOKUP($AE$27,Worksheet!$A$11:$AE$41,AE12+1,FALSE))) ->  | AI12: =IF(AH12="",AG12,(AG12+(AH12*0.001))) -> 
A13: ='Entry Information'!B58 -> 0 | B13: ='Entry Information'!H58 -> 0 | C13: ='Entry Information'!I58 -> 0 | D13: ='Entry Information'!J58 -> 0 | E13: INT | F13: =IF($A13=0,"",'Intermediate 3'!$D$31) ->  | J13: =IF($F13="","",(VLOOKUP($I$27,Worksheet!$A$11:$AE$41,I13+1,FALSE))) ->  | K13: =IF(C13=0,"",'Intermediate 3'!$J$36) ->  | O13: =IF($K13="","",(VLOOKUP($N$27,Worksheet!$A$11:$AE$41,N13+1,FALSE))) ->  | P13: =IF(E13=0,"",'Intermediate 3'!$P$31) ->  | T13: =IF($P13="","",(VLOOKUP($S$27,Worksheet!$A$11:$AE$41,S13+1,FALSE))) ->  | U13: =IF(A13=0,"",'Intermediate 3'!$V$31) ->  | Y13: =IF($U13="","",(VLOOKUP($X$27,Worksheet!$A$11:$AE$41,X13+1,FALSE))) ->  | Z13: =IF(AB13="","",'Intermediate 3'!$AB$28) ->  | AA13: =IF(AB13="","",'Intermediate 3'!$AB$31) ->  | AB13: =IF(A13=0,"",'Intermediate 3'!$AB$32) ->  | AF13: =IF($AB13="","",(VLOOKUP($AE$27,Worksheet!$A$11:$AE$41,AE13+1,FALSE))) -> 
A14: ='Entry Information'!B59 -> 0 | B14: ='Entry Information'!H59 -> 0 | C14: ='Entry Information'!I59 -> 0 | D14: ='Entry Information'!J59 -> 0 | E14: INT | F14: =IF($A14=0,"",'Intermediate 4'!$D$31) ->  | J14: =IF($F14="","",(VLOOKUP($I$27,Worksheet!$A$11:$AE$41,I14+1,FALSE))) ->  | K14: =IF(C14=0,"",'Intermediate 4'!$J$36) ->  | O14: =IF($K14="","",(VLOOKUP($N$27,Worksheet!$A$11:$AE$41,N14+1,FALSE))) ->  | P14: =IF(E14=0,"",'Intermediate 4'!$P$31) ->  | T14: =IF($P14="","",(VLOOKUP($S$27,Worksheet!$A$11:$AE$41,S14+1,FALSE))) ->  | U14: =IF(A14=0,"",'Intermediate 4'!$V$31) ->  | Y14: =IF($U14="","",(VLOOKUP($X$27,Worksheet!$A$11:$AE$41,X14+1,FALSE))) ->  | Z14: =IF(AB14="","",'Intermediate 4'!$AB$28) ->  | AA14: =IF(AB14="","",'Intermediate 4'!$AB$31) ->  | AB14: =IF(A14=0,"",'Intermediate 4'!$AB$32) ->  | AF14: =IF($AB14="","",(VLOOKUP($AE$27,Worksheet!$A$11:$AE$41,AE14+1,FALSE))) -> 
A15: ='Entry Information'!B60 -> 0 | B15: ='Entry Information'!H60 -> 0 | C15: ='Entry Information'!I60 -> 0 | D15: ='Entry Information'!J60 -> 0 | E15: INT | F15: =IF($A15=0,"",'Intermediate 5'!$D$31) ->  | J15: =IF($F15="","",(VLOOKUP($I$27,Worksheet!$A$11:$AE$41,I15+1,FALSE))) ->  | K15: =IF(C15=0,"",'Intermediate 5'!$J$36) ->  | O15: =IF($K15="","",(VLOOKUP($N$27,Worksheet!$A$11:$AE$41,N15+1,FALSE))) ->  | P15: =IF(E15=0,"",'Intermediate 5'!$P$31) ->  | T15: =IF($P15="","",(VLOOKUP($S$27,Worksheet!$A$11:$AE$41,S15+1,FALSE))) ->  | U15: =IF(A15=0,"",'Intermediate 5'!$V$31) ->  | Y15: =IF($U15="","",(VLOOKUP($X$27,Worksheet!$A$11:$AE$41,X15+1,FALSE))) ->  | Z15: =IF(AB15="","",'Intermediate 5'!$AB$28) ->  | AA15: =IF(AB15="","",'Intermediate 5'!$AB$31) ->  | AB15: =IF(A15=0,"",'Intermediate 5'!$AB$32) ->  | AF15: =IF($AB15="","",(VLOOKUP($AE$27,Worksheet!$A$11:$AE$41,AE15+1,FALSE))) -> 
A16: ='Entry Information'!B61 -> 0 | B16: ='Entry Information'!H61 -> 0 | C16: ='Entry Information'!I61 -> 0 | D16: ='Entry Information'!J61 -> 0 | E16: INT | F16: =IF($A16=0,"",'Intermediate 6'!$D$31) ->  | J16: =IF($F16="","",(VLOOKUP($I$27,Worksheet!$A$11:$AE$41,I16+1,FALSE))) ->  | K16: =IF(C16=0,"",'Intermediate 6'!$J$36) ->  | O16: =IF($K16="","",(VLOOKUP($N$27,Worksheet!$A$11:$AE$41,N16+1,FALSE))) ->  | P16: =IF(E16=0,"",'Intermediate 6'!$P$31) ->  | T16: =IF($P16="","",(VLOOKUP($S$27,Worksheet!$A$11:$AE$41,S16+1,FALSE))) ->  | U16: =IF(A16=0,"",'Intermediate 6'!$V$31) ->  | Y16: =IF($U16="","",(VLOOKUP($X$27,Worksheet!$A$11:$AE$41,X16+1,FALSE))) ->  | Z16: =IF(AB16="","",'Intermediate 6'!$AB$28) ->  | AA16: =IF(AB16="","",'Intermediate 6'!$AB$31) ->  | AB16: =IF(A16=0,"",'Intermediate 6'!$AB$32) ->  | AF16: =IF($AB16="","",(VLOOKUP($AE$27,Worksheet!$A$11:$AE$41,AE16+1,FALSE))) -> 
A17: ='Entry Information'!B62 -> 0 | B17: ='Entry Information'!H62 -> 0 | C17: ='Entry Information'!I62 -> 0 | D17: ='Entry Information'!J62 -> 0 | E17: INT | F17: =IF($A17=0,"",'Intermediate 7'!$D$31) ->  | J17: =IF($F17="","",(VLOOKUP($I$27,Worksheet!$A$11:$AE$41,I17+1,FALSE))) ->  | K17: =IF(C17=0,"",'Intermediate 7'!$J$36) ->  | O17: =IF($K17="","",(VLOOKUP($N$27,Worksheet!$A$11:$AE$41,N17+1,FALSE))) ->  | P17: =IF(E17=0,"",'Intermediate 7'!$P$31) ->  | T17: =IF($P17="","",(VLOOKUP($S$27,Worksheet!$A$11:$AE$41,S17+1,FALSE))) ->  | U17: =IF(A17=0,"",'Intermediate 7'!$V$31) ->  | Y17: =IF($U17="","",(VLOOKUP($X$27,Worksheet!$A$11:$AE$41,X17+1,FALSE))) ->  | Z17: =IF(AB17="","",'Intermediate 7'!$AB$28) ->  | AA17: =IF(AB17="","",'Intermediate 7'!$AB$31) ->  | AB17: =IF(A17=0,"",'Intermediate 7'!$AB$32) ->  | AF17: =IF($AB17="","",(VLOOKUP($AE$27,Worksheet!$A$11:$AE$41,AE17+1,FALSE))) -> 
A18: ='Entry Information'!B63 -> 0 | B18: ='Entry Information'!H63 -> 0 | C18: ='Entry Information'!I63 -> 0 | D18: ='Entry Information'!J63 -> 0 | E18: INT | F18: =IF($A18=0,"",'Intermediate 8'!$D$31) ->  | J18: =IF($F18="","",(VLOOKUP($I$27,Worksheet!$A$11:$AE$41,I18+1,FALSE))) ->  | K18: =IF(C18=0,"",'Intermediate 8'!$J$36) ->  | O18: =IF($K18="","",(VLOOKUP($N$27,Worksheet!$A$11:$AE$41,N18+1,FALSE))) ->  | P18: =IF(E18=0,"",'Intermediate 8'!$P$31) ->  | T18: =IF($P18="","",(VLOOKUP($S$27,Worksheet!$A$11:$AE$41,S18+1,FALSE))) ->  | U18: =IF(A18=0,"",'Intermediate 8'!$V$31) ->  | Y18: =IF($U18="","",(VLOOKUP($X$27,Worksheet!$A$11:$AE$41,X18+1,FALSE))) ->  | Z18: =IF(AB18="","",'Intermediate 8'!$AB$28) ->  | AA18: =IF(AB18="","",'Intermediate 8'!$AB$31) ->  | AB18: =IF(A18=0,"",'Intermediate 8'!$AB$32) ->  | AF18: =IF($AB18="","",(VLOOKUP($AE$27,Worksheet!$A$11:$AE$41,AE18+1,FALSE))) -> 
A19: ='Entry Information'!B64 -> 0 | B19: ='Entry Information'!H64 -> 0 | C19: ='Entry Information'!I64 -> 0 | D19: ='Entry Information'!J64 -> 0 | E19: INT | F19: =IF($A19=0,"",'Intermediate 9'!$D$31) ->  | J19: =IF($F19="","",(VLOOKUP($I$27,Worksheet!$A$11:$AE$41,I19+1,FALSE))) ->  | K19: =IF(C19=0,"",'Intermediate 9'!$J$36) ->  | O19: =IF($K19="","",(VLOOKUP($N$27,Worksheet!$A$11:$AE$41,N19+1,FALSE))) ->  | P19: =IF(E19=0,"",'Intermediate 9'!$P$31) ->  | T19: =IF($P19="","",(VLOOKUP($S$27,Worksheet!$A$11:$AE$41,S19+1,FALSE))) ->  | U19: =IF(A19=0,"",'Intermediate 9'!$V$31) ->  | Y19: =IF($U19="","",(VLOOKUP($X$27,Worksheet!$A$11:$AE$41,X19+1,FALSE))) ->  | Z19: =IF(AB19="","",'Intermediate 9'!$AB$28) ->  | AA19: =IF(AB19="","",'Intermediate 9'!$AB$31) ->  | AB19: =IF(A19=0,"",'Intermediate 9'!$AB$32) ->  | AF19: =IF($AB19="","",(VLOOKUP($AE$27,Worksheet!$A$11:$AE$41,AE19+1,FALSE))) -> 
A20: ='Entry Information'!B65 -> 0 | B20: ='Entry Information'!H65 -> 0 | C20: ='Entry Information'!I65 -> 0 | D20: ='Entry Information'!J65 -> 0 | E20: INT | F20: =IF($A20=0,"",'Intermediate 10'!$D$31) ->  | J20: =IF($F20="","",(VLOOKUP($I$27,Worksheet!$A$11:$AE$41,I20+1,FALSE))) ->  | K20: =IF(C20=0,"",'Intermediate 10'!$J36) ->  | O20: =IF($K20="","",(VLOOKUP($N$27,Worksheet!$A$11:$AE$41,N20+1,FALSE))) ->  | P20: =IF(E20=0,"",'Intermediate 10'!$P$31) ->  | T20: =IF($P20="","",(VLOOKUP($S$27,Worksheet!$A$11:$AE$41,S20+1,FALSE))) ->  | U20: =IF(A20=0,"",'Intermediate 10'!$V$31) ->  | Y20: =IF($U20="","",(VLOOKUP($X$27,Worksheet!$A$11:$AE$41,X20+1,FALSE))) ->  | Z20: =IF(AB20="","",'Intermediate 10'!$AB$28) ->  | AA20: =IF(AB20="","",'Intermediate 10'!$AB$31) ->  | AB20: =IF(A20=0,"",'Intermediate 10'!$AB$32) ->  | AF20: =IF($AB20="","",(VLOOKUP($AE$27,Worksheet!$A$11:$AE$41,AE20+1,FALSE))) -> 
A21: ='Entry Information'!B66 -> 0 | B21: ='Entry Information'!H66 -> 0 | C21: ='Entry Information'!I66 -> 0 | D21: ='Entry Information'!J66 -> 0 | E21: INT | F21: =IF($A21=0,"",'Intermediate 11'!$D$31) ->  | J21: =IF($F21="","",(VLOOKUP($I$27,Worksheet!$A$11:$AE$41,I21+1,FALSE))) ->  | K21: =IF(C21=0,"",'Intermediate 11'!$J$36) ->  | O21: =IF($K21="","",(VLOOKUP($N$27,Worksheet!$A$11:$AE$41,N21+1,FALSE))) ->  | P21: =IF(E21=0,"",'Intermediate 11'!$P$31) ->  | T21: =IF($P21="","",(VLOOKUP($S$27,Worksheet!$A$11:$AE$41,S21+1,FALSE))) ->  | U21: =IF(A21=0,"",'Intermediate 11'!$V$31) ->  | Y21: =IF($U21="","",(VLOOKUP($X$27,Worksheet!$A$11:$AE$41,X21+1,FALSE))) ->  | Z21: =IF(AB21="","",'Intermediate 11'!$AB$28) ->  | AA21: =IF(AB21="","",'Intermediate 11'!$AB$31) ->  | AB21: =IF(A21=0,"",'Intermediate 11'!$AB$32) ->  | AF21: =IF($AB21="","",(VLOOKUP($AE$27,Worksheet!$A$11:$AE$41,AE21+1,FALSE))) -> 
A22: ='Entry Information'!B67 -> 0 | B22: ='Entry Information'!H67 -> 0 | C22: ='Entry Information'!I67 -> 0 | D22: ='Entry Information'!J67 -> 0 | E22: INT | F22: =IF($A22=0,"",'Intermediate 12'!$D$31) ->  | J22: =IF($F22="","",(VLOOKUP($I$27,Worksheet!$A$11:$AE$41,I22+1,FALSE))) ->  | K22: =IF(C22=0,"",'Intermediate 12'!$J$36) ->  | O22: =IF($K22="","",(VLOOKUP($N$27,Worksheet!$A$11:$AE$41,N22+1,FALSE))) ->  | P22: =IF(E22=0,"",'Intermediate 12'!$P$31) ->  | T22: =IF($P22="","",(VLOOKUP($S$27,Worksheet!$A$11:$AE$41,S22+1,FALSE))) ->  | U22: =IF($A22=0,"",'Intermediate 12'!$V$31) ->  | Y22: =IF($U22="","",(VLOOKUP($X$27,Worksheet!$A$11:$AE$41,X22+1,FALSE))) ->  | Z22: =IF(AB22="","",'Intermediate 12'!$AB$28) ->  | AA22: =IF(AB22="","",'Intermediate 12'!$AB$31) ->  | AB22: =IF(A22=0,"",'Intermediate 12'!$AB$32) ->  | AF22: =IF($AB22="","",(VLOOKUP($AE$27,Worksheet!$A$11:$AE$41,AE22+1,FALSE))) -> 
A23: ='Entry Information'!B68 -> 0 | B23: ='Entry Information'!H68 -> 0 | C23: ='Entry Information'!I68 -> 0 | D23: ='Entry Information'!J68 -> 0 | E23: INT | F23: =IF($A23=0,"",'Intermediate 13'!$D$31) ->  | J23: =IF($F23="","",(VLOOKUP($I$27,Worksheet!$A$11:$AE$41,I23+1,FALSE))) ->  | K23: =IF(C23=0,"",'Intermediate 13'!$J$36) ->  | O23: =IF($K23="","",(VLOOKUP($N$27,Worksheet!$A$11:$AE$41,N23+1,FALSE))) ->  | P23: =IF(E23=0,"",'Intermediate 13'!$P$31) ->  | T23: =IF($P23="","",(VLOOKUP($S$27,Worksheet!$A$11:$AE$41,S23+1,FALSE))) ->  | U23: =IF(A23=0,"",'Intermediate 13'!$V$31) ->  | Y23: =IF($U23="","",(VLOOKUP($X$27,Worksheet!$A$11:$AE$41,X23+1,FALSE))) ->  | Z23: =IF(AB23="","",'Intermediate 13'!$AB$28) ->  | AA23: =IF(AB23="","",'Intermediate 13'!$AB$31) ->  | AB23: =IF(A23=0,"",'Intermediate 13'!$AB$32) ->  | AF23: =IF($AB23="","",(VLOOKUP($AE$27,Worksheet!$A$11:$AE$41,AE23+1,FALSE))) -> 
A24: ='Entry Information'!B69 -> 0 | B24: ='Entry Information'!H69 -> 0 | C24: ='Entry Information'!I69 -> 0 | D24: ='Entry Information'!J69 -> 0 | E24: INT | F24: =IF($A24=0,"",'Intermediate 14'!$D$31) ->  | J24: =IF($F24="","",(VLOOKUP($I$27,Worksheet!$A$11:$AE$41,I24+1,FALSE))) ->  | K24: =IF(C24=0,"",'Intermediate 14'!$J$36) ->  | O24: =IF($K24="","",(VLOOKUP($N$27,Worksheet!$A$11:$AE$41,N24+1,FALSE))) ->  | P24: =IF(E24=0,"",'Intermediate 14'!$P$31) ->  | T24: =IF($P24="","",(VLOOKUP($S$27,Worksheet!$A$11:$AE$41,S24+1,FALSE))) ->  | U24: =IF(A24=0,"",'Intermediate 14'!$V$31) ->  | Y24: =IF($U24="","",(VLOOKUP($X$27,Worksheet!$A$11:$AE$41,X24+1,FALSE))) ->  | Z24: =IF(AB24="","",'Intermediate 14'!$AB$28) ->  | AA24: =IF(AB24="","",'Intermediate 14'!$AB$31) ->  | AB24: =IF(A24=0,"",'Intermediate 14'!$AB$32) ->  | AF24: =IF($AB24="","",(VLOOKUP($AE$27,Worksheet!$A$11:$AE$41,AE24+1,FALSE))) -> 
A25: ='Entry Information'!B70 -> 0 | B25: ='Entry Information'!H70 -> 0 | C25: ='Entry Information'!I70 -> 0 | D25: ='Entry Information'!J70 -> 0 | E25: INT | F25: =IF($A25=0,"",'Intermediate 15'!$D$31) ->  | J25: =IF($F25="","",(VLOOKUP($I$27,Worksheet!$A$11:$AE$41,I25+1,FALSE))) ->  | K25: =IF(C25=0,"",'Intermediate 15'!$J$36) ->  | O25: =IF($K25="","",(VLOOKUP($N$27,Worksheet!$A$11:$AE$41,N25+1,FALSE))) ->  | P25: =IF(E25=0,"",'Intermediate 15'!$P$31) ->  | T25: =IF($P25="","",(VLOOKUP($S$27,Worksheet!$A$11:$AE$41,S25+1,FALSE))) ->  | U25: =IF(A25=0,"",'Intermediate 15'!$V$31) ->  | Y25: =IF($U25="","",(VLOOKUP($X$27,Worksheet!$A$11:$AE$41,X25+1,FALSE))) ->  | Z25: =IF(AB25="","",'Intermediate 15'!$AB$28) ->  | AA25: =IF(AB25="","",'Intermediate 15'!$AB$31) ->  | AB25: =IF(A25=0,"",'Intermediate 15'!$AB$32) ->  | AF25: =IF($AB25="","",(VLOOKUP($AE$27,Worksheet!$A$11:$AE$41,AE25+1,FALSE))) -> 
I27: =COUNTIF(I11:I25,">=0") -> 1 | N27: =COUNTIF(N11:N25,">=0") -> 1 | S27: =COUNTIF(S11:S25,">=0") -> 1 | X27: =COUNTIF(X11:X25,">=0") -> 1 | AD27: =IF(AC27="",AB27,(AB27+(AC27*0.001))) -> 0 | AE27: =COUNTIF(AE11:AE25,">=0") -> 1
D28: Tie Breakers = | F28: 1 - Extended Trot | K28: 1 - Roping Cow | P28: 1 - Penning | U28: 1 - Drag log | Z28: 1- Structural Correctness | AG28: Working Ranch Score
F29: 2 - Transition down lope/walk/stop | K29: 2 - Box Cow | P29: 2 - Working Center of arena | U29: 2 - Ground tie/bridle/pick-up legs | Z29: 2 - Balance | AG29: and then use WR Tie-Breakers
F30: 3 - Transition to lope/lope | K30: 3 - First Lead Change | P30: 3 -Cut from Herd | U30: 3 - Gate | Z30: 3 - Ranch Cutting
K31: 4 - Spin

Sheet ADVANCED RESULTS (2)
E2: Event Name: | I2: ='Entry Information'!H4 -> The Horse First Farm, Brooklyn, WI | S2: Judges Name: | U2: ='Entry Information'!K4 -> Dave Currin | AB2: Classes Judged? | AF2: ='Entry Information'!O4 -> CN, RR, RT
A3: Division: | B3: ADVANCED | E3: Event Date: | I3: ='Entry Information'!H5 -> June 28-29,2014 | S3: Judges Name: | U3: ='Entry Information'!K5 -> Jeff Barnes | AB3: Classes Judged? | AF3: ='Entry Information'!O5 -> WR, RC
A5: 1 | B5: 2 | C5: 3 | D5: 4 | E5: 5 | F5: 6 | I5: 7 | J5: 8 | K5: 9 | N5: 10 | O5: 11 | P5: 12 | S5: 13 | T5: 14 | U5: 15 | X5: 16 | Y5: 17 | AA5: 19 | AB5: 20 | AE5: 21 | AF5: 22 | AG5: 23 | AJ5: 24 | AK5: 25
F6: Ranch | K6: Working | P6: Ranch | U6: Ranch | AA6: Ranch | AG6: Total | AI6: Adjusted | AJ6: Event | AK6: Event
F7: Riding | K7: Ranch | P7: Cutting | U7: Trail | AA7: Conformation | AG7: Placement | AH7: Tie | AI7: Placement | AJ7: All | AK7: Total
F8: Score | G8: Tie | H8: Adjusted | I8: Place | J8: Place- | K8: Score | L8: Tie | M8: Adjusted | N8: Place | O8: Place- | P8: Score | Q8: Tie | R8: Adjusted | S8: Place | T8: Place- | U8: Score | V8: Tie | W8: Adjusted | X8: Place | Y8: Place- | Z8: Judges | AA8: Function | AB8: TOTAL | AC8: Tie | AD8: Adjusted | AE8: Place | AF8: Place- | AG8: Points | AH8: Breaker | AI8: Points | AJ8: Around | AK8: Score
G9: Breaker | H9: Score | J9: ment | L9: Breaker | M9: Score | O9: ment | Q9: Breaker | R9: Score | T9: ment | V9: Breaker | W9: Score | Y9: ment | Z9: Score | AA9: Score | AB9: SCORE | AC9: Breaker | AD9: Score | AF9: ment
A10: Back No. | B10: Last Name | C10: First Name | D10: Registered Horse Name | E10: Division | J10: Points | O10: Points | T10: Points | Y10: Points | AF10: Points
A11: ='Entry Information'!B71 -> 5 | B11: ='Entry Information'!H71 -> Henderson | C11: ='Entry Information'!I71 -> Vicky | D11: ='Entry Information'!J71 -> Tatanka | E11: ADV | F11: =IF($A11=0,"",'Advanced 1'!$D$31) -> 80.2 | H11: =IF(G11="",F11,(F11+(G11*0.001))) -> 80.2 | I11: =IF(H11="","",(RANK(H11,$H$11:$H$25,0))) -> 2 | J11: =IF($F11="","",(VLOOKUP($I$27,Worksheet!$A$11:$AE$41,I11+1,FALSE))) -> 0 | K11: =IF(C11=0,"",'Advanced 1'!$J$36) -> 60.8 | M11: =IF(L11="",K11,(K11+(L11*0.001))) -> 60.8 | N11: =IF(M11="","",(RANK(M11,$M$11:$M$25,0))) -> 1 | O11: =IF($K11="","",(VLOOKUP($N$27,Worksheet!$A$11:$AE$41,N11+1,FALSE))) -> 1 | P11: =IF(A11=0,"",'Advanced 1'!$P$31) -> 63 | R11: =IF(Q11="",P11,(P11+(Q11*0.001))) -> 63 | S11: =IF(R11="","",(RANK(R11,$R$11:$R$25,0))) -> 2 | T11: =IF($P11="","",(VLOOKUP($S$27,Worksheet!$A$11:$AE$41,S11+1,FALSE))) -> 0 | U11: =IF(A11=0,"",'Advanced 1'!$V$31) -> 89 | W11: =IF(V11="",U11,(U11+(V11*0.001))) -> 89 | X11: =IF(W11="","",(RANK(W11,$W$11:$W$25,0))) -> 2 | Y11: =IF($U11="","",(VLOOKUP($X$27,Worksheet!$A$11:$AE$41,X11+1,FALSE))) -> 0 | Z11: =IF(AB11="","",'Advanced 1'!$AB$28) -> 39.36 | AA11: =IF(AB11="","",'Advanced 1'!$AB$31) -> 29.3 | AB11: =IF(A11=0,"",'Advanced 1'!$AB$32) -> 68.66 | AD11: =IF(AC11="",AB11,(AB11+(AC11*0.001))) -> 68.66 | AE11: =IF(AD11="","",(RANK(AD11,$AD$11:$AD$25,0))) -> 2 | AF11: =IF($AB11="","",(VLOOKUP($AE$27,Worksheet!$A$11:$AE$41,AE11+1,FALSE))) -> 0 | AG11: =IF(A11=0,"",(SUM($J11,$O11,$T11,$Y11,$AF11))) -> 1 | AI11: =IF(AH11="",AG11,(AG11+(AH11*0.001))) -> 1 | AJ11: =IF(AI11="","",(RANK(AI11,$AI$11:$AI$25,0))) -> 2 | AK11: =IF(A11=0,"",(SUM(F11,K11,P11,U11,AB11))) -> 361.66
A12: ='Entry Information'!B72 -> 3 | B12: ='Entry Information'!H72 -> Johnsen | C12: ='Entry Information'!I72 -> Shelley | D12: ='Entry Information'!J72 -> Unbranded | E12: ADV | F12: =IF($A12=0,"",'Advanced 2'!$D$31) -> 80.5 | H12: =IF(G12="",F12,(F12+(G12*0.001))) -> 80.5 | I12: 1 | J12: =IF($F12="","",(VLOOKUP($I$27,Worksheet!$A$11:$AE$41,I12+1,FALSE))) -> 1 | K12: =IF(C12=0,"",'Advanced 2'!$J$36) -> 48.9 | M12: =IF(L12="",K12,(K12+(L12*0.001))) -> 48.9 | N12: 2 | O12: =IF($K12="","",(VLOOKUP($N$27,Worksheet!$A$11:$AE$41,N12+1,FALSE))) -> 0 | P12: =IF(A12=0,"",'Advanced 2'!$P$31) -> 75 | R12: =IF(Q12="",P12,(P12+(Q12*0.001))) -> 75 | S12: 1 | T12: =IF($P12="","",(VLOOKUP($S$27,Worksheet!$A$11:$AE$41,S12+1,FALSE))) -> 1 | U12: =IF(A12=0,"",'Advanced 2'!$V$31) -> 90.5 | W12: =IF(V12="",U12,(U12+(V12*0.001))) -> 90.5 | X12: 1 | Y12: =IF($U12="","",(VLOOKUP($X$27,Worksheet!$A$11:$AE$41,X12+1,FALSE))) -> 1 | Z12: =IF(AB12="","",'Advanced 2'!$AB$28) -> 52.23 | AA12: =IF(AB12="","",'Advanced 2'!$AB$31) -> 29.49 | AB12: =IF(A12=0,"",'Advanced 2'!$AB$32) -> 81.72 | AD12: 81.72 | AE12: 1 | AF12: =IF($AB12="","",(VLOOKUP($AE$27,Worksheet!$A$11:$AE$41,AE12+1,FALSE))) -> 1 | AG12: 4 | AI12: =IF(AH12="",AG12,(AG12+(AH12*0.001))) -> 4 | AJ12: 1 | AK12: 376.62
A13: ='Entry Information'!B73 -> 0 | B13: ='Entry Information'!H73 -> 0 | C13: ='Entry Information'!I73 -> 0 | D13: ='Entry Information'!J73 -> 0 | E13: ADV | F13: =IF($A13=0,"",'Advanced 3'!$D$31) ->  | J13: =IF($F13="","",(VLOOKUP($I$27,Worksheet!$A$11:$AE$41,I13+1,FALSE))) ->  | K13: =IF(C13=0,"",'Advanced 3'!$J$36) ->  | O13: =IF($K13="","",(VLOOKUP($N$27,Worksheet!$A$11:$AE$41,N13+1,FALSE))) ->  | P13: =IF(A13=0,"",'Advanced 3'!$P$31) ->  | T13: =IF($P13="","",(VLOOKUP($S$27,Worksheet!$A$11:$AE$41,S13+1,FALSE))) ->  | U13: =IF(A13=0,"",'Advanced 3'!$V$31) ->  | Y13: =IF($U13="","",(VLOOKUP($X$27,Worksheet!$A$11:$AE$41,X13+1,FALSE))) ->  | Z13: =IF(AB13="","",'Advanced 3'!$AB$28) ->  | AA13: =IF(AB13="","",'Advanced 3'!$AB$31) ->  | AB13: =IF(A13=0,"",'Advanced 3'!$AB$32) ->  | AF13: =IF($AB13="","",(VLOOKUP($AE$27,Worksheet!$A$11:$AE$41,AE13+1,FALSE))) -> 
A14: ='Entry Information'!B74 -> 0 | B14: ='Entry Information'!H74 -> 0 | C14: ='Entry Information'!I74 -> 0 | D14: ='Entry Information'!J74 -> 0 | E14: ADV | F14: =IF($A14=0,"",'Advanced 4'!$D$31) ->  | J14: =IF($F14="","",(VLOOKUP($I$27,Worksheet!$A$11:$AE$41,I14+1,FALSE))) ->  | K14: =IF(C14=0,"",'Advanced 4'!$J$36) ->  | O14: =IF($K14="","",(VLOOKUP($N$27,Worksheet!$A$11:$AE$41,N14+1,FALSE))) ->  | P14: =IF(A14=0,"",'Advanced 4'!$P$31) ->  | T14: =IF($P14="","",(VLOOKUP($S$27,Worksheet!$A$11:$AE$41,S14+1,FALSE))) ->  | U14: =IF(A14=0,"",'Advanced 4'!$V$31) ->  | Y14: =IF($U14="","",(VLOOKUP($X$27,Worksheet!$A$11:$AE$41,X14+1,FALSE))) ->  | Z14: =IF(AB14="","",'Advanced 4'!$AB$28) ->  | AA14: =IF(AB14="","",'Advanced 4'!$AB$31) ->  | AB14: =IF(A14=0,"",'Advanced 4'!$AB$32) ->  | AF14: =IF($AB14="","",(VLOOKUP($AE$27,Worksheet!$A$11:$AE$41,AE14+1,FALSE))) -> 
A15: ='Entry Information'!B75 -> 0 | B15: ='Entry Information'!H75 -> 0 | C15: ='Entry Information'!I75 -> 0 | D15: ='Entry Information'!J75 -> 0 | E15: ADV | F15: =IF($A15=0,"",'Advanced 5'!$D$31) ->  | J15: =IF($F15="","",(VLOOKUP($I$27,Worksheet!$A$11:$AE$41,I15+1,FALSE))) ->  | K15: =IF(C15=0,"",'Advanced 5'!$J$36) ->  | O15: =IF($K15="","",(VLOOKUP($N$27,Worksheet!$A$11:$AE$41,N15+1,FALSE))) ->  | P15: =IF(A15=0,"",'Advanced 5'!$P$31) ->  | T15: =IF($P15="","",(VLOOKUP($S$27,Worksheet!$A$11:$AE$41,S15+1,FALSE))) ->  | U15: =IF(A15=0,"",'Advanced 5'!$V$31) ->  | Y15: =IF($U15="","",(VLOOKUP($X$27,Worksheet!$A$11:$AE$41,X15+1,FALSE))) ->  | Z15: =IF(AB15="","",'Advanced 5'!$AB$28) ->  | AA15: =IF(AB15="","",'Advanced 5'!$AB$31) ->  | AB15: =IF(A15=0,"",'Advanced 5'!$AB$32) ->  | AF15: =IF($AB15="","",(VLOOKUP($AE$27,Worksheet!$A$11:$AE$41,AE15+1,FALSE))) -> 
A16: ='Entry Information'!B76 -> 0 | B16: ='Entry Information'!H76 -> 0 | C16: ='Entry Information'!I76 -> 0 | D16: ='Entry Information'!J76 -> 0 | E16: ADV | F16: =IF($A16=0,"",'Advanced 6'!$D$31) ->  | J16: =IF($F16="","",(VLOOKUP($I$27,Worksheet!$A$11:$AE$41,I16+1,FALSE))) ->  | K16: =IF(C16=0,"",'Advanced 6'!$J$36) ->  | O16: =IF($K16="","",(VLOOKUP($N$27,Worksheet!$A$11:$AE$41,N16+1,FALSE))) ->  | P16: =IF(A16=0,"",'Advanced 6'!$P$31) ->  | T16: =IF($P16="","",(VLOOKUP($S$27,Worksheet!$A$11:$AE$41,S16+1,FALSE))) ->  | U16: =IF(A16=0,"",'Advanced 6'!$V$31) ->  | Y16: =IF($U16="","",(VLOOKUP($X$27,Worksheet!$A$11:$AE$41,X16+1,FALSE))) ->  | Z16: =IF(AB16="","",'Advanced 6'!$AB$28) ->  | AA16: =IF(AB16="","",'Advanced 6'!$AB$31) ->  | AB16: =IF(A16=0,"",'Advanced 6'!$AB$32) ->  | AF16: =IF($AB16="","",(VLOOKUP($AE$27,Worksheet!$A$11:$AE$41,AE16+1,FALSE))) -> 
A17: ='Entry Information'!B77 -> 0 | B17: ='Entry Information'!H77 -> 0 | C17: ='Entry Information'!I77 -> 0 | D17: ='Entry Information'!J77 -> 0 | E17: ADV | F17: =IF($A17=0,"",'Advanced 7'!$D$31) ->  | J17: =IF($F17="","",(VLOOKUP($I$27,Worksheet!$A$11:$AE$41,I17+1,FALSE))) ->  | K17: =IF(C17=0,"",'Advanced 7'!$J$36) ->  | O17: =IF($K17="","",(VLOOKUP($N$27,Worksheet!$A$11:$AE$41,N17+1,FALSE))) ->  | P17: =IF(A17=0,"",'Advanced 7'!$P$31) ->  | T17: =IF($P17="","",(VLOOKUP($S$27,Worksheet!$A$11:$AE$41,S17+1,FALSE))) ->  | U17: =IF(A17=0,"",'Advanced 7'!$V$31) ->  | Y17: =IF($U17="","",(VLOOKUP($X$27,Worksheet!$A$11:$AE$41,X17+1,FALSE))) ->  | Z17: =IF(AB17="","",'Advanced 7'!$AB$28) ->  | AA17: =IF(AB17="","",'Advanced 7'!$AB$31) ->  | AB17: =IF(A17=0,"",'Advanced 7'!$AB$32) ->  | AF17: =IF($AB17="","",(VLOOKUP($AE$27,Worksheet!$A$11:$AE$41,AE17+1,FALSE))) -> 
A18: ='Entry Information'!B78 -> 0 | B18: ='Entry Information'!H78 -> 0 | C18: ='Entry Information'!I78 -> 0 | D18: ='Entry Information'!J78 -> 0 | E18: ADV | F18: =IF($A18=0,"",'Advanced 8'!$D$31) ->  | J18: =IF($F18="","",(VLOOKUP($I$27,Worksheet!$A$11:$AE$41,I18+1,FALSE))) ->  | K18: =IF(C18=0,"",'Advanced 8'!$J$36) ->  | O18: =IF($K18="","",(VLOOKUP($N$27,Worksheet!$A$11:$AE$41,N18+1,FALSE))) ->  | P18: =IF(A18=0,"",'Advanced 8'!$P$31) ->  | T18: =IF($P18="","",(VLOOKUP($S$27,Worksheet!$A$11:$AE$41,S18+1,FALSE))) ->  | U18: =IF(A18=0,"",'Advanced 8'!$V$31) ->  | Y18: =IF($U18="","",(VLOOKUP($X$27,Worksheet!$A$11:$AE$41,X18+1,FALSE))) ->  | Z18: =IF(AB18="","",'Advanced 8'!$AB$28) ->  | AA18: =IF(AB18="","",'Advanced 8'!$AB$31) ->  | AB18: =IF(A18=0,"",'Advanced 8'!$AB$32) ->  | AF18: =IF($AB18="","",(VLOOKUP($AE$27,Worksheet!$A$11:$AE$41,AE18+1,FALSE))) -> 
A19: ='Entry Information'!B79 -> 0 | B19: ='Entry Information'!H79 -> 0 | C19: ='Entry Information'!I79 -> 0 | D19: ='Entry Information'!J79 -> 0 | E19: ADV | F19: =IF($A19=0,"",'Advanced 9'!$D$31) ->  | J19: =IF($F19="","",(VLOOKUP($I$27,Worksheet!$A$11:$AE$41,I19+1,FALSE))) ->  | K19: =IF(C19=0,"",'Advanced 9'!$J$36) ->  | O19: =IF($K19="","",(VLOOKUP($N$27,Worksheet!$A$11:$AE$41,N19+1,FALSE))) ->  | P19: =IF(A19=0,"",'Advanced 9'!$P$31) ->  | T19: =IF($P19="","",(VLOOKUP($S$27,Worksheet!$A$11:$AE$41,S19+1,FALSE))) ->  | U19: =IF(A19=0,"",'Advanced 9'!$V$31) ->  | Y19: =IF($U19="","",(VLOOKUP($X$27,Worksheet!$A$11:$AE$41,X19+1,FALSE))) ->  | Z19: =IF(AB19="","",'Advanced 9'!$AB$28) ->  | AA19: =IF(AB19="","",'Advanced 9'!$AB$31) ->  | AB19: =IF(A19=0,"",'Advanced 9'!$AB$32) ->  | AF19: =IF($AB19="","",(VLOOKUP($AE$27,Worksheet!$A$11:$AE$41,AE19+1,FALSE))) -> 
A20: ='Entry Information'!B80 -> 0 | B20: ='Entry Information'!H80 -> 0 | C20: ='Entry Information'!I80 -> 0 | D20: ='Entry Information'!J80 -> 0 | E20: ADV | F20: =IF($A20=0,"",'Advanced 10'!$D$31) ->  | J20: =IF($F20="","",(VLOOKUP($I$27,Worksheet!$A$11:$AE$41,I20+1,FALSE))) ->  | K20: =IF(C20=0,"",'Advanced 10'!$J36) ->  | O20: =IF($K20="","",(VLOOKUP($N$27,Worksheet!$A$11:$AE$41,N20+1,FALSE))) ->  | P20: =IF(A20=0,"",'Advanced 10'!$P$31) ->  | T20: =IF($P20="","",(VLOOKUP($S$27,Worksheet!$A$11:$AE$41,S20+1,FALSE))) ->  | U20: =IF(A20=0,"",'Advanced 10'!$V$31) ->  | Y20: =IF($U20="","",(VLOOKUP($X$27,Worksheet!$A$11:$AE$41,X20+1,FALSE))) ->  | Z20: =IF(AB20="","",'Advanced 10'!$AB$28) ->  | AA20: =IF(AB20="","",'Advanced 10'!$AB$31) ->  | AB20: =IF(A20=0,"",'Advanced 10'!$AB$32) ->  | AF20: =IF($AB20="","",(VLOOKUP($AE$27,Worksheet!$A$11:$AE$41,AE20+1,FALSE))) -> 
A21: ='Entry Information'!B81 -> 0 | B21: ='Entry Information'!H81 -> 0 | C21: ='Entry Information'!I81 -> 0 | D21: ='Entry Information'!J81 -> 0 | E21: ADV | F21: =IF($A21=0,"",'Advanced 11'!$D$31) ->  | J21: =IF($F21="","",(VLOOKUP($I$27,Worksheet!$A$11:$AE$41,I21+1,FALSE))) ->  | K21: =IF(C21=0,"",'Advanced 11'!$J$36) ->  | O21: =IF($K21="","",(VLOOKUP($N$27,Worksheet!$A$11:$AE$41,N21+1,FALSE))) ->  | P21: =IF(A21=0,"",'Advanced 11'!$P$31) ->  | T21: =IF($P21="","",(VLOOKUP($S$27,Worksheet!$A$11:$AE$41,S21+1,FALSE))) ->  | U21: =IF(A21=0,"",'Advanced 11'!$V$31) ->  | Y21: =IF($U21="","",(VLOOKUP($X$27,Worksheet!$A$11:$AE$41,X21+1,FALSE))) ->  | Z21: =IF(AB21="","",'Advanced 11'!$AB$28) ->  | AA21: =IF(AB21="","",'Advanced 11'!$AB$31) ->  | AB21: =IF(A21=0,"",'Advanced 11'!$AB$32) ->  | AF21: =IF($AB21="","",(VLOOKUP($AE$27,Worksheet!$A$11:$AE$41,AE21+1,FALSE))) -> 
A22: ='Entry Information'!B82 -> 0 | B22: ='Entry Information'!H82 -> 0 | C22: ='Entry Information'!I82 -> 0 | D22: ='Entry Information'!J82 -> 0 | E22: ADV | F22: =IF($A22=0,"",'Advanced 12'!$D$31) ->  | J22: =IF($F22="","",(VLOOKUP($I$27,Worksheet!$A$11:$AE$41,I22+1,FALSE))) ->  | K22: =IF(C22=0,"",'Advanced 12'!$J$36) ->  | O22: =IF($K22="","",(VLOOKUP($N$27,Worksheet!$A$11:$AE$41,N22+1,FALSE))) ->  | P22: =IF(A22=0,"",'Advanced 12'!$P$31) ->  | T22: =IF($P22="","",(VLOOKUP($S$27,Worksheet!$A$11:$AE$41,S22+1,FALSE))) ->  | U22: =IF($A22=0,"",'Advanced 12'!$V$31) ->  | Y22: =IF($U22="","",(VLOOKUP($X$27,Worksheet!$A$11:$AE$41,X22+1,FALSE))) ->  | Z22: =IF(AB22="","",'Advanced 12'!$AB$28) ->  | AA22: =IF(AB22="","",'Advanced 12'!$AB$31) ->  | AB22: =IF(A22=0,"",'Advanced 12'!$AB$32) ->  | AF22: =IF($AB22="","",(VLOOKUP($AE$27,Worksheet!$A$11:$AE$41,AE22+1,FALSE))) -> 
A23: ='Entry Information'!B83 -> 0 | B23: ='Entry Information'!H83 -> 0 | C23: ='Entry Information'!I83 -> 0 | D23: ='Entry Information'!J83 -> 0 | E23: ADV | F23: =IF($A23=0,"",'Advanced 13'!$D$31) ->  | J23: =IF($F23="","",(VLOOKUP($I$27,Worksheet!$A$11:$AE$41,I23+1,FALSE))) ->  | K23: =IF(C23=0,"",'Advanced 13'!$J$36) ->  | O23: =IF($K23="","",(VLOOKUP($N$27,Worksheet!$A$11:$AE$41,N23+1,FALSE))) ->  | P23: =IF(A23=0,"",'Advanced 13'!$P$31) ->  | T23: =IF($P23="","",(VLOOKUP($S$27,Worksheet!$A$11:$AE$41,S23+1,FALSE))) ->  | U23: =IF(A23=0,"",'Advanced 13'!$V$31) ->  | Y23: =IF($U23="","",(VLOOKUP($X$27,Worksheet!$A$11:$AE$41,X23+1,FALSE))) ->  | Z23: =IF(AB23="","",'Advanced 13'!$AB$28) ->  | AA23: =IF(AB23="","",'Advanced 13'!$AB$31) ->  | AB23: =IF(A23=0,"",'Advanced 13'!$AB$32) ->  | AF23: =IF($AB23="","",(VLOOKUP($AE$27,Worksheet!$A$11:$AE$41,AE23+1,FALSE))) -> 
A24: ='Entry Information'!B84 -> 0 | B24: ='Entry Information'!H84 -> 0 | C24: ='Entry Information'!I84 -> 0 | D24: ='Entry Information'!J84 -> 0 | E24: ADV | F24: =IF($A24=0,"",'Advanced 14'!$D$31) ->  | J24: =IF($F24="","",(VLOOKUP($I$27,Worksheet!$A$11:$AE$41,I24+1,FALSE))) ->  | K24: =IF(C24=0,"",'Advanced 14'!$J$36) ->  | O24: =IF($K24="","",(VLOOKUP($N$27,Worksheet!$A$11:$AE$41,N24+1,FALSE))) ->  | P24: =IF(A24=0,"",'Advanced 14'!$P$31) ->  | T24: =IF($P24="","",(VLOOKUP($S$27,Worksheet!$A$11:$AE$41,S24+1,FALSE))) ->  | U24: =IF(A24=0,"",'Advanced 14'!$V$31) ->  | Y24: =IF($U24="","",(VLOOKUP($X$27,Worksheet!$A$11:$AE$41,X24+1,FALSE))) ->  | Z24: =IF(AB24="","",'Advanced 14'!$AB$28) ->  | AA24: =IF(AB24="","",'Advanced 14'!$AB$31) ->  | AB24: =IF(A24=0,"",'Advanced 14'!$AB$32) ->  | AF24: =IF($AB24="","",(VLOOKUP($AE$27,Worksheet!$A$11:$AE$41,AE24+1,FALSE))) -> 
A25: ='Entry Information'!B85 -> 0 | B25: ='Entry Information'!H85 -> 0 | C25: ='Entry Information'!I85 -> 0 | D25: ='Entry Information'!J85 -> 0 | E25: ADV | F25: =IF($A25=0,"",'Advanced 15'!$D$31) ->  | J25: =IF($F25="","",(VLOOKUP($I$27,Worksheet!$A$11:$AE$41,I25+1,FALSE))) ->  | K25: =IF(C25=0,"",'Advanced 15'!$J$36) ->  | O25: =IF($K25="","",(VLOOKUP($N$27,Worksheet!$A$11:$AE$41,N25+1,FALSE))) ->  | P25: =IF(A25=0,"",'Advanced 15'!$P$31) ->  | T25: =IF($P25="","",(VLOOKUP($S$27,Worksheet!$A$11:$AE$41,S25+1,FALSE))) ->  | U25: =IF(A25=0,"",'Advanced 15'!$V$31) ->  | Y25: =IF($U25="","",(VLOOKUP($X$27,Worksheet!$A$11:$AE$41,X25+1,FALSE))) ->  | Z25: =IF(AB25="","",'Advanced 15'!$AB$28) ->  | AA25: =IF(AB25="","",'Advanced 15'!$AB$31) ->  | AB25: =IF(A25=0,"",'Advanced 15'!$AB$32) ->  | AF25: =IF($AB25="","",(VLOOKUP($AE$27,Worksheet!$A$11:$AE$41,AE25+1,FALSE))) -> 
H27: =IF(G27="",F27,(F27+(G27*0.001))) -> 0 | I27: =COUNTIF(I11:I25,">=0") -> 2 | N27: =COUNTIF(N11:N25,">=0") -> 2 | S27: =COUNTIF(S11:S25,">=0") -> 2 | X27: =COUNTIF(X11:X25,">=0") -> 2 | AD27: =IF(AC27="",AB27,(AB27+(AC27*0.001))) -> 0 | AE27: =COUNTIF(AE11:AE25,">=0") -> 2
D28: Tie Breakers = | F28: 1 - Extended Trot | K28: 1 - Roping Cow | P28: 1 - Penning | U28: 1 - Drag log | Z28: 1- Structural Correctness | AG28: Working Ranch Score
F29: 2 - Transition down lope/walk/stop | K29: 2 - Box Cow | P29: 2 - Working Center of arena | U29: 2 - Ground tie/bridle/pick-up legs | Z29: 2 - Balance | AG29: and then use WR Tie-Breakers
F30: 3 - Transition to lope/lope | K30: 3 - First Lead Change | P30: 3 -Cut from Herd | U30: 3 - Gate | Z30: 3 - Ranch Cutting
K31: 4 - Spin

Sheet OPEN RESULTS (2)
E2: Event Name: | I2: ='Entry Information'!H4 -> The Horse First Farm, Brooklyn, WI | S2: Judges Name: | U2: ='Entry Information'!K4 -> Dave Currin | AB2: Classes Judged? | AF2: ='Entry Information'!O4 -> CN, RR, RT
A3: Division: | B3: OPEN | E3: Event Date: | I3: ='Entry Information'!H5 -> June 28-29,2014 | S3: Judges Name: | U3: ='Entry Information'!K5 -> Jeff Barnes | AB3: Classes Judged? | AF3: ='Entry Information'!O5 -> WR, RC
A5: 1 | B5: 2 | C5: 3 | D5: 4 | E5: 5 | F5: 6 | G5: 7 | I5: 8 | J5: 9 | K5: 10 | L5: 11 | N5: 12 | O5: 13 | P5: 14 | Q5: 15 | S5: 16 | T5: 17 | U5: 18 | V5: 19 | X5: 20 | Y5: 21 | Z5: 22 | AA5: 23 | AB5: 24 | AC5: 25 | AE5: 26 | AF5: 27 | AG5: 28 | AH5: 29 | AJ5: 30 | AK5: 31
F6: Ranch | K6: Working | P6: Ranch | U6: Ranch | AA6: Ranch | AG6: Total | AI6: Adjusted | AJ6: Event | AK6: Event
F7: Riding | K7: Ranch | P7: Cutting | U7: Trail | AA7: Conformation | AG7: Placement | AH7: Tie | AI7: Placement | AJ7: All | AK7: Total
F8: Score | G8: Tie | H8: Adjusted | I8: Place | J8: Place- | K8: Score | L8: Tie | M8: Adjusted | N8: Place | O8: Place- | P8: Score | Q8: Tie | R8: Adjusted | S8: Place | T8: Place- | U8: Score | V8: Tie | W8: Adjusted | X8: Place | Y8: Place- | Z8: Judges | AA8: Function | AB8: TOTAL | AC8: Tie | AD8: Adjusted | AE8: Place | AF8: Place- | AG8: Points | AH8: Breaker | AI8: Points | AJ8: Around | AK8: Score
G9: Breaker | H9: Score | J9: ment | L9: Breaker | M9: Score | O9: ment | Q9: Breaker | R9: Score | T9: ment | V9: Breaker | W9: Score | Y9: ment | Z9: Score | AA9: Score | AB9: SCORE | AC9: Breaker | AD9: Score | AF9: ment
A10: Back No. | B10: Last Name | C10: First Name | D10: Registered Horse Name | E10: Division | J10: Points | O10: Points | T10: Points | Y10: Points | AF10: Points
A11: ='Entry Information'!B86 -> 45 | B11: ='Entry Information'!H86 -> Dunn | C11: ='Entry Information'!I86 -> Maureen | D11: ='Entry Information'!J86 -> AR Sannabella Check | E11: OPEN | F11: =IF($A11=0,"",'Open 1'!$D$31) -> 56.6 | H11: =IF(G11="",F11,(F11+(G11*0.001))) -> 56.6 | I11: =IF(H11="","",(RANK(H11,$H$11:$H$25,0))) -> 2 | J11: =IF($F11="","",(VLOOKUP($I$27,Worksheet!$A$11:$AE$41,I11+1,FALSE))) -> 1 | K11: =IF(C11=0,"",'Open 1'!$J$36) -> 19.5 | M11: =IF(L11="",K11,(K11+(L11*0.001))) -> 19.5 | N11: =IF(M11="","",(RANK(M11,$M$11:$M$25,0))) -> 2 | O11: =IF($K11="","",(VLOOKUP($N$27,Worksheet!$A$11:$AE$41,N11+1,FALSE))) -> 1 | P11: =IF(A11=0,"",'Open 1'!$P$31) -> 20 | R11: =IF(Q11="",P11,(P11+(Q11*0.001))) -> 20 | S11: =IF(R11="","",(RANK(R11,$R$11:$R$25,0))) -> 3 | T11: =IF($P11="","",(VLOOKUP($S$27,Worksheet!$A$11:$AE$41,S11+1,FALSE))) -> 0 | U11: =IF(A11=0,"",'Open 1'!$V$31) -> 52.5 | W11: =IF(V11="",U11,(U11+(V11*0.001))) -> 52.5 | X11: =IF(W11="","",(RANK(W11,$W$11:$W$25,0))) -> 3 | Y11: =IF($U11="","",(VLOOKUP($X$27,Worksheet!$A$11:$AE$41,X11+1,FALSE))) -> 0 | Z11: =IF(AB11="","",'Open 1'!$AB$28) -> 42.33 | AA11: =IF(AB11="","",'Open 1'!$AB$31) -> 14.86 | AB11: =IF(A11=0,"",'Open 1'!$AB$32) -> 57.19 | AD11: =IF(AC11="",AB11,(AB11+(AC11*0.001))) -> 57.19 | AE11: =IF(AD11="","",(RANK(AD11,$AD$11:$AD$25,0))) -> 2 | AF11: =IF($AB11="","",(VLOOKUP($AE$27,Worksheet!$A$11:$AE$41,AE11+1,FALSE))) -> 1 | AG11: =IF(A11=0,"",(SUM($J11,$O11,$T11,$Y11,$AF11))) -> 3 | AI11: =IF(AH11="",AG11,(AG11+(AH11*0.001))) -> 3 | AJ11: =IF(AI11="","",(RANK(AI11,$AI$11:$AI$25,0))) -> 3 | AK11: =IF(A11=0,"",(SUM(F11,K11,P11,U11,AB11))) -> 205.79
A12: ='Entry Information'!B87 -> 50 | B12: ='Entry Information'!H87 -> Goodland | C12: ='Entry Information'!I87 -> Rob | D12: ='Entry Information'!J87 -> Royale Smooth Sailin | E12: OPEN | F12: =IF($A12=0,"",'Open 2'!$D$31) -> 53.5 | H12: =IF(G12="",F12,(F12+(G12*0.001))) -> 53.5 | I12: 3 | J12: =IF($F12="","",(VLOOKUP($I$27,Worksheet!$A$11:$AE$41,I12+1,FALSE))) -> 0 | K12: =IF(C12=0,"",'Open 2'!$J$36) -> 22 | M12: =IF(L12="",K12,(K12+(L12*0.001))) -> 22 | N12: 1 | O12: =IF($K12="","",(VLOOKUP($N$27,Worksheet!$A$11:$AE$41,N12+1,FALSE))) -> 2 | P12: =IF(A12=0,"",'Open 2'!$P$31) -> 36 | R12: =IF(Q12="",P12,(P12+(Q12*0.001))) -> 36 | S12: 2 | T12: =IF($P12="","",(VLOOKUP($S$27,Worksheet!$A$11:$AE$41,S12+1,FALSE))) -> 1 | U12: =IF(A12=0,"",'Open 2'!$V$31) -> 67.5 | W12: =IF(V12="",U12,(U12+(V12*0.001))) -> 67.5 | X12: 1 | Y12: =IF($U12="","",(VLOOKUP($X$27,Worksheet!$A$11:$AE$41,X12+1,FALSE))) -> 2 | Z12: =IF(AB12="","",'Open 2'!$AB$28) -> 36.72 | AA12: =IF(AB12="","",'Open 2'!$AB$31) -> 17.9 | AB12: =IF(A12=0,"",'Open 2'!$AB$32) -> 54.62 | AD12: 54.62 | AE12: 3 | AF12: =IF($AB12="","",(VLOOKUP($AE$27,Worksheet!$A$11:$AE$41,AE12+1,FALSE))) -> 0 | AG12: 5 | AI12: =IF(AH12="",AG12,(AG12+(AH12*0.001))) -> 5 | AJ12: 2 | AK12: 233.62
A13: ='Entry Information'!B88 -> 43 | B13: ='Entry Information'!H88 -> Sween | C13: ='Entry Information'!I88 -> Carolyn | D13: ='Entry Information'!J88 -> AR Powderfully | E13: OPEN | F13: =IF($A13=0,"",'Open 3'!$D$31) -> 60.9 | H13: 60.9 | I13: 1 | J13: =IF($F13="","",(VLOOKUP($I$27,Worksheet!$A$11:$AE$41,I13+1,FALSE))) -> 2 | K13: =IF(C13=0,"",'Open 3'!$J$36) -> 9.5 | M13: 9.5 | N13: 3 | O13: =IF($K13="","",(VLOOKUP($N$27,Worksheet!$A$11:$AE$41,N13+1,FALSE))) -> 0 | P13: =IF(A13=0,"",'Open 3'!$P$31) -> 84 | R13: 84 | S13: 1 | T13: =IF($P13="","",(VLOOKUP($S$27,Worksheet!$A$11:$AE$41,S13+1,FALSE))) -> 2 | U13: =IF(A13=0,"",'Open 3'!$V$31) -> 55 | W13: 55 | X13: 2 | Y13: =IF($U13="","",(VLOOKUP($X$27,Worksheet!$A$11:$AE$41,X13+1,FALSE))) -> 1 | Z13: =IF(AB13="","",'Open 3'!$AB$28) -> 41.34 | AA13: =IF(AB13="","",'Open 3'!$AB$31) -> 20.94 | AB13: =IF(A13=0,"",'Open 3'!$AB$32) -> 62.28 | AD13: 62.28 | AE13: 1 | AF13: =IF($AB13="","",(VLOOKUP($AE$27,Worksheet!$A$11:$AE$41,AE13+1,FALSE))) -> 2 | AG13: 7 | AI13: 7 | AJ13: 1 | AK13: 271.68
A14: ='Entry Information'!B89 -> 0 | B14: ='Entry Information'!H89 -> 0 | C14: ='Entry Information'!I89 -> 0 | D14: ='Entry Information'!J89 -> 0 | E14: OPEN | F14: =IF($A14=0,"",'Open 4'!$D$31) ->  | J14: =IF($F14="","",(VLOOKUP($I$27,Worksheet!$A$11:$AE$41,I14+1,FALSE))) ->  | K14: =IF(C14=0,"",'Open 4'!$J$36) ->  | O14: =IF($K14="","",(VLOOKUP($N$27,Worksheet!$A$11:$AE$41,N14+1,FALSE))) ->  | P14: =IF(A14=0,"",'Open 4'!$P$31) ->  | T14: =IF($P14="","",(VLOOKUP($S$27,Worksheet!$A$11:$AE$41,S14+1,FALSE))) ->  | U14: =IF(A14=0,"",'Open 4'!$V$31) ->  | Y14: =IF($U14="","",(VLOOKUP($X$27,Worksheet!$A$11:$AE$41,X14+1,FALSE))) ->  | Z14: =IF(AB14="","",'Open 4'!$AB$28) ->  | AA14: =IF(AB14="","",'Open 4'!$AB$31) ->  | AB14: =IF(A14=0,"",'Open 4'!$AB$32) ->  | AF14: =IF($AB14="","",(VLOOKUP($AE$27,Worksheet!$A$11:$AE$41,AE14+1,FALSE))) -> 
A15: ='Entry Information'!B90 -> 0 | B15: ='Entry Information'!H90 -> 0 | C15: ='Entry Information'!I90 -> 0 | D15: ='Entry Information'!J90 -> 0 | E15: OPEN | F15: =IF($A15=0,"",'Open 5'!$D$31) ->  | J15: =IF($F15="","",(VLOOKUP($I$27,Worksheet!$A$11:$AE$41,I15+1,FALSE))) ->  | K15: =IF(C15=0,"",'Open 5'!$J$36) ->  | O15: =IF($K15="","",(VLOOKUP($N$27,Worksheet!$A$11:$AE$41,N15+1,FALSE))) ->  | P15: =IF(A15=0,"",'Open 5'!$P$31) ->  | T15: =IF($P15="","",(VLOOKUP($S$27,Worksheet!$A$11:$AE$41,S15+1,FALSE))) ->  | U15: =IF(A15=0,"",'Open 5'!$V$31) ->  | Y15: =IF($U15="","",(VLOOKUP($X$27,Worksheet!$A$11:$AE$41,X15+1,FALSE))) ->  | Z15: =IF(AB15="","",'Open 5'!$AB$28) ->  | AA15: =IF(AB15="","",'Open 5'!$AB$31) ->  | AB15: =IF(A15=0,"",'Open 5'!$AB$32) ->  | AF15: =IF($AB15="","",(VLOOKUP($AE$27,Worksheet!$A$11:$AE$41,AE15+1,FALSE))) -> 
A16: ='Entry Information'!B91 -> 0 | B16: ='Entry Information'!H91 -> 0 | C16: ='Entry Information'!I91 -> 0 | D16: ='Entry Information'!J91 -> 0 | E16: OPEN | F16: =IF($A16=0,"",'Open 6'!$D$31) ->  | J16: =IF($F16="","",(VLOOKUP($I$27,Worksheet!$A$11:$AE$41,I16+1,FALSE))) ->  | K16: =IF(C16=0,"",'Open 6'!$J$36) ->  | O16: =IF($K16="","",(VLOOKUP($N$27,Worksheet!$A$11:$AE$41,N16+1,FALSE))) ->  | P16: =IF(A16=0,"",'Open 6'!$P$31) ->  | T16: =IF($P16="","",(VLOOKUP($S$27,Worksheet!$A$11:$AE$41,S16+1,FALSE))) ->  | U16: =IF(A16=0,"",'Open 6'!$V$31) ->  | Y16: =IF($U16="","",(VLOOKUP($X$27,Worksheet!$A$11:$AE$41,X16+1,FALSE))) ->  | Z16: =IF(AB16="","",'Open 6'!$AB$28) ->  | AA16: =IF(AB16="","",'Open 6'!$AB$31) ->  | AB16: =IF(A16=0,"",'Open 6'!$AB$32) ->  | AF16: =IF($AB16="","",(VLOOKUP($AE$27,Worksheet!$A$11:$AE$41,AE16+1,FALSE))) -> 
A17: ='Entry Information'!B92 -> 0 | B17: ='Entry Information'!H92 -> 0 | C17: ='Entry Information'!I92 -> 0 | D17: ='Entry Information'!J92 -> 0 | E17: OPEN | F17: =IF($A17=0,"",'Open 7'!$D$31) ->  | J17: =IF($F17="","",(VLOOKUP($I$27,Worksheet!$A$11:$AE$41,I17+1,FALSE))) ->  | K17: =IF(C17=0,"",'Open 7'!$J$36) ->  | O17: =IF($K17="","",(VLOOKUP($N$27,Worksheet!$A$11:$AE$41,N17+1,FALSE))) ->  | P17: =IF(A17=0,"",'Open 7'!$P$31) ->  | T17: =IF($P17="","",(VLOOKUP($S$27,Worksheet!$A$11:$AE$41,S17+1,FALSE))) ->  | U17: =IF(A17=0,"",'Open 7'!$V$31) ->  | Y17: =IF($U17="","",(VLOOKUP($X$27,Worksheet!$A$11:$AE$41,X17+1,FALSE))) ->  | Z17: =IF(AB17="","",'Open 7'!$AB$28) ->  | AA17: =IF(AB17="","",'Open 7'!$AB$31) ->  | AB17: =IF(A17=0,"",'Open 7'!$AB$32) ->  | AF17: =IF($AB17="","",(VLOOKUP($AE$27,Worksheet!$A$11:$AE$41,AE17+1,FALSE))) -> 
A18: ='Entry Information'!B93 -> 0 | B18: ='Entry Information'!H93 -> 0 | C18: ='Entry Information'!I93 -> 0 | D18: ='Entry Information'!J93 -> 0 | E18: OPEN | F18: =IF($A18=0,"",'Open 8'!$D$31) ->  | J18: =IF($F18="","",(VLOOKUP($I$27,Worksheet!$A$11:$AE$41,I18+1,FALSE))) ->  | K18: =IF(C18=0,"",'Open 8'!$J$36) ->  | O18: =IF($K18="","",(VLOOKUP($N$27,Worksheet!$A$11:$AE$41,N18+1,FALSE))) ->  | P18: =IF(A18=0,"",'Open 8'!$P$31) ->  | T18: =IF($P18="","",(VLOOKUP($S$27,Worksheet!$A$11:$AE$41,S18+1,FALSE))) ->  | U18: =IF(A18=0,"",'Open 8'!$V$31) ->  | Y18: =IF($U18="","",(VLOOKUP($X$27,Worksheet!$A$11:$AE$41,X18+1,FALSE))) ->  | Z18: =IF(AB18="","",'Open 8'!$AB$28) ->  | AA18: =IF(AB18="","",'Open 8'!$AB$31) ->  | AB18: =IF(A18=0,"",'Open 8'!$AB$32) ->  | AF18: =IF($AB18="","",(VLOOKUP($AE$27,Worksheet!$A$11:$AE$41,AE18+1,FALSE))) -> 
A19: ='Entry Information'!B94 -> 0 | B19: ='Entry Information'!H94 -> 0 | C19: ='Entry Information'!I94 -> 0 | D19: ='Entry Information'!J94 -> 0 | E19: OPEN | F19: =IF($A19=0,"",'Open 9'!$D$31) ->  | J19: =IF($F19="","",(VLOOKUP($I$27,Worksheet!$A$11:$AE$41,I19+1,FALSE))) ->  | K19: =IF(C19=0,"",'Open 9'!$J$36) ->  | O19: =IF($K19="","",(VLOOKUP($N$27,Worksheet!$A$11:$AE$41,N19+1,FALSE))) ->  | P19: =IF(A19=0,"",'Open 9'!$P$31) ->  | T19: =IF($P19="","",(VLOOKUP($S$27,Worksheet!$A$11:$AE$41,S19+1,FALSE))) ->  | U19: =IF(A19=0,"",'Open 9'!$V$31) ->  | Y19: =IF($U19="","",(VLOOKUP($X$27,Worksheet!$A$11:$AE$41,X19+1,FALSE))) ->  | Z19: =IF(AB19="","",'Open 9'!$AB$28) ->  | AA19: =IF(AB19="","",'Open 9'!$AB$31) ->  | AB19: =IF(A19=0,"",'Open 9'!$AB$32) ->  | AF19: =IF($AB19="","",(VLOOKUP($AE$27,Worksheet!$A$11:$AE$41,AE19+1,FALSE))) -> 
A20: ='Entry Information'!B95 -> 0 | B20: ='Entry Information'!H95 -> 0 | C20: ='Entry Information'!I95 -> 0 | D20: ='Entry Information'!J95 -> 0 | E20: OPEN | F20: =IF($A20=0,"",'Open 10'!$D$31) ->  | J20: =IF($F20="","",(VLOOKUP($I$27,Worksheet!$A$11:$AE$41,I20+1,FALSE))) ->  | K20: =IF(C20=0,"",'Open 10'!$J36) ->  | O20: =IF($K20="","",(VLOOKUP($N$27,Worksheet!$A$11:$AE$41,N20+1,FALSE))) ->  | P20: =IF(A20=0,"",'Open 10'!$P$31) ->  | T20: =IF($P20="","",(VLOOKUP($S$27,Worksheet!$A$11:$AE$41,S20+1,FALSE))) ->  | U20: =IF(A20=0,"",'Open 10'!$V$31) ->  | Y20: =IF($U20="","",(VLOOKUP($X$27,Worksheet!$A$11:$AE$41,X20+1,FALSE))) ->  | Z20: =IF(AB20="","",'Open 10'!$AB$28) ->  | AA20: =IF(AB20="","",'Open 10'!$AB$31) ->  | AB20: =IF(A20=0,"",'Open 10'!$AB$32) ->  | AF20: =IF($AB20="","",(VLOOKUP($AE$27,Worksheet!$A$11:$AE$41,AE20+1,FALSE))) -> 
A21: ='Entry Information'!B96 -> 0 | B21: ='Entry Information'!H96 -> 0 | C21: ='Entry Information'!I96 -> 0 | D21: ='Entry Information'!J96 -> 0 | E21: OPEN | F21: =IF($A21=0,"",'Open 11'!$D$31) ->  | J21: =IF($F21="","",(VLOOKUP($I$27,Worksheet!$A$11:$AE$41,I21+1,FALSE))) ->  | K21: =IF(C21=0,"",'Open 11'!$J$36) ->  | O21: =IF($K21="","",(VLOOKUP($N$27,Worksheet!$A$11:$AE$41,N21+1,FALSE))) ->  | P21: =IF(A21=0,"",'Open 11'!$P$31) ->  | T21: =IF($P21="","",(VLOOKUP($S$27,Worksheet!$A$11:$AE$41,S21+1,FALSE))) ->  | U21: =IF(A21=0,"",'Open 11'!$V$31) ->  | Y21: =IF($U21="","",(VLOOKUP($X$27,Worksheet!$A$11:$AE$41,X21+1,FALSE))) ->  | Z21: =IF(AB21="","",'Open 11'!$AB$28) ->  | AA21: =IF(AB21="","",'Open 11'!$AB$31) ->  | AB21: =IF(A21=0,"",'Open 11'!$AB$32) ->  | AF21: =IF($AB21="","",(VLOOKUP($AE$27,Worksheet!$A$11:$AE$41,AE21+1,FALSE))) -> 
A22: ='Entry Information'!B97 -> 0 | B22: ='Entry Information'!H97 -> 0 | C22: ='Entry Information'!I97 -> 0 | D22: ='Entry Information'!J97 -> 0 | E22: OPEN | F22: =IF($A22=0,"",'Open 12'!$D$31) ->  | J22: =IF($F22="","",(VLOOKUP($I$27,Worksheet!$A$11:$AE$41,I22+1,FALSE))) ->  | K22: =IF(C22=0,"",'Open 12'!$J$36) ->  | O22: =IF($K22="","",(VLOOKUP($N$27,Worksheet!$A$11:$AE$41,N22+1,FALSE))) ->  | P22: =IF(A22=0,"",'Open 12'!$P$31) ->  | T22: =IF($P22="","",(VLOOKUP($S$27,Worksheet!$A$11:$AE$41,S22+1,FALSE))) ->  | U22: =IF($A22=0,"",'Open 12'!$V$31) ->  | Y22: =IF($U22="","",(VLOOKUP($X$27,Worksheet!$A$11:$AE$41,X22+1,FALSE))) ->  | Z22: =IF(AB22="","",'Open 12'!$AB$28) ->  | AA22: =IF(AB22="","",'Open 12'!$AB$31) ->  | AB22: =IF(A22=0,"",'Open 12'!$AB$32) ->  | AF22: =IF($AB22="","",(VLOOKUP($AE$27,Worksheet!$A$11:$AE$41,AE22+1,FALSE))) -> 
A23: ='Entry Information'!B98 -> 0 | B23: ='Entry Information'!H98 -> 0 | C23: ='Entry Information'!I98 -> 0 | D23: ='Entry Information'!J98 -> 0 | E23: OPEN | F23: =IF($A23=0,"",'Open 13'!$D$31) ->  | J23: =IF($F23="","",(VLOOKUP($I$27,Worksheet!$A$11:$AE$41,I23+1,FALSE))) ->  | K23: =IF(C23=0,"",'Open 13'!$J$36) ->  | O23: =IF($K23="","",(VLOOKUP($N$27,Worksheet!$A$11:$AE$41,N23+1,FALSE))) ->  | P23: =IF(A23=0,"",'Open 13'!$P$31) ->  | T23: =IF($P23="","",(VLOOKUP($S$27,Worksheet!$A$11:$AE$41,S23+1,FALSE))) ->  | U23: =IF(A23=0,"",'Open 13'!$V$31) ->  | Y23: =IF($U23="","",(VLOOKUP($X$27,Worksheet!$A$11:$AE$41,X23+1,FALSE))) ->  | Z23: =IF(AB23="","",'Open 13'!$AB$28) ->  | AA23: =IF(AB23="","",'Open 13'!$AB$31) ->  | AB23: =IF(A23=0,"",'Open 13'!$AB$32) ->  | AF23: =IF($AB23="","",(VLOOKUP($AE$27,Worksheet!$A$11:$AE$41,AE23+1,FALSE))) -> 
A24: ='Entry Information'!B99 -> 0 | B24: ='Entry Information'!H99 -> 0 | C24: ='Entry Information'!I99 -> 0 | D24: ='Entry Information'!J99 -> 0 | E24: OPEN | F24: =IF($A24=0,"",'Open 14'!$D$31) ->  | J24: =IF($F24="","",(VLOOKUP($I$27,Worksheet!$A$11:$AE$41,I24+1,FALSE))) ->  | K24: =IF(C24=0,"",'Open 14'!$J$36) ->  | O24: =IF($K24="","",(VLOOKUP($N$27,Worksheet!$A$11:$AE$41,N24+1,FALSE))) ->  | P24: =IF(A24=0,"",'Open 14'!$P$31) ->  | T24: =IF($P24="","",(VLOOKUP($S$27,Worksheet!$A$11:$AE$41,S24+1,FALSE))) ->  | U24: =IF(A24=0,"",'Open 14'!$V$31) ->  | Y24: =IF($U24="","",(VLOOKUP($X$27,Worksheet!$A$11:$AE$41,X24+1,FALSE))) ->  | Z24: =IF(AB24="","",'Open 14'!$AB$28) ->  | AA24: =IF(AB24="","",'Open 14'!$AB$31) ->  | AB24: =IF(A24=0,"",'Open 14'!$AB$32) ->  | AF24: =IF($AB24="","",(VLOOKUP($AE$27,Worksheet!$A$11:$AE$41,AE24+1,FALSE))) -> 
A25: ='Entry Information'!B100 -> 0 | B25: ='Entry Information'!H100 -> 0 | C25: ='Entry Information'!I100 -> 0 | D25: ='Entry Information'!J100 -> 0 | E25: OPEN | F25: =IF($A25=0,"",'Open 15'!$D$31) ->  | J25: =IF($F25="","",(VLOOKUP($I$27,Worksheet!$A$11:$AE$41,I25+1,FALSE))) ->  | K25: =IF(C25=0,"",'Open 15'!$J$36) ->  | O25: =IF($K25="","",(VLOOKUP($N$27,Worksheet!$A$11:$AE$41,N25+1,FALSE))) ->  | P25: =IF(A25=0,"",'Open 15'!$P$31) ->  | T25: =IF($P25="","",(VLOOKUP($S$27,Worksheet!$A$11:$AE$41,S25+1,FALSE))) ->  | U25: =IF(A25=0,"",'Open 15'!$V$31) ->  | Y25: =IF($U25="","",(VLOOKUP($X$27,Worksheet!$A$11:$AE$41,X25+1,FALSE))) ->  | Z25: =IF(AB25="","",'Open 15'!$AB$28) ->  | AA25: =IF(AB25="","",'Open 15'!$AB$31) ->  | AB25: =IF(A25=0,"",'Open 15'!$AB$32) ->  | AF25: =IF($AB25="","",(VLOOKUP($AE$27,Worksheet!$A$11:$AE$41,AE25+1,FALSE))) -> 
I27: =COUNTIF(I11:I25,">=0") -> 3 | N27: =COUNTIF(N11:N25,">=0") -> 3 | S27: =COUNTIF(S11:S25,">=0") -> 3 | X27: =COUNTIF(X11:X25,">=0") -> 3 | AD27: =IF(AC27="",AB27,(AB27+(AC27*0.001))) -> 0 | AE27: =COUNTIF(AE11:AE25,">=0") -> 3
D28: Tie Breakers = | F28: 1 - Extended Trot | K28: 1 - Roping Cow | P28: 1 - Penning | U28: 1 - Drag log | Z28: 1- Structural Correctness | AG28: Working Ranch Score
F29: 2 - Transition down lope/walk/stop | K29: 2 - Box Cow | P29: 2 - Working Center of arena | U29: 2 - Ground tie/bridle/pick-up legs | Z29: 2 - Balance | AG29: and then use WR Tie-Breakers
F30: 3 - Transition to lope/lope | K30: 3 - First Lead Change | P30: 3 -Cut from Herd | U30: 3 - Gate | Z30: 3 - Ranch Cutting
K31: 4 - Spin

Sheet YOUTH RESULTS (2)
E2: Event Name: | I2: ='Entry Information'!H4 -> The Horse First Farm, Brooklyn, WI | S2: Judges Name: | U2: ='Entry Information'!K4 -> Dave Currin | AB2: Classes Judged? | AF2: ='Entry Information'!O4 -> CN, RR, RT
A3: Division: | B3: YOUTH | E3: Event Date: | I3: ='Entry Information'!H5 -> June 28-29,2014 | S3: Judges Name: | U3: ='Entry Information'!K5 -> Jeff Barnes | AB3: Classes Judged? | AF3: ='Entry Information'!O5 -> WR, RC
A5: 1 | B5: 2 | C5: 3 | D5: 4 | E5: 5 | F5: 6 | G5: 7 | I5: 8 | J5: 9 | K5: 10 | L5: 11 | N5: 12 | O5: 13 | P5: 14 | Q5: 15 | S5: 16 | T5: 17 | U5: 18 | V5: 19 | X5: 20 | Y5: 21 | Z5: 22 | AA5: 23 | AB5: 24 | AC5: 25 | AE5: 26 | AF5: 27 | AG5: 28 | AH5: 29 | AJ5: 30 | AK5: 31
F6: Ranch | K6: Working | P6: Ranch | U6: Ranch | AA6: Ranch | AG6: Total | AI6: Adjusted | AJ6: Event | AK6: Event
F7: Riding | K7: Ranch | P7: Cutting | U7: Trail | AA7: Conformation | AG7: Placement | AH7: Tie | AI7: Placement | AJ7: All | AK7: Total
F8: Score | G8: Tie | H8: Adjusted | I8: Place | J8: Place- | K8: Score | L8: Tie | M8: Adjusted | N8: Place | O8: Place- | P8: Score | Q8: Tie | R8: Adjusted | S8: Place | T8: Place- | U8: Score | V8: Tie | W8: Adjusted | X8: Place | Y8: Place- | Z8: Judges | AA8: Function | AB8: TOTAL | AC8: Tie | AD8: Adjusted | AE8: Place | AF8: Place- | AG8: Points | AH8: Breaker | AI8: Points | AJ8: Around | AK8: Score
G9: Breaker | H9: Score | J9: ment | L9: Breaker | M9: Score | O9: ment | Q9: Breaker | R9: Score | T9: ment | V9: Breaker | W9: Score | Y9: ment | Z9: Score | AA9: Score | AB9: SCORE | AC9: Breaker | AD9: Score | AF9: ment
A10: Back No. | B10: Last Name | C10: First Name | D10: Registered Horse Name | E10: Division | J10: Points | O10: Points | T10: Points | Y10: Points | AF10: Points
A11: ='Entry Information'!$B110 -> 0 | B11: ='Entry Information'!$H110 -> 0 | C11: ='Entry Information'!$I110 -> 0 | D11: ='Entry Information'!$J110 -> 0 | E11: YOUTH | F11: =IF($A11=0,"",'Youth 1'!$D$31) ->  | H11: =IF(G11="",F11,(F11+(G11*0.001))) ->  | I11: =IF(H11="","",(RANK(H11,$H$11:$H$25,0))) ->  | J11: =IF($F11="","",(VLOOKUP($I$27,Worksheet!$A$11:$AE$41,I11+1,FALSE))) ->  | K11: =IF(A11=0,"",'Youth 1'!$J$31) ->  | M11: =IF(L11="",K11,(K11+(L11*0.001))) ->  | N11: =IF(M11="","",(RANK(M11,$M$11:$M$25,0))) ->  | O11: =IF($K11="","",(VLOOKUP($N$27,Worksheet!$A$11:$AE$41,N11+1,FALSE))) ->  | P11: =IF(A11=0,"",'Youth 1'!$P$31) ->  | R11: =IF(Q11="",P11,(P11+(Q11*0.001))) ->  | S11: =IF(R11="","",(RANK(R11,$R$11:$R$25,0))) ->  | T11: =IF($P11="","",(VLOOKUP($S$27,Worksheet!$A$11:$AE$41,S11+1,FALSE))) ->  | U11: =IF(A11=0,"",'Youth 1'!$V$31) ->  | W11: =IF(V11="",U11,(U11+(V11*0.001))) ->  | X11: =IF(W11="","",(RANK(W11,$W$11:$W$25,0))) ->  | Y11: =IF($U11="","",(VLOOKUP($X$27,Worksheet!$A$11:$AE$41,X11+1,FALSE))) ->  | Z11: =IF(AB11="","",'Youth 1'!$AB$28) ->  | AA11: =IF(AB11="","",'Youth 1'!$AB$31) ->  | AB11: =IF(A11=0,"",'Youth 1'!$AB$32) ->  | AD11: =IF(AC11="",AB11,(AB11+(AC11*0.001))) ->  | AE11: =IF(AD11="","",(RANK(AD11,$AD$11:$AD$25,0))) ->  | AF11: =IF($AB11="","",(VLOOKUP($AE$27,Worksheet!$A$11:$AE$41,AE11+1,FALSE))) ->  | AG11: =IF(A11=0,"",(SUM($J11,$O11,$T11,$Y11,$AF11))) ->  | AI11: =IF(AH11="",AG11,(AG11+(AH11*0.001))) ->  | AJ11: =IF(AI11="","",(RANK(AI11,$AI$11:$AI$25,0))) ->  | AK11: =IF(A11=0,"",(SUM(F11,K11,P11,U11,AB11))) -> 
A12: ='Entry Information'!$B111 -> 0 | B12: ='Entry Information'!$H111 -> 0 | C12: ='Entry Information'!$I111 -> 0 | D12: ='Entry Information'!$J111 -> 0 | E12: YOUTH | F12: =IF($A12=0,"",'Youth 2'!$D$31) ->  | H12: =IF(G12="",F12,(F12+(G12*0.001))) ->  | J12: =IF($F12="","",(VLOOKUP($I$27,Worksheet!$A$11:$AE$41,I12+1,FALSE))) ->  | K12: =IF(A12=0,"",'Youth 2'!$J$31) ->  | M12: =IF(L12="",K12,(K12+(L12*0.001))) ->  | O12: =IF($K12="","",(VLOOKUP($N$27,Worksheet!$A$11:$AE$41,N12+1,FALSE))) ->  | P12: =IF(A12=0,"",'Youth 2'!$P$31) ->  | R12: =IF(Q12="",P12,(P12+(Q12*0.001))) ->  | T12: =IF($P12="","",(VLOOKUP($S$27,Worksheet!$A$11:$AE$41,S12+1,FALSE))) ->  | U12: =IF(A12=0,"",'Youth 2'!$V$31) ->  | W12: =IF(V12="",U12,(U12+(V12*0.001))) ->  | Y12: =IF($U12="","",(VLOOKUP($X$27,Worksheet!$A$11:$AE$41,X12+1,FALSE))) ->  | Z12: =IF(AB12="","",'Youth 2'!$AB$28) ->  | AA12: =IF(AB12="","",'Youth 2'!$AB$31) ->  | AB12: =IF(A12=0,"",'Youth 2'!$AB$32) ->  | AF12: =IF($AB12="","",(VLOOKUP($AE$27,Worksheet!$A$11:$AE$41,AE12+1,FALSE))) ->  | AI12: =IF(AH12="",AG12,(AG12+(AH12*0.001))) -> 
A13: ='Entry Information'!$B112 -> 0 | B13: ='Entry Information'!$H112 -> 0 | C13: ='Entry Information'!$I112 -> 0 | D13: ='Entry Information'!$J112 -> 0 | E13: YOUTH | F13: =IF($A13=0,"",'Youth 3'!$D$31) ->  | J13: =IF($F13="","",(VLOOKUP($I$27,Worksheet!$A$11:$AE$41,I13+1,FALSE))) ->  | K13: =IF(A13=0,"",'Youth 3'!$J$31) ->  | O13: =IF($K13="","",(VLOOKUP($N$27,Worksheet!$A$11:$AE$41,N13+1,FALSE))) ->  | P13: =IF(A13=0,"",'Youth 3'!$P$31) ->  | T13: =IF($P13="","",(VLOOKUP($S$27,Worksheet!$A$11:$AE$41,S13+1,FALSE))) ->  | U13: =IF(A13=0,"",'Youth 3'!$V$31) ->  | Y13: =IF($U13="","",(VLOOKUP($X$27,Worksheet!$A$11:$AE$41,X13+1,FALSE))) ->  | Z13: =IF(AB13="","",'Youth 3'!$AB$28) ->  | AA13: =IF(AB13="","",'Youth 3'!$AB$31) ->  | AB13: =IF(A13=0,"",'Youth 3'!$AB$32) ->  | AF13: =IF($AB13="","",(VLOOKUP($AE$27,Worksheet!$A$11:$AE$41,AE13+1,FALSE))) -> 
A14: ='Entry Information'!$B113 -> 0 | B14: ='Entry Information'!$H113 -> 0 | C14: ='Entry Information'!$I113 -> 0 | D14: ='Entry Information'!$J113 -> 0 | E14: YOUTH | F14: =IF($A14=0,"",'Youth 4'!$D$31) ->  | J14: =IF($F14="","",(VLOOKUP($I$27,Worksheet!$A$11:$AE$41,I14+1,FALSE))) ->  | K14: =IF(A14=0,"",'Youth 4'!$J$31) ->  | O14: =IF($K14="","",(VLOOKUP($N$27,Worksheet!$A$11:$AE$41,N14+1,FALSE))) ->  | P14: =IF(A14=0,"",'Youth 4'!$P$31) ->  | T14: =IF($P14="","",(VLOOKUP($S$27,Worksheet!$A$11:$AE$41,S14+1,FALSE))) ->  | U14: =IF(A14=0,"",'Youth 4'!$V$31) ->  | Y14: =IF($U14="","",(VLOOKUP($X$27,Worksheet!$A$11:$AE$41,X14+1,FALSE))) ->  | Z14: =IF(AB14="","",'Youth 4'!$AB$28) ->  | AA14: =IF(AB14="","",'Youth 4'!$AB$31) ->  | AB14: =IF(A14=0,"",'Youth 4'!$AB$32) ->  | AF14: =IF($AB14="","",(VLOOKUP($AE$27,Worksheet!$A$11:$AE$41,AE14+1,FALSE))) -> 
A15: ='Entry Information'!$B114 -> 0 | B15: ='Entry Information'!$H114 -> 0 | C15: ='Entry Information'!$I114 -> 0 | D15: ='Entry Information'!$J114 -> 0 | E15: YOUTH | F15: =IF($A15=0,"",'Youth 5'!$D$31) ->  | J15: =IF($F15="","",(VLOOKUP($I$27,Worksheet!$A$11:$AE$41,I15+1,FALSE))) ->  | K15: =IF(A15=0,"",'Youth 5'!$J$31) ->  | O15: =IF($K15="","",(VLOOKUP($N$27,Worksheet!$A$11:$AE$41,N15+1,FALSE))) ->  | P15: =IF(A15=0,"",'Youth 5'!$P$31) ->  | T15: =IF($P15="","",(VLOOKUP($S$27,Worksheet!$A$11:$AE$41,S15+1,FALSE))) ->  | U15: =IF(A15=0,"",'Youth 5'!$V$31) ->  | Y15: =IF($U15="","",(VLOOKUP($X$27,Worksheet!$A$11:$AE$41,X15+1,FALSE))) ->  | Z15: =IF(AB15="","",'Youth 5'!$AB$28) ->  | AA15: =IF(AB15="","",'Youth 5'!$AB$31) ->  | AB15: =IF(A15=0,"",'Youth 5'!$AB$32) ->  | AF15: =IF($AB15="","",(VLOOKUP($AE$27,Worksheet!$A$11:$AE$41,AE15+1,FALSE))) -> 
A16: ='Entry Information'!$B115 -> 0 | B16: ='Entry Information'!$H115 -> 0 | C16: ='Entry Information'!$I115 -> 0 | D16: ='Entry Information'!$J115 -> 0 | E16: YOUTH | F16: =IF($A16=0,"",'Youth 6'!$D$31) ->  | J16: =IF($F16="","",(VLOOKUP($I$27,Worksheet!$A$11:$AE$41,I16+1,FALSE))) ->  | K16: =IF(A16=0,"",'Youth 6'!$J$31) ->  | O16: =IF($K16="","",(VLOOKUP($N$27,Worksheet!$A$11:$AE$41,N16+1,FALSE))) ->  | P16: =IF(A16=0,"",'Youth 6'!$P$31) ->  | T16: =IF($P16="","",(VLOOKUP($S$27,Worksheet!$A$11:$AE$41,S16+1,FALSE))) ->  | U16: =IF(A16=0,"",'Youth 6'!$V$31) ->  | Y16: =IF($U16="","",(VLOOKUP($X$27,Worksheet!$A$11:$AE$41,X16+1,FALSE))) ->  | Z16: =IF(AB16="","",'Youth 6'!$AB$28) ->  | AA16: =IF(AB16="","",'Youth 6'!$AB$31) ->  | AB16: =IF(A16=0,"",'Youth 6'!$AB$32) ->  | AF16: =IF($AB16="","",(VLOOKUP($AE$27,Worksheet!$A$11:$AE$41,AE16+1,FALSE))) -> 
A17: ='Entry Information'!$B116 -> 0 | B17: ='Entry Information'!$H116 -> 0 | C17: ='Entry Information'!$I116 -> 0 | D17: ='Entry Information'!$J116 -> 0 | E17: YOUTH | F17: =IF($A17=0,"",'Youth 7'!$D$31) ->  | J17: =IF($F17="","",(VLOOKUP($I$27,Worksheet!$A$11:$AE$41,I17+1,FALSE))) ->  | K17: =IF(A17=0,"",'Youth 7'!$J$31) ->  | O17: =IF($K17="","",(VLOOKUP($N$27,Worksheet!$A$11:$AE$41,N17+1,FALSE))) ->  | P17: =IF(A17=0,"",'Youth 7'!$P$31) ->  | T17: =IF($P17="","",(VLOOKUP($S$27,Worksheet!$A$11:$AE$41,S17+1,FALSE))) ->  | U17: =IF(A17=0,"",'Youth 7'!$V$31) ->  | Y17: =IF($U17="","",(VLOOKUP($X$27,Worksheet!$A$11:$AE$41,X17+1,FALSE))) ->  | Z17: =IF(AB17="","",'Youth 7'!$AB$28) ->  | AA17: =IF(AB17="","",'Youth 7'!$AB$31) ->  | AB17: =IF(A17=0,"",'Youth 7'!$AB$32) ->  | AF17: =IF($AB17="","",(VLOOKUP($AE$27,Worksheet!$A$11:$AE$41,AE17+1,FALSE))) -> 
A18: ='Entry Information'!$B117 -> 0 | B18: ='Entry Information'!$H117 -> 0 | C18: ='Entry Information'!$I117 -> 0 | D18: ='Entry Information'!$J117 -> 0 | E18: YOUTH | F18: =IF($A18=0,"",'Youth 8'!$D$31) ->  | J18: =IF($F18="","",(VLOOKUP($I$27,Worksheet!$A$11:$AE$41,I18+1,FALSE))) ->  | K18: =IF(A18=0,"",'Youth 8'!$J$31) ->  | O18: =IF($K18="","",(VLOOKUP($N$27,Worksheet!$A$11:$AE$41,N18+1,FALSE))) ->  | P18: =IF(A18=0,"",'Youth 8'!$P$31) ->  | T18: =IF($P18="","",(VLOOKUP($S$27,Worksheet!$A$11:$AE$41,S18+1,FALSE))) ->  | U18: =IF(A18=0,"",'Youth 8'!$V$31) ->  | Y18: =IF($U18="","",(VLOOKUP($X$27,Worksheet!$A$11:$AE$41,X18+1,FALSE))) ->  | Z18: =IF(AB18="","",'Youth 8'!$AB$28) ->  | AA18: =IF(AB18="","",'Youth 8'!$AB$31) ->  | AB18: =IF(A18=0,"",'Youth 8'!$AB$32) ->  | AF18: =IF($AB18="","",(VLOOKUP($AE$27,Worksheet!$A$11:$AE$41,AE18+1,FALSE))) -> 
A19: ='Entry Information'!$B118 -> 0 | B19: ='Entry Information'!$H118 -> 0 | C19: ='Entry Information'!$I118 -> 0 | D19: ='Entry Information'!$J118 -> 0 | E19: YOUTH | F19: =IF($A19=0,"",'Youth 9'!$D$31) ->  | J19: =IF($F19="","",(VLOOKUP($I$27,Worksheet!$A$11:$AE$41,I19+1,FALSE))) ->  | K19: =IF(A19=0,"",'Youth 9'!$J$31) ->  | O19: =IF($K19="","",(VLOOKUP($N$27,Worksheet!$A$11:$AE$41,N19+1,FALSE))) ->  | P19: =IF(A19=0,"",'Youth 9'!$P$31) ->  | T19: =IF($P19="","",(VLOOKUP($S$27,Worksheet!$A$11:$AE$41,S19+1,FALSE))) ->  | U19: =IF(A19=0,"",'Youth 9'!$V$31) ->  | Y19: =IF($U19="","",(VLOOKUP($X$27,Worksheet!$A$11:$AE$41,X19+1,FALSE))) ->  | Z19: =IF(AB19="","",'Youth 9'!$AB$28) ->  | AA19: =IF(AB19="","",'Youth 9'!$AB$31) ->  | AB19: =IF(A19=0,"",'Youth 9'!$AB$32) ->  | AF19: =IF($AB19="","",(VLOOKUP($AE$27,Worksheet!$A$11:$AE$41,AE19+1,FALSE))) -> 
A20: ='Entry Information'!$B119 -> 0 | B20: ='Entry Information'!$H119 -> 0 | C20: ='Entry Information'!$I119 -> 0 | D20: ='Entry Information'!$J119 -> 0 | E20: YOUTH | F20: =IF($A20=0,"",'Youth 10'!$D$31) ->  | J20: =IF($F20="","",(VLOOKUP($I$27,Worksheet!$A$11:$AE$41,I20+1,FALSE))) ->  | K20: =IF(A20=0,"",'Youth 10'!$J31) ->  | O20: =IF($K20="","",(VLOOKUP($N$27,Worksheet!$A$11:$AE$41,N20+1,FALSE))) ->  | P20: =IF(A20=0,"",'Youth 10'!$P$31) ->  | T20: =IF($P20="","",(VLOOKUP($S$27,Worksheet!$A$11:$AE$41,S20+1,FALSE))) ->  | U20: =IF(A20=0,"",'Youth 10'!$V$31) ->  | Y20: =IF($U20="","",(VLOOKUP($X$27,Worksheet!$A$11:$AE$41,X20+1,FALSE))) ->  | Z20: =IF(AB20="","",'Youth 10'!$AB$28) ->  | AA20: =IF(AB20="","",'Youth 10'!$AB$31) ->  | AB20: =IF(A20=0,"",'Youth 10'!$AB$32) ->  | AF20: =IF($AB20="","",(VLOOKUP($AE$27,Worksheet!$A$11:$AE$41,AE20+1,FALSE))) -> 
A21: ='Entry Information'!$B120 -> 0 | B21: ='Entry Information'!$H120 -> 0 | C21: ='Entry Information'!$I120 -> 0 | D21: ='Entry Information'!$J120 -> 0 | E21: YOUTH | F21: =IF($A21=0,"",'Youth 11'!$D$31) ->  | J21: =IF($F21="","",(VLOOKUP($I$27,Worksheet!$A$11:$AE$41,I21+1,FALSE))) ->  | K21: =IF(A21=0,"",'Youth 11'!$J$31) ->  | O21: =IF($K21="","",(VLOOKUP($N$27,Worksheet!$A$11:$AE$41,N21+1,FALSE))) ->  | P21: =IF(A21=0,"",'Youth 11'!$P$31) ->  | T21: =IF($P21="","",(VLOOKUP($S$27,Worksheet!$A$11:$AE$41,S21+1,FALSE))) ->  | U21: =IF(A21=0,"",'Youth 11'!$V$31) ->  | Y21: =IF($U21="","",(VLOOKUP($X$27,Worksheet!$A$11:$AE$41,X21+1,FALSE))) ->  | Z21: =IF(AB21="","",'Youth 11'!$AB$28) ->  | AA21: =IF(AB21="","",'Youth 11'!$AB$31) ->  | AB21: =IF(A21=0,"",'Youth 11'!$AB$32) ->  | AF21: =IF($AB21="","",(VLOOKUP($AE$27,Worksheet!$A$11:$AE$41,AE21+1,FALSE))) -> 
A22: ='Entry Information'!$B121 -> 0 | B22: ='Entry Information'!$H121 -> 0 | C22: ='Entry Information'!$I121 -> 0 | D22: ='Entry Information'!$J121 -> 0 | E22: YOUTH | F22: =IF($A22=0,"",'Youth 12'!$D$31) ->  | J22: =IF($F22="","",(VLOOKUP($I$27,Worksheet!$A$11:$AE$41,I22+1,FALSE))) ->  | K22: =IF(A22=0,"",'Youth 12'!$J$31) ->  | O22: =IF($K22="","",(VLOOKUP($N$27,Worksheet!$A$11:$AE$41,N22+1,FALSE))) ->  | P22: =IF(A22=0,"",'Youth 12'!$P$31) ->  | T22: =IF($P22="","",(VLOOKUP($S$27,Worksheet!$A$11:$AE$41,S22+1,FALSE))) ->  | U22: =IF($A22=0,"",'Youth 12'!$V$31) ->  | Y22: =IF($U22="","",(VLOOKUP($X$27,Worksheet!$A$11:$AE$41,X22+1,FALSE))) ->  | Z22: =IF(AB22="","",'Youth 12'!$AB$28) ->  | AA22: =IF(AB22="","",'Youth 12'!$AB$31) ->  | AB22: =IF(A22=0,"",'Youth 12'!$AB$32) ->  | AF22: =IF($AB22="","",(VLOOKUP($AE$27,Worksheet!$A$11:$AE$41,AE22+1,FALSE))) -> 
A23: ='Entry Information'!$B122 -> 0 | B23: ='Entry Information'!$H122 -> 0 | C23: ='Entry Information'!$I122 -> 0 | D23: ='Entry Information'!$J122 -> 0 | E23: YOUTH | F23: =IF($A23=0,"",'Youth 13'!$D$31) ->  | J23: =IF($F23="","",(VLOOKUP($I$27,Worksheet!$A$11:$AE$41,I23+1,FALSE))) ->  | K23: =IF(A23=0,"",'Youth 13'!$J$31) ->  | O23: =IF($K23="","",(VLOOKUP($N$27,Worksheet!$A$11:$AE$41,N23+1,FALSE))) ->  | P23: =IF(A23=0,"",'Youth 13'!$P$31) ->  | T23: =IF($P23="","",(VLOOKUP($S$27,Worksheet!$A$11:$AE$41,S23+1,FALSE))) ->  | U23: =IF(A23=0,"",'Youth 13'!$V$31) ->  | Y23: =IF($U23="","",(VLOOKUP($X$27,Worksheet!$A$11:$AE$41,X23+1,FALSE))) ->  | Z23: =IF(AB23="","",'Youth 13'!$AB$28) ->  | AA23: =IF(AB23="","",'Youth 13'!$AB$31) ->  | AB23: =IF(A23=0,"",'Youth 13'!$AB$32) ->  | AF23: =IF($AB23="","",(VLOOKUP($AE$27,Worksheet!$A$11:$AE$41,AE23+1,FALSE))) -> 
A24: ='Entry Information'!$B123 -> 0 | B24: ='Entry Information'!$H123 -> 0 | C24: ='Entry Information'!$I123 -> 0 | D24: ='Entry Information'!$J123 -> 0 | E24: YOUTH | F24: =IF($A24=0,"",'Youth 14'!$D$31) ->  | J24: =IF($F24="","",(VLOOKUP($I$27,Worksheet!$A$11:$AE$41,I24+1,FALSE))) ->  | K24: =IF(A24=0,"",'Youth 14'!$J$31) ->  | O24: =IF($K24="","",(VLOOKUP($N$27,Worksheet!$A$11:$AE$41,N24+1,FALSE))) ->  | P24: =IF(A24=0,"",'Youth 14'!$P$31) ->  | T24: =IF($P24="","",(VLOOKUP($S$27,Worksheet!$A$11:$AE$41,S24+1,FALSE))) ->  | U24: =IF(A24=0,"",'Youth 14'!$V$31) ->  | Y24: =IF($U24="","",(VLOOKUP($X$27,Worksheet!$A$11:$AE$41,X24+1,FALSE))) ->  | Z24: =IF(AB24="","",'Youth 14'!$AB$28) ->  | AA24: =IF(AB24="","",'Youth 14'!$AB$31) ->  | AB24: =IF(A24=0,"",'Youth 14'!$AB$32) ->  | AF24: =IF($AB24="","",(VLOOKUP($AE$27,Worksheet!$A$11:$AE$41,AE24+1,FALSE))) -> 
A25: ='Entry Information'!$B124 -> 0 | B25: ='Entry Information'!$H124 -> 0 | C25: ='Entry Information'!$I124 -> 0 | D25: ='Entry Information'!$J124 -> 0 | E25: YOUTH | F25: =IF($A25=0,"",'Youth 15'!$D$31) ->  | J25: =IF($F25="","",(VLOOKUP($I$27,Worksheet!$A$11:$AE$41,I25+1,FALSE))) ->  | K25: =IF(A25=0,"",'Youth 15'!$J$31) ->  | O25: =IF($K25="","",(VLOOKUP($N$27,Worksheet!$A$11:$AE$41,N25+1,FALSE))) ->  | P25: =IF(A25=0,"",'Youth 15'!$P$31) ->  | T25: =IF($P25="","",(VLOOKUP($S$27,Worksheet!$A$11:$AE$41,S25+1,FALSE))) ->  | U25: =IF(A25=0,"",'Youth 15'!$V$31) ->  | Y25: =IF($U25="","",(VLOOKUP($X$27,Worksheet!$A$11:$AE$41,X25+1,FALSE))) ->  | Z25: =IF(AB25="","",'Youth 15'!$AB$28) ->  | AA25: =IF(AB25="","",'Youth 15'!$AB$31) ->  | AB25: =IF(A25=0,"",'Youth 15'!$AB$32) ->  | AF25: =IF($AB25="","",(VLOOKUP($AE$27,Worksheet!$A$11:$AE$41,AE25+1,FALSE))) -> 
I27: =COUNTIF(I11:I25,">=0") -> 0 | N27: =COUNTIF(N11:N25,">=0") -> 0 | S27: =COUNTIF(S11:S25,">=0") -> 0 | X27: =COUNTIF(X11:X25,">=0") -> 0 | AD27: =IF(AC27="",AB27,(AB27+(AC27*0.001))) -> 0 | AE27: =COUNTIF(AE11:AE25,">=0") -> 0
D28: Tie Breakers = | F28: 1 - Extended Trot | K28: 1 - Box Cow | P28: 1 - Penning | U28: 1 - Drag log | Z28: 1- Structural Correctness | AG28: Working Ranch Score
F29: 2 - Transition down lope/walk/stop | K29: 2 -First Lead Change | P29: 2 - Working Center of arena | U29: 2 - Ground tie/bridle/pick-up legs | Z29: 2 - Balance | AG29: and then use WR Tie-Breakers
F30: 3 - Transition to lope/lope | K30: 3 -Spin | P30: 3 -Cut from Herd | U30: 3 - Gate | Z30: 3 - Ranch Cutting

Sheet AWARDS (2)
A2: ='Entry Information'!H4 -> The Horse First Farm, Brooklyn, WI
A3: ='Entry Information'!H5 -> June 28-29,2014
A5: NOVICE | B5: Ranch Riding | D5: Working Ranch Horse | F5: Cutting | H5: Trail | J5: Conformation
A6: 1 | B6: =INDEX('NOVICE RESULTS (2)'!C$11:$C$40,MATCH('AWARDS (2)'!A6,'NOVICE RESULTS (2)'!$I$11:$I$40,0)) -> Sue | C6: =INDEX('NOVICE RESULTS (2)'!$B$11:$B$40,MATCH('AWARDS (2)'!A6,'NOVICE RESULTS (2)'!$I$11:$I$40,0)) -> Eisenman | D6: =INDEX('NOVICE RESULTS (2)'!$C$11:$C$40,MATCH('AWARDS (2)'!A6,'NOVICE RESULTS (2)'!$N$11:$N$40,0)) -> Roger | E6: =INDEX('NOVICE RESULTS (2)'!$B$11:$B$40,MATCH('AWARDS (2)'!A6,'NOVICE RESULTS (2)'!$N$11:$N$40,0)) -> Knapp | F6: =INDEX('NOVICE RESULTS (2)'!$C$11:$C$40,MATCH('AWARDS (2)'!A6,'NOVICE RESULTS (2)'!$S$11:$S$40,0)) -> Dale | G6: =INDEX('NOVICE RESULTS (2)'!$B$11:$B$40,MATCH('AWARDS (2)'!A6,'NOVICE RESULTS (2)'!$S$11:$S$40,0)) -> Grove | H6: =INDEX('NOVICE RESULTS (2)'!$C$11:$C$40,MATCH('AWARDS (2)'!A6,'NOVICE RESULTS (2)'!$X$11:$X$40,0)) -> Kelly | I6: =INDEX('NOVICE RESULTS (2)'!$B$11:$B$40,MATCH('AWARDS (2)'!A6,'NOVICE RESULTS (2)'!$X$11:$X$40,0)) -> Messera | J6: =INDEX('NOVICE RESULTS (2)'!$C$11:$C$40,MATCH('AWARDS (2)'!A6,'NOVICE RESULTS (2)'!$AE$11:$AE$40,0)) -> Kelly | K6: =INDEX('NOVICE RESULTS (2)'!$B$11:$B$40,MATCH('AWARDS (2)'!A6,'NOVICE RESULTS (2)'!$AE$11:$AE$40,0)) -> Messera
B7: =INDEX('NOVICE RESULTS (2)'!$D$11:$D$40,MATCH('AWARDS (2)'!A6,'NOVICE RESULTS (2)'!$I$11:$I$40,0)) -> DLB Smart Blue Bars | D7: =INDEX('NOVICE RESULTS (2)'!$D$11:$D$40,MATCH('AWARDS (2)'!A6,'NOVICE RESULTS (2)'!$N$11:$N$40,0)) -> Easy Rocket Doc | E7: =INDEX(#REF!,MATCH('AWARDS (2)'!B7,#REF!,0)) ->  | F7: =INDEX('NOVICE RESULTS (2)'!$D$11:$D$40,MATCH('AWARDS (2)'!A6,'NOVICE RESULTS (2)'!$S$11:$S$40,0)) -> Woody B Stylin | G7: =INDEX(#REF!,MATCH('AWARDS (2)'!A7,#REF!,0)) ->  | H7: =INDEX('NOVICE RESULTS (2)'!$D$11:$D$40,MATCH('AWARDS (2)'!A6,'NOVICE RESULTS (2)'!$X$11:$X$40,0)) -> Magic Dance Man | I7: =INDEX(#REF!,MATCH('AWARDS (2)'!A7,#REF!,0)) ->  | J7: =INDEX('NOVICE RESULTS (2)'!$D$11:$D$40,MATCH('AWARDS (2)'!A6,'NOVICE RESULTS (2)'!$AE$11:$AE$40,0)) -> Magic Dance Man | K7: =INDEX(#REF!,MATCH('AWARDS (2)'!A7,#REF!,0)) -> 
A8: 2 | B8: =INDEX('NOVICE RESULTS (2)'!C$11:$C$40,MATCH('AWARDS (2)'!A8,'NOVICE RESULTS (2)'!$I$11:$I$40,0)) -> Kelly | C8: =INDEX('NOVICE RESULTS (2)'!$B$11:$B$40,MATCH('AWARDS (2)'!A8,'NOVICE RESULTS (2)'!$I$11:$I$40,0)) -> Messera | D8: =INDEX('NOVICE RESULTS (2)'!$C$11:$C$40,MATCH('AWARDS (2)'!A8,'NOVICE RESULTS (2)'!$N$11:$N$40,0)) -> Kelly | E8: =INDEX('NOVICE RESULTS (2)'!$B$11:$B$40,MATCH('AWARDS (2)'!A8,'NOVICE RESULTS (2)'!$N$11:$N$40,0)) -> Messera | F8: =INDEX('NOVICE RESULTS (2)'!$C$11:$C$40,MATCH('AWARDS (2)'!A8,'NOVICE RESULTS (2)'!$S$11:$S$40,0)) -> Kelly | G8: =INDEX('NOVICE RESULTS (2)'!$B$11:$B$40,MATCH('AWARDS (2)'!A8,'NOVICE RESULTS (2)'!$S$11:$S$40,0)) -> Messera | H8: =INDEX('NOVICE RESULTS (2)'!$C$11:$C$40,MATCH('AWARDS (2)'!A8,'NOVICE RESULTS (2)'!$X$11:$X$40,0)) -> Roxanne | I8: =INDEX('NOVICE RESULTS (2)'!$B$11:$B$40,MATCH('AWARDS (2)'!A8,'NOVICE RESULTS (2)'!$X$11:$X$40,0)) -> Burton | J8: =INDEX('NOVICE RESULTS (2)'!$C$11:$C$40,MATCH('AWARDS (2)'!A8,'NOVICE RESULTS (2)'!$AE$11:$AE$40,0)) -> Roxanne | K8: =INDEX('NOVICE RESULTS (2)'!$B$11:$B$40,MATCH('AWARDS (2)'!A8,'NOVICE RESULTS (2)'!$AE$11:$AE$40,0)) -> Burton
B9: =INDEX('NOVICE RESULTS (2)'!$D$11:$D$40,MATCH('AWARDS (2)'!A8,'NOVICE RESULTS (2)'!$I$11:$I$40,0)) -> Magic Dance Man | D9: =INDEX('NOVICE RESULTS (2)'!$D$11:$D$40,MATCH('AWARDS (2)'!A8,'NOVICE RESULTS (2)'!$N$11:$N$40,0)) -> Magic Dance Man | E9: =INDEX(#REF!,MATCH('AWARDS (2)'!B9,#REF!,0)) ->  | F9: =INDEX('NOVICE RESULTS (2)'!$D$11:$D$40,MATCH('AWARDS (2)'!A8,'NOVICE RESULTS (2)'!$S$11:$S$40,0)) -> Magic Dance Man | G9: =INDEX(#REF!,MATCH('AWARDS (2)'!A9,#REF!,0)) ->  | H9: =INDEX('NOVICE RESULTS (2)'!$D$11:$D$40,MATCH('AWARDS (2)'!A8,'NOVICE RESULTS (2)'!$X$11:$X$40,0)) -> Miss Smart Gun RG | I9: =INDEX(#REF!,MATCH('AWARDS (2)'!A9,#REF!,0)) ->  | J9: =INDEX('NOVICE RESULTS (2)'!$D$11:$D$40,MATCH('AWARDS (2)'!A8,'NOVICE RESULTS (2)'!$AE$11:$AE$40,0)) -> Miss Smart Gun RG | K9: =INDEX(#REF!,MATCH('AWARDS (2)'!A9,#REF!,0)) -> 
A10: 3 | B10: =INDEX('NOVICE RESULTS (2)'!C$11:$C$40,MATCH('AWARDS (2)'!A10,'NOVICE RESULTS (2)'!$I$11:$I$40,0)) -> Roxanne | C10: =INDEX('NOVICE RESULTS (2)'!$B$11:$B$40,MATCH('AWARDS (2)'!A10,'NOVICE RESULTS (2)'!$I$11:$I$40,0)) -> Burton | D10: =INDEX('NOVICE RESULTS (2)'!$C$11:$C$40,MATCH('AWARDS (2)'!A10,'NOVICE RESULTS (2)'!$N$11:$N$40,0)) -> Roxanne | E10: =INDEX('NOVICE RESULTS (2)'!$B$11:$B$40,MATCH('AWARDS (2)'!A10,'NOVICE RESULTS (2)'!$N$11:$N$40,0)) -> Burton | F10: =INDEX('NOVICE RESULTS (2)'!$C$11:$C$40,MATCH('AWARDS (2)'!A10,'NOVICE RESULTS (2)'!$S$11:$S$40,0)) -> Roxanne | G10: =INDEX('NOVICE RESULTS (2)'!$B$11:$B$40,MATCH('AWARDS (2)'!A10,'NOVICE RESULTS (2)'!$S$11:$S$40,0)) -> Burton | H10: =INDEX('NOVICE RESULTS (2)'!$C$11:$C$40,MATCH('AWARDS (2)'!A10,'NOVICE RESULTS (2)'!$X$11:$X$40,0)) -> Dale | I10: =INDEX('NOVICE RESULTS (2)'!$B$11:$B$40,MATCH('AWARDS (2)'!A10,'NOVICE RESULTS (2)'!$X$11:$X$40,0)) -> Grove | J10: =INDEX('NOVICE RESULTS (2)'!$C$11:$C$40,MATCH('AWARDS (2)'!A10,'NOVICE RESULTS (2)'!$AE$11:$AE$40,0)) -> Dale | K10: =INDEX('NOVICE RESULTS (2)'!$B$11:$B$40,MATCH('AWARDS (2)'!A10,'NOVICE RESULTS (2)'!$AE$11:$AE$40,0)) -> Grove
B11: =INDEX('NOVICE RESULTS (2)'!$D$11:$D$40,MATCH('AWARDS (2)'!A10,'NOVICE RESULTS (2)'!$I$11:$I$40,0)) -> Miss Smart Gun RG | D11: =INDEX('NOVICE RESULTS (2)'!$D$11:$D$40,MATCH('AWARDS (2)'!A10,'NOVICE RESULTS (2)'!$N$11:$N$40,0)) -> Miss Smart Gun RG | E11: =INDEX(#REF!,MATCH('AWARDS (2)'!B11,#REF!,0)) ->  | F11: =INDEX('NOVICE RESULTS (2)'!$D$11:$D$40,MATCH('AWARDS (2)'!A10,'NOVICE RESULTS (2)'!$S$11:$S$40,0)) -> Miss Smart Gun RG | G11: =INDEX(#REF!,MATCH('AWARDS (2)'!A11,#REF!,0)) ->  | H11: =INDEX('NOVICE RESULTS (2)'!$D$11:$D$40,MATCH('AWARDS (2)'!A10,'NOVICE RESULTS (2)'!$X$11:$X$40,0)) -> Woody B Stylin | I11: =INDEX(#REF!,MATCH('AWARDS (2)'!A11,#REF!,0)) ->  | J11: =INDEX('NOVICE RESULTS (2)'!$D$11:$D$40,MATCH('AWARDS (2)'!A10,'NOVICE RESULTS (2)'!$AE$11:$AE$40,0)) -> Woody B Stylin | K11: =INDEX(#REF!,MATCH('AWARDS (2)'!A11,#REF!,0)) -> 
A12: 4 | B12: =INDEX('NOVICE RESULTS (2)'!C$11:$C$40,MATCH('AWARDS (2)'!A12,'NOVICE RESULTS (2)'!$I$11:$I$40,0)) -> Matthew | C12: =INDEX('NOVICE RESULTS (2)'!$B$11:$B$40,MATCH('AWARDS (2)'!A12,'NOVICE RESULTS (2)'!$I$11:$I$40,0)) -> Heinz | D12: =INDEX('NOVICE RESULTS (2)'!$C$11:$C$40,MATCH('AWARDS (2)'!A12,'NOVICE RESULTS (2)'!$N$11:$N$40,0)) -> Dale | E12: =INDEX('NOVICE RESULTS (2)'!$B$11:$B$40,MATCH('AWARDS (2)'!A12,'NOVICE RESULTS (2)'!$N$11:$N$40,0)) -> Grove | F12: =INDEX('NOVICE RESULTS (2)'!$C$11:$C$40,MATCH('AWARDS (2)'!A12,'NOVICE RESULTS (2)'!$S$11:$S$40,0)) -> Codi | G12: =INDEX('NOVICE RESULTS (2)'!$B$11:$B$40,MATCH('AWARDS (2)'!A12,'NOVICE RESULTS (2)'!$S$11:$S$40,0)) -> Christianson | H12: =INDEX('NOVICE RESULTS (2)'!$C$11:$C$40,MATCH('AWARDS (2)'!A12,'NOVICE RESULTS (2)'!$X$11:$X$40,0)) -> Roger | I12: =INDEX('NOVICE RESULTS (2)'!$B$11:$B$40,MATCH('AWARDS (2)'!A12,'NOVICE RESULTS (2)'!$X$11:$X$40,0)) -> Knapp | J12: =INDEX('NOVICE RESULTS (2)'!$C$11:$C$40,MATCH('AWARDS (2)'!A12,'NOVICE RESULTS (2)'!$AE$11:$AE$40,0)) -> Roger | K12: =INDEX('NOVICE RESULTS (2)'!$B$11:$B$40,MATCH('AWARDS (2)'!A12,'NOVICE RESULTS (2)'!$AE$11:$AE$40,0)) -> Knapp
B13: =INDEX('NOVICE RESULTS (2)'!$D$11:$D$40,MATCH('AWARDS (2)'!A12,'NOVICE RESULTS (2)'!$I$11:$I$40,0)) -> Sun Dee Fox | D13: =INDEX('NOVICE RESULTS (2)'!$D$11:$D$40,MATCH('AWARDS (2)'!A12,'NOVICE RESULTS (2)'!$N$11:$N$40,0)) -> Woody B Stylin | E13: =INDEX(#REF!,MATCH('AWARDS (2)'!B13,#REF!,0)) ->  | F13: =INDEX('NOVICE RESULTS (2)'!$D$11:$D$40,MATCH('AWARDS (2)'!A12,'NOVICE RESULTS (2)'!$S$11:$S$40,0)) -> Miss Makin Shine | G13: =INDEX(#REF!,MATCH('AWARDS (2)'!A13,#REF!,0)) ->  | H13: =INDEX('NOVICE RESULTS (2)'!$D$11:$D$40,MATCH('AWARDS (2)'!A12,'NOVICE RESULTS (2)'!$X$11:$X$40,0)) -> Easy Rocket Doc | I13: =INDEX(#REF!,MATCH('AWARDS (2)'!A13,#REF!,0)) ->  | J13: =INDEX('NOVICE RESULTS (2)'!$D$11:$D$40,MATCH('AWARDS (2)'!A12,'NOVICE RESULTS (2)'!$AE$11:$AE$40,0)) -> Easy Rocket Doc | K13: =INDEX(#REF!,MATCH('AWARDS (2)'!A13,#REF!,0)) -> 
A14: 5 | B14: =INDEX('NOVICE RESULTS (2)'!C$11:$C$40,MATCH('AWARDS (2)'!A14,'NOVICE RESULTS (2)'!$I$11:$I$40,0)) -> Dale | C14: =INDEX('NOVICE RESULTS (2)'!$B$11:$B$40,MATCH('AWARDS (2)'!A14,'NOVICE RESULTS (2)'!$I$11:$I$40,0)) -> Grove | D14: =INDEX('NOVICE RESULTS (2)'!$C$11:$C$40,MATCH('AWARDS (2)'!A14,'NOVICE RESULTS (2)'!$N$11:$N$40,0)) -> Sue | E14: =INDEX('NOVICE RESULTS (2)'!$B$11:$B$40,MATCH('AWARDS (2)'!A14,'NOVICE RESULTS (2)'!$N$11:$N$40,0)) -> Eisenman | F14: =INDEX('NOVICE RESULTS (2)'!$C$11:$C$40,MATCH('AWARDS (2)'!A14,'NOVICE RESULTS (2)'!$S$11:$S$40,0)) -> Sandra | G14: =INDEX('NOVICE RESULTS (2)'!$B$11:$B$40,MATCH('AWARDS (2)'!A14,'NOVICE RESULTS (2)'!$S$11:$S$40,0)) -> Hoppe | H14: =INDEX('NOVICE RESULTS (2)'!$C$11:$C$40,MATCH('AWARDS (2)'!A14,'NOVICE RESULTS (2)'!$X$11:$X$40,0)) -> Sue | I14: =INDEX('NOVICE RESULTS (2)'!$B$11:$B$40,MATCH('AWARDS (2)'!A14,'NOVICE RESULTS (2)'!$X$11:$X$40,0)) -> Eisenman | J14: =INDEX('NOVICE RESULTS (2)'!$C$11:$C$40,MATCH('AWARDS (2)'!A14,'NOVICE RESULTS (2)'!$AE$11:$AE$40,0)) -> Sue | K14: =INDEX('NOVICE RESULTS (2)'!$B$11:$B$40,MATCH('AWARDS (2)'!A14,'NOVICE RESULTS (2)'!$AE$11:$AE$40,0)) -> Eisenman
B15: =INDEX('NOVICE RESULTS (2)'!$D$11:$D$40,MATCH('AWARDS (2)'!A14,'NOVICE RESULTS (2)'!$I$11:$I$40,0)) -> Woody B Stylin | D15: =INDEX('NOVICE RESULTS (2)'!$D$11:$D$40,MATCH('AWARDS (2)'!A14,'NOVICE RESULTS (2)'!$N$11:$N$40,0)) -> DLB Smart Blue Bars | E15: =INDEX(#REF!,MATCH('AWARDS (2)'!B15,#REF!,0)) ->  | F15: =INDEX('NOVICE RESULTS (2)'!$D$11:$D$40,MATCH('AWARDS (2)'!A14,'NOVICE RESULTS (2)'!$S$11:$S$40,0)) -> B Cruzin Along | G15: =INDEX(#REF!,MATCH('AWARDS (2)'!A15,#REF!,0)) ->  | H15: =INDEX('NOVICE RESULTS (2)'!$D$11:$D$40,MATCH('AWARDS (2)'!A14,'NOVICE RESULTS (2)'!$X$11:$X$40,0)) -> DLB Smart Blue Bars | I15: =INDEX(#REF!,MATCH('AWARDS (2)'!A15,#REF!,0)) ->  | J15: =INDEX('NOVICE RESULTS (2)'!$D$11:$D$40,MATCH('AWARDS (2)'!A14,'NOVICE RESULTS (2)'!$AE$11:$AE$40,0)) -> DLB Smart Blue Bars | K15: =INDEX(#REF!,MATCH('AWARDS (2)'!A15,#REF!,0)) -> 
A16: 6 | B16: =INDEX('NOVICE RESULTS (2)'!C$11:$C$40,MATCH('AWARDS (2)'!A16,'NOVICE RESULTS (2)'!$I$11:$I$40,0)) -> Codi | C16: =INDEX('NOVICE RESULTS (2)'!$B$11:$B$40,MATCH('AWARDS (2)'!A16,'NOVICE RESULTS (2)'!$I$11:$I$40,0)) -> Christianson | D16: =INDEX('NOVICE RESULTS (2)'!$C$11:$C$40,MATCH('AWARDS (2)'!A16,'NOVICE RESULTS (2)'!$N$11:$N$40,0)) -> Sandra | E16: =INDEX('NOVICE RESULTS (2)'!$B$11:$B$40,MATCH('AWARDS (2)'!A16,'NOVICE RESULTS (2)'!$N$11:$N$40,0)) -> Hoppe | F16: =INDEX('NOVICE RESULTS (2)'!$C$11:$C$40,MATCH('AWARDS (2)'!A16,'NOVICE RESULTS (2)'!$S$11:$S$40,0)) -> Matthew | G16: =INDEX('NOVICE RESULTS (2)'!$B$11:$B$40,MATCH('AWARDS (2)'!A16,'NOVICE RESULTS (2)'!$S$11:$S$40,0)) -> Heinz | H16: =INDEX('NOVICE RESULTS (2)'!$C$11:$C$40,MATCH('AWARDS (2)'!A16,'NOVICE RESULTS (2)'!$X$11:$X$40,0)) -> Matthew | I16: =INDEX('NOVICE RESULTS (2)'!$B$11:$B$40,MATCH('AWARDS (2)'!A16,'NOVICE RESULTS (2)'!$X$11:$X$40,0)) -> Heinz | J16: =INDEX('NOVICE RESULTS (2)'!$C$11:$C$40,MATCH('AWARDS (2)'!A16,'NOVICE RESULTS (2)'!$AE$11:$AE$40,0)) -> Tracy | K16: =INDEX('NOVICE RESULTS (2)'!$B$11:$B$40,MATCH('AWARDS (2)'!A16,'NOVICE RESULTS (2)'!$AE$11:$AE$40,0)) -> Gilbert
B17: =INDEX('NOVICE RESULTS (2)'!$D$11:$D$40,MATCH('AWARDS (2)'!A16,'NOVICE RESULTS (2)'!$I$11:$I$40,0)) -> Miss Makin Shine | D17: =INDEX('NOVICE RESULTS (2)'!$D$11:$D$40,MATCH('AWARDS (2)'!A16,'NOVICE RESULTS (2)'!$N$11:$N$40,0)) -> B Cruzin Along | E17: =INDEX(#REF!,MATCH('AWARDS (2)'!B17,#REF!,0)) ->  | F17: =INDEX('NOVICE RESULTS (2)'!$D$11:$D$40,MATCH('AWARDS (2)'!A16,'NOVICE RESULTS (2)'!$S$11:$S$40,0)) -> Sun Dee Fox | G17: =INDEX(#REF!,MATCH('AWARDS (2)'!A17,#REF!,0)) ->  | H17: =INDEX('NOVICE RESULTS (2)'!$D$11:$D$40,MATCH('AWARDS (2)'!A16,'NOVICE RESULTS (2)'!$X$11:$X$40,0)) -> Sun Dee Fox | I17: =INDEX(#REF!,MATCH('AWARDS (2)'!A17,#REF!,0)) ->  | J17: =INDEX('NOVICE RESULTS (2)'!$D$11:$D$40,MATCH('AWARDS (2)'!A16,'NOVICE RESULTS (2)'!$AE$11:$AE$40,0)) -> Bud's Diablo Star | K17: =INDEX(#REF!,MATCH('AWARDS (2)'!A17,#REF!,0)) -> 
A18: Novice Reserve Champion | H18: =INDEX('NOVICE RESULTS (2)'!$C$11:$C$40,MATCH(2,'NOVICE RESULTS (2)'!$AJ$11:$AJ$40,0)) -> Roxanne | J18: =INDEX('NOVICE RESULTS (2)'!$B$11:$B$40,MATCH(2,'NOVICE RESULTS (2)'!$AJ$11:$AJ$40,0)) -> Burton
H19: =INDEX('NOVICE RESULTS (2)'!$D$11:$D$40,MATCH(2,'NOVICE RESULTS (2)'!$AJ$11:$AJ$40,0)) -> Miss Smart Gun RG | J19: =INDEX(#REF!,MATCH(2,#REF!,0)) -> 
A20: Novice Champion | H20: =INDEX('NOVICE RESULTS (2)'!$C$11:$C$40,MATCH(1,'NOVICE RESULTS (2)'!$AJ$11:$AJ$40,0)) -> Kelly | J20: =INDEX('NOVICE RESULTS (2)'!$B$11:$B$40,MATCH(1,'NOVICE RESULTS (2)'!$AJ$11:$AJ$40,0)) -> Messera
H21: =INDEX('NOVICE RESULTS (2)'!$D$11:$D$40,MATCH(1,'NOVICE RESULTS (2)'!$AJ$11:$AJ$40,0)) -> Magic Dance Man | J21: =INDEX(#REF!,MATCH(1,#REF!,0)) -> 
A24: LIMITED | B24: Ranch Riding | D24: Working Ranch Horse | F24: Cutting | H24: Trail | J24: Conformation
A25: 1 | B25: =INDEX('LIMITED RESULTS (2)'!C$11:$C$33,MATCH('AWARDS (2)'!A25,'LIMITED RESULTS (2)'!$I$11:$I$33,0)) -> Steph | C25: =INDEX('LIMITED RESULTS (2)'!$B$11:$B$33,MATCH('AWARDS (2)'!A25,'LIMITED RESULTS (2)'!$I$11:$I$33,0)) -> Siitari | D25: =INDEX('LIMITED RESULTS (2)'!$C$11:$C$33,MATCH('AWARDS (2)'!A25,'LIMITED RESULTS (2)'!$N$11:$N$33,0)) -> Gena | E25: =INDEX('LIMITED RESULTS (2)'!$B$11:$B$33,MATCH('AWARDS (2)'!A25,'LIMITED RESULTS (2)'!$N$11:$N$33,0)) -> Janetka | F25: =INDEX('LIMITED RESULTS (2)'!$C$11:$C$33,MATCH('AWARDS (2)'!A25,'LIMITED RESULTS (2)'!$S$11:$S$33,0)) -> Steph | G25: =INDEX('LIMITED RESULTS (2)'!$B$11:$B$33,MATCH('AWARDS (2)'!A25,'LIMITED RESULTS (2)'!$S$11:$S$33,0)) -> Siitari | H25: =INDEX('LIMITED RESULTS (2)'!$C$11:$C$33,MATCH('AWARDS (2)'!A25,'LIMITED RESULTS (2)'!$X$11:$X$33,0)) -> Steph | I25: =INDEX('LIMITED RESULTS (2)'!$B$11:$B$33,MATCH('AWARDS (2)'!A25,'LIMITED RESULTS (2)'!$X$11:$X$33,0)) -> Siitari | J25: =INDEX('LIMITED RESULTS (2)'!$C$11:$C$33,MATCH('AWARDS (2)'!A25,'LIMITED RESULTS (2)'!$AE$11:$AE$33,0)) -> Gena | K25: =INDEX('LIMITED RESULTS (2)'!$B$11:$B$33,MATCH('AWARDS (2)'!A25,'LIMITED RESULTS (2)'!$AE$11:$AE$33,0)) -> Janetka
B26: =INDEX('LIMITED RESULTS (2)'!$D$11:$D$33,MATCH('AWARDS (2)'!A25,'LIMITED RESULTS (2)'!$I$11:$I$33,0)) -> SLJ Ruby Slippers | D26: =INDEX('LIMITED RESULTS (2)'!$D$11:$D$33,MATCH('AWARDS (2)'!A25,'LIMITED RESULTS (2)'!$N$11:$N$33,0)) -> Froghorn Leghorn | E26: =INDEX(#REF!,MATCH('AWARDS (2)'!B26,#REF!,0)) ->  | F26: =INDEX('LIMITED RESULTS (2)'!$D$11:$D$33,MATCH('AWARDS (2)'!A25,'LIMITED RESULTS (2)'!$S$11:$S$33,0)) -> SLJ Ruby Slippers | G26: =INDEX(#REF!,MATCH('AWARDS (2)'!A26,#REF!,0)) ->  | H26: =INDEX('LIMITED RESULTS (2)'!$D$11:$D$33,MATCH('AWARDS (2)'!A25,'LIMITED RESULTS (2)'!$X$11:$X$33,0)) -> SLJ Ruby Slippers | I26: =INDEX(#REF!,MATCH('AWARDS (2)'!A26,#REF!,0)) ->  | J26: =INDEX('LIMITED RESULTS (2)'!$D$11:$D$33,MATCH('AWARDS (2)'!A25,'LIMITED RESULTS (2)'!$AE$11:$AE$33,0)) -> Froghorn Leghorn | K26: =INDEX(#REF!,MATCH('AWARDS (2)'!A26,#REF!,0)) -> 
A27: 2 | B27: =INDEX('LIMITED RESULTS (2)'!C$11:$C$33,MATCH('AWARDS (2)'!A27,'LIMITED RESULTS (2)'!$I$11:$I$33,0)) -> Gena | C27: =INDEX('LIMITED RESULTS (2)'!$B$11:$B$33,MATCH('AWARDS (2)'!A27,'LIMITED RESULTS (2)'!$I$11:$I$33,0)) -> Janetka | D27: =INDEX('LIMITED RESULTS (2)'!$C$11:$C$33,MATCH('AWARDS (2)'!A27,'LIMITED RESULTS (2)'!$N$11:$N$33,0)) -> Steph | E27: =INDEX('LIMITED RESULTS (2)'!$B$11:$B$33,MATCH('AWARDS (2)'!A27,'LIMITED RESULTS (2)'!$N$11:$N$33,0)) -> Siitari | F27: =INDEX('LIMITED RESULTS (2)'!$C$11:$C$33,MATCH('AWARDS (2)'!A27,'LIMITED RESULTS (2)'!$S$11:$S$33,0)) -> Gena | G27: =INDEX('LIMITED RESULTS (2)'!$B$11:$B$33,MATCH('AWARDS (2)'!A27,'LIMITED RESULTS (2)'!$S$11:$S$33,0)) -> Janetka | H27: =INDEX('LIMITED RESULTS (2)'!$C$11:$C$33,MATCH('AWARDS (2)'!A27,'LIMITED RESULTS (2)'!$X$11:$X$33,0)) -> Gena | I27: =INDEX('LIMITED RESULTS (2)'!$B$11:$B$33,MATCH('AWARDS (2)'!A27,'LIMITED RESULTS (2)'!$X$11:$X$33,0)) -> Janetka | J27: =INDEX('LIMITED RESULTS (2)'!$C$11:$C$33,MATCH('AWARDS (2)'!A27,'LIMITED RESULTS (2)'!$AE$11:$AE$33,0)) -> Steph | K27: =INDEX('LIMITED RESULTS (2)'!$B$11:$B$33,MATCH('AWARDS (2)'!A27,'LIMITED RESULTS (2)'!$AE$11:$AE$33,0)) -> Siitari
B28: =INDEX('LIMITED RESULTS (2)'!$D$11:$D$33,MATCH('AWARDS (2)'!A27,'LIMITED RESULTS (2)'!$I$11:$I$33,0)) -> Froghorn Leghorn | D28: =INDEX('LIMITED RESULTS (2)'!$D$11:$D$33,MATCH('AWARDS (2)'!A27,'LIMITED RESULTS (2)'!$N$11:$N$33,0)) -> SLJ Ruby Slippers | E28: =INDEX(#REF!,MATCH('AWARDS (2)'!B28,#REF!,0)) ->  | F28: =INDEX('LIMITED RESULTS (2)'!$D$11:$D$33,MATCH('AWARDS (2)'!A27,'LIMITED RESULTS (2)'!$S$11:$S$33,0)) -> Froghorn Leghorn | G28: =INDEX(#REF!,MATCH('AWARDS (2)'!A28,#REF!,0)) ->  | H28: =INDEX('LIMITED RESULTS (2)'!$D$11:$D$33,MATCH('AWARDS (2)'!A27,'LIMITED RESULTS (2)'!$X$11:$X$33,0)) -> Froghorn Leghorn | I28: =INDEX(#REF!,MATCH('AWARDS (2)'!A28,#REF!,0)) ->  | J28: =INDEX('LIMITED RESULTS (2)'!$D$11:$D$33,MATCH('AWARDS (2)'!A27,'LIMITED RESULTS (2)'!$AE$11:$AE$33,0)) -> SLJ Ruby Slippers | K28: =INDEX(#REF!,MATCH('AWARDS (2)'!A28,#REF!,0)) -> 
A29: 3 | B29: =INDEX('LIMITED RESULTS (2)'!C$11:$C$33,MATCH('AWARDS (2)'!A29,'LIMITED RESULTS (2)'!$I$11:$I$33,0)) ->  | C29: =INDEX('LIMITED RESULTS (2)'!$B$11:$B$33,MATCH('AWARDS (2)'!A29,'LIMITED RESULTS (2)'!$I$11:$I$33,0)) ->  | D29: =INDEX('LIMITED RESULTS (2)'!$C$11:$C$33,MATCH('AWARDS (2)'!A29,'LIMITED RESULTS (2)'!$N$11:$N$33,0)) ->  | E29: =INDEX('LIMITED RESULTS (2)'!$B$11:$B$33,MATCH('AWARDS (2)'!A29,'LIMITED RESULTS (2)'!$N$11:$N$33,0)) ->  | F29: =INDEX('LIMITED RESULTS (2)'!$C$11:$C$33,MATCH('AWARDS (2)'!A29,'LIMITED RESULTS (2)'!$S$11:$S$33,0)) ->  | G29: =INDEX('LIMITED RESULTS (2)'!$B$11:$B$33,MATCH('AWARDS (2)'!A29,'LIMITED RESULTS (2)'!$S$11:$S$33,0)) ->  | H29: =INDEX('LIMITED RESULTS (2)'!$C$11:$C$33,MATCH('AWARDS (2)'!A29,'LIMITED RESULTS (2)'!$X$11:$X$33,0)) ->  | I29: =INDEX('LIMITED RESULTS (2)'!$B$11:$B$33,MATCH('AWARDS (2)'!A29,'LIMITED RESULTS (2)'!$X$11:$X$33,0)) ->  | J29: =INDEX('LIMITED RESULTS (2)'!$C$11:$C$33,MATCH('AWARDS (2)'!A29,'LIMITED RESULTS (2)'!$AE$11:$AE$33,0)) ->  | K29: =INDEX('LIMITED RESULTS (2)'!$B$11:$B$33,MATCH('AWARDS (2)'!A29,'LIMITED RESULTS (2)'!$AE$11:$AE$33,0)) -> 
B30: =INDEX('LIMITED RESULTS (2)'!$D$11:$D$33,MATCH('AWARDS (2)'!A29,'LIMITED RESULTS (2)'!$I$11:$I$33,0)) ->  | D30: =INDEX('LIMITED RESULTS (2)'!$D$11:$D$33,MATCH('AWARDS (2)'!A29,'LIMITED RESULTS (2)'!$N$11:$N$33,0)) ->  | E30: =INDEX(#REF!,MATCH('AWARDS (2)'!B30,#REF!,0)) ->  | F30: =INDEX('LIMITED RESULTS (2)'!$D$11:$D$33,MATCH('AWARDS (2)'!A29,'LIMITED RESULTS (2)'!$S$11:$S$33,0)) ->  | G30: =INDEX(#REF!,MATCH('AWARDS (2)'!A30,#REF!,0)) ->  | H30: =INDEX('LIMITED RESULTS (2)'!$D$11:$D$33,MATCH('AWARDS (2)'!A29,'LIMITED RESULTS (2)'!$X$11:$X$33,0)) ->  | I30: =INDEX(#REF!,MATCH('AWARDS (2)'!A30,#REF!,0)) ->  | J30: =INDEX('LIMITED RESULTS (2)'!$D$11:$D$33,MATCH('AWARDS (2)'!A29,'LIMITED RESULTS (2)'!$AE$11:$AE$33,0)) ->  | K30: =INDEX(#REF!,MATCH('AWARDS (2)'!A30,#REF!,0)) -> 
A31: 4 | B31: =INDEX('LIMITED RESULTS (2)'!C$11:$C$33,MATCH('AWARDS (2)'!A31,'LIMITED RESULTS (2)'!$I$11:$I$33,0)) ->  | C31: =INDEX('LIMITED RESULTS (2)'!$B$11:$B$33,MATCH('AWARDS (2)'!A31,'LIMITED RESULTS (2)'!$I$11:$I$33,0)) ->  | D31: =INDEX('LIMITED RESULTS (2)'!$C$11:$C$33,MATCH('AWARDS (2)'!A31,'LIMITED RESULTS (2)'!$N$11:$N$33,0)) ->  | E31: =INDEX('LIMITED RESULTS (2)'!$B$11:$B$33,MATCH('AWARDS (2)'!A31,'LIMITED RESULTS (2)'!$N$11:$N$33,0)) ->  | F31: =INDEX('LIMITED RESULTS (2)'!$C$11:$C$33,MATCH('AWARDS (2)'!A31,'LIMITED RESULTS (2)'!$S$11:$S$33,0)) ->  | G31: =INDEX('LIMITED RESULTS (2)'!$B$11:$B$33,MATCH('AWARDS (2)'!A31,'LIMITED RESULTS (2)'!$S$11:$S$33,0)) ->  | H31: =INDEX('LIMITED RESULTS (2)'!$C$11:$C$33,MATCH('AWARDS (2)'!A31,'LIMITED RESULTS (2)'!$X$11:$X$33,0)) ->  | I31: =INDEX('LIMITED RESULTS (2)'!$B$11:$B$33,MATCH('AWARDS (2)'!A31,'LIMITED RESULTS (2)'!$X$11:$X$33,0)) ->  | J31: =INDEX('LIMITED RESULTS (2)'!$C$11:$C$33,MATCH('AWARDS (2)'!A31,'LIMITED RESULTS (2)'!$AE$11:$AE$33,0)) ->  | K31: =INDEX('LIMITED RESULTS (2)'!$B$11:$B$33,MATCH('AWARDS (2)'!A31,'LIMITED RESULTS (2)'!$AE$11:$AE$33,0)) -> 
B32: =INDEX('LIMITED RESULTS (2)'!$D$11:$D$33,MATCH('AWARDS (2)'!A31,'LIMITED RESULTS (2)'!$I$11:$I$33,0)) ->  | D32: =INDEX('LIMITED RESULTS (2)'!$D$11:$D$33,MATCH('AWARDS (2)'!A31,'LIMITED RESULTS (2)'!$N$11:$N$33,0)) ->  | E32: =INDEX(#REF!,MATCH('AWARDS (2)'!B32,#REF!,0)) ->  | F32: =INDEX('LIMITED RESULTS (2)'!$D$11:$D$33,MATCH('AWARDS (2)'!A31,'LIMITED RESULTS (2)'!$S$11:$S$33,0)) ->  | G32: =INDEX(#REF!,MATCH('AWARDS (2)'!A32,#REF!,0)) ->  | H32: =INDEX('LIMITED RESULTS (2)'!$D$11:$D$33,MATCH('AWARDS (2)'!A31,'LIMITED RESULTS (2)'!$X$11:$X$33,0)) ->  | I32: =INDEX(#REF!,MATCH('AWARDS (2)'!A32,#REF!,0)) ->  | J32: =INDEX('LIMITED RESULTS (2)'!$D$11:$D$33,MATCH('AWARDS (2)'!A31,'LIMITED RESULTS (2)'!$AE$11:$AE$33,0)) ->  | K32: =INDEX(#REF!,MATCH('AWARDS (2)'!A32,#REF!,0)) -> 
A33: 5 | B33: =INDEX('LIMITED RESULTS (2)'!C$11:$C$33,MATCH('AWARDS (2)'!A33,'LIMITED RESULTS (2)'!$I$11:$I$33,0)) ->  | C33: =INDEX('LIMITED RESULTS (2)'!$B$11:$B$33,MATCH('AWARDS (2)'!A33,'LIMITED RESULTS (2)'!$I$11:$I$33,0)) ->  | D33: =INDEX('LIMITED RESULTS (2)'!$C$11:$C$33,MATCH('AWARDS (2)'!A33,'LIMITED RESULTS (2)'!$N$11:$N$33,0)) ->  | E33: =INDEX('LIMITED RESULTS (2)'!$B$11:$B$33,MATCH('AWARDS (2)'!A33,'LIMITED RESULTS (2)'!$N$11:$N$33,0)) ->  | F33: =INDEX('LIMITED RESULTS (2)'!$C$11:$C$33,MATCH('AWARDS (2)'!A33,'LIMITED RESULTS (2)'!$S$11:$S$33,0)) ->  | G33: =INDEX('LIMITED RESULTS (2)'!$B$11:$B$33,MATCH('AWARDS (2)'!A33,'LIMITED RESULTS (2)'!$S$11:$S$33,0)) ->  | H33: =INDEX('LIMITED RESULTS (2)'!$C$11:$C$33,MATCH('AWARDS (2)'!A33,'LIMITED RESULTS (2)'!$X$11:$X$33,0)) ->  | I33: =INDEX('LIMITED RESULTS (2)'!$B$11:$B$33,MATCH('AWARDS (2)'!A33,'LIMITED RESULTS (2)'!$X$11:$X$33,0)) ->  | J33: =INDEX('LIMITED RESULTS (2)'!$C$11:$C$33,MATCH('AWARDS (2)'!A33,'LIMITED RESULTS (2)'!$AE$11:$AE$33,0)) ->  | K33: =INDEX('LIMITED RESULTS (2)'!$B$11:$B$33,MATCH('AWARDS (2)'!A33,'LIMITED RESULTS (2)'!$AE$11:$AE$33,0)) -> 
B34: =INDEX('LIMITED RESULTS (2)'!$D$11:$D$33,MATCH('AWARDS (2)'!A33,'LIMITED RESULTS (2)'!$I$11:$I$33,0)) ->  | D34: =INDEX('LIMITED RESULTS (2)'!$D$11:$D$33,MATCH('AWARDS (2)'!A33,'LIMITED RESULTS (2)'!$N$11:$N$33,0)) ->  | E34: =INDEX(#REF!,MATCH('AWARDS (2)'!B34,#REF!,0)) ->  | F34: =INDEX('LIMITED RESULTS (2)'!$D$11:$D$33,MATCH('AWARDS (2)'!A33,'LIMITED RESULTS (2)'!$S$11:$S$33,0)) ->  | G34: =INDEX(#REF!,MATCH('AWARDS (2)'!A34,#REF!,0)) ->  | H34: =INDEX('LIMITED RESULTS (2)'!$D$11:$D$33,MATCH('AWARDS (2)'!A33,'LIMITED RESULTS (2)'!$X$11:$X$33,0)) ->  | I34: =INDEX(#REF!,MATCH('AWARDS (2)'!A34,#REF!,0)) ->  | J34: =INDEX('LIMITED RESULTS (2)'!$D$11:$D$33,MATCH('AWARDS (2)'!A33,'LIMITED RESULTS (2)'!$AE$11:$AE$33,0)) ->  | K34: =INDEX(#REF!,MATCH('AWARDS (2)'!A34,#REF!,0)) -> 
A35: 6 | B35: =INDEX('LIMITED RESULTS (2)'!C$11:$C$33,MATCH('AWARDS (2)'!A35,'LIMITED RESULTS (2)'!$I$11:$I$33,0)) ->  | C35: =INDEX('LIMITED RESULTS (2)'!$B$11:$B$33,MATCH('AWARDS (2)'!A35,'LIMITED RESULTS (2)'!$I$11:$I$33,0)) ->  | D35: =INDEX('LIMITED RESULTS (2)'!$C$11:$C$33,MATCH('AWARDS (2)'!A35,'LIMITED RESULTS (2)'!$N$11:$N$33,0)) ->  | E35: =INDEX('LIMITED RESULTS (2)'!$B$11:$B$33,MATCH('AWARDS (2)'!A35,'LIMITED RESULTS (2)'!$N$11:$N$33,0)) ->  | F35: =INDEX('LIMITED RESULTS (2)'!$C$11:$C$33,MATCH('AWARDS (2)'!A35,'LIMITED RESULTS (2)'!$S$11:$S$33,0)) ->  | G35: =INDEX('LIMITED RESULTS (2)'!$B$11:$B$33,MATCH('AWARDS (2)'!A35,'LIMITED RESULTS (2)'!$S$11:$S$33,0)) ->  | H35: =INDEX('LIMITED RESULTS (2)'!$C$11:$C$33,MATCH('AWARDS (2)'!A35,'LIMITED RESULTS (2)'!$X$11:$X$33,0)) ->  | I35: =INDEX('LIMITED RESULTS (2)'!$B$11:$B$33,MATCH('AWARDS (2)'!A35,'LIMITED RESULTS (2)'!$X$11:$X$33,0)) ->  | J35: =INDEX('LIMITED RESULTS (2)'!$C$11:$C$33,MATCH('AWARDS (2)'!A35,'LIMITED RESULTS (2)'!$AE$11:$AE$33,0)) ->  | K35: =INDEX('LIMITED RESULTS (2)'!$B$11:$B$33,MATCH('AWARDS (2)'!A35,'LIMITED RESULTS (2)'!$AE$11:$AE$33,0)) -> 
B36: =INDEX('LIMITED RESULTS (2)'!$D$11:$D$33,MATCH('AWARDS (2)'!A35,'LIMITED RESULTS (2)'!$I$11:$I$33,0)) ->  | D36: =INDEX('LIMITED RESULTS (2)'!$D$11:$D$33,MATCH('AWARDS (2)'!A35,'LIMITED RESULTS (2)'!$N$11:$N$33,0)) ->  | E36: =INDEX(#REF!,MATCH('AWARDS (2)'!B36,#REF!,0)) ->  | F36: =INDEX('LIMITED RESULTS (2)'!$D$11:$D$33,MATCH('AWARDS (2)'!A35,'LIMITED RESULTS (2)'!$S$11:$S$33,0)) ->  | G36: =INDEX(#REF!,MATCH('AWARDS (2)'!A36,#REF!,0)) ->  | H36: =INDEX('LIMITED RESULTS (2)'!$D$11:$D$33,MATCH('AWARDS (2)'!A35,'LIMITED RESULTS (2)'!$X$11:$X$33,0)) ->  | I36: =INDEX(#REF!,MATCH('AWARDS (2)'!A36,#REF!,0)) ->  | J36: =INDEX('LIMITED RESULTS (2)'!$D$11:$D$33,MATCH('AWARDS (2)'!A35,'LIMITED RESULTS (2)'!$AE$11:$AE$33,0)) ->  | K36: =INDEX(#REF!,MATCH('AWARDS (2)'!A36,#REF!,0)) -> 
A37: Limited Reserve Champion | H37: =INDEX('LIMITED RESULTS (2)'!$C$11:$C$33,MATCH(2,'LIMITED RESULTS (2)'!$AJ$11:$AJ$33,0)) -> Gena | J37: =INDEX('LIMITED RESULTS (2)'!$B$11:$B$33,MATCH(2,'LIMITED RESULTS (2)'!$AJ$11:$AJ$33,0)) -> Janetka
H38: =INDEX('LIMITED RESULTS (2)'!$D$11:$D$33,MATCH(2,'LIMITED RESULTS (2)'!$AJ$11:$AJ$33,0)) -> Froghorn Leghorn | J38: =INDEX(#REF!,MATCH(2,#REF!,0)) -> 
A39: Limited Champion | H39: =INDEX('LIMITED RESULTS (2)'!$C$11:$C$33,MATCH(1,'LIMITED RESULTS (2)'!$AJ$11:$AJ$33,0)) -> Steph | J39: =INDEX('LIMITED RESULTS (2)'!$B$11:$B$33,MATCH(1,'LIMITED RESULTS (2)'!$AJ$11:$AJ$33,0)) -> Siitari
H40: =INDEX('LIMITED RESULTS (2)'!$D$11:$D$33,MATCH(1,'LIMITED RESULTS (2)'!$AJ$11:$AJ$33,0)) -> SLJ Ruby Slippers | J40: =INDEX(#REF!,MATCH(1,#REF!,0)) -> 
A43: ='Entry Information'!H4 -> The Horse First Farm, Brooklyn, WI
A44: ='Entry Information'!H5 -> June 28-29,2014
A47: INTERMEDIATE | B47: Ranch Riding | D47: Working Ranch Horse | F47: Cutting | H47: Trail | J47: Conformation
A48: 1 | B48: =INDEX('INTERMEDIATE RESULTS (2)'!C$11:$C$33,MATCH('AWARDS (2)'!A48,'INTERMEDIATE RESULTS (2)'!$I$11:$I$33,0)) -> Carlos | C48: =INDEX('INTERMEDIATE RESULTS (2)'!$B$11:$B$33,MATCH('AWARDS (2)'!A48,'INTERMEDIATE RESULTS (2)'!$I$11:$I$33,0)) -> Osorio | D48: =INDEX('INTERMEDIATE RESULTS (2)'!$C$11:$C$33,MATCH('AWARDS (2)'!A48,'INTERMEDIATE RESULTS (2)'!$N$11:$N$33,0)) -> Carlos | E48: =INDEX('INTERMEDIATE RESULTS (2)'!$B$11:$B$33,MATCH('AWARDS (2)'!A48,'INTERMEDIATE RESULTS (2)'!$N$11:$N$33,0)) -> Osorio | F48: =INDEX('INTERMEDIATE RESULTS (2)'!$C$11:$C$33,MATCH('AWARDS (2)'!A48,'INTERMEDIATE RESULTS (2)'!$S$11:$S$33,0)) -> Carlos | G48: =INDEX('INTERMEDIATE RESULTS (2)'!$B$11:$B$33,MATCH('AWARDS (2)'!A48,'INTERMEDIATE RESULTS (2)'!$S$11:$S$33,0)) -> Osorio | H48: =INDEX('INTERMEDIATE RESULTS (2)'!$C$11:$C$33,MATCH('AWARDS (2)'!A48,'INTERMEDIATE RESULTS (2)'!$X$11:$X$33,0)) -> Carlos | I48: =INDEX('INTERMEDIATE RESULTS (2)'!$B$11:$B$33,MATCH('AWARDS (2)'!A48,'INTERMEDIATE RESULTS (2)'!$X$11:$X$33,0)) -> Osorio | J48: =INDEX('INTERMEDIATE RESULTS (2)'!$C$11:$C$33,MATCH('AWARDS (2)'!A48,'INTERMEDIATE RESULTS (2)'!$AE$11:$AE$33,0)) -> Carlos | K48: =INDEX('INTERMEDIATE RESULTS (2)'!$B$11:$B$33,MATCH('AWARDS (2)'!A48,'INTERMEDIATE RESULTS (2)'!$AE$11:$AE$33,0)) -> Osorio
B49: =INDEX('INTERMEDIATE RESULTS (2)'!$D$11:$D$33,MATCH('AWARDS (2)'!A48,'INTERMEDIATE RESULTS (2)'!$I$11:$I$33,0)) -> AR Especial | D49: =INDEX('INTERMEDIATE RESULTS (2)'!$D$11:$D$33,MATCH('AWARDS (2)'!A48,'INTERMEDIATE RESULTS (2)'!$N$11:$N$33,0)) -> AR Especial | E49: =INDEX(#REF!,MATCH('AWARDS (2)'!B49,#REF!,0)) ->  | F49: =INDEX('INTERMEDIATE RESULTS (2)'!$D$11:$D$33,MATCH('AWARDS (2)'!A48,'INTERMEDIATE RESULTS (2)'!$S$11:$S$33,0)) -> AR Especial | G49: =INDEX(#REF!,MATCH('AWARDS (2)'!A49,#REF!,0)) ->  | H49: =INDEX('INTERMEDIATE RESULTS (2)'!$D$11:$D$33,MATCH('AWARDS (2)'!A48,'INTERMEDIATE RESULTS (2)'!$X$11:$X$33,0)) -> AR Especial | I49: =INDEX(#REF!,MATCH('AWARDS (2)'!A49,#REF!,0)) ->  | J49: =INDEX('INTERMEDIATE RESULTS (2)'!$D$11:$D$33,MATCH('AWARDS (2)'!A48,'INTERMEDIATE RESULTS (2)'!$AE$11:$AE$33,0)) -> AR Especial | K49: =INDEX(#REF!,MATCH('AWARDS (2)'!A49,#REF!,0)) -> 
A50: 2 | B50: =INDEX('INTERMEDIATE RESULTS (2)'!C$11:$C$33,MATCH('AWARDS (2)'!A50,'INTERMEDIATE RESULTS (2)'!$I$11:$I$33,0)) ->  | C50: =INDEX('INTERMEDIATE RESULTS (2)'!$B$11:$B$33,MATCH('AWARDS (2)'!A50,'INTERMEDIATE RESULTS (2)'!$I$11:$I$33,0)) ->  | D50: =INDEX('INTERMEDIATE RESULTS (2)'!$C$11:$C$33,MATCH('AWARDS (2)'!A50,'INTERMEDIATE RESULTS (2)'!$N$11:$N$33,0)) ->  | E50: =INDEX('INTERMEDIATE RESULTS (2)'!$B$11:$B$33,MATCH('AWARDS (2)'!A50,'INTERMEDIATE RESULTS (2)'!$N$11:$N$33,0)) ->  | F50: =INDEX('INTERMEDIATE RESULTS (2)'!$C$11:$C$33,MATCH('AWARDS (2)'!A50,'INTERMEDIATE RESULTS (2)'!$S$11:$S$33,0)) ->  | G50: =INDEX('INTERMEDIATE RESULTS (2)'!$B$11:$B$33,MATCH('AWARDS (2)'!A50,'INTERMEDIATE RESULTS (2)'!$S$11:$S$33,0)) ->  | H50: =INDEX('INTERMEDIATE RESULTS (2)'!$C$11:$C$33,MATCH('AWARDS (2)'!A50,'INTERMEDIATE RESULTS (2)'!$X$11:$X$33,0)) ->  | I50: =INDEX('INTERMEDIATE RESULTS (2)'!$B$11:$B$33,MATCH('AWARDS (2)'!A50,'INTERMEDIATE RESULTS (2)'!$X$11:$X$33,0)) ->  | J50: =INDEX('INTERMEDIATE RESULTS (2)'!$C$11:$C$33,MATCH('AWARDS (2)'!A50,'INTERMEDIATE RESULTS (2)'!$AE$11:$AE$33,0)) ->  | K50: =INDEX('INTERMEDIATE RESULTS (2)'!$B$11:$B$33,MATCH('AWARDS (2)'!A50,'INTERMEDIATE RESULTS (2)'!$AE$11:$AE$33,0)) -> 
B51: =INDEX('INTERMEDIATE RESULTS (2)'!$D$11:$D$33,MATCH('AWARDS (2)'!A50,'INTERMEDIATE RESULTS (2)'!$I$11:$I$33,0)) ->  | D51: =INDEX('INTERMEDIATE RESULTS (2)'!$D$11:$D$33,MATCH('AWARDS (2)'!A50,'INTERMEDIATE RESULTS (2)'!$N$11:$N$33,0)) ->  | E51: =INDEX(#REF!,MATCH('AWARDS (2)'!B51,#REF!,0)) ->  | F51: =INDEX('INTERMEDIATE RESULTS (2)'!$D$11:$D$33,MATCH('AWARDS (2)'!A50,'INTERMEDIATE RESULTS (2)'!$S$11:$S$33,0)) ->  | G51: =INDEX(#REF!,MATCH('AWARDS (2)'!A51,#REF!,0)) ->  | H51: =INDEX('INTERMEDIATE RESULTS (2)'!$D$11:$D$33,MATCH('AWARDS (2)'!A50,'INTERMEDIATE RESULTS (2)'!$X$11:$X$33,0)) ->  | I51: =INDEX(#REF!,MATCH('AWARDS (2)'!A51,#REF!,0)) ->  | J51: =INDEX('INTERMEDIATE RESULTS (2)'!$D$11:$D$33,MATCH('AWARDS (2)'!A50,'INTERMEDIATE RESULTS (2)'!$AE$11:$AE$33,0)) ->  | K51: =INDEX(#REF!,MATCH('AWARDS (2)'!A51,#REF!,0)) -> 
A52: 3 | B52: =INDEX('INTERMEDIATE RESULTS (2)'!C$11:$C$33,MATCH('AWARDS (2)'!A52,'INTERMEDIATE RESULTS (2)'!$I$11:$I$33,0)) ->  | C52: =INDEX('INTERMEDIATE RESULTS (2)'!$B$11:$B$33,MATCH('AWARDS (2)'!A52,'INTERMEDIATE RESULTS (2)'!$I$11:$I$33,0)) ->  | D52: =INDEX('INTERMEDIATE RESULTS (2)'!$C$11:$C$33,MATCH('AWARDS (2)'!A52,'INTERMEDIATE RESULTS (2)'!$N$11:$N$33,0)) ->  | E52: =INDEX('INTERMEDIATE RESULTS (2)'!$B$11:$B$33,MATCH('AWARDS (2)'!A52,'INTERMEDIATE RESULTS (2)'!$N$11:$N$33,0)) ->  | F52: =INDEX('INTERMEDIATE RESULTS (2)'!$C$11:$C$33,MATCH('AWARDS (2)'!A52,'INTERMEDIATE RESULTS (2)'!$S$11:$S$33,0)) ->  | G52: =INDEX('INTERMEDIATE RESULTS (2)'!$B$11:$B$33,MATCH('AWARDS (2)'!A52,'INTERMEDIATE RESULTS (2)'!$S$11:$S$33,0)) ->  | H52: =INDEX('INTERMEDIATE RESULTS (2)'!$C$11:$C$33,MATCH('AWARDS (2)'!A52,'INTERMEDIATE RESULTS (2)'!$X$11:$X$33,0)) ->  | I52: =INDEX('INTERMEDIATE RESULTS (2)'!$B$11:$B$33,MATCH('AWARDS (2)'!A52,'INTERMEDIATE RESULTS (2)'!$X$11:$X$33,0)) ->  | J52: =INDEX('INTERMEDIATE RESULTS (2)'!$C$11:$C$33,MATCH('AWARDS (2)'!A52,'INTERMEDIATE RESULTS (2)'!$AE$11:$AE$33,0)) ->  | K52: =INDEX('INTERMEDIATE RESULTS (2)'!$B$11:$B$33,MATCH('AWARDS (2)'!A52,'INTERMEDIATE RESULTS (2)'!$AE$11:$AE$33,0)) -> 
B53: =INDEX('INTERMEDIATE RESULTS (2)'!$D$11:$D$33,MATCH('AWARDS (2)'!A52,'INTERMEDIATE RESULTS (2)'!$I$11:$I$33,0)) ->  | D53: =INDEX('INTERMEDIATE RESULTS (2)'!$D$11:$D$33,MATCH('AWARDS (2)'!A52,'INTERMEDIATE RESULTS (2)'!$N$11:$N$33,0)) ->  | E53: =INDEX(#REF!,MATCH('AWARDS (2)'!B53,#REF!,0)) ->  | F53: =INDEX('INTERMEDIATE RESULTS (2)'!$D$11:$D$33,MATCH('AWARDS (2)'!A52,'INTERMEDIATE RESULTS (2)'!$S$11:$S$33,0)) ->  | G53: =INDEX(#REF!,MATCH('AWARDS (2)'!A53,#REF!,0)) ->  | H53: =INDEX('INTERMEDIATE RESULTS (2)'!$D$11:$D$33,MATCH('AWARDS (2)'!A52,'INTERMEDIATE RESULTS (2)'!$X$11:$X$33,0)) ->  | I53: =INDEX(#REF!,MATCH('AWARDS (2)'!A53,#REF!,0)) ->  | J53: =INDEX('INTERMEDIATE RESULTS (2)'!$D$11:$D$33,MATCH('AWARDS (2)'!A52,'INTERMEDIATE RESULTS (2)'!$AE$11:$AE$33,0)) ->  | K53: =INDEX(#REF!,MATCH('AWARDS (2)'!A53,#REF!,0)) -> 
A54: 4 | B54: =INDEX('INTERMEDIATE RESULTS (2)'!C$11:$C$33,MATCH('AWARDS (2)'!A54,'INTERMEDIATE RESULTS (2)'!$I$11:$I$33,0)) ->  | C54: =INDEX('INTERMEDIATE RESULTS (2)'!$B$11:$B$33,MATCH('AWARDS (2)'!A54,'INTERMEDIATE RESULTS (2)'!$I$11:$I$33,0)) ->  | D54: =INDEX('INTERMEDIATE RESULTS (2)'!$C$11:$C$33,MATCH('AWARDS (2)'!A54,'INTERMEDIATE RESULTS (2)'!$N$11:$N$33,0)) ->  | E54: =INDEX('INTERMEDIATE RESULTS (2)'!$B$11:$B$33,MATCH('AWARDS (2)'!A54,'INTERMEDIATE RESULTS (2)'!$N$11:$N$33,0)) ->  | F54: =INDEX('INTERMEDIATE RESULTS (2)'!$C$11:$C$33,MATCH('AWARDS (2)'!A54,'INTERMEDIATE RESULTS (2)'!$S$11:$S$33,0)) ->  | G54: =INDEX('INTERMEDIATE RESULTS (2)'!$B$11:$B$33,MATCH('AWARDS (2)'!A54,'INTERMEDIATE RESULTS (2)'!$S$11:$S$33,0)) ->  | H54: =INDEX('INTERMEDIATE RESULTS (2)'!$C$11:$C$33,MATCH('AWARDS (2)'!A54,'INTERMEDIATE RESULTS (2)'!$X$11:$X$33,0)) ->  | I54: =INDEX('INTERMEDIATE RESULTS (2)'!$B$11:$B$33,MATCH('AWARDS (2)'!A54,'INTERMEDIATE RESULTS (2)'!$X$11:$X$33,0)) ->  | J54: =INDEX('INTERMEDIATE RESULTS (2)'!$C$11:$C$33,MATCH('AWARDS (2)'!A54,'INTERMEDIATE RESULTS (2)'!$AE$11:$AE$33,0)) ->  | K54: =INDEX('INTERMEDIATE RESULTS (2)'!$B$11:$B$33,MATCH('AWARDS (2)'!A54,'INTERMEDIATE RESULTS (2)'!$AE$11:$AE$33,0)) -> 
B55: =INDEX('INTERMEDIATE RESULTS (2)'!$D$11:$D$33,MATCH('AWARDS (2)'!A54,'INTERMEDIATE RESULTS (2)'!$I$11:$I$33,0)) ->  | D55: =INDEX('INTERMEDIATE RESULTS (2)'!$D$11:$D$33,MATCH('AWARDS (2)'!A54,'INTERMEDIATE RESULTS (2)'!$N$11:$N$33,0)) ->  | E55: =INDEX(#REF!,MATCH('AWARDS (2)'!B55,#REF!,0)) ->  | F55: =INDEX('INTERMEDIATE RESULTS (2)'!$D$11:$D$33,MATCH('AWARDS (2)'!A54,'INTERMEDIATE RESULTS (2)'!$S$11:$S$33,0)) ->  | G55: =INDEX(#REF!,MATCH('AWARDS (2)'!A55,#REF!,0)) ->  | H55: =INDEX('INTERMEDIATE RESULTS (2)'!$D$11:$D$33,MATCH('AWARDS (2)'!A54,'INTERMEDIATE RESULTS (2)'!$X$11:$X$33,0)) ->  | I55: =INDEX(#REF!,MATCH('AWARDS (2)'!A55,#REF!,0)) ->  | J55: =INDEX('INTERMEDIATE RESULTS (2)'!$D$11:$D$33,MATCH('AWARDS (2)'!A54,'INTERMEDIATE RESULTS (2)'!$AE$11:$AE$33,0)) ->  | K55: =INDEX(#REF!,MATCH('AWARDS (2)'!A55,#REF!,0)) -> 
A56: 5 | B56: =INDEX('INTERMEDIATE RESULTS (2)'!C$11:$C$33,MATCH('AWARDS (2)'!A56,'INTERMEDIATE RESULTS (2)'!$I$11:$I$33,0)) ->  | C56: =INDEX('INTERMEDIATE RESULTS (2)'!$B$11:$B$33,MATCH('AWARDS (2)'!A56,'INTERMEDIATE RESULTS (2)'!$I$11:$I$33,0)) ->  | D56: =INDEX('INTERMEDIATE RESULTS (2)'!$C$11:$C$33,MATCH('AWARDS (2)'!A56,'INTERMEDIATE RESULTS (2)'!$N$11:$N$33,0)) ->  | E56: =INDEX('INTERMEDIATE RESULTS (2)'!$B$11:$B$33,MATCH('AWARDS (2)'!A56,'INTERMEDIATE RESULTS (2)'!$N$11:$N$33,0)) ->  | F56: =INDEX('INTERMEDIATE RESULTS (2)'!$C$11:$C$33,MATCH('AWARDS (2)'!A56,'INTERMEDIATE RESULTS (2)'!$S$11:$S$33,0)) ->  | G56: =INDEX('INTERMEDIATE RESULTS (2)'!$B$11:$B$33,MATCH('AWARDS (2)'!A56,'INTERMEDIATE RESULTS (2)'!$S$11:$S$33,0)) ->  | H56: =INDEX('INTERMEDIATE RESULTS (2)'!$C$11:$C$33,MATCH('AWARDS (2)'!A56,'INTERMEDIATE RESULTS (2)'!$X$11:$X$33,0)) ->  | I56: =INDEX('INTERMEDIATE RESULTS (2)'!$B$11:$B$33,MATCH('AWARDS (2)'!A56,'INTERMEDIATE RESULTS (2)'!$X$11:$X$33,0)) ->  | J56: =INDEX('INTERMEDIATE RESULTS (2)'!$C$11:$C$33,MATCH('AWARDS (2)'!A56,'INTERMEDIATE RESULTS (2)'!$AE$11:$AE$33,0)) ->  | K56: =INDEX('INTERMEDIATE RESULTS (2)'!$B$11:$B$33,MATCH('AWARDS (2)'!A56,'INTERMEDIATE RESULTS (2)'!$AE$11:$AE$33,0)) -> 
B57: =INDEX('INTERMEDIATE RESULTS (2)'!$D$11:$D$33,MATCH('AWARDS (2)'!A56,'INTERMEDIATE RESULTS (2)'!$I$11:$I$33,0)) ->  | D57: =INDEX('INTERMEDIATE RESULTS (2)'!$D$11:$D$33,MATCH('AWARDS (2)'!A56,'INTERMEDIATE RESULTS (2)'!$N$11:$N$33,0)) ->  | E57: =INDEX(#REF!,MATCH('AWARDS (2)'!B57,#REF!,0)) ->  | F57: =INDEX('INTERMEDIATE RESULTS (2)'!$D$11:$D$33,MATCH('AWARDS (2)'!A56,'INTERMEDIATE RESULTS (2)'!$S$11:$S$33,0)) ->  | G57: =INDEX(#REF!,MATCH('AWARDS (2)'!A57,#REF!,0)) ->  | H57: =INDEX('INTERMEDIATE RESULTS (2)'!$D$11:$D$33,MATCH('AWARDS (2)'!A56,'INTERMEDIATE RESULTS (2)'!$X$11:$X$33,0)) ->  | I57: =INDEX(#REF!,MATCH('AWARDS (2)'!A57,#REF!,0)) ->  | J57: =INDEX('INTERMEDIATE RESULTS (2)'!$D$11:$D$33,MATCH('AWARDS (2)'!A56,'INTERMEDIATE RESULTS (2)'!$AE$11:$AE$33,0)) ->  | K57: =INDEX(#REF!,MATCH('AWARDS (2)'!A57,#REF!,0)) -> 
A58: 6 | B58: =INDEX('INTERMEDIATE RESULTS (2)'!C$11:$C$33,MATCH('AWARDS (2)'!A58,'INTERMEDIATE RESULTS (2)'!$I$11:$I$33,0)) ->  | C58: =INDEX('INTERMEDIATE RESULTS (2)'!$B$11:$B$33,MATCH('AWARDS (2)'!A58,'INTERMEDIATE RESULTS (2)'!$I$11:$I$33,0)) ->  | D58: =INDEX('INTERMEDIATE RESULTS (2)'!$C$11:$C$33,MATCH('AWARDS (2)'!A58,'INTERMEDIATE RESULTS (2)'!$N$11:$N$33,0)) ->  | E58: =INDEX('INTERMEDIATE RESULTS (2)'!$B$11:$B$33,MATCH('AWARDS (2)'!A58,'INTERMEDIATE RESULTS (2)'!$N$11:$N$33,0)) ->  | F58: =INDEX('INTERMEDIATE RESULTS (2)'!$C$11:$C$33,MATCH('AWARDS (2)'!A58,'INTERMEDIATE RESULTS (2)'!$S$11:$S$33,0)) ->  | G58: =INDEX('INTERMEDIATE RESULTS (2)'!$B$11:$B$33,MATCH('AWARDS (2)'!A58,'INTERMEDIATE RESULTS (2)'!$S$11:$S$33,0)) ->  | H58: =INDEX('INTERMEDIATE RESULTS (2)'!$C$11:$C$33,MATCH('AWARDS (2)'!A58,'INTERMEDIATE RESULTS (2)'!$X$11:$X$33,0)) ->  | I58: =INDEX('INTERMEDIATE RESULTS (2)'!$B$11:$B$33,MATCH('AWARDS (2)'!A58,'INTERMEDIATE RESULTS (2)'!$X$11:$X$33,0)) ->  | J58: =INDEX('INTERMEDIATE RESULTS (2)'!$C$11:$C$33,MATCH('AWARDS (2)'!A58,'INTERMEDIATE RESULTS (2)'!$AE$11:$AE$33,0)) ->  | K58: =INDEX('INTERMEDIATE RESULTS (2)'!$B$11:$B$33,MATCH('AWARDS (2)'!A58,'INTERMEDIATE RESULTS (2)'!$AE$11:$AE$33,0)) -> 
B59: =INDEX('INTERMEDIATE RESULTS (2)'!$D$11:$D$33,MATCH('AWARDS (2)'!A58,'INTERMEDIATE RESULTS (2)'!$I$11:$I$33,0)) ->  | D59: =INDEX('INTERMEDIATE RESULTS (2)'!$D$11:$D$33,MATCH('AWARDS (2)'!A58,'INTERMEDIATE RESULTS (2)'!$N$11:$N$33,0)) ->  | E59: =INDEX(#REF!,MATCH('AWARDS (2)'!B59,#REF!,0)) ->  | F59: =INDEX('INTERMEDIATE RESULTS (2)'!$D$11:$D$33,MATCH('AWARDS (2)'!A58,'INTERMEDIATE RESULTS (2)'!$S$11:$S$33,0)) ->  | G59: =INDEX(#REF!,MATCH('AWARDS (2)'!A59,#REF!,0)) ->  | H59: =INDEX('INTERMEDIATE RESULTS (2)'!$D$11:$D$33,MATCH('AWARDS (2)'!A58,'INTERMEDIATE RESULTS (2)'!$X$11:$X$33,0)) ->  | I59: =INDEX(#REF!,MATCH('AWARDS (2)'!A59,#REF!,0)) ->  | J59: =INDEX('INTERMEDIATE RESULTS (2)'!$D$11:$D$33,MATCH('AWARDS (2)'!A58,'INTERMEDIATE RESULTS (2)'!$AE$11:$AE$33,0)) ->  | K59: =INDEX(#REF!,MATCH('AWARDS (2)'!A59,#REF!,0)) -> 
A60: Intermediate Reserve Champion | H60: =INDEX('INTERMEDIATE RESULTS (2)'!$C$11:$C$33,MATCH(2,'INTERMEDIATE RESULTS (2)'!$AJ$11:$AJ$33,0)) ->  | J60: =INDEX('INTERMEDIATE RESULTS (2)'!$B$11:$B$33,MATCH(2,'INTERMEDIATE RESULTS (2)'!$AJ$11:$AJ$33,0)) -> 
H61: =INDEX('INTERMEDIATE RESULTS (2)'!$D$11:$D$33,MATCH(2,'INTERMEDIATE RESULTS (2)'!$AJ$11:$AJ$33,0)) ->  | J61: =INDEX(#REF!,MATCH(2,#REF!,0)) -> 
A62: Intermediate Champion | H62: =INDEX('INTERMEDIATE RESULTS (2)'!$C$11:$C$33,MATCH(1,'INTERMEDIATE RESULTS (2)'!$AJ$11:$AJ$33,0)) -> Carlos | J62: =INDEX('INTERMEDIATE RESULTS (2)'!$B$11:$B$33,MATCH(1,'INTERMEDIATE RESULTS (2)'!$AJ$11:$AJ$33,0)) -> Osorio
H63: =INDEX('INTERMEDIATE RESULTS (2)'!$D$11:$D$33,MATCH(1,'INTERMEDIATE RESULTS (2)'!$AJ$11:$AJ$33,0)) -> AR Especial | J63: =INDEX(#REF!,MATCH(1,#REF!,0)) -> 
A66: ADVANCED | B66: Ranch Riding | D66: Working Ranch Horse | F66: Cutting | H66: Trail | J66: Conformation
A67: 1 | B67: =INDEX('ADVANCED RESULTS (2)'!C$11:$C$29,MATCH('AWARDS (2)'!A67,'ADVANCED RESULTS (2)'!$I$11:$I$29,0)) -> Shelley | C67: =INDEX('ADVANCED RESULTS (2)'!$B$11:$B$29,MATCH('AWARDS (2)'!A67,'ADVANCED RESULTS (2)'!$I$11:$I$29,0)) -> Johnsen | D67: =INDEX('ADVANCED RESULTS (2)'!$C$11:$C$29,MATCH('AWARDS (2)'!A67,'ADVANCED RESULTS (2)'!$N$11:$N$29,0)) -> Vicky | E67: =INDEX('ADVANCED RESULTS (2)'!$B$11:$B$29,MATCH('AWARDS (2)'!A67,'ADVANCED RESULTS (2)'!$N$11:$N$29,0)) -> Henderson | F67: =INDEX('ADVANCED RESULTS (2)'!$C$11:$C$29,MATCH('AWARDS (2)'!A67,'ADVANCED RESULTS (2)'!$S$11:$S$29,0)) -> Shelley | G67: =INDEX('ADVANCED RESULTS (2)'!$B$11:$B$29,MATCH('AWARDS (2)'!A67,'ADVANCED RESULTS (2)'!$S$11:$S$29,0)) -> Johnsen | H67: =INDEX('ADVANCED RESULTS (2)'!$C$11:$C$29,MATCH('AWARDS (2)'!A67,'ADVANCED RESULTS (2)'!$X$11:$X$29,0)) -> Shelley | I67: =INDEX('ADVANCED RESULTS (2)'!$B$11:$B$29,MATCH('AWARDS (2)'!A67,'ADVANCED RESULTS (2)'!$X$11:$X$29,0)) -> Johnsen | J67: =INDEX('ADVANCED RESULTS (2)'!$C$11:$C$29,MATCH('AWARDS (2)'!A67,'ADVANCED RESULTS (2)'!$AE$11:$AE$29,0)) -> Shelley | K67: =INDEX('ADVANCED RESULTS (2)'!$B$11:$B$29,MATCH('AWARDS (2)'!A67,'ADVANCED RESULTS (2)'!$AE$11:$AE$29,0)) -> Johnsen
B68: =INDEX('ADVANCED RESULTS (2)'!$D$11:$D$29,MATCH('AWARDS (2)'!A67,'ADVANCED RESULTS (2)'!$I$11:$I$29,0)) -> Unbranded | D68: =INDEX('ADVANCED RESULTS (2)'!$D$11:$D$29,MATCH('AWARDS (2)'!A67,'ADVANCED RESULTS (2)'!$N$11:$N$29,0)) -> Tatanka | E68: =INDEX(#REF!,MATCH('AWARDS (2)'!B68,#REF!,0)) ->  | F68: =INDEX('ADVANCED RESULTS (2)'!$D$11:$D$29,MATCH('AWARDS (2)'!A67,'ADVANCED RESULTS (2)'!$S$11:$S$29,0)) -> Unbranded | G68: =INDEX(#REF!,MATCH('AWARDS (2)'!A68,#REF!,0)) ->  | H68: =INDEX('ADVANCED RESULTS (2)'!$D$11:$D$29,MATCH('AWARDS (2)'!A67,'ADVANCED RESULTS (2)'!$X$11:$X$29,0)) -> Unbranded | I68: =INDEX(#REF!,MATCH('AWARDS (2)'!A68,#REF!,0)) ->  | J68: =INDEX('ADVANCED RESULTS (2)'!$D$11:$D$29,MATCH('AWARDS (2)'!A67,'ADVANCED RESULTS (2)'!$AE$11:$AE$29,0)) -> Unbranded | K68: =INDEX(#REF!,MATCH('AWARDS (2)'!A68,#REF!,0)) -> 
A69: 2 | B69: =INDEX('ADVANCED RESULTS (2)'!C$11:$C$29,MATCH('AWARDS (2)'!A69,'ADVANCED RESULTS (2)'!$I$11:$I$29,0)) -> Vicky | C69: =INDEX('ADVANCED RESULTS (2)'!$B$11:$B$29,MATCH('AWARDS (2)'!A69,'ADVANCED RESULTS (2)'!$I$11:$I$29,0)) -> Henderson | D69: =INDEX('ADVANCED RESULTS (2)'!$C$11:$C$29,MATCH('AWARDS (2)'!A69,'ADVANCED RESULTS (2)'!$N$11:$N$29,0)) -> Shelley | E69: =INDEX('ADVANCED RESULTS (2)'!$B$11:$B$29,MATCH('AWARDS (2)'!A69,'ADVANCED RESULTS (2)'!$N$11:$N$29,0)) -> Johnsen | F69: =INDEX('ADVANCED RESULTS (2)'!$C$11:$C$29,MATCH('AWARDS (2)'!A69,'ADVANCED RESULTS (2)'!$S$11:$S$29,0)) -> Vicky | G69: =INDEX('ADVANCED RESULTS (2)'!$B$11:$B$29,MATCH('AWARDS (2)'!A69,'ADVANCED RESULTS (2)'!$S$11:$S$29,0)) -> Henderson | H69: =INDEX('ADVANCED RESULTS (2)'!$C$11:$C$29,MATCH('AWARDS (2)'!A69,'ADVANCED RESULTS (2)'!$X$11:$X$29,0)) -> Vicky | I69: =INDEX('ADVANCED RESULTS (2)'!$B$11:$B$29,MATCH('AWARDS (2)'!A69,'ADVANCED RESULTS (2)'!$X$11:$X$29,0)) -> Henderson | J69: =INDEX('ADVANCED RESULTS (2)'!$C$11:$C$29,MATCH('AWARDS (2)'!A69,'ADVANCED RESULTS (2)'!$AE$11:$AE$29,0)) -> Vicky | K69: =INDEX('ADVANCED RESULTS (2)'!$B$11:$B$29,MATCH('AWARDS (2)'!A69,'ADVANCED RESULTS (2)'!$AE$11:$AE$29,0)) -> Henderson
B70: =INDEX('ADVANCED RESULTS (2)'!$D$11:$D$29,MATCH('AWARDS (2)'!A69,'ADVANCED RESULTS (2)'!$I$11:$I$29,0)) -> Tatanka | D70: =INDEX('ADVANCED RESULTS (2)'!$D$11:$D$29,MATCH('AWARDS (2)'!A69,'ADVANCED RESULTS (2)'!$N$11:$N$29,0)) -> Unbranded | E70: =INDEX(#REF!,MATCH('AWARDS (2)'!B70,#REF!,0)) ->  | F70: =INDEX('ADVANCED RESULTS (2)'!$D$11:$D$29,MATCH('AWARDS (2)'!A69,'ADVANCED RESULTS (2)'!$S$11:$S$29,0)) -> Tatanka | G70: =INDEX(#REF!,MATCH('AWARDS (2)'!A70,#REF!,0)) ->  | H70: =INDEX('ADVANCED RESULTS (2)'!$D$11:$D$29,MATCH('AWARDS (2)'!A69,'ADVANCED RESULTS (2)'!$X$11:$X$29,0)) -> Tatanka | I70: =INDEX(#REF!,MATCH('AWARDS (2)'!A70,#REF!,0)) ->  | J70: =INDEX('ADVANCED RESULTS (2)'!$D$11:$D$29,MATCH('AWARDS (2)'!A69,'ADVANCED RESULTS (2)'!$AE$11:$AE$29,0)) -> Tatanka | K70: =INDEX(#REF!,MATCH('AWARDS (2)'!A70,#REF!,0)) -> 
A71: 3 | B71: =INDEX('ADVANCED RESULTS (2)'!C$11:$C$29,MATCH('AWARDS (2)'!A71,'ADVANCED RESULTS (2)'!$I$11:$I$29,0)) ->  | C71: =INDEX('ADVANCED RESULTS (2)'!$B$11:$B$29,MATCH('AWARDS (2)'!A71,'ADVANCED RESULTS (2)'!$I$11:$I$29,0)) ->  | D71: =INDEX('ADVANCED RESULTS (2)'!$C$11:$C$29,MATCH('AWARDS (2)'!A71,'ADVANCED RESULTS (2)'!$N$11:$N$29,0)) ->  | E71: =INDEX('ADVANCED RESULTS (2)'!$B$11:$B$29,MATCH('AWARDS (2)'!A71,'ADVANCED RESULTS (2)'!$N$11:$N$29,0)) ->  | F71: =INDEX('ADVANCED RESULTS (2)'!$C$11:$C$29,MATCH('AWARDS (2)'!A71,'ADVANCED RESULTS (2)'!$S$11:$S$29,0)) ->  | G71: =INDEX('ADVANCED RESULTS (2)'!$B$11:$B$29,MATCH('AWARDS (2)'!A71,'ADVANCED RESULTS (2)'!$S$11:$S$29,0)) ->  | H71: =INDEX('ADVANCED RESULTS (2)'!$C$11:$C$29,MATCH('AWARDS (2)'!A71,'ADVANCED RESULTS (2)'!$X$11:$X$29,0)) ->  | I71: =INDEX('ADVANCED RESULTS (2)'!$B$11:$B$29,MATCH('AWARDS (2)'!A71,'ADVANCED RESULTS (2)'!$X$11:$X$29,0)) ->  | J71: =INDEX('ADVANCED RESULTS (2)'!$C$11:$C$29,MATCH('AWARDS (2)'!A71,'ADVANCED RESULTS (2)'!$AE$11:$AE$29,0)) ->  | K71: =INDEX('ADVANCED RESULTS (2)'!$B$11:$B$29,MATCH('AWARDS (2)'!A71,'ADVANCED RESULTS (2)'!$AE$11:$AE$29,0)) -> 
B72: =INDEX('ADVANCED RESULTS (2)'!$D$11:$D$29,MATCH('AWARDS (2)'!A71,'ADVANCED RESULTS (2)'!$I$11:$I$29,0)) ->  | D72: =INDEX('ADVANCED RESULTS (2)'!$D$11:$D$29,MATCH('AWARDS (2)'!A71,'ADVANCED RESULTS (2)'!$N$11:$N$29,0)) ->  | E72: =INDEX(#REF!,MATCH('AWARDS (2)'!B72,#REF!,0)) ->  | F72: =INDEX('ADVANCED RESULTS (2)'!$D$11:$D$29,MATCH('AWARDS (2)'!A71,'ADVANCED RESULTS (2)'!$S$11:$S$29,0)) ->  | G72: =INDEX(#REF!,MATCH('AWARDS (2)'!A72,#REF!,0)) ->  | H72: =INDEX('ADVANCED RESULTS (2)'!$D$11:$D$29,MATCH('AWARDS (2)'!A71,'ADVANCED RESULTS (2)'!$X$11:$X$29,0)) ->  | I72: =INDEX(#REF!,MATCH('AWARDS (2)'!A72,#REF!,0)) ->  | J72: =INDEX('ADVANCED RESULTS (2)'!$D$11:$D$29,MATCH('AWARDS (2)'!A71,'ADVANCED RESULTS (2)'!$AE$11:$AE$29,0)) ->  | K72: =INDEX(#REF!,MATCH('AWARDS (2)'!A72,#REF!,0)) -> 
A73: 4 | B73: =INDEX('ADVANCED RESULTS (2)'!C$11:$C$29,MATCH('AWARDS (2)'!A73,'ADVANCED RESULTS (2)'!$I$11:$I$29,0)) ->  | C73: =INDEX('ADVANCED RESULTS (2)'!$B$11:$B$29,MATCH('AWARDS (2)'!A73,'ADVANCED RESULTS (2)'!$I$11:$I$29,0)) ->  | D73: =INDEX('ADVANCED RESULTS (2)'!$C$11:$C$29,MATCH('AWARDS (2)'!A73,'ADVANCED RESULTS (2)'!$N$11:$N$29,0)) ->  | E73: =INDEX('ADVANCED RESULTS (2)'!$B$11:$B$29,MATCH('AWARDS (2)'!A73,'ADVANCED RESULTS (2)'!$N$11:$N$29,0)) ->  | F73: =INDEX('ADVANCED RESULTS (2)'!$C$11:$C$29,MATCH('AWARDS (2)'!A73,'ADVANCED RESULTS (2)'!$S$11:$S$29,0)) ->  | G73: =INDEX('ADVANCED RESULTS (2)'!$B$11:$B$29,MATCH('AWARDS (2)'!A73,'ADVANCED RESULTS (2)'!$S$11:$S$29,0)) ->  | H73: =INDEX('ADVANCED RESULTS (2)'!$C$11:$C$29,MATCH('AWARDS (2)'!A73,'ADVANCED RESULTS (2)'!$X$11:$X$29,0)) ->  | I73: =INDEX('ADVANCED RESULTS (2)'!$B$11:$B$29,MATCH('AWARDS (2)'!A73,'ADVANCED RESULTS (2)'!$X$11:$X$29,0)) ->  | J73: =INDEX('ADVANCED RESULTS (2)'!$C$11:$C$29,MATCH('AWARDS (2)'!A73,'ADVANCED RESULTS (2)'!$AE$11:$AE$29,0)) ->  | K73: =INDEX('ADVANCED RESULTS (2)'!$B$11:$B$29,MATCH('AWARDS (2)'!A73,'ADVANCED RESULTS (2)'!$AE$11:$AE$29,0)) -> 
B74: =INDEX('ADVANCED RESULTS (2)'!$D$11:$D$29,MATCH('AWARDS (2)'!A73,'ADVANCED RESULTS (2)'!$I$11:$I$29,0)) ->  | D74: =INDEX('ADVANCED RESULTS (2)'!$D$11:$D$29,MATCH('AWARDS (2)'!A73,'ADVANCED RESULTS (2)'!$N$11:$N$29,0)) ->  | E74: =INDEX(#REF!,MATCH('AWARDS (2)'!B74,#REF!,0)) ->  | F74: =INDEX('ADVANCED RESULTS (2)'!$D$11:$D$29,MATCH('AWARDS (2)'!A73,'ADVANCED RESULTS (2)'!$S$11:$S$29,0)) ->  | G74: =INDEX(#REF!,MATCH('AWARDS (2)'!A74,#REF!,0)) ->  | H74: =INDEX('ADVANCED RESULTS (2)'!$D$11:$D$29,MATCH('AWARDS (2)'!A73,'ADVANCED RESULTS (2)'!$X$11:$X$29,0)) ->  | I74: =INDEX(#REF!,MATCH('AWARDS (2)'!A74,#REF!,0)) ->  | J74: =INDEX('ADVANCED RESULTS (2)'!$D$11:$D$29,MATCH('AWARDS (2)'!A73,'ADVANCED RESULTS (2)'!$AE$11:$AE$29,0)) ->  | K74: =INDEX(#REF!,MATCH('AWARDS (2)'!A74,#REF!,0)) -> 
A75: 5 | B75: =INDEX('ADVANCED RESULTS (2)'!C$11:$C$29,MATCH('AWARDS (2)'!A75,'ADVANCED RESULTS (2)'!$I$11:$I$29,0)) ->  | C75: =INDEX('ADVANCED RESULTS (2)'!$B$11:$B$29,MATCH('AWARDS (2)'!A75,'ADVANCED RESULTS (2)'!$I$11:$I$29,0)) ->  | D75: =INDEX('ADVANCED RESULTS (2)'!$C$11:$C$29,MATCH('AWARDS (2)'!A75,'ADVANCED RESULTS (2)'!$N$11:$N$29,0)) ->  | E75: =INDEX('ADVANCED RESULTS (2)'!$B$11:$B$29,MATCH('AWARDS (2)'!A75,'ADVANCED RESULTS (2)'!$N$11:$N$29,0)) ->  | F75: =INDEX('ADVANCED RESULTS (2)'!$C$11:$C$29,MATCH('AWARDS (2)'!A75,'ADVANCED RESULTS (2)'!$S$11:$S$29,0)) ->  | G75: =INDEX('ADVANCED RESULTS (2)'!$B$11:$B$29,MATCH('AWARDS (2)'!A75,'ADVANCED RESULTS (2)'!$S$11:$S$29,0)) ->  | H75: =INDEX('ADVANCED RESULTS (2)'!$C$11:$C$29,MATCH('AWARDS (2)'!A75,'ADVANCED RESULTS (2)'!$X$11:$X$29,0)) ->  | I75: =INDEX('ADVANCED RESULTS (2)'!$B$11:$B$29,MATCH('AWARDS (2)'!A75,'ADVANCED RESULTS (2)'!$X$11:$X$29,0)) ->  | J75: =INDEX('ADVANCED RESULTS (2)'!$C$11:$C$29,MATCH('AWARDS (2)'!A75,'ADVANCED RESULTS (2)'!$AE$11:$AE$29,0)) ->  | K75: =INDEX('ADVANCED RESULTS (2)'!$B$11:$B$29,MATCH('AWARDS (2)'!A75,'ADVANCED RESULTS (2)'!$AE$11:$AE$29,0)) -> 
B76: =INDEX('ADVANCED RESULTS (2)'!$D$11:$D$29,MATCH('AWARDS (2)'!A75,'ADVANCED RESULTS (2)'!$I$11:$I$29,0)) ->  | D76: =INDEX('ADVANCED RESULTS (2)'!$D$11:$D$29,MATCH('AWARDS (2)'!A75,'ADVANCED RESULTS (2)'!$N$11:$N$29,0)) ->  | E76: =INDEX(#REF!,MATCH('AWARDS (2)'!B76,#REF!,0)) ->  | F76: =INDEX('ADVANCED RESULTS (2)'!$D$11:$D$29,MATCH('AWARDS (2)'!A75,'ADVANCED RESULTS (2)'!$S$11:$S$29,0)) ->  | G76: =INDEX(#REF!,MATCH('AWARDS (2)'!A76,#REF!,0)) ->  | H76: =INDEX('ADVANCED RESULTS (2)'!$D$11:$D$29,MATCH('AWARDS (2)'!A75,'ADVANCED RESULTS (2)'!$X$11:$X$29,0)) ->  | I76: =INDEX(#REF!,MATCH('AWARDS (2)'!A76,#REF!,0)) ->  | J76: =INDEX('ADVANCED RESULTS (2)'!$D$11:$D$29,MATCH('AWARDS (2)'!A75,'ADVANCED RESULTS (2)'!$AE$11:$AE$29,0)) ->  | K76: =INDEX(#REF!,MATCH('AWARDS (2)'!A76,#REF!,0)) -> 
A77: 6 | B77: =INDEX('ADVANCED RESULTS (2)'!C$11:$C$29,MATCH('AWARDS (2)'!A77,'ADVANCED RESULTS (2)'!$I$11:$I$29,0)) ->  | C77: =INDEX('ADVANCED RESULTS (2)'!$B$11:$B$29,MATCH('AWARDS (2)'!A77,'ADVANCED RESULTS (2)'!$I$11:$I$29,0)) ->  | D77: =INDEX('ADVANCED RESULTS (2)'!$C$11:$C$29,MATCH('AWARDS (2)'!A77,'ADVANCED RESULTS (2)'!$N$11:$N$29,0)) ->  | E77: =INDEX('ADVANCED RESULTS (2)'!$B$11:$B$29,MATCH('AWARDS (2)'!A77,'ADVANCED RESULTS (2)'!$N$11:$N$29,0)) ->  | F77: =INDEX('ADVANCED RESULTS (2)'!$C$11:$C$29,MATCH('AWARDS (2)'!A77,'ADVANCED RESULTS (2)'!$S$11:$S$29,0)) ->  | G77: =INDEX('ADVANCED RESULTS (2)'!$B$11:$B$29,MATCH('AWARDS (2)'!A77,'ADVANCED RESULTS (2)'!$S$11:$S$29,0)) ->  | H77: =INDEX('ADVANCED RESULTS (2)'!$C$11:$C$29,MATCH('AWARDS (2)'!A77,'ADVANCED RESULTS (2)'!$X$11:$X$29,0)) ->  | I77: =INDEX('ADVANCED RESULTS (2)'!$B$11:$B$29,MATCH('AWARDS (2)'!A77,'ADVANCED RESULTS (2)'!$X$11:$X$29,0)) ->  | J77: =INDEX('ADVANCED RESULTS (2)'!$C$11:$C$29,MATCH('AWARDS (2)'!A77,'ADVANCED RESULTS (2)'!$AE$11:$AE$29,0)) ->  | K77: =INDEX('ADVANCED RESULTS (2)'!$B$11:$B$29,MATCH('AWARDS (2)'!A77,'ADVANCED RESULTS (2)'!$AE$11:$AE$29,0)) -> 
B78: =INDEX('ADVANCED RESULTS (2)'!$D$11:$D$29,MATCH('AWARDS (2)'!A77,'ADVANCED RESULTS (2)'!$I$11:$I$29,0)) ->  | D78: =INDEX('ADVANCED RESULTS (2)'!$D$11:$D$29,MATCH('AWARDS (2)'!A77,'ADVANCED RESULTS (2)'!$N$11:$N$29,0)) ->  | E78: =INDEX(#REF!,MATCH('AWARDS (2)'!B78,#REF!,0)) ->  | F78: =INDEX('ADVANCED RESULTS (2)'!$D$11:$D$29,MATCH('AWARDS (2)'!A77,'ADVANCED RESULTS (2)'!$S$11:$S$29,0)) ->  | G78: =INDEX(#REF!,MATCH('AWARDS (2)'!A78,#REF!,0)) ->  | H78: =INDEX('ADVANCED RESULTS (2)'!$D$11:$D$29,MATCH('AWARDS (2)'!A77,'ADVANCED RESULTS (2)'!$X$11:$X$29,0)) ->  | I78: =INDEX(#REF!,MATCH('AWARDS (2)'!A78,#REF!,0)) ->  | J78: =INDEX('ADVANCED RESULTS (2)'!$D$11:$D$29,MATCH('AWARDS (2)'!A77,'ADVANCED RESULTS (2)'!$AE$11:$AE$29,0)) ->  | K78: =INDEX(#REF!,MATCH('AWARDS (2)'!A78,#REF!,0)) -> 
A79: Advanced Reserve Champion | H79: =INDEX('ADVANCED RESULTS (2)'!$C$11:$C$29,MATCH(2,'ADVANCED RESULTS (2)'!$AJ$11:$AJ$29,0)) -> Vicky | J79: =INDEX('ADVANCED RESULTS (2)'!$B$11:$B$29,MATCH(2,'ADVANCED RESULTS (2)'!$AJ$11:$AJ$29,0)) -> Henderson
H80: =INDEX('ADVANCED RESULTS (2)'!$D$11:$D$29,MATCH(2,'ADVANCED RESULTS (2)'!$AJ$11:$AJ$29,0)) -> Tatanka | J80: =INDEX(#REF!,MATCH(2,#REF!,0)) -> 
A81: Advanced Champion | H81: =INDEX('ADVANCED RESULTS (2)'!$C$11:$C$29,MATCH(1,'ADVANCED RESULTS (2)'!$AJ$11:$AJ$29,0)) -> Shelley | J81: =INDEX('ADVANCED RESULTS (2)'!$B$11:$B$29,MATCH(1,'ADVANCED RESULTS (2)'!$AJ$11:$AJ$29,0)) -> Johnsen
H82: =INDEX('ADVANCED RESULTS (2)'!$D$11:$D$29,MATCH(1,'ADVANCED RESULTS (2)'!$AJ$11:$AJ$29,0)) -> Unbranded | J82: =INDEX(#REF!,MATCH(1,#REF!,0)) -> 
A85: ='Entry Information'!H4 -> The Horse First Farm, Brooklyn, WI
A86: ='Entry Information'!H5 -> June 28-29,2014
A89: OPEN | B89: Ranch Riding | D89: Working Ranch Horse | F89: Cutting | H89: Trail | J89: Conformation
A90: 1 | B90: =INDEX('OPEN RESULTS (2)'!C$11:$C$35,MATCH('AWARDS (2)'!A90,'OPEN RESULTS (2)'!$I$11:$I$35,0)) -> Carolyn | C90: =INDEX('OPEN RESULTS (2)'!$B$11:$B$35,MATCH('AWARDS (2)'!A90,'OPEN RESULTS (2)'!$I$11:$I$35,0)) -> Sween | D90: =INDEX('OPEN RESULTS (2)'!$C$11:$C$35,MATCH('AWARDS (2)'!A90,'OPEN RESULTS (2)'!$N$11:$N$35,0)) -> Rob | E90: =INDEX('OPEN RESULTS (2)'!$B$11:$B$35,MATCH('AWARDS (2)'!A90,'OPEN RESULTS (2)'!$N$11:$N$35,0)) -> Goodland | F90: =INDEX('OPEN RESULTS (2)'!$C$11:$C$35,MATCH('AWARDS (2)'!A90,'OPEN RESULTS (2)'!$S$11:$S$35,0)) -> Carolyn | G90: =INDEX('OPEN RESULTS (2)'!$B$11:$B$35,MATCH('AWARDS (2)'!A90,'OPEN RESULTS (2)'!$S$11:$S$35,0)) -> Sween | H90: =INDEX('OPEN RESULTS (2)'!$C$11:$C$35,MATCH('AWARDS (2)'!A90,'OPEN RESULTS (2)'!$X$11:$X$35,0)) -> Rob | I90: =INDEX('OPEN RESULTS (2)'!$B$11:$B$35,MATCH('AWARDS (2)'!A90,'OPEN RESULTS (2)'!$X$11:$X$35,0)) -> Goodland | J90: =INDEX('OPEN RESULTS (2)'!$C$11:$C$35,MATCH('AWARDS (2)'!A90,'OPEN RESULTS (2)'!$AE$11:$AE$35,0)) -> Carolyn | K90: =INDEX('OPEN RESULTS (2)'!$B$11:$B$35,MATCH('AWARDS (2)'!A90,'OPEN RESULTS (2)'!$AE$11:$AE$35,0)) -> Sween
B91: =INDEX('OPEN RESULTS (2)'!$D$11:$D$35,MATCH('AWARDS (2)'!A90,'OPEN RESULTS (2)'!$I$11:$I$35,0)) -> AR Powderfully | D91: =INDEX('OPEN RESULTS (2)'!$D$11:$D$35,MATCH('AWARDS (2)'!A90,'OPEN RESULTS (2)'!$N$11:$N$35,0)) -> Royale Smooth Sailin | E91: =INDEX(#REF!,MATCH('AWARDS (2)'!B91,#REF!,0)) ->  | F91: =INDEX('OPEN RESULTS (2)'!$D$11:$D$35,MATCH('AWARDS (2)'!A90,'OPEN RESULTS (2)'!$S$11:$S$35,0)) -> AR Powderfully | G91: =INDEX(#REF!,MATCH('AWARDS (2)'!A91,#REF!,0)) ->  | H91: =INDEX('OPEN RESULTS (2)'!$D$11:$D$35,MATCH('AWARDS (2)'!A90,'OPEN RESULTS (2)'!$X$11:$X$35,0)) -> Royale Smooth Sailin | I91: =INDEX(#REF!,MATCH('AWARDS (2)'!A91,#REF!,0)) ->  | J91: =INDEX('OPEN RESULTS (2)'!$D$11:$D$35,MATCH('AWARDS (2)'!A90,'OPEN RESULTS (2)'!$AE$11:$AE$35,0)) -> AR Powderfully | K91: =INDEX(#REF!,MATCH('AWARDS (2)'!A91,#REF!,0)) -> 
A92: 2 | B92: =INDEX('OPEN RESULTS (2)'!C$11:$C$35,MATCH('AWARDS (2)'!A92,'OPEN RESULTS (2)'!$I$11:$I$35,0)) -> Maureen | C92: =INDEX('OPEN RESULTS (2)'!$B$11:$B$35,MATCH('AWARDS (2)'!A92,'OPEN RESULTS (2)'!$I$11:$I$35,0)) -> Dunn | D92: =INDEX('OPEN RESULTS (2)'!$C$11:$C$35,MATCH('AWARDS (2)'!A92,'OPEN RESULTS (2)'!$N$11:$N$35,0)) -> Maureen | E92: =INDEX('OPEN RESULTS (2)'!$B$11:$B$35,MATCH('AWARDS (2)'!A92,'OPEN RESULTS (2)'!$N$11:$N$35,0)) -> Dunn | F92: =INDEX('OPEN RESULTS (2)'!$C$11:$C$35,MATCH('AWARDS (2)'!A92,'OPEN RESULTS (2)'!$S$11:$S$35,0)) -> Rob | G92: =INDEX('OPEN RESULTS (2)'!$B$11:$B$35,MATCH('AWARDS (2)'!A92,'OPEN RESULTS (2)'!$S$11:$S$35,0)) -> Goodland | H92: =INDEX('OPEN RESULTS (2)'!$C$11:$C$35,MATCH('AWARDS (2)'!A92,'OPEN RESULTS (2)'!$X$11:$X$35,0)) -> Carolyn | I92: =INDEX('OPEN RESULTS (2)'!$B$11:$B$35,MATCH('AWARDS (2)'!A92,'OPEN RESULTS (2)'!$X$11:$X$35,0)) -> Sween | J92: =INDEX('OPEN RESULTS (2)'!$C$11:$C$35,MATCH('AWARDS (2)'!A92,'OPEN RESULTS (2)'!$AE$11:$AE$35,0)) -> Maureen | K92: =INDEX('OPEN RESULTS (2)'!$B$11:$B$35,MATCH('AWARDS (2)'!A92,'OPEN RESULTS (2)'!$AE$11:$AE$35,0)) -> Dunn
B93: =INDEX('OPEN RESULTS (2)'!$D$11:$D$35,MATCH('AWARDS (2)'!A92,'OPEN RESULTS (2)'!$I$11:$I$35,0)) -> AR Sannabella Check | D93: =INDEX('OPEN RESULTS (2)'!$D$11:$D$35,MATCH('AWARDS (2)'!A92,'OPEN RESULTS (2)'!$N$11:$N$35,0)) -> AR Sannabella Check | E93: =INDEX(#REF!,MATCH('AWARDS (2)'!B93,#REF!,0)) ->  | F93: =INDEX('OPEN RESULTS (2)'!$D$11:$D$35,MATCH('AWARDS (2)'!A92,'OPEN RESULTS (2)'!$S$11:$S$35,0)) -> Royale Smooth Sailin | G93: =INDEX(#REF!,MATCH('AWARDS (2)'!A93,#REF!,0)) ->  | H93: =INDEX('OPEN RESULTS (2)'!$D$11:$D$35,MATCH('AWARDS (2)'!A92,'OPEN RESULTS (2)'!$X$11:$X$35,0)) -> AR Powderfully | I93: =INDEX(#REF!,MATCH('AWARDS (2)'!A93,#REF!,0)) ->  | J93: =INDEX('OPEN RESULTS (2)'!$D$11:$D$35,MATCH('AWARDS (2)'!A92,'OPEN RESULTS (2)'!$AE$11:$AE$35,0)) -> AR Sannabella Check | K93: =INDEX(#REF!,MATCH('AWARDS (2)'!A93,#REF!,0)) -> 
A94: 3 | B94: =INDEX('OPEN RESULTS (2)'!C$11:$C$35,MATCH('AWARDS (2)'!A94,'OPEN RESULTS (2)'!$I$11:$I$35,0)) -> Rob | C94: =INDEX('OPEN RESULTS (2)'!$B$11:$B$35,MATCH('AWARDS (2)'!A94,'OPEN RESULTS (2)'!$I$11:$I$35,0)) -> Goodland | D94: =INDEX('OPEN RESULTS (2)'!$C$11:$C$35,MATCH('AWARDS (2)'!A94,'OPEN RESULTS (2)'!$N$11:$N$35,0)) -> Carolyn | E94: =INDEX('OPEN RESULTS (2)'!$B$11:$B$35,MATCH('AWARDS (2)'!A94,'OPEN RESULTS (2)'!$N$11:$N$35,0)) -> Sween | F94: =INDEX('OPEN RESULTS (2)'!$C$11:$C$35,MATCH('AWARDS (2)'!A94,'OPEN RESULTS (2)'!$S$11:$S$35,0)) -> Maureen | G94: =INDEX('OPEN RESULTS (2)'!$B$11:$B$35,MATCH('AWARDS (2)'!A94,'OPEN RESULTS (2)'!$S$11:$S$35,0)) -> Dunn | H94: =INDEX('OPEN RESULTS (2)'!$C$11:$C$35,MATCH('AWARDS (2)'!A94,'OPEN RESULTS (2)'!$X$11:$X$35,0)) -> Maureen | I94: =INDEX('OPEN RESULTS (2)'!$B$11:$B$35,MATCH('AWARDS (2)'!A94,'OPEN RESULTS (2)'!$X$11:$X$35,0)) -> Dunn | J94: =INDEX('OPEN RESULTS (2)'!$C$11:$C$35,MATCH('AWARDS (2)'!A94,'OPEN RESULTS (2)'!$AE$11:$AE$35,0)) -> Rob | K94: =INDEX('OPEN RESULTS (2)'!$B$11:$B$35,MATCH('AWARDS (2)'!A94,'OPEN RESULTS (2)'!$AE$11:$AE$35,0)) -> Goodland
B95: =INDEX('OPEN RESULTS (2)'!$D$11:$D$35,MATCH('AWARDS (2)'!A94,'OPEN RESULTS (2)'!$I$11:$I$35,0)) -> Royale Smooth Sailin | D95: =INDEX('OPEN RESULTS (2)'!$D$11:$D$35,MATCH('AWARDS (2)'!A94,'OPEN RESULTS (2)'!$N$11:$N$35,0)) -> AR Powderfully | E95: =INDEX(#REF!,MATCH('AWARDS (2)'!B95,#REF!,0)) ->  | F95: =INDEX('OPEN RESULTS (2)'!$D$11:$D$35,MATCH('AWARDS (2)'!A94,'OPEN RESULTS (2)'!$S$11:$S$35,0)) -> AR Sannabella Check | G95: =INDEX(#REF!,MATCH('AWARDS (2)'!A95,#REF!,0)) ->  | H95: =INDEX('OPEN RESULTS (2)'!$D$11:$D$35,MATCH('AWARDS (2)'!A94,'OPEN RESULTS (2)'!$X$11:$X$35,0)) -> AR Sannabella Check | I95: =INDEX(#REF!,MATCH('AWARDS (2)'!A95,#REF!,0)) ->  | J95: =INDEX('OPEN RESULTS (2)'!$D$11:$D$35,MATCH('AWARDS (2)'!A94,'OPEN RESULTS (2)'!$AE$11:$AE$35,0)) -> Royale Smooth Sailin | K95: =INDEX(#REF!,MATCH('AWARDS (2)'!A95,#REF!,0)) -> 
A96: 4 | B96: =INDEX('OPEN RESULTS (2)'!C$11:$C$35,MATCH('AWARDS (2)'!A96,'OPEN RESULTS (2)'!$I$11:$I$35,0)) ->  | C96: =INDEX('OPEN RESULTS (2)'!$B$11:$B$35,MATCH('AWARDS (2)'!A96,'OPEN RESULTS (2)'!$I$11:$I$35,0)) ->  | D96: =INDEX('OPEN RESULTS (2)'!$C$11:$C$35,MATCH('AWARDS (2)'!A96,'OPEN RESULTS (2)'!$N$11:$N$35,0)) ->  | E96: =INDEX('OPEN RESULTS (2)'!$B$11:$B$35,MATCH('AWARDS (2)'!A96,'OPEN RESULTS (2)'!$N$11:$N$35,0)) ->  | F96: =INDEX('OPEN RESULTS (2)'!$C$11:$C$35,MATCH('AWARDS (2)'!A96,'OPEN RESULTS (2)'!$S$11:$S$35,0)) ->  | G96: =INDEX('OPEN RESULTS (2)'!$B$11:$B$35,MATCH('AWARDS (2)'!A96,'OPEN RESULTS (2)'!$S$11:$S$35,0)) ->  | H96: =INDEX('OPEN RESULTS (2)'!$C$11:$C$35,MATCH('AWARDS (2)'!A96,'OPEN RESULTS (2)'!$X$11:$X$35,0)) ->  | I96: =INDEX('OPEN RESULTS (2)'!$B$11:$B$35,MATCH('AWARDS (2)'!A96,'OPEN RESULTS (2)'!$X$11:$X$35,0)) ->  | J96: =INDEX('OPEN RESULTS (2)'!$C$11:$C$35,MATCH('AWARDS (2)'!A96,'OPEN RESULTS (2)'!$AE$11:$AE$35,0)) ->  | K96: =INDEX('OPEN RESULTS (2)'!$B$11:$B$35,MATCH('AWARDS (2)'!A96,'OPEN RESULTS (2)'!$AE$11:$AE$35,0)) -> 
B97: =INDEX('OPEN RESULTS (2)'!$D$11:$D$35,MATCH('AWARDS (2)'!A96,'OPEN RESULTS (2)'!$I$11:$I$35,0)) ->  | D97: =INDEX('OPEN RESULTS (2)'!$D$11:$D$35,MATCH('AWARDS (2)'!A96,'OPEN RESULTS (2)'!$N$11:$N$35,0)) ->  | E97: =INDEX(#REF!,MATCH('AWARDS (2)'!B97,#REF!,0)) ->  | F97: =INDEX('OPEN RESULTS (2)'!$D$11:$D$35,MATCH('AWARDS (2)'!A96,'OPEN RESULTS (2)'!$S$11:$S$35,0)) ->  | G97: =INDEX(#REF!,MATCH('AWARDS (2)'!A97,#REF!,0)) ->  | H97: =INDEX('OPEN RESULTS (2)'!$D$11:$D$35,MATCH('AWARDS (2)'!A96,'OPEN RESULTS (2)'!$X$11:$X$35,0)) ->  | I97: =INDEX(#REF!,MATCH('AWARDS (2)'!A97,#REF!,0)) ->  | J97: =INDEX('OPEN RESULTS (2)'!$D$11:$D$35,MATCH('AWARDS (2)'!A96,'OPEN RESULTS (2)'!$AE$11:$AE$35,0)) ->  | K97: =INDEX(#REF!,MATCH('AWARDS (2)'!A97,#REF!,0)) -> 
A98: 5 | B98: =INDEX('OPEN RESULTS (2)'!C$11:$C$35,MATCH('AWARDS (2)'!A98,'OPEN RESULTS (2)'!$I$11:$I$35,0)) ->  | C98: =INDEX('OPEN RESULTS (2)'!$B$11:$B$35,MATCH('AWARDS (2)'!A98,'OPEN RESULTS (2)'!$I$11:$I$35,0)) ->  | D98: =INDEX('OPEN RESULTS (2)'!$C$11:$C$35,MATCH('AWARDS (2)'!A98,'OPEN RESULTS (2)'!$N$11:$N$35,0)) ->  | E98: =INDEX('OPEN RESULTS (2)'!$B$11:$B$35,MATCH('AWARDS (2)'!A98,'OPEN RESULTS (2)'!$N$11:$N$35,0)) ->  | F98: =INDEX('OPEN RESULTS (2)'!$C$11:$C$35,MATCH('AWARDS (2)'!A98,'OPEN RESULTS (2)'!$S$11:$S$35,0)) ->  | G98: =INDEX('OPEN RESULTS (2)'!$B$11:$B$35,MATCH('AWARDS (2)'!A98,'OPEN RESULTS (2)'!$S$11:$S$35,0)) ->  | H98: =INDEX('OPEN RESULTS (2)'!$C$11:$C$35,MATCH('AWARDS (2)'!A98,'OPEN RESULTS (2)'!$X$11:$X$35,0)) ->  | I98: =INDEX('OPEN RESULTS (2)'!$B$11:$B$35,MATCH('AWARDS (2)'!A98,'OPEN RESULTS (2)'!$X$11:$X$35,0)) ->  | J98: =INDEX('OPEN RESULTS (2)'!$C$11:$C$35,MATCH('AWARDS (2)'!A98,'OPEN RESULTS (2)'!$AE$11:$AE$35,0)) ->  | K98: =INDEX('OPEN RESULTS (2)'!$B$11:$B$35,MATCH('AWARDS (2)'!A98,'OPEN RESULTS (2)'!$AE$11:$AE$35,0)) -> 
B99: =INDEX('OPEN RESULTS (2)'!$D$11:$D$35,MATCH('AWARDS (2)'!A98,'OPEN RESULTS (2)'!$I$11:$I$35,0)) ->  | D99: =INDEX('OPEN RESULTS (2)'!$D$11:$D$35,MATCH('AWARDS (2)'!A98,'OPEN RESULTS (2)'!$N$11:$N$35,0)) ->  | E99: =INDEX(#REF!,MATCH('AWARDS (2)'!B99,#REF!,0)) ->  | F99: =INDEX('OPEN RESULTS (2)'!$D$11:$D$35,MATCH('AWARDS (2)'!A98,'OPEN RESULTS (2)'!$S$11:$S$35,0)) ->  | G99: =INDEX(#REF!,MATCH('AWARDS (2)'!A99,#REF!,0)) ->  | H99: =INDEX('OPEN RESULTS (2)'!$D$11:$D$35,MATCH('AWARDS (2)'!A98,'OPEN RESULTS (2)'!$X$11:$X$35,0)) ->  | I99: =INDEX(#REF!,MATCH('AWARDS (2)'!A99,#REF!,0)) ->  | J99: =INDEX('OPEN RESULTS (2)'!$D$11:$D$35,MATCH('AWARDS (2)'!A98,'OPEN RESULTS (2)'!$AE$11:$AE$35,0)) ->  | K99: =INDEX(#REF!,MATCH('AWARDS (2)'!A99,#REF!,0)) -> 
A100: 6 | B100: =INDEX('OPEN RESULTS (2)'!C$11:$C$35,MATCH('AWARDS (2)'!A100,'OPEN RESULTS (2)'!$I$11:$I$35,0)) ->  | C100: =INDEX('OPEN RESULTS (2)'!$B$11:$B$35,MATCH('AWARDS (2)'!A100,'OPEN RESULTS (2)'!$I$11:$I$35,0)) ->  | D100: =INDEX('OPEN RESULTS (2)'!$C$11:$C$35,MATCH('AWARDS (2)'!A100,'OPEN RESULTS (2)'!$N$11:$N$35,0)) ->  | E100: =INDEX('OPEN RESULTS (2)'!$B$11:$B$35,MATCH('AWARDS (2)'!A100,'OPEN RESULTS (2)'!$N$11:$N$35,0)) ->  | F100: =INDEX('OPEN RESULTS (2)'!$C$11:$C$35,MATCH('AWARDS (2)'!A100,'OPEN RESULTS (2)'!$S$11:$S$35,0)) ->  | G100: =INDEX('OPEN RESULTS (2)'!$B$11:$B$35,MATCH('AWARDS (2)'!A100,'OPEN RESULTS (2)'!$S$11:$S$35,0)) ->  | H100: =INDEX('OPEN RESULTS (2)'!$C$11:$C$35,MATCH('AWARDS (2)'!A100,'OPEN RESULTS (2)'!$X$11:$X$35,0)) ->  | I100: =INDEX('OPEN RESULTS (2)'!$B$11:$B$35,MATCH('AWARDS (2)'!A100,'OPEN RESULTS (2)'!$X$11:$X$35,0)) ->  | J100: =INDEX('OPEN RESULTS (2)'!$C$11:$C$35,MATCH('AWARDS (2)'!A100,'OPEN RESULTS (2)'!$AE$11:$AE$35,0)) ->  | K100: =INDEX('OPEN RESULTS (2)'!$B$11:$B$35,MATCH('AWARDS (2)'!A100,'OPEN RESULTS (2)'!$AE$11:$AE$35,0)) -> 
B101: =INDEX('OPEN RESULTS (2)'!$D$11:$D$35,MATCH('AWARDS (2)'!A100,'OPEN RESULTS (2)'!$I$11:$I$35,0)) ->  | D101: =INDEX('OPEN RESULTS (2)'!$D$11:$D$35,MATCH('AWARDS (2)'!A100,'OPEN RESULTS (2)'!$N$11:$N$35,0)) ->  | E101: =INDEX(#REF!,MATCH('AWARDS (2)'!B101,#REF!,0)) ->  | F101: =INDEX('OPEN RESULTS (2)'!$D$11:$D$35,MATCH('AWARDS (2)'!A100,'OPEN RESULTS (2)'!$S$11:$S$35,0)) ->  | G101: =INDEX(#REF!,MATCH('AWARDS (2)'!A101,#REF!,0)) ->  | H101: =INDEX('OPEN RESULTS (2)'!$D$11:$D$35,MATCH('AWARDS (2)'!A100,'OPEN RESULTS (2)'!$X$11:$X$35,0)) ->  | I101: =INDEX(#REF!,MATCH('AWARDS (2)'!A101,#REF!,0)) ->  | J101: =INDEX('OPEN RESULTS (2)'!$D$11:$D$35,MATCH('AWARDS (2)'!A100,'OPEN RESULTS (2)'!$AE$11:$AE$35,0)) ->  | K101: =INDEX(#REF!,MATCH('AWARDS (2)'!A101,#REF!,0)) -> 
A102: Open Reserve Champion | H102: =INDEX('OPEN RESULTS (2)'!$C$11:$C$35,MATCH(2,'OPEN RESULTS (2)'!$AJ$11:$AJ$35,0)) -> Rob | J102: =INDEX('OPEN RESULTS (2)'!$B$11:$B$35,MATCH(2,'OPEN RESULTS (2)'!$AJ$11:$AJ$35,0)) -> Goodland
H103: =INDEX('OPEN RESULTS (2)'!$D$11:$D$35,MATCH(2,'OPEN RESULTS (2)'!$AJ$11:$AJ$35,0)) -> Royale Smooth Sailin | J103: =INDEX(#REF!,MATCH(2,#REF!,0)) -> 
A104: Open Champion | H104: =INDEX('OPEN RESULTS (2)'!$C$11:$C$35,MATCH(1,'OPEN RESULTS (2)'!$AJ$11:$AJ$35,0)) -> Carolyn | J104: =INDEX('OPEN RESULTS (2)'!$B$11:$B$35,MATCH(1,'OPEN RESULTS (2)'!$AJ$11:$AJ$35,0)) -> Sween
H105: =INDEX('OPEN RESULTS (2)'!$D$11:$D$35,MATCH(1,'OPEN RESULTS (2)'!$AJ$11:$AJ$35,0)) -> AR Powderfully | J105: =INDEX(#REF!,MATCH(1,#REF!,0)) -> 
A108: YOUTH | B108: Ranch Riding | D108: Working Ranch Horse | F108: Cutting | H108: Trail | J108: Conformation
A109: 1 | B109: =INDEX('YOUTH RESULTS (2)'!C$11:$C$33,MATCH('AWARDS (2)'!A109,'YOUTH RESULTS (2)'!$I$11:$I$33,0)) ->  | C109: =INDEX('YOUTH RESULTS (2)'!$B$11:$B$33,MATCH('AWARDS (2)'!A109,'YOUTH RESULTS (2)'!$I$11:$I$33,0)) ->  | D109: =INDEX('YOUTH RESULTS (2)'!$C$11:$C$33,MATCH('AWARDS (2)'!A109,'YOUTH RESULTS (2)'!$N$11:$N$33,0)) ->  | E109: =INDEX('YOUTH RESULTS (2)'!$B$11:$B$33,MATCH('AWARDS (2)'!A109,'YOUTH RESULTS (2)'!$N$11:$N$33,0)) ->  | F109: =INDEX('YOUTH RESULTS (2)'!$C$11:$C$33,MATCH('AWARDS (2)'!A109,'YOUTH RESULTS (2)'!$S$11:$S$33,0)) ->  | G109: =INDEX('YOUTH RESULTS (2)'!$B$11:$B$33,MATCH('AWARDS (2)'!A109,'YOUTH RESULTS (2)'!$S$11:$S$33,0)) ->  | H109: =INDEX('YOUTH RESULTS (2)'!$C$11:$C$33,MATCH('AWARDS (2)'!A109,'YOUTH RESULTS (2)'!$X$11:$X$33,0)) ->  | I109: =INDEX('YOUTH RESULTS (2)'!$B$11:$B$33,MATCH('AWARDS (2)'!A109,'YOUTH RESULTS (2)'!$X$11:$X$33,0)) ->  | J109: =INDEX('YOUTH RESULTS (2)'!$C$11:$C$33,MATCH('AWARDS (2)'!A109,'YOUTH RESULTS (2)'!$AE$11:$AE$33,0)) ->  | K109: =INDEX('YOUTH RESULTS (2)'!$B$11:$B$33,MATCH('AWARDS (2)'!A109,'YOUTH RESULTS (2)'!$AE$11:$AE$33,0)) -> 
B110: =INDEX('YOUTH RESULTS (2)'!$D$11:$D$33,MATCH('AWARDS (2)'!A109,'YOUTH RESULTS (2)'!$I$11:$I$33,0)) ->  | D110: =INDEX('YOUTH RESULTS (2)'!$D$11:$D$33,MATCH('AWARDS (2)'!A109,'YOUTH RESULTS (2)'!$N$11:$N$33,0)) ->  | E110: =INDEX(#REF!,MATCH('AWARDS (2)'!B110,#REF!,0)) ->  | F110: =INDEX('YOUTH RESULTS (2)'!$D$11:$D$33,MATCH('AWARDS (2)'!A109,'YOUTH RESULTS (2)'!$S$11:$S$33,0)) ->  | G110: =INDEX(#REF!,MATCH('AWARDS (2)'!A110,#REF!,0)) ->  | H110: =INDEX('YOUTH RESULTS (2)'!$D$11:$D$33,MATCH('AWARDS (2)'!A109,'YOUTH RESULTS (2)'!$X$11:$X$33,0)) ->  | I110: =INDEX(#REF!,MATCH('AWARDS (2)'!A110,#REF!,0)) ->  | J110: =INDEX('YOUTH RESULTS (2)'!$D$11:$D$33,MATCH('AWARDS (2)'!A109,'YOUTH RESULTS (2)'!$AE$11:$AE$33,0)) ->  | K110: =INDEX(#REF!,MATCH('AWARDS (2)'!A110,#REF!,0)) -> 
A111: 2 | B111: =INDEX('YOUTH RESULTS (2)'!C$11:$C$33,MATCH('AWARDS (2)'!A111,'YOUTH RESULTS (2)'!$I$11:$I$33,0)) ->  | C111: =INDEX('YOUTH RESULTS (2)'!$B$11:$B$33,MATCH('AWARDS (2)'!A111,'YOUTH RESULTS (2)'!$I$11:$I$33,0)) ->  | D111: =INDEX('YOUTH RESULTS (2)'!$C$11:$C$33,MATCH('AWARDS (2)'!A111,'YOUTH RESULTS (2)'!$N$11:$N$33,0)) ->  | E111: =INDEX('YOUTH RESULTS (2)'!$B$11:$B$33,MATCH('AWARDS (2)'!A111,'YOUTH RESULTS (2)'!$N$11:$N$33,0)) ->  | F111: =INDEX('YOUTH RESULTS (2)'!$C$11:$C$33,MATCH('AWARDS (2)'!A111,'YOUTH RESULTS (2)'!$S$11:$S$33,0)) ->  | G111: =INDEX('YOUTH RESULTS (2)'!$B$11:$B$33,MATCH('AWARDS (2)'!A111,'YOUTH RESULTS (2)'!$S$11:$S$33,0)) ->  | H111: =INDEX('YOUTH RESULTS (2)'!$C$11:$C$33,MATCH('AWARDS (2)'!A111,'YOUTH RESULTS (2)'!$X$11:$X$33,0)) ->  | I111: =INDEX('YOUTH RESULTS (2)'!$B$11:$B$33,MATCH('AWARDS (2)'!A111,'YOUTH RESULTS (2)'!$X$11:$X$33,0)) ->  | J111: =INDEX('YOUTH RESULTS (2)'!$C$11:$C$33,MATCH('AWARDS (2)'!A111,'YOUTH RESULTS (2)'!$AE$11:$AE$33,0)) ->  | K111: =INDEX('YOUTH RESULTS (2)'!$B$11:$B$33,MATCH('AWARDS (2)'!A111,'YOUTH RESULTS (2)'!$AE$11:$AE$33,0)) -> 
B112: =INDEX('YOUTH RESULTS (2)'!$D$11:$D$33,MATCH('AWARDS (2)'!A111,'YOUTH RESULTS (2)'!$I$11:$I$33,0)) ->  | D112: =INDEX('YOUTH RESULTS (2)'!$D$11:$D$33,MATCH('AWARDS (2)'!A111,'YOUTH RESULTS (2)'!$N$11:$N$33,0)) ->  | E112: =INDEX(#REF!,MATCH('AWARDS (2)'!B112,#REF!,0)) ->  | F112: =INDEX('YOUTH RESULTS (2)'!$D$11:$D$33,MATCH('AWARDS (2)'!A111,'YOUTH RESULTS (2)'!$S$11:$S$33,0)) ->  | G112: =INDEX(#REF!,MATCH('AWARDS (2)'!A112,#REF!,0)) ->  | H112: =INDEX('YOUTH RESULTS (2)'!$D$11:$D$33,MATCH('AWARDS (2)'!A111,'YOUTH RESULTS (2)'!$X$11:$X$33,0)) ->  | I112: =INDEX(#REF!,MATCH('AWARDS (2)'!A112,#REF!,0)) ->  | J112: =INDEX('YOUTH RESULTS (2)'!$D$11:$D$33,MATCH('AWARDS (2)'!A111,'YOUTH RESULTS (2)'!$AE$11:$AE$33,0)) ->  | K112: =INDEX(#REF!,MATCH('AWARDS (2)'!A112,#REF!,0)) -> 
A113: 3 | B113: =INDEX('YOUTH RESULTS (2)'!C$11:$C$33,MATCH('AWARDS (2)'!A113,'YOUTH RESULTS (2)'!$I$11:$I$33,0)) ->  | C113: =INDEX('YOUTH RESULTS (2)'!$B$11:$B$33,MATCH('AWARDS (2)'!A113,'YOUTH RESULTS (2)'!$I$11:$I$33,0)) ->  | D113: =INDEX('YOUTH RESULTS (2)'!$C$11:$C$33,MATCH('AWARDS (2)'!A113,'YOUTH RESULTS (2)'!$N$11:$N$33,0)) ->  | E113: =INDEX('YOUTH RESULTS (2)'!$B$11:$B$33,MATCH('AWARDS (2)'!A113,'YOUTH RESULTS (2)'!$N$11:$N$33,0)) ->  | F113: =INDEX('YOUTH RESULTS (2)'!$C$11:$C$33,MATCH('AWARDS (2)'!A113,'YOUTH RESULTS (2)'!$S$11:$S$33,0)) ->  | G113: =INDEX('YOUTH RESULTS (2)'!$B$11:$B$33,MATCH('AWARDS (2)'!A113,'YOUTH RESULTS (2)'!$S$11:$S$33,0)) ->  | H113: =INDEX('YOUTH RESULTS (2)'!$C$11:$C$33,MATCH('AWARDS (2)'!A113,'YOUTH RESULTS (2)'!$X$11:$X$33,0)) ->  | I113: =INDEX('YOUTH RESULTS (2)'!$B$11:$B$33,MATCH('AWARDS (2)'!A113,'YOUTH RESULTS (2)'!$X$11:$X$33,0)) ->  | J113: =INDEX('YOUTH RESULTS (2)'!$C$11:$C$33,MATCH('AWARDS (2)'!A113,'YOUTH RESULTS (2)'!$AE$11:$AE$33,0)) ->  | K113: =INDEX('YOUTH RESULTS (2)'!$B$11:$B$33,MATCH('AWARDS (2)'!A113,'YOUTH RESULTS (2)'!$AE$11:$AE$33,0)) -> 
B114: =INDEX('YOUTH RESULTS (2)'!$D$11:$D$33,MATCH('AWARDS (2)'!A113,'YOUTH RESULTS (2)'!$I$11:$I$33,0)) ->  | D114: =INDEX('YOUTH RESULTS (2)'!$D$11:$D$33,MATCH('AWARDS (2)'!A113,'YOUTH RESULTS (2)'!$N$11:$N$33,0)) ->  | E114: =INDEX(#REF!,MATCH('AWARDS (2)'!B114,#REF!,0)) ->  | F114: =INDEX('YOUTH RESULTS (2)'!$D$11:$D$33,MATCH('AWARDS (2)'!A113,'YOUTH RESULTS (2)'!$S$11:$S$33,0)) ->  | G114: =INDEX(#REF!,MATCH('AWARDS (2)'!A114,#REF!,0)) ->  | H114: =INDEX('YOUTH RESULTS (2)'!$D$11:$D$33,MATCH('AWARDS (2)'!A113,'YOUTH RESULTS (2)'!$X$11:$X$33,0)) ->  | I114: =INDEX(#REF!,MATCH('AWARDS (2)'!A114,#REF!,0)) ->  | J114: =INDEX('YOUTH RESULTS (2)'!$D$11:$D$33,MATCH('AWARDS (2)'!A113,'YOUTH RESULTS (2)'!$AE$11:$AE$33,0)) ->  | K114: =INDEX(#REF!,MATCH('AWARDS (2)'!A114,#REF!,0)) -> 
A115: 4 | B115: =INDEX('YOUTH RESULTS (2)'!C$11:$C$33,MATCH('AWARDS (2)'!A115,'YOUTH RESULTS (2)'!$I$11:$I$33,0)) ->  | C115: =INDEX('YOUTH RESULTS (2)'!$B$11:$B$33,MATCH('AWARDS (2)'!A115,'YOUTH RESULTS (2)'!$I$11:$I$33,0)) ->  | D115: =INDEX('YOUTH RESULTS (2)'!$C$11:$C$33,MATCH('AWARDS (2)'!A115,'YOUTH RESULTS (2)'!$N$11:$N$33,0)) ->  | E115: =INDEX('YOUTH RESULTS (2)'!$B$11:$B$33,MATCH('AWARDS (2)'!A115,'YOUTH RESULTS (2)'!$N$11:$N$33,0)) ->  | F115: =INDEX('YOUTH RESULTS (2)'!$C$11:$C$33,MATCH('AWARDS (2)'!A115,'YOUTH RESULTS (2)'!$S$11:$S$33,0)) ->  | G115: =INDEX('YOUTH RESULTS (2)'!$B$11:$B$33,MATCH('AWARDS (2)'!A115,'YOUTH RESULTS (2)'!$S$11:$S$33,0)) ->  | H115: =INDEX('YOUTH RESULTS (2)'!$C$11:$C$33,MATCH('AWARDS (2)'!A115,'YOUTH RESULTS (2)'!$X$11:$X$33,0)) ->  | I115: =INDEX('YOUTH RESULTS (2)'!$B$11:$B$33,MATCH('AWARDS (2)'!A115,'YOUTH RESULTS (2)'!$X$11:$X$33,0)) ->  | J115: =INDEX('YOUTH RESULTS (2)'!$C$11:$C$33,MATCH('AWARDS (2)'!A115,'YOUTH RESULTS (2)'!$AE$11:$AE$33,0)) ->  | K115: =INDEX('YOUTH RESULTS (2)'!$B$11:$B$33,MATCH('AWARDS (2)'!A115,'YOUTH RESULTS (2)'!$AE$11:$AE$33,0)) -> 
B116: =INDEX('YOUTH RESULTS (2)'!$D$11:$D$33,MATCH('AWARDS (2)'!A115,'YOUTH RESULTS (2)'!$I$11:$I$33,0)) ->  | D116: =INDEX('YOUTH RESULTS (2)'!$D$11:$D$33,MATCH('AWARDS (2)'!A115,'YOUTH RESULTS (2)'!$N$11:$N$33,0)) ->  | E116: =INDEX(#REF!,MATCH('AWARDS (2)'!B116,#REF!,0)) ->  | F116: =INDEX('YOUTH RESULTS (2)'!$D$11:$D$33,MATCH('AWARDS (2)'!A115,'YOUTH RESULTS (2)'!$S$11:$S$33,0)) ->  | G116: =INDEX(#REF!,MATCH('AWARDS (2)'!A116,#REF!,0)) ->  | H116: =INDEX('YOUTH RESULTS (2)'!$D$11:$D$33,MATCH('AWARDS (2)'!A115,'YOUTH RESULTS (2)'!$X$11:$X$33,0)) ->  | I116: =INDEX(#REF!,MATCH('AWARDS (2)'!A116,#REF!,0)) ->  | J116: =INDEX('YOUTH RESULTS (2)'!$D$11:$D$33,MATCH('AWARDS (2)'!A115,'YOUTH RESULTS (2)'!$AE$11:$AE$33,0)) ->  | K116: =INDEX(#REF!,MATCH('AWARDS (2)'!A116,#REF!,0)) -> 
A117: 5 | B117: =INDEX('YOUTH RESULTS (2)'!C$11:$C$33,MATCH('AWARDS (2)'!A117,'YOUTH RESULTS (2)'!$I$11:$I$33,0)) ->  | C117: =INDEX('YOUTH RESULTS (2)'!$B$11:$B$33,MATCH('AWARDS (2)'!A117,'YOUTH RESULTS (2)'!$I$11:$I$33,0)) ->  | D117: =INDEX('YOUTH RESULTS (2)'!$C$11:$C$33,MATCH('AWARDS (2)'!A117,'YOUTH RESULTS (2)'!$N$11:$N$33,0)) ->  | E117: =INDEX('YOUTH RESULTS (2)'!$B$11:$B$33,MATCH('AWARDS (2)'!A117,'YOUTH RESULTS (2)'!$N$11:$N$33,0)) ->  | F117: =INDEX('YOUTH RESULTS (2)'!$C$11:$C$33,MATCH('AWARDS (2)'!A117,'YOUTH RESULTS (2)'!$S$11:$S$33,0)) ->  | G117: =INDEX('YOUTH RESULTS (2)'!$B$11:$B$33,MATCH('AWARDS (2)'!A117,'YOUTH RESULTS (2)'!$S$11:$S$33,0)) ->  | H117: =INDEX('YOUTH RESULTS (2)'!$C$11:$C$33,MATCH('AWARDS (2)'!A117,'YOUTH RESULTS (2)'!$X$11:$X$33,0)) ->  | I117: =INDEX('YOUTH RESULTS (2)'!$B$11:$B$33,MATCH('AWARDS (2)'!A117,'YOUTH RESULTS (2)'!$X$11:$X$33,0)) ->  | J117: =INDEX('YOUTH RESULTS (2)'!$C$11:$C$33,MATCH('AWARDS (2)'!A117,'YOUTH RESULTS (2)'!$AE$11:$AE$33,0)) ->  | K117: =INDEX('YOUTH RESULTS (2)'!$B$11:$B$33,MATCH('AWARDS (2)'!A117,'YOUTH RESULTS (2)'!$AE$11:$AE$33,0)) -> 
B118: =INDEX('YOUTH RESULTS (2)'!$D$11:$D$33,MATCH('AWARDS (2)'!A117,'YOUTH RESULTS (2)'!$I$11:$I$33,0)) ->  | D118: =INDEX('YOUTH RESULTS (2)'!$D$11:$D$33,MATCH('AWARDS (2)'!A117,'YOUTH RESULTS (2)'!$N$11:$N$33,0)) ->  | E118: =INDEX(#REF!,MATCH('AWARDS (2)'!B118,#REF!,0)) ->  | F118: =INDEX('YOUTH RESULTS (2)'!$D$11:$D$33,MATCH('AWARDS (2)'!A117,'YOUTH RESULTS (2)'!$S$11:$S$33,0)) ->  | G118: =INDEX(#REF!,MATCH('AWARDS (2)'!A118,#REF!,0)) ->  | H118: =INDEX('YOUTH RESULTS (2)'!$D$11:$D$33,MATCH('AWARDS (2)'!A117,'YOUTH RESULTS (2)'!$X$11:$X$33,0)) ->  | I118: =INDEX(#REF!,MATCH('AWARDS (2)'!A118,#REF!,0)) ->  | J118: =INDEX('YOUTH RESULTS (2)'!$D$11:$D$33,MATCH('AWARDS (2)'!A117,'YOUTH RESULTS (2)'!$AE$11:$AE$33,0)) ->  | K118: =INDEX(#REF!,MATCH('AWARDS (2)'!A118,#REF!,0)) -> 
A119: 6 | B119: =INDEX('YOUTH RESULTS (2)'!C$11:$C$33,MATCH('AWARDS (2)'!A119,'YOUTH RESULTS (2)'!$I$11:$I$33,0)) ->  | C119: =INDEX('YOUTH RESULTS (2)'!$B$11:$B$33,MATCH('AWARDS (2)'!A119,'YOUTH RESULTS (2)'!$I$11:$I$33,0)) ->  | D119: =INDEX('YOUTH RESULTS (2)'!$C$11:$C$33,MATCH('AWARDS (2)'!A119,'YOUTH RESULTS (2)'!$N$11:$N$33,0)) ->  | E119: =INDEX('YOUTH RESULTS (2)'!$B$11:$B$33,MATCH('AWARDS (2)'!A119,'YOUTH RESULTS (2)'!$N$11:$N$33,0)) ->  | F119: =INDEX('YOUTH RESULTS (2)'!$C$11:$C$33,MATCH('AWARDS (2)'!A119,'YOUTH RESULTS (2)'!$S$11:$S$33,0)) ->  | G119: =INDEX('YOUTH RESULTS (2)'!$B$11:$B$33,MATCH('AWARDS (2)'!A119,'YOUTH RESULTS (2)'!$S$11:$S$33,0)) ->  | H119: =INDEX('YOUTH RESULTS (2)'!$C$11:$C$33,MATCH('AWARDS (2)'!A119,'YOUTH RESULTS (2)'!$X$11:$X$33,0)) ->  | I119: =INDEX('YOUTH RESULTS (2)'!$B$11:$B$33,MATCH('AWARDS (2)'!A119,'YOUTH RESULTS (2)'!$X$11:$X$33,0)) ->  | J119: =INDEX('YOUTH RESULTS (2)'!$C$11:$C$33,MATCH('AWARDS (2)'!A119,'YOUTH RESULTS (2)'!$AE$11:$AE$33,0)) ->  | K119: =INDEX('YOUTH RESULTS (2)'!$B$11:$B$33,MATCH('AWARDS (2)'!A119,'YOUTH RESULTS (2)'!$AE$11:$AE$33,0)) -> 
B120: =INDEX('YOUTH RESULTS (2)'!$D$11:$D$33,MATCH('AWARDS (2)'!A119,'YOUTH RESULTS (2)'!$I$11:$I$33,0)) ->  | D120: =INDEX('YOUTH RESULTS (2)'!$D$11:$D$33,MATCH('AWARDS (2)'!A119,'YOUTH RESULTS (2)'!$N$11:$N$33,0)) ->  | E120: =INDEX(#REF!,MATCH('AWARDS (2)'!B120,#REF!,0)) ->  | F120: =INDEX('YOUTH RESULTS (2)'!$D$11:$D$33,MATCH('AWARDS (2)'!A119,'YOUTH RESULTS (2)'!$S$11:$S$33,0)) ->  | G120: =INDEX(#REF!,MATCH('AWARDS (2)'!A120,#REF!,0)) ->  | H120: =INDEX('YOUTH RESULTS (2)'!$D$11:$D$33,MATCH('AWARDS (2)'!A119,'YOUTH RESULTS (2)'!$X$11:$X$33,0)) ->  | I120: =INDEX(#REF!,MATCH('AWARDS (2)'!A120,#REF!,0)) ->  | J120: =INDEX('YOUTH RESULTS (2)'!$D$11:$D$33,MATCH('AWARDS (2)'!A119,'YOUTH RESULTS (2)'!$AE$11:$AE$33,0)) ->  | K120: =INDEX(#REF!,MATCH('AWARDS (2)'!A120,#REF!,0)) -> 
A121: Youth Reserve Champion | H121: =INDEX('YOUTH RESULTS (2)'!$C$11:$C$33,MATCH(2,'YOUTH RESULTS (2)'!$AJ$11:$AJ$33,0)) ->  | J121: =INDEX('YOUTH RESULTS (2)'!$B$11:$B$33,MATCH(2,'YOUTH RESULTS (2)'!$AJ$11:$AJ$33,0)) -> 
H122: =INDEX('YOUTH RESULTS (2)'!$D$11:$D$33,MATCH(2,'YOUTH RESULTS (2)'!$AJ$11:$AJ$33,0)) ->  | J122: =INDEX(#REF!,MATCH(2,#REF!,0)) -> 
A123: Youth Champion | H123: =INDEX('YOUTH RESULTS (2)'!$C$11:$C$33,MATCH(1,'YOUTH RESULTS (2)'!$AJ$11:$AJ$33,0)) ->  | J123: =INDEX('YOUTH RESULTS (2)'!$B$11:$B$33,MATCH(1,'YOUTH RESULTS (2)'!$AJ$11:$AJ$33,0)) -> 
H124: =INDEX('YOUTH RESULTS (2)'!$D$11:$D$33,MATCH(1,'YOUTH RESULTS (2)'!$AJ$11:$AJ$33,0)) ->  | J124: =INDEX(#REF!,MATCH(1,#REF!,0)) -> 

Sheet Novice 1
A1: RIDERS SCORE WORK SHEET
A3: Back Number: | B3: ='Entry Information'!B11 -> 83 | G3: Back Number: | H3: ='Entry Information'!B11 -> 83 | M3: Back Number: | N3: ='Entry Information'!B11 -> 83 | S3: Back Number: | T3: ='Entry Information'!B11 -> 83 | Y3: Back Number: | Z3: ='Entry Information'!B11 -> 83
A4: Name: | B4: ='Entry Information'!I11 -> Codi | C4: ='Entry Information'!H11 -> Christianson | G4: Name: | H4: ='Entry Information'!I11 -> Codi | I4: ='Entry Information'!H11 -> Christianson | M4: Name: | N4: ='Entry Information'!I11 -> Codi | O4: ='Entry Information'!H11 -> Christianson | S4: Name: | T4: ='Entry Information'!I11 -> Codi | U4: ='Entry Information'!H11 -> Christianson | Y4: Name: | Z4: ='Entry Information'!I11 -> Codi | AA4: ='Entry Information'!H11 -> Christianson
A5: Horse Name: | B5: ='Entry Information'!J11 -> Miss Makin Shine | G5: Horse Name: | H5: ='Entry Information'!J11 -> Miss Makin Shine | M5: Horse Name: | N5: ='Entry Information'!J11 -> Miss Makin Shine | S5: Horse Name: | T5: ='Entry Information'!J11 -> Miss Makin Shine | Y5: Horse Name: | Z5: ='Entry Information'!J11 -> Miss Makin Shine
A7: Check box when entering Ranch Riding scores | D7: x | G7: Check box when entering Working Ranch Horse scores | J7: x | M7: Check box when entering Ranch Cutting scores | P7: x | S7: Check box when entering Ranch Trail scores | V7: x | Y7: Check box when entering Conformation scores | AB7: x
A8: Ranch Riding | G8: Working Ranch Horse | M8: Ranch Cutting | S8: Ranch Trail | Y8: Ranch Conformation
A9: Maneuver | B9: Judge's Score +/- | C9: Penalty Points | G9: Maneuver | H9: Judge's Score +/- | I9: Penalty Points | M9: Maneuver | N9: Judge's Score +/- | O9: Penalty Points | S9: Maneuver | T9: Judge's Score +/- | U9: Penalty Points | Y9: Front Legs, Feet | AB9: -1
A10: 1 | B10: -1 | G10: 1 | H10: -1 | I10: -0.5 | M10: Herd Work | S10: 1 | T10: 1 | Y10: Chest, Pectoral V | AB10: 0
A11: 2 | B11: 0 | G11: 2 | H11: -2 | M11: 1 | N11: -1 | O11: -1 | S11: 2 | T11: 2 | Y11: Head | AB11: -1
A12: 3 | B12: -1 | G12: 3 | H12: -1 | I12: -2 | M12: 2 | N12: -1 | S12: 3 | T12: 2 | Y12: Neck & Throat Latch | AB12: 1
A13: 4 | B13: 2 | G13: 4 | H13: 0 | M13: 3 | N13: 0 | S13: 4 | T13: 2 | Y13: Shoulders & Withers | AB13: 1
A14: 5 | B14: 1 | G14: 5 | H14: -1 | M14: Cutting | S14: 5 | T14: 1 | Y14: Heart Girth & Barrel | AB14: 0
A15: 6 | B15: 1 | G15: 6 | H15: -1 | M15: 1 | N15: 0 | S15: 6 | T15: -2 | U15: -1 | Y15: Back & Loin | AB15: -1
A16: 7 | B16: 0 | G16: 7 | H16: -1 | M16: 2 | N16: -2 | S16: 7 | T16: 0 | Y16: Hip & Croup | AB16: -1
A17: 8 | B17: -1 | G17: 8 | H17: -1 | M17: 3 | N17: -3 | S17: 8 | T17: -2 | U17: -5 | Y17: Stife & Gaskin | AB17: 0
A18: 9 | B18: -1 | I18: Total Penalty Pts | J18: =SUM(I10:J17) -> -2.5 | M18: 4 | N18: -2 | S18: 9 | T18: 0 | Y18: Hock, Hind Legs, Feet | AB18: -1
A19: 10 | B19: -2 | G19: 56 +/- Judge Score | H19: =SUM(H10:H17) -> -8 | I19: Divided by 2 | J19: =SUM((56+H19)/2) -> 24 | M19: Penning | S19: 10 | T19: 1 | Y19: Overall Muscling | AB19: -1
A20: 11 | B20: -3 | G20: Maneuver Score | H20: =J19 -> 24 | I20: Less Penalty Pts | J20: =J18 -> -2.5 | M20: 1 | N20: 1 | U20: Major Penalties | Y20: Tracking | Z20: Lame: enter an "x" | AB20: -1
A21: 12 | B21: 0 | C21: -3 | G21: REINING SCORE | J21: =SUM(H20+J20) -> 21.5 | M21: 2 | N21: 0 | Y21: Balance 1 | AB21: -2
A22: 13 | B22: -2 | G22: NOVICE BOXING | M22: 3 | N22: -3 | O22: -5 | Y22: Balance 2 | AB22: -2
A23: 14 | B23: -1 | G23: 1 | H23: -2 | I23: Penalty Points | J23: -4 | O23: Major Penalties | S23: Maneuver Total | T23: =SUM(T10:T19) -> 5 | U23: Penalty Total | V23: =SUM(SUM(U10:V19)+V20) -> -6 | Y23: Balance 3 | AB23: -2
A24: Maneuver Total | B24: =SUM(B10:B23) -> -8 | C24: Major Penalties | G24: 7 +/- Judge Score | H24: =SUM(7+H23) -> 5 | I24: Total Penalty Pts | J24: =J23 -> -4 | Y24: Fitness & Condition | AB24: 1
C25: Penalty Total | D25: =SUM(C10:D24) -> -3 | G25: Maneuver Score | H25: =H24 -> 5 | I25: Less Penalty Pts | J25: =J24 -> -4 | M25: Maneuver Total | N25: =SUM(N10:N22) -> -11 | O25: Penalty Total | P25: =SUM(O11+O12+O13+O15+O16+O17+O18+O20+O21+O22+P23) -> -6 | Y25: Participant Showmanship | AB25: -2
G26: CATTLE SCORE | J26: =SUM(H25+J25) -> 1 | Y26: Horse Showmanship | AB26: 0
A27: 100 +/-Maneuver | B27: =B24 -> -8 | C27: x .70 = | D27: =SUM((100+B27)*0.7) -> 64.4 | M27: 70 +/-Maneuver | N27: =N25 -> -11 | O27: Less Penalty Total | P27: =P25 -> -6 | S27: 70 +/-Maneuver | T27: =T23 -> 5 | U27: Less Penalty Total | V27: =V23 -> -6 | Y27: Form & Showmanship Judges Score | AA27: Total (1) | AB27: =SUM(AB9:AB26) -> -12
Y28: =SUM(AB27*0.33+42) -> 38.04 | Z28: =IF(AA20="x",-10,0) -> 0 | AA28: Judge Score (2) | AB28: =SUM(Y28+Z28) -> 38.04
A29: Maneuver Score = | B29: =D27 -> 64.4 | C29: Less Penalty Total | D29: =D25 -> -3 | G29: Reining Score | H29: =J21 -> 21.5 | I29: Plus Cattle Score | J29: =J26 -> 1 | Y29: Ranch Cutting | Z29: =IF(P31="",0,P31) -> 53 | AA29: Ranch Rding | AB29: =IF(D31="",0,D31) -> 61.4
Y30: Working Ranch Horse | Z30: =IF(J31="",0,J31) -> 22.5 | AA30: Ranch Trail | AB30: =IF(V31="",0,V31) -> 69
A31: TOTAL SCORE | D31: =IF(D7="","",IF(B29+D29<0,0,B29+D29)) -> 61.4 | G31: TOTAL SCORE | J31: =IF(J7="","",IF(H29+J29<0,0,H29+J29)) -> 22.5 | M31: TOTAL SCORE | P31: =IF(P7="","",IF(70+N27+P27<0,0,70+N27+P27)) -> 53 | S31: TOTAL SCORE | V31: =IF(V7="","",IF(70+T27+V27<0,0,70+T27+V27)) -> 69 | Y31: Function Total (3) | Z31: =SUM(Z29+AB29+Z30+AB30) -> 205.9 | AA31: Function Score (4) | AB31: =Z31*0.1 -> 20.59
Y32: Judge Score (2) + Function Score (4) = CONFORMATION SCORE | AB32: =IF(AB7="","",IF(AB28+AB31<0,0,AB28+AB31)) -> 58.63
C33: Return to Entry Page | I33: Return to Entry Page | O33: Return to Entry Page | U33: Return to Entry Page
AA34: Return to Entry Page

Sheet Novice 2
A1: RIDERS SCORE WORK SHEET
A3: Back Number: | B3: ='Entry Information'!B12 -> 82 | G3: Back Number: | H3: ='Entry Information'!B12 -> 82 | M3: Back Number: | N3: ='Entry Information'!B12 -> 82 | S3: Back Number: | T3: ='Entry Information'!B12 -> 82 | Y3: Back Number: | Z3: ='Entry Information'!B12 -> 82
A4: Name: | B4: ='Entry Information'!I12 -> Dale | C4: ='Entry Information'!H12 -> Grove | G4: Name: | H4: ='Entry Information'!I12 -> Dale | I4: ='Entry Information'!H12 -> Grove | M4: Name: | N4: ='Entry Information'!I12 -> Dale | O4: ='Entry Information'!H12 -> Grove | S4: Name: | T4: ='Entry Information'!I12 -> Dale | U4: ='Entry Information'!H12 -> Grove | Y4: Name: | Z4: ='Entry Information'!I12 -> Dale | AA4: ='Entry Information'!H12 -> Grove
A5: Horse Name: | B5: ='Entry Information'!J12 -> Woody B Stylin | G5: Horse Name: | H5: ='Entry Information'!J12 -> Woody B Stylin | M5: Horse Name: | N5: ='Entry Information'!J12 -> Woody B Stylin | S5: Horse Name: | T5: ='Entry Information'!J12 -> Woody B Stylin | Y5: Horse Name: | Z5: ='Entry Information'!J12 -> Woody B Stylin
A7: Check box when entering Ranch Riding scores | D7: x | G7: Check box when entering Working Ranch Horse scores | J7: x | M7: Check box when entering Ranch Cutting scores | P7: x | S7: Check box when entering Ranch Trail scores | V7: x | Y7: Check box when entering Conformation scores | AB7: x
A8: Ranch Riding | G8: Working Ranch Horse | M8: Ranch Cutting | S8: Ranch Trail | Y8: Ranch Conformation
A9: Maneuver | B9: Judge's Score +/- | C9: Penalty Points | G9: Maneuver | H9: Judge's Score +/- | I9: Penalty Points | M9: Maneuver | N9: Judge's Score +/- | O9: Penalty Points | S9: Maneuver | T9: Judge's Score +/- | U9: Penalty Points | Y9: Front Legs, Feet | AB9: -1
A10: 1 | B10: 1 | G10: 1 | H10: -1 | I10: -1 | M10: Herd Work | S10: 1 | T10: 0 | Y10: Chest, Pectoral V | AB10: -1
A11: 2 | B11: 1 | G11: 2 | H11: 0 | M11: 1 | N11: 0 | S11: 2 | T11: 2 | U11: -1.5 | Y11: Head | AB11: 0
A12: 3 | B12: -1 | G12: 3 | H12: -1 | I12: -4 | M12: 2 | N12: 0 | S12: 3 | T12: 0 | Y12: Neck & Throat Latch | AB12: 1
A13: 4 | B13: 1 | G13: 4 | H13: 0 | M13: 3 | N13: 1 | S13: 4 | T13: 0 | Y13: Shoulders & Withers | AB13: 0
A14: 5 | B14: 2 | G14: 5 | H14: 0 | M14: Cutting | S14: 5 | T14: 2 | Y14: Heart Girth & Barrel | AB14: 0
A15: 6 | B15: -2 | G15: 6 | H15: 0 | M15: 1 | N15: 0 | S15: 6 | T15: 1 | U15: -2 | Y15: Back & Loin | AB15: 1
A16: 7 | B16: -3 | C16: -3 | G16: 7 | H16: -1 | M16: 2 | N16: 2 | S16: 7 | T16: -1 | Y16: Hip & Croup | AB16: 0
A17: 8 | B17: -1 | G17: 8 | H17: -2 | M17: 3 | N17: 3 | S17: 8 | T17: 2 | Y17: Stife & Gaskin | AB17: 1
A18: 9 | B18: -1 | I18: Total Penalty Pts | J18: =SUM(I10:J17) -> -5 | M18: 4 | N18: 2 | S18: 9 | T18: 1 | Y18: Hock, Hind Legs, Feet | AB18: 0
A19: 10 | B19: 2 | G19: 56 +/- Judge Score | H19: =SUM(H10:H17) -> -5 | I19: Divided by 2 | J19: =SUM((56+H19)/2) -> 25.5 | M19: Penning | S19: 10 | T19: 2 | Y19: Overall Muscling | AB19: 1
A20: 11 | B20: 2 | G20: Maneuver Score | H20: =J19 -> 25.5 | I20: Less Penalty Pts | J20: =J18 -> -5 | M20: 1 | N20: 1 | U20: Major Penalties | Y20: Tracking | Z20: Lame: enter an "x" | AB20: -1
A21: 12 | B21: -3 | C21: -3 | G21: REINING SCORE | J21: =SUM(H20+J20) -> 20.5 | M21: 2 | N21: 2 | Y21: Balance 1 | AB21: 1
A22: 13 | B22: 0 | G22: NOVICE BOXING | M22: 3 | N22: 2 | Y22: Balance 2 | AB22: 1
A23: 14 | B23: 0 | G23: 1 | H23: -1 | I23: Penalty Points | O23: Major Penalties | S23: Maneuver Total | T23: =SUM(T10:T19) -> 9 | U23: Penalty Total | V23: =SUM(SUM(U10:V19)+V20) -> -3.5 | Y23: Balance 3 | AB23: 1
A24: Maneuver Total | B24: =SUM(B10:B23) -> -2 | C24: Major Penalties | G24: 7 +/- Judge Score | H24: =SUM(7+H23) -> 6 | I24: Total Penalty Pts | J24: =J23 -> 0 | Y24: Fitness & Condition | AB24: 1
C25: Penalty Total | D25: =SUM(C10:D24) -> -6 | G25: Maneuver Score | H25: =H24 -> 6 | I25: Less Penalty Pts | J25: =J24 -> 0 | M25: Maneuver Total | N25: =SUM(N10:N22) -> 13 | O25: Penalty Total | P25: =SUM(O11+O12+O13+O15+O16+O17+O18+O20+O21+O22+P23) -> 0 | Y25: Participant Showmanship | AB25: -2
G26: CATTLE SCORE | J26: =SUM(H25+J25) -> 6 | Y26: Horse Showmanship | AB26: 0
A27: 100 +/-Maneuver | B27: =B24 -> -2 | C27: x .70 = | D27: =SUM((100+B27)*0.7) -> 68.6 | M27: 70 +/-Maneuver | N27: =N25 -> 13 | O27: Less Penalty Total | P27: =P25 -> 0 | S27: 70 +/-Maneuver | T27: =T23 -> 9 | U27: Less Penalty Total | V27: =V23 -> -3.5 | Y27: Form & Showmanship Judges Score | AA27: Total (1) | AB27: =SUM(AB9:AB26) -> 3
Y28: =SUM(AB27*0.33+42) -> 42.99 | Z28: =IF(AA20="x",-10,0) -> 0 | AA28: Judge Score (2) | AB28: =SUM(Y28+Z28) -> 42.99
A29: Maneuver Score = | B29: =D27 -> 68.6 | C29: Less Penalty Total | D29: =D25 -> -6 | G29: Reining Score | H29: =J21 -> 20.5 | I29: Plus Cattle Score | J29: =J26 -> 6 | Y29: Ranch Cutting | Z29: =IF(P31="",0,P31) -> 83 | AA29: Ranch Rding | AB29: =IF(D31="",0,D31) -> 62.6
Y30: Working Ranch Horse | Z30: =IF(J31="",0,J31) -> 26.5 | AA30: Ranch Trail | AB30: =IF(V31="",0,V31) -> 75.5
A31: TOTAL SCORE | D31: =IF(D7="","",IF(B29+D29<0,0,B29+D29)) -> 62.6 | G31: TOTAL SCORE | J31: =IF(J7="","",IF(H29+J29<0,0,H29+J29)) -> 26.5 | M31: TOTAL SCORE | P31: =IF(P7="","",IF(70+N27+P27<0,0,70+N27+P27)) -> 83 | S31: TOTAL SCORE | V31: =IF(V7="","",IF(70+T27+V27<0,0,70+T27+V27)) -> 75.5 | Y31: Function Total (3) | Z31: =SUM(Z29+AB29+Z30+AB30) -> 247.6 | AA31: Function Score (4) | AB31: =Z31*0.1 -> 24.76
Y32: Judge Score (2) + Function Score (4) = CONFORMATION SCORE | AB32: =IF(AB7="","",IF(AB28+AB31<0,0,AB28+AB31)) -> 67.75
C33: Return to Entry Page | I33: Return to Entry Page | O33: Return to Entry Page | U33: Return to Entry Page
AA34: Return to Entry Page

Sheet Novice 3
A1: RIDERS SCORE WORK SHEET
A3: Back Number: | B3: ='Entry Information'!B13 -> 75 | G3: Back Number: | H3: ='Entry Information'!B13 -> 75 | M3: Back Number: | N3: ='Entry Information'!B13 -> 75 | S3: Back Number: | T3: ='Entry Information'!B13 -> 75 | Y3: Back Number: | Z3: ='Entry Information'!B13 -> 75
A4: Name: | B4: ='Entry Information'!I13 -> Roxanne | C4: ='Entry Information'!H13 -> Burton | G4: Name: | H4: ='Entry Information'!I13 -> Roxanne | I4: ='Entry Information'!H13 -> Burton | M4: Name: | N4: ='Entry Information'!I13 -> Roxanne | O4: ='Entry Information'!H13 -> Burton | S4: Name: | T4: ='Entry Information'!I13 -> Roxanne | U4: ='Entry Information'!H13 -> Burton | Y4: Name: | Z4: ='Entry Information'!I13 -> Roxanne | AA4: ='Entry Information'!H13 -> Burton
A5: Horse Name: | B5: ='Entry Information'!J13 -> Miss Smart Gun RG | G5: Horse Name: | H5: ='Entry Information'!J13 -> Miss Smart Gun RG | M5: Horse Name: | N5: ='Entry Information'!J13 -> Miss Smart Gun RG | S5: Horse Name: | T5: ='Entry Information'!J13 -> Miss Smart Gun RG | Y5: Horse Name: | Z5: ='Entry Information'!J13 -> Miss Smart Gun RG
A7: Check box when entering Ranch Riding scores | D7: x | G7: Check box when entering Working Ranch Horse scores | J7: x | M7: Check box when entering Ranch Cutting scores | P7: x | S7: Check box when entering Ranch Trail scores | V7: x | Y7: Check box when entering Conformation scores | AB7: x
A8: Ranch Riding | G8: Working Ranch Horse | M8: Ranch Cutting | S8: Ranch Trail | Y8: Ranch Conformation
A9: Maneuver | B9: Judge's Score +/- | C9: Penalty Points | G9: Maneuver | H9: Judge's Score +/- | I9: Penalty Points | M9: Maneuver | N9: Judge's Score +/- | O9: Penalty Points | S9: Maneuver | T9: Judge's Score +/- | U9: Penalty Points | Y9: Front Legs, Feet | AB9: 1
A10: 1 | B10: 0 | G10: 1 | H10: 0 | I10: -0.5 | M10: Herd Work | S10: 1 | T10: 1 | Y10: Chest, Pectoral V | AB10: 1
A11: 2 | B11: 1 | G11: 2 | H11: 0 | M11: 1 | N11: 0 | O11: -1 | S11: 2 | T11: 0 | Y11: Head | AB11: 1
A12: 3 | B12: 0 | G12: 3 | H12: -1 | I12: -4 | M12: 2 | N12: 0 | S12: 3 | T12: 2 | Y12: Neck & Throat Latch | AB12: 1
A13: 4 | B13: 0 | G13: 4 | H13: 0 | M13: 3 | N13: 0 | S13: 4 | T13: 2 | Y13: Shoulders & Withers | AB13: 0
A14: 5 | B14: 2 | G14: 5 | H14: 0 | M14: Cutting | S14: 5 | T14: 1 | Y14: Heart Girth & Barrel | AB14: -1
A15: 6 | B15: 1 | G15: 6 | H15: 0 | M15: 1 | N15: 0 | S15: 6 | T15: 2 | U15: -1 | Y15: Back & Loin | AB15: -1
A16: 7 | B16: 1 | G16: 7 | H16: -1 | M16: 2 | N16: -1 | O16: -5 | S16: 7 | T16: 1 | Y16: Hip & Croup | AB16: 0
A17: 8 | B17: 0 | G17: 8 | H17: -1 | M17: 3 | N17: 2 | S17: 8 | T17: 2 | Y17: Stife & Gaskin | AB17: 1
A18: 9 | B18: -1 | C18: -1 | I18: Total Penalty Pts | J18: =SUM(I10:J17) -> -4.5 | M18: 4 | N18: -1 | S18: 9 | T18: 0 | Y18: Hock, Hind Legs, Feet | AB18: -1
A19: 10 | B19: 2 | G19: 56 +/- Judge Score | H19: =SUM(H10:H17) -> -3 | I19: Divided by 2 | J19: =SUM((56+H19)/2) -> 26.5 | M19: Penning | S19: 10 | T19: 0 | Y19: Overall Muscling | AB19: 0
A20: 11 | B20: 2 | G20: Maneuver Score | H20: =J19 -> 26.5 | I20: Less Penalty Pts | J20: =J18 -> -4.5 | M20: 1 | N20: -3 | U20: Major Penalties | Y20: Tracking | Z20: Lame: enter an "x" | AB20: 0
A21: 12 | B21: 1 | G21: REINING SCORE | J21: =SUM(H20+J20) -> 22 | M21: 2 | N21: 2 | Y21: Balance 1 | AB21: 1
A22: 13 | B22: 0 | G22: NOVICE BOXING | M22: 3 | N22: -3 | O22: -5 | Y22: Balance 2 | AB22: 1
A23: 14 | B23: 1 | G23: 1 | H23: -1 | I23: Penalty Points | O23: Major Penalties | S23: Maneuver Total | T23: =SUM(T10:T19) -> 11 | U23: Penalty Total | V23: =SUM(SUM(U10:V19)+V20) -> -1 | Y23: Balance 3 | AB23: 1
A24: Maneuver Total | B24: =SUM(B10:B23) -> 10 | C24: Major Penalties | G24: 7 +/- Judge Score | H24: =SUM(7+H23) -> 6 | I24: Total Penalty Pts | J24: =J23 -> 0 | Y24: Fitness & Condition | AB24: 1
C25: Penalty Total | D25: =SUM(C10:D24) -> -1 | G25: Maneuver Score | H25: =H24 -> 6 | I25: Less Penalty Pts | J25: =J24 -> 0 | M25: Maneuver Total | N25: =SUM(N10:N22) -> -4 | O25: Penalty Total | P25: =SUM(O11+O12+O13+O15+O16+O17+O18+O20+O21+O22+P23) -> -11 | Y25: Participant Showmanship | AB25: 1
G26: CATTLE SCORE | J26: =SUM(H25+J25) -> 6 | Y26: Horse Showmanship | AB26: 1
A27: 100 +/-Maneuver | B27: =B24 -> 10 | C27: x .70 = | D27: =SUM((100+B27)*0.7) -> 77 | M27: 70 +/-Maneuver | N27: =N25 -> -4 | O27: Less Penalty Total | P27: =P25 -> -11 | S27: 70 +/-Maneuver | T27: =T23 -> 11 | U27: Less Penalty Total | V27: =V23 -> -1 | Y27: Form & Showmanship Judges Score | AA27: Total (1) | AB27: =SUM(AB9:AB26) -> 8
Y28: =SUM(AB27*0.33+42) -> 44.64 | Z28: =IF(AA20="x",-10,0) -> 0 | AA28: Judge Score (2) | AB28: =SUM(Y28+Z28) -> 44.64
A29: Maneuver Score = | B29: =D27 -> 77 | C29: Less Penalty Total | D29: =D25 -> -1 | G29: Reining Score | H29: =J21 -> 22 | I29: Plus Cattle Score | J29: =J26 -> 6 | Y29: Ranch Cutting | Z29: =IF(P31="",0,P31) -> 55 | AA29: Ranch Rding | AB29: =IF(D31="",0,D31) -> 76
Y30: Working Ranch Horse | Z30: =IF(J31="",0,J31) -> 28 | AA30: Ranch Trail | AB30: =IF(V31="",0,V31) -> 80
A31: TOTAL SCORE | D31: =IF(D7="","",IF(B29+D29<0,0,B29+D29)) -> 76 | G31: TOTAL SCORE | J31: =IF(J7="","",IF(H29+J29<0,0,H29+J29)) -> 28 | M31: TOTAL SCORE | P31: =IF(P7="","",IF(70+N27+P27<0,0,70+N27+P27)) -> 55 | S31: TOTAL SCORE | V31: =IF(V7="","",IF(70+T27+V27<0,0,70+T27+V27)) -> 80 | Y31: Function Total (3) | Z31: =SUM(Z29+AB29+Z30+AB30) -> 239 | AA31: Function Score (4) | AB31: =Z31*0.1 -> 23.9
Y32: Judge Score (2) + Function Score (4) = CONFORMATION SCORE | AB32: =IF(AB7="","",IF(AB28+AB31<0,0,AB28+AB31)) -> 68.54
C33: Return to Entry Page | I33: Return to Entry Page | O33: Return to Entry Page | U33: Return to Entry Page
AA34: Return to Entry Page

Sheet Novice 4
A1: RIDERS SCORE WORK SHEET
A3: Back Number: | B3: ='Entry Information'!B14 -> 87 | G3: Back Number: | H3: ='Entry Information'!B14 -> 87 | M3: Back Number: | N3: ='Entry Information'!B14 -> 87 | S3: Back Number: | T3: ='Entry Information'!B14 -> 87 | Y3: Back Number: | Z3: ='Entry Information'!B14 -> 87
A4: Name: | B4: ='Entry Information'!I14 -> Kelly | C4: ='Entry Information'!H14 -> Messera | G4: Name: | H4: ='Entry Information'!I14 -> Kelly | I4: ='Entry Information'!H14 -> Messera | M4: Name: | N4: ='Entry Information'!I14 -> Kelly | O4: ='Entry Information'!H14 -> Messera | S4: Name: | T4: ='Entry Information'!I14 -> Kelly | U4: ='Entry Information'!H14 -> Messera | Y4: Name: | Z4: ='Entry Information'!I14 -> Kelly | AA4: ='Entry Information'!H14 -> Messera
A5: Horse Name: | B5: ='Entry Information'!J14 -> Magic Dance Man | G5: Horse Name: | H5: ='Entry Information'!J14 -> Magic Dance Man | M5: Horse Name: | N5: ='Entry Information'!J14 -> Magic Dance Man | S5: Horse Name: | T5: ='Entry Information'!J14 -> Magic Dance Man | Y5: Horse Name: | Z5: ='Entry Information'!J14 -> Magic Dance Man
A7: Check box when entering Ranch Riding scores | D7: x | G7: Check box when entering Working Ranch Horse scores | J7: x | M7: Check box when entering Ranch Cutting scores | P7: x | S7: Check box when entering Ranch Trail scores | V7: x | Y7: Check box when entering Conformation scores | AB7: x
A8: Ranch Riding | G8: Working Ranch Horse | M8: Ranch Cutting | S8: Ranch Trail | Y8: Ranch Conformation
A9: Maneuver | B9: Judge's Score +/- | C9: Penalty Points | G9: Maneuver | H9: Judge's Score +/- | I9: Penalty Points | M9: Maneuver | N9: Judge's Score +/- | O9: Penalty Points | S9: Maneuver | T9: Judge's Score +/- | U9: Penalty Points | Y9: Front Legs, Feet | AB9: -1
A10: 1 | B10: 0 | G10: 1 | H10: -1 | M10: Herd Work | S10: 1 | T10: 1 | Y10: Chest, Pectoral V | AB10: 1
A11: 2 | B11: 1 | G11: 2 | H11: -1 | M11: 1 | N11: 1 | S11: 2 | T11: 2 | Y11: Head | AB11: 2
A12: 3 | B12: 0 | G12: 3 | H12: 0 | I12: -4 | M12: 2 | N12: 0 | S12: 3 | T12: 2 | Y12: Neck & Throat Latch | AB12: 2
A13: 4 | B13: 1 | G13: 4 | H13: 0 | M13: 3 | N13: -2 | S13: 4 | T13: 2 | Y13: Shoulders & Withers | AB13: 1
A14: 5 | B14: 2 | G14: 5 | H14: 0 | M14: Cutting | S14: 5 | T14: 3 | Y14: Heart Girth & Barrel | AB14: -1
A15: 6 | B15: 2 | G15: 6 | H15: -1 | M15: 1 | N15: 0 | S15: 6 | T15: 2 | Y15: Back & Loin | AB15: 0
A16: 7 | B16: 1 | G16: 7 | H16: 0 | M16: 2 | N16: -1 | S16: 7 | T16: 2 | Y16: Hip & Croup | AB16: 0
A17: 8 | B17: -1 | G17: 8 | H17: -2 | M17: 3 | N17: -1 | S17: 8 | T17: 1 | Y17: Stife & Gaskin | AB17: 0
A18: 9 | B18: 1 | I18: Total Penalty Pts | J18: =SUM(I10:J17) -> -4 | M18: 4 | N18: -1 | S18: 9 | T18: -2 | Y18: Hock, Hind Legs, Feet | AB18: 0
A19: 10 | B19: 2 | G19: 56 +/- Judge Score | H19: =SUM(H10:H17) -> -5 | I19: Divided by 2 | J19: =SUM((56+H19)/2) -> 25.5 | M19: Penning | S19: 10 | T19: 2 | Y19: Overall Muscling | AB19: 1
A20: 11 | B20: 1 | G20: Maneuver Score | H20: =J19 -> 25.5 | I20: Less Penalty Pts | J20: =J18 -> -4 | M20: 1 | N20: 2 | U20: Major Penalties | Y20: Tracking | Z20: Lame: enter an "x" | AB20: 0
A21: 12 | B21: 2 | G21: REINING SCORE | J21: =SUM(H20+J20) -> 21.5 | M21: 2 | N21: 1 | Y21: Balance 1 | AB21: 1
A22: 13 | B22: -1 | G22: NOVICE BOXING | M22: 3 | N22: 1 | Y22: Balance 2 | AB22: 1
A23: 14 | B23: 0 | G23: 1 | H23: 1 | I23: Penalty Points | O23: Major Penalties | S23: Maneuver Total | T23: =SUM(T10:T19) -> 15 | U23: Penalty Total | V23: =SUM(SUM(U10:V19)+V20) -> 0 | Y23: Balance 3 | AB23: 1
A24: Maneuver Total | B24: =SUM(B10:B23) -> 11 | C24: Major Penalties | G24: 7 +/- Judge Score | H24: =SUM(7+H23) -> 8 | I24: Total Penalty Pts | J24: =J23 -> 0 | Y24: Fitness & Condition | AB24: 1
C25: Penalty Total | D25: =SUM(C10:D24) -> 0 | G25: Maneuver Score | H25: =H24 -> 8 | I25: Less Penalty Pts | J25: =J24 -> 0 | M25: Maneuver Total | N25: =SUM(N10:N22) -> 0 | O25: Penalty Total | P25: =SUM(O11+O12+O13+O15+O16+O17+O18+O20+O21+O22+P23) -> 0 | Y25: Participant Showmanship | AB25: 1
G26: CATTLE SCORE | J26: =SUM(H25+J25) -> 8 | Y26: Horse Showmanship | AB26: 1
A27: 100 +/-Maneuver | B27: =B24 -> 11 | C27: x .70 = | D27: =SUM((100+B27)*0.7) -> 77.7 | M27: 70 +/-Maneuver | N27: =N25 -> 0 | O27: Less Penalty Total | P27: =P25 -> 0 | S27: 70 +/-Maneuver | T27: =T23 -> 15 | U27: Less Penalty Total | V27: =V23 -> 0 | Y27: Form & Showmanship Judges Score | AA27: Total (1) | AB27: =SUM(AB9:AB26) -> 11
Y28: =SUM(AB27*0.33+42) -> 45.63 | Z28: =IF(AA20="x",-10,0) -> 0 | AA28: Judge Score (2) | AB28: =SUM(Y28+Z28) -> 45.63
A29: Maneuver Score = | B29: =D27 -> 77.7 | C29: Less Penalty Total | D29: =D25 -> 0 | G29: Reining Score | H29: =J21 -> 21.5 | I29: Plus Cattle Score | J29: =J26 -> 8 | Y29: Ranch Cutting | Z29: =IF(P31="",0,P31) -> 70 | AA29: Ranch Rding | AB29: =IF(D31="",0,D31) -> 77.7
Y30: Working Ranch Horse | Z30: =IF(J31="",0,J31) -> 29.5 | AA30: Ranch Trail | AB30: =IF(V31="",0,V31) -> 85
A31: TOTAL SCORE | D31: =IF(D7="","",IF(B29+D29<0,0,B29+D29)) -> 77.7 | G31: TOTAL SCORE | J31: =IF(J7="","",IF(H29+J29<0,0,H29+J29)) -> 29.5 | M31: TOTAL SCORE | P31: =IF(P7="","",IF(70+N27+P27<0,0,70+N27+P27)) -> 70 | S31: TOTAL SCORE | V31: =IF(V7="","",IF(70+T27+V27<0,0,70+T27+V27)) -> 85 | Y31: Function Total (3) | Z31: =SUM(Z29+AB29+Z30+AB30) -> 262.2 | AA31: Function Score (4) | AB31: =Z31*0.1 -> 26.22
Y32: Judge Score (2) + Function Score (4) = CONFORMATION SCORE | AB32: =IF(AB7="","",IF(AB28+AB31<0,0,AB28+AB31)) -> 71.85
C33: Return to Entry Page | I33: Return to Entry Page | O33: Return to Entry Page | U33: Return to Entry Page
AA34: Return to Entry Page

Sheet Novice 5
A1: RIDERS SCORE WORK SHEET
A3: Back Number: | B3: ='Entry Information'!B15 -> 72 | G3: Back Number: | H3: ='Entry Information'!B15 -> 72 | M3: Back Number: | N3: ='Entry Information'!B15 -> 72 | S3: Back Number: | T3: ='Entry Information'!B15 -> 72 | Y3: Back Number: | Z3: ='Entry Information'!B15 -> 72
A4: Name: | B4: ='Entry Information'!I15 -> Sue | C4: ='Entry Information'!H15 -> Eisenman | G4: Name: | H4: ='Entry Information'!I15 -> Sue | I4: ='Entry Information'!H15 -> Eisenman | M4: Name: | N4: ='Entry Information'!I15 -> Sue | O4: ='Entry Information'!H15 -> Eisenman | S4: Name: | T4: ='Entry Information'!I15 -> Sue | U4: ='Entry Information'!H15 -> Eisenman | Y4: Name: | Z4: ='Entry Information'!I15 -> Sue | AA4: ='Entry Information'!H15 -> Eisenman
A5: Horse Name: | B5: ='Entry Information'!J15 -> DLB Smart Blue Bars | G5: Horse Name: | H5: ='Entry Information'!J15 -> DLB Smart Blue Bars | M5: Horse Name: | N5: ='Entry Information'!J15 -> DLB Smart Blue Bars | S5: Horse Name: | T5: ='Entry Information'!J15 -> DLB Smart Blue Bars | Y5: Horse Name: | Z5: ='Entry Information'!J15 -> DLB Smart Blue Bars
A7: Check box when entering Ranch Riding scores | D7: x | G7: Check box when entering Working Ranch Horse scores | J7: x | M7: Check box when entering Ranch Cutting scores | P7: x | S7: Check box when entering Ranch Trail scores | V7: x | Y7: Check box when entering Conformation scores | AB7: x
A8: Ranch Riding | G8: Working Ranch Horse | M8: Ranch Cutting | S8: Ranch Trail | Y8: Ranch Conformation
A9: Maneuver | B9: Judge's Score +/- | C9: Penalty Points | G9: Maneuver | H9: Judge's Score +/- | I9: Penalty Points | M9: Maneuver | N9: Judge's Score +/- | O9: Penalty Points | S9: Maneuver | T9: Judge's Score +/- | U9: Penalty Points | Y9: Front Legs, Feet | AB9: -1
A10: 1 | B10: 0 | G10: 1 | H10: -1 | I10: -0.5 | M10: Herd Work | S10: 1 | T10: 0 | Y10: Chest, Pectoral V | AB10: 1
A11: 2 | B11: 0 | G11: 2 | H11: 0 | M11: 1 | N11: 0 | O11: -2 | S11: 2 | T11: 2 | U11: -1 | Y11: Head | AB11: 0
A12: 3 | B12: 0 | G12: 3 | H12: -1 | I12: -4 | M12: 2 | N12: 0 | O12: -6 | S12: 3 | T12: 0 | Y12: Neck & Throat Latch | AB12: 1
A13: 4 | B13: 2 | G13: 4 | H13: -1 | M13: 3 | N13: -1 | O13: -3 | S13: 4 | T13: 1 | U13: -5 | Y13: Shoulders & Withers | AB13: 1
A14: 5 | B14: 2 | G14: 5 | H14: -1 | M14: Cutting | S14: 5 | T14: 2 | Y14: Heart Girth & Barrel | AB14: 0
A15: 6 | B15: 2 | G15: 6 | H15: 0 | M15: 1 | N15: 0 | S15: 6 | T15: 1 | Y15: Back & Loin | AB15: 1
A16: 7 | B16: 0 | G16: 7 | H16: 1 | M16: 2 | N16: -1 | O16: -15 | S16: 7 | T16: 1 | Y16: Hip & Croup | AB16: 0
A17: 8 | B17: 1 | G17: 8 | H17: -1 | M17: 3 | N17: -3 | S17: 8 | T17: 2 | Y17: Stife & Gaskin | AB17: 1
A18: 9 | B18: 1 | I18: Total Penalty Pts | J18: =SUM(I10:J17) -> -4.5 | M18: 4 | N18: -2 | O18: -5 | S18: 9 | T18: 0 | Y18: Hock, Hind Legs, Feet | AB18: -1
A19: 10 | B19: 1 | G19: 56 +/- Judge Score | H19: =SUM(H10:H17) -> -4 | I19: Divided by 2 | J19: =SUM((56+H19)/2) -> 26 | M19: Penning | S19: 10 | T19: -1 | Y19: Overall Muscling | AB19: 0
A20: 11 | B20: 2 | G20: Maneuver Score | H20: =J19 -> 26 | I20: Less Penalty Pts | J20: =J18 -> -4.5 | M20: 1 | N20: -3 | U20: Major Penalties | Y20: Tracking | Z20: Lame: enter an "x" | AB20: -1
A21: 12 | B21: 1 | G21: REINING SCORE | J21: =SUM(H20+J20) -> 21.5 | M21: 2 | N21: -3 | Y21: Balance 1 | AB21: 1
A22: 13 | B22: 0 | G22: NOVICE BOXING | M22: 3 | N22: -3 | O22: -5 | Y22: Balance 2 | AB22: 1
A23: 14 | B23: 0 | G23: 1 | H23: -1 | I23: Penalty Points | J23: -2 | O23: Major Penalties | S23: Maneuver Total | T23: =SUM(T10:T19) -> 8 | U23: Penalty Total | V23: =SUM(SUM(U10:V19)+V20) -> -6 | Y23: Balance 3 | AB23: 1
A24: Maneuver Total | B24: =SUM(B10:B23) -> 12 | C24: Major Penalties | G24: 7 +/- Judge Score | H24: =SUM(7+H23) -> 6 | I24: Total Penalty Pts | J24: =J23 -> -2 | Y24: Fitness & Condition | AB24: 1
C25: Penalty Total | D25: =SUM(C10:D24) -> 0 | G25: Maneuver Score | H25: =H24 -> 6 | I25: Less Penalty Pts | J25: =J24 -> -2 | M25: Maneuver Total | N25: =SUM(N10:N22) -> -16 | O25: Penalty Total | P25: =SUM(O11+O12+O13+O15+O16+O17+O18+O20+O21+O22+P23) -> -36 | Y25: Participant Showmanship | AB25: 0
G26: CATTLE SCORE | J26: =SUM(H25+J25) -> 4 | Y26: Horse Showmanship | AB26: 0
A27: 100 +/-Maneuver | B27: =B24 -> 12 | C27: x .70 = | D27: =SUM((100+B27)*0.7) -> 78.4 | M27: 70 +/-Maneuver | N27: =N25 -> -16 | O27: Less Penalty Total | P27: =P25 -> -36 | S27: 70 +/-Maneuver | T27: =T23 -> 8 | U27: Less Penalty Total | V27: =V23 -> -6 | Y27: Form & Showmanship Judges Score | AA27: Total (1) | AB27: =SUM(AB9:AB26) -> 6
Y28: =SUM(AB27*0.33+42) -> 43.98 | Z28: =IF(AA20="x",-10,0) -> 0 | AA28: Judge Score (2) | AB28: =SUM(Y28+Z28) -> 43.98
A29: Maneuver Score = | B29: =D27 -> 78.4 | C29: Less Penalty Total | D29: =D25 -> 0 | G29: Reining Score | H29: =J21 -> 21.5 | I29: Plus Cattle Score | J29: =J26 -> 4 | Y29: Ranch Cutting | Z29: =IF(P31="",0,P31) -> 18 | AA29: Ranch Rding | AB29: =IF(D31="",0,D31) -> 78.4
Y30: Working Ranch Horse | Z30: =IF(J31="",0,J31) -> 25.5 | AA30: Ranch Trail | AB30: =IF(V31="",0,V31) -> 72
A31: TOTAL SCORE | D31: =IF(D7="","",IF(B29+D29<0,0,B29+D29)) -> 78.4 | G31: TOTAL SCORE | J31: =IF(J7="","",IF(H29+J29<0,0,H29+J29)) -> 25.5 | M31: TOTAL SCORE | P31: =IF(P7="","",IF(70+N27+P27<0,0,70+N27+P27)) -> 18 | S31: TOTAL SCORE | V31: =IF(V7="","",IF(70+T27+V27<0,0,70+T27+V27)) -> 72 | Y31: Function Total (3) | Z31: =SUM(Z29+AB29+Z30+AB30) -> 193.9 | AA31: Function Score (4) | AB31: =Z31*0.1 -> 19.39
Y32: Judge Score (2) + Function Score (4) = CONFORMATION SCORE | AB32: =IF(AB7="","",IF(AB28+AB31<0,0,AB28+AB31)) -> 63.37
C33: Return to Entry Page | I33: Return to Entry Page | O33: Return to Entry Page | U33: Return to Entry Page
AA34: Return to Entry Page

Sheet Novice 6
A1: RIDERS SCORE WORK SHEET
A3: Back Number: | B3: ='Entry Information'!B16 -> 0 | G3: Back Number: | H3: ='Entry Information'!B16 -> 0 | M3: Back Number: | N3: ='Entry Information'!B16 -> 0 | S3: Back Number: | T3: ='Entry Information'!B16 -> 0 | Y3: Back Number: | Z3: ='Entry Information'!B16 -> 0
A4: Name: | B4: ='Entry Information'!I16 -> 0 | C4: ='Entry Information'!H16 -> 0 | G4: Name: | H4: ='Entry Information'!I16 -> 0 | I4: ='Entry Information'!H16 -> 0 | M4: Name: | N4: ='Entry Information'!I16 -> 0 | O4: ='Entry Information'!H16 -> 0 | S4: Name: | T4: ='Entry Information'!I16 -> 0 | U4: ='Entry Information'!H16 -> 0 | Y4: Name: | Z4: ='Entry Information'!I16 -> 0 | AA4: ='Entry Information'!H16 -> 0
A5: Horse Name: | B5: ='Entry Information'!J16 -> 0 | G5: Horse Name: | H5: ='Entry Information'!J16 -> 0 | M5: Horse Name: | N5: ='Entry Information'!J16 -> 0 | S5: Horse Name: | T5: ='Entry Information'!J16 -> 0 | Y5: Horse Name: | Z5: ='Entry Information'!J16 -> 0
A7: Check box when entering Ranch Riding scores | G7: Check box when entering Working Ranch Horse scores | M7: Check box when entering Ranch Cutting scores | S7: Check box when entering Ranch Trail scores | Y7: Check box when entering Conformation scores
A8: Ranch Riding | G8: Working Ranch Horse | M8: Ranch Cutting | S8: Ranch Trail | Y8: Ranch Conformation
A9: Maneuver | B9: Judge's Score +/- | C9: Penalty Points | G9: Maneuver | H9: Judge's Score +/- | I9: Penalty Points | M9: Maneuver | N9: Judge's Score +/- | O9: Penalty Points | S9: Maneuver | T9: Judge's Score +/- | U9: Penalty Points | Y9: Front Legs, Feet | AB9: -1
A10: 1 | B10: 1 | G10: 1 | M10: Herd Work | S10: 1 | Y10: Chest, Pectoral V | AB10: 1
A11: 2 | B11: 1 | G11: 2 | M11: 1 | N11: 1 | S11: 2 | Y11: Head | AB11: 0
A12: 3 | B12: 1 | G12: 3 | M12: 2 | N12: 1 | S12: 3 | Y12: Neck & Throat Latch | AB12: 1
A13: 4 | B13: 2 | G13: 4 | M13: 3 | N13: 1 | S13: 4 | Y13: Shoulders & Withers | AB13: 0
A14: 5 | B14: 2 | G14: 5 | M14: Cutting | S14: 5 | Y14: Heart Girth & Barrel | AB14: 0
A15: 6 | B15: -3 | C15: -3 | G15: 6 | M15: 1 | N15: 0 | S15: 6 | Y15: Back & Loin | AB15: -2
A16: 7 | B16: 0 | G16: 7 | M16: 2 | N16: 1 | S16: 7 | Y16: Hip & Croup | AB16: 1
A17: 8 | B17: 1 | G17: 8 | M17: 3 | N17: 2 | S17: 8 | Y17: Stife & Gaskin | AB17: 0
A18: 9 | B18: -1 | C18: -1 | I18: Total Penalty Pts | J18: =SUM(I10:J17) -> 0 | M18: 4 | N18: 1 | S18: 9 | Y18: Hock, Hind Legs, Feet | AB18: 0
A19: 10 | B19: 2 | G19: 56 +/- Judge Score | H19: =SUM(H10:H17) -> 0 | I19: Divided by 2 | J19: =SUM((56+H19)/2) -> 28 | M19: Penning | S19: 10 | Y19: Overall Muscling | AB19: 0
A20: 11 | B20: 0 | G20: Maneuver Score | H20: =J19 -> 28 | I20: Less Penalty Pts | J20: =J18 -> 0 | M20: 1 | N20: 3 | U20: Major Penalties | Y20: Tracking | Z20: Lame: enter an "x" | AB20: -1
A21: 12 | B21: 0 | G21: REINING SCORE | J21: =SUM(H20+J20) -> 28 | M21: 2 | N21: 2 | Y21: Balance 1 | AB21: 0
A22: 13 | B22: 0 | G22: NOVICE BOXING | M22: 3 | N22: 2 | Y22: Balance 2 | AB22: 0
A23: 14 | B23: 1 | G23: 1 | I23: Penalty Points | O23: Major Penalties | S23: Maneuver Total | T23: =SUM(T10:T19) -> 0 | U23: Penalty Total | V23: =SUM(SUM(U10:V19)+V20) -> 0 | Y23: Balance 3 | AB23: 0
A24: Maneuver Total | B24: =SUM(B10:B23) -> 7 | C24: Major Penalties | D24: -10 | G24: 7 +/- Judge Score | H24: =SUM(7+H23) -> 7 | I24: Total Penalty Pts | J24: =J23 -> 0 | Y24: Fitness & Condition | AB24: 1
C25: Penalty Total | D25: =SUM(C10:D24) -> -14 | G25: Maneuver Score | H25: =H24 -> 7 | I25: Less Penalty Pts | J25: =J24 -> 0 | M25: Maneuver Total | N25: =SUM(N10:N22) -> 14 | O25: Penalty Total | P25: =SUM(O11+O12+O13+O15+O16+O17+O18+O20+O21+O22+P23) -> 0 | Y25: Participant Showmanship | AB25: -2
G26: CATTLE SCORE | J26: =SUM(H25+J25) -> 7 | Y26: Horse Showmanship | AB26: 0
A27: 100 +/-Maneuver | B27: =B24 -> 7 | C27: x .70 = | D27: =SUM((100+B27)*0.7) -> 74.9 | M27: 70 +/-Maneuver | N27: =N25 -> 14 | O27: Less Penalty Total | P27: =P25 -> 0 | S27: 70 +/-Maneuver | T27: =T23 -> 0 | U27: Less Penalty Total | V27: =V23 -> 0 | Y27: Form & Showmanship Judges Score | AA27: Total (1) | AB27: =SUM(AB9:AB26) -> -2
Y28: =SUM(AB27*0.33+42) -> 41.34 | Z28: =IF(AA20="x",-10,0) -> 0 | AA28: Judge Score (2) | AB28: =SUM(Y28+Z28) -> 41.34
A29: Maneuver Score = | B29: =D27 -> 74.9 | C29: Less Penalty Total | D29: =D25 -> -14 | G29: Reining Score | H29: =J21 -> 28 | I29: Plus Cattle Score | J29: =J26 -> 7 | Y29: Ranch Cutting | Z29: =IF(P31="",0,P31) -> 0 | AA29: Ranch Rding | AB29: =IF(D31="",0,D31) -> 0
Y30: Working Ranch Horse | Z30: =IF(J31="",0,J31) -> 0 | AA30: Ranch Trail | AB30: =IF(V31="",0,V31) -> 0
A31: TOTAL SCORE | D31: =IF(D7="","",IF(B29+D29<0,0,B29+D29)) ->  | G31: TOTAL SCORE | J31: =IF(J7="","",IF(H29+J29<0,0,H29+J29)) ->  | M31: TOTAL SCORE | P31: =IF(P7="","",IF(70+N27+P27<0,0,70+N27+P27)) ->  | S31: TOTAL SCORE | V31: =IF(V7="","",IF(70+T27+V27<0,0,70+T27+V27)) ->  | Y31: Function Total (3) | Z31: =SUM(Z29+AB29+Z30+AB30) -> 0 | AA31: Function Score (4) | AB31: =Z31*0.1 -> 0
Y32: Judge Score (2) + Function Score (4) = CONFORMATION SCORE | AB32: =IF(AB7="","",IF(AB28+AB31<0,0,AB28+AB31)) -> 
C33: Return to Entry Page | I33: Return to Entry Page | O33: Return to Entry Page | U33: Return to Entry Page
AA34: Return to Entry Page

Sheet Novice 7
A1: RIDERS SCORE WORK SHEET
A3: Back Number: | B3: ='Entry Information'!B17 -> 44 | G3: Back Number: | H3: ='Entry Information'!B17 -> 44 | M3: Back Number: | N3: ='Entry Information'!B17 -> 44 | S3: Back Number: | T3: ='Entry Information'!B17 -> 44 | Y3: Back Number: | Z3: ='Entry Information'!B17 -> 44
A4: Name: | B4: ='Entry Information'!I17 -> Roger | C4: ='Entry Information'!H17 -> Knapp | G4: Name: | H4: ='Entry Information'!I17 -> Roger | I4: ='Entry Information'!H17 -> Knapp | M4: Name: | N4: ='Entry Information'!I17 -> Roger | O4: ='Entry Information'!H17 -> Knapp | S4: Name: | T4: ='Entry Information'!I17 -> Roger | U4: ='Entry Information'!H17 -> Knapp | Y4: Name: | Z4: ='Entry Information'!I17 -> Roger | AA4: ='Entry Information'!H17 -> Knapp
A5: Horse Name: | B5: ='Entry Information'!J17 -> Easy Rocket Doc | G5: Horse Name: | H5: ='Entry Information'!J17 -> Easy Rocket Doc | M5: Horse Name: | N5: ='Entry Information'!J17 -> Easy Rocket Doc | S5: Horse Name: | T5: ='Entry Information'!J17 -> Easy Rocket Doc | Y5: Horse Name: | Z5: ='Entry Information'!J17 -> Easy Rocket Doc
A7: Check box when entering Ranch Riding scores | D7: x | G7: Check box when entering Working Ranch Horse scores | J7: x | M7: Check box when entering Ranch Cutting scores | P7: x | S7: Check box when entering Ranch Trail scores | V7: x | Y7: Check box when entering Conformation scores | AB7: x
A8: Ranch Riding | G8: Working Ranch Horse | M8: Ranch Cutting | S8: Ranch Trail | Y8: Ranch Conformation
A9: Maneuver | B9: Judge's Score +/- | C9: Penalty Points | G9: Maneuver | H9: Judge's Score +/- | I9: Penalty Points | M9: Maneuver | N9: Judge's Score +/- | O9: Penalty Points | S9: Maneuver | T9: Judge's Score +/- | U9: Penalty Points | Y9: Front Legs, Feet | AB9: 0
A10: 1 | B10: 1 | G10: 1 | H10: 2 | M10: Herd Work | S10: 1 | T10: 2 | Y10: Chest, Pectoral V | AB10: 1
A11: 2 | B11: 0 | G11: 2 | H11: 1 | M11: 1 | N11: 0 | O11: -2 | S11: 2 | T11: 2 | U11: -1.5 | Y11: Head | AB11: 1
A12: 3 | B12: 1 | G12: 3 | H12: 0 | M12: 2 | N12: 0 | S12: 3 | T12: -1 | Y12: Neck & Throat Latch | AB12: 2
A13: 4 | B13: -2 | G13: 4 | H13: 0 | M13: 3 | N13: -2 | O13: -3 | S13: 4 | T13: 2 | U13: -1.5 | Y13: Shoulders & Withers | AB13: 2
A14: 5 | B14: 2 | G14: 5 | H14: 0 | I14: -2 | M14: Cutting | S14: 5 | T14: 0 | Y14: Heart Girth & Barrel | AB14: 2
A15: 6 | B15: 0 | G15: 6 | H15: 2 | M15: 1 | N15: 1 | S15: 6 | T15: 2 | Y15: Back & Loin | AB15: 0
A16: 7 | B16: 0 | C16: -3 | G16: 7 | H16: 1 | M16: 2 | N16: -2 | O16: -10 | S16: 7 | T16: 2 | Y16: Hip & Croup | AB16: 0
A17: 8 | B17: 0 | G17: 8 | H17: -1 | I17: -0.5 | M17: 3 | N17: -3 | S17: 8 | T17: 1 | Y17: Stife & Gaskin | AB17: 1
A18: 9 | B18: -1 | I18: Total Penalty Pts | J18: =SUM(I10:J17) -> -2.5 | M18: 4 | N18: -2 | S18: 9 | T18: 1 | U18: -0.5 | Y18: Hock, Hind Legs, Feet | AB18: 0
A19: 10 | B19: 0 | G19: 56 +/- Judge Score | H19: =SUM(H10:H17) -> 5 | I19: Divided by 2 | J19: =SUM((56+H19)/2) -> 30.5 | M19: Penning | S19: 10 | T19: -1 | U19: -2 | Y19: Overall Muscling | AB19: 1
A20: 11 | B20: -1 | G20: Maneuver Score | H20: =J19 -> 30.5 | I20: Less Penalty Pts | J20: =J18 -> -2.5 | M20: 1 | N20: -3 | U20: Major Penalties | Y20: Tracking | Z20: Lame: enter an "x" | AB20: -1
A21: 12 | B21: 0 | G21: REINING SCORE | J21: =SUM(H20+J20) -> 28 | M21: 2 | N21: 0 | O21: -5 | Y21: Balance 1 | AB21: 0
A22: 13 | B22: -1 | G22: NOVICE BOXING | M22: 3 | N22: -3 | Y22: Balance 2 | AB22: 0
A23: 14 | B23: 0 | G23: 1 | H23: 2 | I23: Penalty Points | O23: Major Penalties | S23: Maneuver Total | T23: =SUM(T10:T19) -> 10 | U23: Penalty Total | V23: =SUM(SUM(U10:V19)+V20) -> -5.5 | Y23: Balance 3 | AB23: 0
A24: Maneuver Total | B24: =SUM(B10:B23) -> -1 | C24: Major Penalties | D24: -10 | G24: 7 +/- Judge Score | H24: =SUM(7+H23) -> 9 | I24: Total Penalty Pts | J24: =J23 -> 0 | Y24: Fitness & Condition | AB24: 1
C25: Penalty Total | D25: =SUM(C10:D24) -> -13 | G25: Maneuver Score | H25: =H24 -> 9 | I25: Less Penalty Pts | J25: =J24 -> 0 | M25: Maneuver Total | N25: =SUM(N10:N22) -> -14 | O25: Penalty Total | P25: =SUM(O11+O12+O13+O15+O16+O17+O18+O20+O21+O22+P23) -> -20 | Y25: Participant Showmanship | AB25: -2
G26: CATTLE SCORE | J26: =SUM(H25+J25) -> 9 | Y26: Horse Showmanship | AB26: 0
A27: 100 +/-Maneuver | B27: =B24 -> -1 | C27: x .70 = | D27: =SUM((100+B27)*0.7) -> 69.3 | M27: 70 +/-Maneuver | N27: =N25 -> -14 | O27: Less Penalty Total | P27: =P25 -> -20 | S27: 70 +/-Maneuver | T27: =T23 -> 10 | U27: Less Penalty Total | V27: =V23 -> -5.5 | Y27: Form & Showmanship Judges Score | AA27: Total (1) | AB27: =SUM(AB9:AB26) -> 8
Y28: =SUM(AB27*0.33+42) -> 44.64 | Z28: =IF(AA20="x",-10,0) -> 0 | AA28: Judge Score (2) | AB28: =SUM(Y28+Z28) -> 44.64
A29: Maneuver Score = | B29: =D27 -> 69.3 | C29: Less Penalty Total | D29: =D25 -> -13 | G29: Reining Score | H29: =J21 -> 28 | I29: Plus Cattle Score | J29: =J26 -> 9 | Y29: Ranch Cutting | Z29: =IF(P31="",0,P31) -> 36 | AA29: Ranch Rding | AB29: =IF(D31="",0,D31) -> 56.3
Y30: Working Ranch Horse | Z30: =IF(J31="",0,J31) -> 37 | AA30: Ranch Trail | AB30: =IF(V31="",0,V31) -> 74.5
A31: TOTAL SCORE | D31: =IF(D7="","",IF(B29+D29<0,0,B29+D29)) -> 56.3 | G31: TOTAL SCORE | J31: =IF(J7="","",IF(H29+J29<0,0,H29+J29)) -> 37 | M31: TOTAL SCORE | P31: =IF(P7="","",IF(70+N27+P27<0,0,70+N27+P27)) -> 36 | S31: TOTAL SCORE | V31: =IF(V7="","",IF(70+T27+V27<0,0,70+T27+V27)) -> 74.5 | Y31: Function Total (3) | Z31: =SUM(Z29+AB29+Z30+AB30) -> 203.8 | AA31: Function Score (4) | AB31: =Z31*0.1 -> 20.38
Y32: Judge Score (2) + Function Score (4) = CONFORMATION SCORE | AB32: =IF(AB7="","",IF(AB28+AB31<0,0,AB28+AB31)) -> 65.02
C33: Return to Entry Page | I33: Return to Entry Page | O33: Return to Entry Page | U33: Return to Entry Page
AA34: Return to Entry Page

Sheet Novice 8
A1: RIDERS SCORE WORK SHEET
A3: Back Number: | B3: ='Entry Information'!B18 -> 47 | G3: Back Number: | H3: ='Entry Information'!B18 -> 47 | M3: Back Number: | N3: ='Entry Information'!B18 -> 47 | S3: Back Number: | T3: ='Entry Information'!B18 -> 47 | Y3: Back Number: | Z3: ='Entry Information'!B18 -> 47
A4: Name: | B4: ='Entry Information'!I18 -> Matthew | C4: ='Entry Information'!H18 -> Heinz | G4: Name: | H4: ='Entry Information'!I18 -> Matthew | I4: ='Entry Information'!H18 -> Heinz | M4: Name: | N4: ='Entry Information'!I18 -> Matthew | O4: ='Entry Information'!H18 -> Heinz | S4: Name: | T4: ='Entry Information'!I18 -> Matthew | U4: ='Entry Information'!H18 -> Heinz | Y4: Name: | Z4: ='Entry Information'!I18 -> Matthew | AA4: ='Entry Information'!H18 -> Heinz
A5: Horse Name: | B5: ='Entry Information'!J18 -> Sun Dee Fox | G5: Horse Name: | H5: ='Entry Information'!J18 -> Sun Dee Fox | M5: Horse Name: | N5: ='Entry Information'!J18 -> Sun Dee Fox | S5: Horse Name: | T5: ='Entry Information'!J18 -> Sun Dee Fox | Y5: Horse Name: | Z5: ='Entry Information'!J18 -> Sun Dee Fox
A7: Check box when entering Ranch Riding scores | D7: x | G7: Check box when entering Working Ranch Horse scores | J7: x | M7: Check box when entering Ranch Cutting scores | P7: x | S7: Check box when entering Ranch Trail scores | V7: x | Y7: Check box when entering Conformation scores | AB7: x
A8: Ranch Riding | G8: Working Ranch Horse | M8: Ranch Cutting | S8: Ranch Trail | Y8: Ranch Conformation
A9: Maneuver | B9: Judge's Score +/- | C9: Penalty Points | G9: Maneuver | H9: Judge's Score +/- | I9: Penalty Points | M9: Maneuver | N9: Judge's Score +/- | O9: Penalty Points | S9: Maneuver | T9: Judge's Score +/- | U9: Penalty Points | Y9: Front Legs, Feet | AB9: -1
A10: 1 | B10: 0 | G10: 1 | H10: -1 | I10: -1.5 | M10: Herd Work | S10: 1 | T10: 1 | Y10: Chest, Pectoral V | AB10: 0
A11: 2 | B11: 0 | G11: 2 | H11: -1 | M11: 1 | N11: 0 | O11: -1 | S11: 2 | T11: 2 | U11: -0.5 | Y11: Head | AB11: 0
A12: 3 | B12: 0 | G12: 3 | H12: 0 | I12: -2 | M12: 2 | N12: -1 | S12: 3 | T12: 1 | Y12: Neck & Throat Latch | AB12: 1
A13: 4 | B13: 0 | G13: 4 | H13: 0 | M13: 3 | N13: 0 | S13: 4 | T13: -1 | Y13: Shoulders & Withers | AB13: 0
A14: 5 | B14: -2 | G14: 5 | H14: 0 | M14: Cutting | S14: 5 | T14: 0 | Y14: Heart Girth & Barrel | AB14: 0
A15: 6 | B15: 0 | G15: 6 | H15: -3 | M15: 1 | N15: 0 | O15: -5 | S15: 6 | T15: 0 | U15: -2 | Y15: Back & Loin | AB15: -1
A16: 7 | B16: 1 | G16: 7 | H16: 0 | M16: 2 | N16: -1 | S16: 7 | T16: 0 | Y16: Hip & Croup | AB16: 0
A17: 8 | B17: -1 | C17: -3 | G17: 8 | H17: 0 | M17: 3 | N17: 1 | O17: -5 | S17: 8 | T17: -1 | Y17: Stife & Gaskin | AB17: -1
A18: 9 | B18: 0 | I18: Total Penalty Pts | J18: =SUM(I10:J17) -> -3.5 | M18: 4 | N18: -1 | S18: 9 | T18: -1 | Y18: Hock, Hind Legs, Feet | AB18: -3
A19: 10 | B19: 0 | G19: 56 +/- Judge Score | H19: =SUM(H10:H17) -> -5 | I19: Divided by 2 | J19: =SUM((56+H19)/2) -> 25.5 | M19: Penning | S19: 10 | T19: 1 | Y19: Overall Muscling | AB19: -1
A20: 11 | B20: 1 | G20: Maneuver Score | H20: =J19 -> 25.5 | I20: Less Penalty Pts | J20: =J18 -> -3.5 | M20: 1 | N20: -3 | U20: Major Penalties | Y20: Tracking | Z20: Lame: enter an "x" | AB20: -2
A21: 12 | B21: 1 | G21: REINING SCORE | J21: =SUM(H20+J20) -> 22 | M21: 2 | N21: -3 | Y21: Balance 1 | AB21: -2
A22: 13 | B22: 1 | G22: NOVICE BOXING | M22: 3 | N22: -3 | Y22: Balance 2 | AB22: -2
A23: 14 | B23: 1 | G23: 1 | H23: -3 | I23: Penalty Points | J23: -4 | O23: Major Penalties | S23: Maneuver Total | T23: =SUM(T10:T19) -> 2 | U23: Penalty Total | V23: =SUM(SUM(U10:V19)+V20) -> -2.5 | Y23: Balance 3 | AB23: -2
A24: Maneuver Total | B24: =SUM(B10:B23) -> 2 | C24: Major Penalties | G24: 7 +/- Judge Score | H24: =SUM(7+H23) -> 4 | I24: Total Penalty Pts | J24: =J23 -> -4 | Y24: Fitness & Condition | AB24: 1
C25: Penalty Total | D25: =SUM(C10:D24) -> -3 | G25: Maneuver Score | H25: =H24 -> 4 | I25: Less Penalty Pts | J25: =J24 -> -4 | M25: Maneuver Total | N25: =SUM(N10:N22) -> -11 | O25: Penalty Total | P25: =SUM(O11+O12+O13+O15+O16+O17+O18+O20+O21+O22+P23) -> -11 | Y25: Participant Showmanship | AB25: 1
G26: CATTLE SCORE | J26: =SUM(H25+J25) -> 0 | Y26: Horse Showmanship | AB26: 1
A27: 100 +/-Maneuver | B27: =B24 -> 2 | C27: x .70 = | D27: =SUM((100+B27)*0.7) -> 71.4 | M27: 70 +/-Maneuver | N27: =N25 -> -11 | O27: Less Penalty Total | P27: =P25 -> -11 | S27: 70 +/-Maneuver | T27: =T23 -> 2 | U27: Less Penalty Total | V27: =V23 -> -2.5 | Y27: Form & Showmanship Judges Score | AA27: Total (1) | AB27: =SUM(AB9:AB26) -> -11
Y28: =SUM(AB27*0.33+42) -> 38.37 | Z28: =IF(AA20="x",-10,0) -> 0 | AA28: Judge Score (2) | AB28: =SUM(Y28+Z28) -> 38.37
A29: Maneuver Score = | B29: =D27 -> 71.4 | C29: Less Penalty Total | D29: =D25 -> -3 | G29: Reining Score | H29: =J21 -> 22 | I29: Plus Cattle Score | J29: =J26 -> 0 | Y29: Ranch Cutting | Z29: =IF(P31="",0,P31) -> 48 | AA29: Ranch Rding | AB29: =IF(D31="",0,D31) -> 68.4
Y30: Working Ranch Horse | Z30: =IF(J31="",0,J31) -> 22 | AA30: Ranch Trail | AB30: =IF(V31="",0,V31) -> 69.5
A31: TOTAL SCORE | D31: =IF(D7="","",IF(B29+D29<0,0,B29+D29)) -> 68.4 | G31: TOTAL SCORE | J31: =IF(J7="","",IF(H29+J29<0,0,H29+J29)) -> 22 | M31: TOTAL SCORE | P31: =IF(P7="","",IF(70+N27+P27<0,0,70+N27+P27)) -> 48 | S31: TOTAL SCORE | V31: =IF(V7="","",IF(70+T27+V27<0,0,70+T27+V27)) -> 69.5 | Y31: Function Total (3) | Z31: =SUM(Z29+AB29+Z30+AB30) -> 207.9 | AA31: Function Score (4) | AB31: =Z31*0.1 -> 20.79
Y32: Judge Score (2) + Function Score (4) = CONFORMATION SCORE | AB32: =IF(AB7="","",IF(AB28+AB31<0,0,AB28+AB31)) -> 59.16
C33: Return to Entry Page | I33: Return to Entry Page | O33: Return to Entry Page | U33: Return to Entry Page
AA34: Return to Entry Page

Sheet Novice 9
A1: RIDERS SCORE WORK SHEET
A3: Back Number: | B3: ='Entry Information'!B19 -> 49 | G3: Back Number: | H3: ='Entry Information'!B19 -> 49 | M3: Back Number: | N3: ='Entry Information'!B19 -> 49 | S3: Back Number: | T3: ='Entry Information'!B19 -> 49 | Y3: Back Number: | Z3: ='Entry Information'!B19 -> 49
A4: Name: | B4: ='Entry Information'!I19 -> Sandra | C4: ='Entry Information'!H19 -> Hoppe | G4: Name: | H4: ='Entry Information'!I19 -> Sandra | I4: ='Entry Information'!H19 -> Hoppe | M4: Name: | N4: ='Entry Information'!I19 -> Sandra | O4: ='Entry Information'!H19 -> Hoppe | S4: Name: | T4: ='Entry Information'!I19 -> Sandra | U4: ='Entry Information'!H19 -> Hoppe | Y4: Name: | Z4: ='Entry Information'!I19 -> Sandra | AA4: ='Entry Information'!H19 -> Hoppe
A5: Horse Name: | B5: ='Entry Information'!J19 -> B Cruzin Along | G5: Horse Name: | H5: ='Entry Information'!J19 -> B Cruzin Along | M5: Horse Name: | N5: ='Entry Information'!J19 -> B Cruzin Along | S5: Horse Name: | T5: ='Entry Information'!J19 -> B Cruzin Along | Y5: Horse Name: | Z5: ='Entry Information'!J19 -> B Cruzin Along
A7: Check box when entering Ranch Riding scores | D7: x | G7: Check box when entering Working Ranch Horse scores | J7: x | M7: Check box when entering Ranch Cutting scores | P7: x | S7: Check box when entering Ranch Trail scores | V7: x | Y7: Check box when entering Conformation scores | AB7: x
A8: Ranch Riding | G8: Working Ranch Horse | M8: Ranch Cutting | S8: Ranch Trail | Y8: Ranch Conformation
A9: Maneuver | B9: Judge's Score +/- | C9: Penalty Points | G9: Maneuver | H9: Judge's Score +/- | I9: Penalty Points | M9: Maneuver | N9: Judge's Score +/- | O9: Penalty Points | S9: Maneuver | T9: Judge's Score +/- | U9: Penalty Points | Y9: Front Legs, Feet | AB9: -1
A10: 1 | B10: 0 | G10: 1 | H10: -1 | I10: -1.5 | M10: Herd Work | S10: 1 | T10: 1 | Y10: Chest, Pectoral V | AB10: -1
A11: 2 | B11: 0 | G11: 2 | H11: 0 | M11: 1 | N11: 1 | S11: 2 | T11: 2 | Y11: Head | AB11: 2
A12: 3 | B12: 0 | G12: 3 | H12: -2 | I12: -4 | M12: 2 | N12: 0 | S12: 3 | T12: 2 | Y12: Neck & Throat Latch | AB12: 0
A13: 4 | B13: -1 | C13: -1 | G13: 4 | H13: 0 | M13: 3 | N13: -3 | S13: 4 | T13: 2 | Y13: Shoulders & Withers | AB13: -1
A14: 5 | B14: 2 | G14: 5 | H14: -3 | M14: Cutting | S14: 5 | T14: 0 | Y14: Heart Girth & Barrel | AB14: -1
A15: 6 | B15: 0 | G15: 6 | H15: -1 | M15: 1 | N15: 0 | S15: 6 | T15: 2 | Y15: Back & Loin | AB15: -3
A16: 7 | B16: 1 | G16: 7 | H16: -1 | M16: 2 | N16: -3 | S16: 7 | T16: -1 | U16: -5 | Y16: Hip & Croup | AB16: -2
A17: 8 | B17: -1 | G17: 8 | H17: -1 | M17: 3 | N17: -3 | S17: 8 | T17: -3 | Y17: Stife & Gaskin | AB17: 0
A18: 9 | B18: 0 | C18: -1 | I18: Total Penalty Pts | J18: =SUM(I10:J17) -> -5.5 | M18: 4 | N18: -2 | S18: 9 | T18: -3 | Y18: Hock, Hind Legs, Feet | AB18: -1
A19: 10 | B19: 2 | G19: 56 +/- Judge Score | H19: =SUM(H10:H17) -> -9 | I19: Divided by 2 | J19: =SUM((56+H19)/2) -> 23.5 | M19: Penning | S19: 10 | T19: 1 | Y19: Overall Muscling | AB19: -1
A20: 11 | B20: 0 | G20: Maneuver Score | H20: =J19 -> 23.5 | I20: Less Penalty Pts | J20: =J18 -> -5.5 | M20: 1 | N20: -1 | O20: -5 | U20: Major Penalties | V20: -10 | Y20: Tracking | Z20: Lame: enter an "x" | AB20: 0
A21: 12 | B21: -1 | G21: REINING SCORE | J21: =SUM(H20+J20) -> 18 | M21: 2 | N21: -3 | Y21: Balance 1 | AB21: -3
A22: 13 | B22: -1 | G22: NOVICE BOXING | M22: 3 | N22: 1 | Y22: Balance 2 | AB22: -3
A23: 14 | B23: 0 | G23: 1 | H23: -1 | I23: Penalty Points | J23: -1 | O23: Major Penalties | S23: Maneuver Total | T23: =SUM(T10:T19) -> 3 | U23: Penalty Total | V23: =SUM(SUM(U10:V19)+V20) -> -15 | Y23: Balance 3 | AB23: -3
A24: Maneuver Total | B24: =SUM(B10:B23) -> 1 | C24: Major Penalties | D24: -10 | G24: 7 +/- Judge Score | H24: =SUM(7+H23) -> 6 | I24: Total Penalty Pts | J24: =J23 -> -1 | Y24: Fitness & Condition | AB24: 1
C25: Penalty Total | D25: =SUM(C10:D24) -> -12 | G25: Maneuver Score | H25: =H24 -> 6 | I25: Less Penalty Pts | J25: =J24 -> -1 | M25: Maneuver Total | N25: =SUM(N10:N22) -> -13 | O25: Penalty Total | P25: =SUM(O11+O12+O13+O15+O16+O17+O18+O20+O21+O22+P23) -> -5 | Y25: Participant Showmanship | AB25: -2
G26: CATTLE SCORE | J26: =SUM(H25+J25) -> 5 | Y26: Horse Showmanship | AB26: 0
